{"text_format":"1","workbook":"xlsx","n_sheets":11,"sheets":["Informations","TDB_ETAB","TDB_CLASSES_FRA","TDB_CLASSES_MATH","TDB_GRAPH_1","TDB_GRAPH_2","TDB_GRAPH_3","EVA_Groupes_FRANCAIS","EVA_Groupes_MATHS","Divisions","Feuil1"],"not_rendered":{"charts":37,"images":0,"macros":1,"external_links":0,"defined_names":5,"comments":0,"pivot_tables":1},"unopened":[],"bounds":{"document_bytes":16777216,"sheet_cells":100000,"rows_first":2000,"rows_last":500,"rows_between":2000,"halvings":0,"cell_chars":16384,"cell_head_chars":4096},"cells_cut":0,"cells_raw":0,"read":"whole","date_system":"1900"}

{"sheet":"Informations","index":0,"n_rows":43,"n_cols":10,"rows_kept":43,"cut":false,"hidden":false,"merged":[[1,1,1,10],[3,1,3,10],[26,3,26,4],[27,3,27,4],[28,3,28,4]]}
[]
[null,"Informations générales\n2024-graph"]
[]
[null,"0) Présentation\n\nCe fichier est composé de neuf onglets :\n   1 - Informations qui permet de saisir ou modifier les noms des classes (obligatoire si incomplet - encadré 1) et, éventuellement, de modifier l'écart de taux pour la mise en forme automatique des résultats des classes (facultatif - encadré 3)\n   2 - TDB_ETAB qui regoupe l'ensemble des résulats des élèves de l'établissement\n   3 - TDB_CLASSES_FRA qui présente les résultats en français par classe et les compare à ceux de l'établissement\n   4 - TDB_CLASSES_MATH qui présente les résulats en mathématiques par classe et les compare à ceux ce l'établissement\n   5 - TDB_GRAPH_1 qui présente les résultats pour l'établissement et par classe sous forme de diagrammes en bâtons\n   6 - TDB_GRAPH_2 qui présente les résultats par domaine pour toutes les classes, l'établissement étant le bâton de gauche \n   7 - TDB_GRAPH_3 qui met en relation les taux de \"maîtrise satisfaisante\" pour deux domaines à choisir, pour toutes les classes, sous forme de nuage de points\n   8 - EVA_Groupes_FRANCAIS dans lequel doivent être copiés les résultats en français de l'établissement avant l'utilisation du bouton \"créer les colonnes de niveaux de maîtrise par classe\"\n   9 - EVA_Groupes_MATHS dans lequel doivent être copiés les résultats en mathématiques de l'établissement avant l'utilisation du bouton \"créer les colonnes de niveaux de maîtrise par classe\"\n\nPour que ce fichier fonctionne correctement il faut : \n  - avoir autorisé l'execution de macros lors de son ouverture ; \n  - avoir copié les résulats de l'établissement en français et en mathématiques dans les onglets 8 et 9 ;\n  - avoir cliqué sur les boutons \"créer les colonnes de niveaux de maîtrise par classe\" dans les onglets 8 et 9 ;\n  - avoir ensuite cliqué sur le bouton \"Actualiser tout\" dans l'onglet Données de Excel (la liste des classes devrait apparaître dans l'encadré 1) )\n  sinon saisir les noms des classes dans l'encadré 1) ci-dessous à l'identique des noms utilisés par ASP.\n\nEn cas de problème, se référer à la notice plus détaillée \"2_Notice_TDB_Analyse_Restitution_23EVA_g.docx\" qui accompagne ce fichier."]
[]
[null,"1) Répartition par classe des élèves ayant passé l'évaluation"]
[]
[null,null,null,"Classes *","Effectifs\nfrançais","%\nfrançais","Effectifs\nmaths","%\nmaths"]
[null,null,{"$f":"Feuil1!G5","v":""},{"$f":"Feuil1!E5","v":"-"},{"$f":"COUNTIF(EVA_Groupes_FRANCAIS!A:A,$D9)","v":0},{"$f":"E9/E$20","v":{"$error":"#DIV/0!"}},{"$f":"COUNTIF(EVA_Groupes_MATHS!A:A,$D9)","v":0},{"$f":"G9/G$20","v":{"$error":"#DIV/0!"}}]
[null,null,{"$f":"Feuil1!G6","v":""},{"$f":"Feuil1!E6","v":"-"},{"$f":"COUNTIF(EVA_Groupes_FRANCAIS!A:A,$D10)","v":0},{"$error":"#DIV/0!"},{"$f":"COUNTIF(EVA_Groupes_MATHS!A:A,$D10)","v":0},{"$error":"#DIV/0!"}]
[null,null,{"$f":"Feuil1!G7","v":""},{"$f":"Feuil1!E7","v":"-"},{"$f":"COUNTIF(EVA_Groupes_FRANCAIS!A:A,$D11)","v":0},{"$error":"#DIV/0!"},{"$f":"COUNTIF(EVA_Groupes_MATHS!A:A,$D11)","v":0},{"$error":"#DIV/0!"}]
[null,null,{"$f":"Feuil1!G8","v":""},{"$f":"Feuil1!E8","v":"-"},{"$f":"COUNTIF(EVA_Groupes_FRANCAIS!A:A,$D12)","v":0},{"$error":"#DIV/0!"},{"$f":"COUNTIF(EVA_Groupes_MATHS!A:A,$D12)","v":0},{"$error":"#DIV/0!"}]
[null,null,{"$f":"Feuil1!G9","v":""},{"$f":"Feuil1!E9","v":"-"},{"$f":"COUNTIF(EVA_Groupes_FRANCAIS!A:A,$D13)","v":0},{"$error":"#DIV/0!"},{"$f":"COUNTIF(EVA_Groupes_MATHS!A:A,$D13)","v":0},{"$error":"#DIV/0!"}]
[null,null,{"$f":"Feuil1!G10","v":""},{"$f":"Feuil1!E10","v":"-"},{"$f":"COUNTIF(EVA_Groupes_FRANCAIS!A:A,$D14)","v":0},{"$error":"#DIV/0!"},{"$f":"COUNTIF(EVA_Groupes_MATHS!A:A,$D14)","v":0},{"$error":"#DIV/0!"}]
[null,null,{"$f":"Feuil1!G11","v":""},{"$f":"Feuil1!E11","v":"-"},{"$f":"COUNTIF(EVA_Groupes_FRANCAIS!A:A,$D15)","v":0},{"$error":"#DIV/0!"},{"$f":"COUNTIF(EVA_Groupes_MATHS!A:A,$D15)","v":0},{"$error":"#DIV/0!"}]
[null,null,{"$f":"Feuil1!G12","v":""},{"$f":"Feuil1!E12","v":"-"},{"$f":"COUNTIF(EVA_Groupes_FRANCAIS!A:A,$D16)","v":0},{"$error":"#DIV/0!"},{"$f":"COUNTIF(EVA_Groupes_MATHS!A:A,$D16)","v":0},{"$error":"#DIV/0!"}]
[null,null,{"$f":"Feuil1!G13","v":""},{"$f":"Feuil1!E13","v":"-"},{"$f":"COUNTIF(EVA_Groupes_FRANCAIS!A:A,$D17)","v":0},{"$error":"#DIV/0!"},{"$f":"COUNTIF(EVA_Groupes_MATHS!A:A,$D17)","v":0},{"$error":"#DIV/0!"}]
[null,null,{"$f":"Feuil1!G14","v":""},{"$f":"Feuil1!E14","v":"-"},{"$f":"COUNTIF(EVA_Groupes_FRANCAIS!A:A,$D18)","v":0},{"$error":"#DIV/0!"},{"$f":"COUNTIF(EVA_Groupes_MATHS!A:A,$D18)","v":0},{"$error":"#DIV/0!"}]
[null,null,{"$f":"Feuil1!G15","v":""},{"$f":"Feuil1!E15","v":"-"},{"$f":"COUNTIF(EVA_Groupes_FRANCAIS!A:A,$D19)","v":0},{"$error":"#DIV/0!"},{"$f":"COUNTIF(EVA_Groupes_MATHS!A:A,$D19)","v":0},{"$error":"#DIV/0!"}]
[null,null,null,"Total étab",{"$f":"SUM(E9:E19)","v":0},{"$error":"#DIV/0!"},{"$f":"SUM(G9:G19)","v":0},{"$error":"#DIV/0!"}]
[null,"* noms des classes à compléter comme suit seulement si elles n'apparaissent pas par défaut après avoir \"actualiser tout\" dans le menu Données de Excel :"]
[null,"     - saisir à l'identique les noms de classes utilisés par ASP (vous pouvez les retrouver dans l'onglet \"EVA_Groupes_FRANCAIS\")"]
[null,"     - ne pas modifier les lignes non utilisées"]
[]
[null,"2) Les résultats des élèves / classes / établissement sont exprimés selon les niveaux de maîtrise suivants :"]
[]
[null,null,null,"À besoins"]
[null,null,null,"Fragile"]
[null,null,null,"Satisfaisant"]
[]
[]
[null,"3) Pour chaque classe les résultats sont mis en forme en fonction de leur écart** avec ceux de l'établissement :"]
[]
[null,"     - Pour les niveaux de maîtrise \"à besoins\" et \"fragile\" :"]
[null,null,"Sont en rouge ",{"$f":"CONCATENATE(\"les taux des classes au moins \",$G$42,\" % supérieurs aux taux de l'établissement  --->\")","v":"les taux des classes au moins 15 % supérieurs aux taux de l'établissement  --->"},null,null,null,null,null,"plus de fragilités"]
[null,null,"Sont en vert",{"$f":"CONCATENATE(\"les taux des classes au moins \",$G$42,\" % inférieurs aux taux de l'établissement    --->\")","v":"les taux des classes au moins 15 % inférieurs aux taux de l'établissement    --->"},null,null,null,null,null,"moins de fragilités"]
[]
[null,"     - Pour le niveau de maîtrise \"satisfaisant, à l'inverse :"]
[null,null,"Sont en rouge ",{"$f":"CONCATENATE(\"les taux des classes au moins \",$G$42,\" % inférieurs aux taux de l'établissement   --->\")","v":"les taux des classes au moins 15 % inférieurs aux taux de l'établissement   --->"},null,null,null,null,null,"moins de maîtrise"]
[null,null,"Sont en vert",{"$f":"CONCATENATE(\"les taux des classes au moins \",$G$42,\" % supérieurs aux taux de l'établissment    --->\")","v":"les taux des classes au moins 15 % supérieurs aux taux de l'établissment    --->"},null,null,null,null,null,"plus de maîtrise"]
[]
[null,"    Ecart de taux pour la mise en forme conditionnelle :",null,null,null,null,15,"%","Ecart de taux conseillé :",{"$f":"ROUNDDOWN(1/SQRT(MAX(E9:E19)),2)","v":{"$error":"#DIV/0!"}}]
[null,{"$f":"CONCATENATE(\"** Actuellement, l'écart de taux est de \",G42,\" %. Vous pouvez le modifier en saisissant celui qui vous convient dans la cellule colorée ci-dessus.\")","v":"** Actuellement, l'écart de taux est de 15 %. Vous pouvez le modifier en saisissant celui qui vous convient dans la cellule colorée ci-dessus."}]

{"sheet":"TDB_ETAB","index":1,"n_rows":34,"n_cols":7,"rows_kept":34,"cut":false,"hidden":false,"merged":[]}
[]
[]
["Français","Répartition des effectifs d'élèves pour chaque compétence"]
[]
["Niveau de maîtrise",{"$f":"EVA_Groupes_FRANCAIS!D1","v":0},{"$f":"EVA_Groupes_FRANCAIS!E1","v":0},{"$f":"EVA_Groupes_FRANCAIS!F1","v":0},{"$f":"EVA_Groupes_FRANCAIS!G1","v":0},{"$f":"EVA_Groupes_FRANCAIS!H1","v":0},{"$f":"EVA_Groupes_FRANCAIS!I1","v":0}]
["Nb \"maîtrise à besoins\"",{"$f":"COUNTIF(EVA_Groupes_FRANCAIS!D:D,\"À besoins\")","v":0},{"$f":"COUNTIF(EVA_Groupes_FRANCAIS!E:E,\"À besoins\")","v":0},{"$f":"COUNTIF(EVA_Groupes_FRANCAIS!F:F,\"À besoins\")","v":0},{"$f":"COUNTIF(EVA_Groupes_FRANCAIS!G:G,\"À besoins\")","v":0},{"$f":"COUNTIF(EVA_Groupes_FRANCAIS!H:H,\"À besoins\")","v":0},{"$f":"COUNTIF(EVA_Groupes_FRANCAIS!I:I,\"À besoins\")","v":0}]
["Nb \"maîtrise fragile\"",{"$f":"COUNTIF(EVA_Groupes_FRANCAIS!D:D,\"Fragile\")","v":0},{"$f":"COUNTIF(EVA_Groupes_FRANCAIS!E:E,\"Fragile\")","v":0},{"$f":"COUNTIF(EVA_Groupes_FRANCAIS!F:F,\"Fragile\")","v":0},{"$f":"COUNTIF(EVA_Groupes_FRANCAIS!G:G,\"Fragile\")","v":0},{"$f":"COUNTIF(EVA_Groupes_FRANCAIS!H:H,\"Fragile\")","v":0},{"$f":"COUNTIF(EVA_Groupes_FRANCAIS!I:I,\"Fragile\")","v":0}]
["Nb \"maîtrise satisfaisante\"",{"$f":"COUNTIF(EVA_Groupes_FRANCAIS!D:D,\"Satisfaisant\")","v":0},{"$f":"COUNTIF(EVA_Groupes_FRANCAIS!E:E,\"Satisfaisant\")","v":0},{"$f":"COUNTIF(EVA_Groupes_FRANCAIS!F:F,\"Satisfaisant\")","v":0},{"$f":"COUNTIF(EVA_Groupes_FRANCAIS!G:G,\"Satisfaisant\")","v":0},{"$f":"COUNTIF(EVA_Groupes_FRANCAIS!H:H,\"Satisfaisant\")","v":0},{"$f":"COUNTIF(EVA_Groupes_FRANCAIS!I:I,\"Satisfaisant\")","v":0}]
["Total élèves évalués ",{"$f":"SUM(B6:B8)","v":0},{"$f":"SUM(C6:C8)","v":0},0,0,0,0]
[]
[null,"Répartition des proportions d'élèves pour chaque compétence"]
[]
["Niveau de maîtrise",{"$f":"B5","v":0},{"$f":"C5","v":0},0,0,0,0]
["Taux \"maîtrise à besoins\"",{"$f":"B6/B$9","v":{"$error":"#DIV/0!"}},{"$f":"C6/C$9","v":{"$error":"#DIV/0!"}},{"$error":"#DIV/0!"},{"$error":"#DIV/0!"},{"$error":"#DIV/0!"},{"$error":"#DIV/0!"}]
["Taux \"maîtrise fragile\"",{"$f":"B7/B$9","v":{"$error":"#DIV/0!"}},{"$error":"#DIV/0!"},{"$error":"#DIV/0!"},{"$error":"#DIV/0!"},{"$error":"#DIV/0!"},{"$error":"#DIV/0!"}]
["Taux \"maîtrise satisfaisante\"",{"$error":"#DIV/0!"},{"$error":"#DIV/0!"},{"$error":"#DIV/0!"},{"$error":"#DIV/0!"},{"$error":"#DIV/0!"},{"$error":"#DIV/0!"}]
["Total élèves évalués ",{"$f":"B9/B$9","v":{"$error":"#DIV/0!"}},{"$f":"C9/C$9","v":{"$error":"#DIV/0!"}},{"$error":"#DIV/0!"},{"$error":"#DIV/0!"},{"$error":"#DIV/0!"},{"$error":"#DIV/0!"}]
[]
[]
["Mathématiques","Répartition des effectifs d'élèves pour chaque compétence"]
[]
["Niveau de maîtrise",{"$f":"EVA_Groupes_MATHS!D1","v":0},{"$f":"EVA_Groupes_MATHS!E1","v":0},{"$f":"EVA_Groupes_MATHS!F1","v":0},{"$f":"EVA_Groupes_MATHS!G1","v":0},{"$f":"EVA_Groupes_MATHS!H1","v":0},{"$f":"EVA_Groupes_MATHS!I1","v":0}]
["Nb \"maîtrise à besoins\"",{"$f":"COUNTIF(EVA_Groupes_MATHS!D:D,\"À besoins\")","v":0},{"$f":"COUNTIF(EVA_Groupes_MATHS!E:E,\"À besoins\")","v":0},{"$f":"COUNTIF(EVA_Groupes_MATHS!F:F,\"À besoins\")","v":0},{"$f":"COUNTIF(EVA_Groupes_MATHS!G:G,\"À besoins\")","v":0},{"$f":"COUNTIF(EVA_Groupes_MATHS!H:H,\"À besoins\")","v":0},{"$f":"COUNTIF(EVA_Groupes_MATHS!I:I,\"À besoins\")","v":0}]
["Nb \"maîtrise fragile\"",{"$f":"COUNTIF(EVA_Groupes_MATHS!D:D,\"Fragile\")","v":0},{"$f":"COUNTIF(EVA_Groupes_MATHS!E:E,\"Fragile\")","v":0},{"$f":"COUNTIF(EVA_Groupes_MATHS!F:F,\"Fragile\")","v":0},{"$f":"COUNTIF(EVA_Groupes_MATHS!G:G,\"Fragile\")","v":0},{"$f":"COUNTIF(EVA_Groupes_MATHS!H:H,\"Fragile\")","v":0},{"$f":"COUNTIF(EVA_Groupes_MATHS!I:I,\"Fragile\")","v":0}]
["Nb \"maîtrise satisfaisante\"",{"$f":"COUNTIF(EVA_Groupes_MATHS!D:D,\"Satisfaisant\")","v":0},{"$f":"COUNTIF(EVA_Groupes_MATHS!E:E,\"Satisfaisant\")","v":0},{"$f":"COUNTIF(EVA_Groupes_MATHS!F:F,\"Satisfaisant\")","v":0},{"$f":"COUNTIF(EVA_Groupes_MATHS!G:G,\"Satisfaisant\")","v":0},{"$f":"COUNTIF(EVA_Groupes_MATHS!H:H,\"Satisfaisant\")","v":0},{"$f":"COUNTIF(EVA_Groupes_MATHS!I:I,\"Satisfaisant\")","v":0}]
["Total élèves évalués ",{"$f":"SUM(B23:B25)","v":0},{"$f":"SUM(C23:C25)","v":0},0,0,0,{"$f":"SUM(G23:G25)","v":0}]
[]
[null,"Répartition des proportions d'élèves pour chaque compétence"]
[]
["Niveau de maîtrise",{"$f":"B22","v":0},{"$f":"C22","v":0},0,0,0,0]
["Taux \"maîtrise à besoins\"",{"$f":"B23/B$26","v":{"$error":"#DIV/0!"}},{"$f":"C23/C$26","v":{"$error":"#DIV/0!"}},{"$error":"#DIV/0!"},{"$error":"#DIV/0!"},{"$error":"#DIV/0!"},{"$f":"G23/G$26","v":{"$error":"#DIV/0!"}}]
["Taux \"maîtrise fragile\"",{"$f":"B24/B$26","v":{"$error":"#DIV/0!"}},{"$error":"#DIV/0!"},{"$error":"#DIV/0!"},{"$error":"#DIV/0!"},{"$error":"#DIV/0!"},{"$f":"G24/G$26","v":{"$error":"#DIV/0!"}}]
["Taux \"maîtrise satisfaisante\"",{"$error":"#DIV/0!"},{"$error":"#DIV/0!"},{"$error":"#DIV/0!"},{"$error":"#DIV/0!"},{"$error":"#DIV/0!"},{"$f":"G25/G$26","v":{"$error":"#DIV/0!"}}]
["Total élèves évalués ",{"$f":"B26/B$26","v":{"$error":"#DIV/0!"}},{"$f":"C26/C$26","v":{"$error":"#DIV/0!"}},{"$error":"#DIV/0!"},{"$error":"#DIV/0!"},{"$error":"#DIV/0!"},{"$f":"G26/G$26","v":{"$error":"#DIV/0!"}}]

{"sheet":"TDB_CLASSES_FRA","index":2,"n_rows":152,"n_cols":7,"rows_kept":152,"cut":false,"hidden":false,"merged":[]}
[]
[]
["Français","Répartition des proportions d'élèves pour chaque compétence (Rappel TDB_ETAB)"]
[]
["Référence : établissement",{"$f":"EVA_Groupes_FRANCAIS!D1","v":0},{"$f":"EVA_Groupes_FRANCAIS!E1","v":0},{"$f":"EVA_Groupes_FRANCAIS!F1","v":0},{"$f":"EVA_Groupes_FRANCAIS!G1","v":0},{"$f":"EVA_Groupes_FRANCAIS!H1","v":0},{"$f":"EVA_Groupes_FRANCAIS!I1","v":0}]
["Taux \"maîtrise à besoins\"",{"$f":"TDB_ETAB!B14","v":{"$error":"#DIV/0!"}},{"$f":"TDB_ETAB!C14","v":{"$error":"#DIV/0!"}},{"$f":"TDB_ETAB!D14","v":{"$error":"#DIV/0!"}},{"$f":"TDB_ETAB!E14","v":{"$error":"#DIV/0!"}},{"$f":"TDB_ETAB!F14","v":{"$error":"#DIV/0!"}},{"$f":"TDB_ETAB!G14","v":{"$error":"#DIV/0!"}}]
["Taux \"maîtrise fragile\"",{"$f":"TDB_ETAB!B15","v":{"$error":"#DIV/0!"}},{"$f":"TDB_ETAB!C15","v":{"$error":"#DIV/0!"}},{"$f":"TDB_ETAB!D15","v":{"$error":"#DIV/0!"}},{"$f":"TDB_ETAB!E15","v":{"$error":"#DIV/0!"}},{"$f":"TDB_ETAB!F15","v":{"$error":"#DIV/0!"}},{"$f":"TDB_ETAB!G15","v":{"$error":"#DIV/0!"}}]
["Taux \"maîtrise satisfaisante\"",{"$f":"TDB_ETAB!B16","v":{"$error":"#DIV/0!"}},{"$f":"TDB_ETAB!C16","v":{"$error":"#DIV/0!"}},{"$f":"TDB_ETAB!D16","v":{"$error":"#DIV/0!"}},{"$f":"TDB_ETAB!E16","v":{"$error":"#DIV/0!"}},{"$f":"TDB_ETAB!F16","v":{"$error":"#DIV/0!"}},{"$f":"TDB_ETAB!G16","v":{"$error":"#DIV/0!"}}]
["Total élèves évalués ",{"$f":"TDB_ETAB!B17","v":{"$error":"#DIV/0!"}},{"$f":"TDB_ETAB!C17","v":{"$error":"#DIV/0!"}},{"$f":"TDB_ETAB!D17","v":{"$error":"#DIV/0!"}},{"$f":"TDB_ETAB!E17","v":{"$error":"#DIV/0!"}},{"$f":"TDB_ETAB!F17","v":{"$error":"#DIV/0!"}},{"$f":"TDB_ETAB!G17","v":{"$error":"#DIV/0!"}}]
[]
[]
[{"$f":"CONCATENATE(\"Classe : \",Informations!$D$9)","v":"Classe : -"},{"$f":"B5","v":0},{"$f":"C5","v":0},0,0,0,0]
["Nb \"maîtrise à besoins\"",{"$f":"COUNTIF(EVA_Groupes_FRANCAIS!L:L,CONCATENATE(Informations!$D$9,\" \",Informations!$D27))","v":0},{"$f":"COUNTIF(EVA_Groupes_FRANCAIS!M:M,CONCATENATE(Informations!$D$9,\" \",Informations!$D27))","v":0},{"$f":"COUNTIF(EVA_Groupes_FRANCAIS!N:N,CONCATENATE(Informations!$D$9,\" \",Informations!$D27))","v":0},{"$f":"COUNTIF(EVA_Groupes_FRANCAIS!O:O,CONCATENATE(Informations!$D$9,\" \",Informations!$D27))","v":0},{"$f":"COUNTIF(EVA_Groupes_FRANCAIS!P:P,CONCATENATE(Informations!$D$9,\" \",Informations!$D27))","v":0},{"$f":"COUNTIF(EVA_Groupes_FRANCAIS!Q:Q,CONCATENATE(Informations!$D$9,\" \",Informations!$D27))","v":0}]
["Nb \"maîtrise fragile\"",{"$f":"COUNTIF(EVA_Groupes_FRANCAIS!L:L,CONCATENATE(Informations!$D$9,\" \",Informations!$D28))","v":0},{"$f":"COUNTIF(EVA_Groupes_FRANCAIS!M:M,CONCATENATE(Informations!$D$9,\" \",Informations!$D28))","v":0},{"$f":"COUNTIF(EVA_Groupes_FRANCAIS!N:N,CONCATENATE(Informations!$D$9,\" \",Informations!$D28))","v":0},{"$f":"COUNTIF(EVA_Groupes_FRANCAIS!O:O,CONCATENATE(Informations!$D$9,\" \",Informations!$D28))","v":0},{"$f":"COUNTIF(EVA_Groupes_FRANCAIS!P:P,CONCATENATE(Informations!$D$9,\" \",Informations!$D28))","v":0},{"$f":"COUNTIF(EVA_Groupes_FRANCAIS!Q:Q,CONCATENATE(Informations!$D$9,\" \",Informations!$D28))","v":0}]
["Nb \"maîtrise satisfaisante\"",{"$f":"COUNTIF(EVA_Groupes_FRANCAIS!L:L,CONCATENATE(Informations!$D$9,\" \",Informations!$D29))","v":0},{"$f":"COUNTIF(EVA_Groupes_FRANCAIS!M:M,CONCATENATE(Informations!$D$9,\" \",Informations!$D29))","v":0},{"$f":"COUNTIF(EVA_Groupes_FRANCAIS!N:N,CONCATENATE(Informations!$D$9,\" \",Informations!$D29))","v":0},{"$f":"COUNTIF(EVA_Groupes_FRANCAIS!O:O,CONCATENATE(Informations!$D$9,\" \",Informations!$D29))","v":0},{"$f":"COUNTIF(EVA_Groupes_FRANCAIS!P:P,CONCATENATE(Informations!$D$9,\" \",Informations!$D29))","v":0},{"$f":"COUNTIF(EVA_Groupes_FRANCAIS!Q:Q,CONCATENATE(Informations!$D$9,\" \",Informations!$D29))","v":0}]
["Total élèves évalués ",{"$f":"SUM(B13:B15)","v":0},{"$f":"SUM(C13:C15)","v":0},0,0,0,0]
[]
[{"$f":"CONCATENATE(\"Classe : \",Informations!$D$9)","v":"Classe : -"},{"$f":"B5","v":0},{"$f":"C5","v":0},0,0,0,0]
["Taux \"maîtrise à besoins\"",{"$f":"B13/B$16","v":{"$error":"#DIV/0!"}},{"$f":"C13/C$16","v":{"$error":"#DIV/0!"}},{"$error":"#DIV/0!"},{"$error":"#DIV/0!"},{"$error":"#DIV/0!"},{"$error":"#DIV/0!"}]
["Taux \"maîtrise fragile\"",{"$f":"B14/B$16","v":{"$error":"#DIV/0!"}},{"$f":"C14/C$16","v":{"$error":"#DIV/0!"}},{"$error":"#DIV/0!"},{"$error":"#DIV/0!"},{"$error":"#DIV/0!"},{"$error":"#DIV/0!"}]
["Taux \"maîtrise satisfaisante\"",{"$f":"B15/B$16","v":{"$error":"#DIV/0!"}},{"$f":"C15/C$16","v":{"$error":"#DIV/0!"}},{"$error":"#DIV/0!"},{"$error":"#DIV/0!"},{"$error":"#DIV/0!"},{"$error":"#DIV/0!"}]
["Total élèves évalués ",{"$f":"B16/B$16","v":{"$error":"#DIV/0!"}},{"$f":"C16/C$16","v":{"$error":"#DIV/0!"}},{"$error":"#DIV/0!"},{"$error":"#DIV/0!"},{"$error":"#DIV/0!"},{"$error":"#DIV/0!"}]
[]
[]
[{"$f":"CONCATENATE(\"Classe : \",Informations!$D$10)","v":"Classe : -"},{"$f":"B5","v":0},{"$f":"C5","v":0},0,0,0,0]
["Nb \"maîtrise à besoins\"",{"$f":"COUNTIF(EVA_Groupes_FRANCAIS!L:L,CONCATENATE(Informations!$D$10,\" \",Informations!$D27))","v":0},{"$f":"COUNTIF(EVA_Groupes_FRANCAIS!M:M,CONCATENATE(Informations!$D$10,\" \",Informations!$D27))","v":0},{"$f":"COUNTIF(EVA_Groupes_FRANCAIS!N:N,CONCATENATE(Informations!$D$10,\" \",Informations!$D27))","v":0},{"$f":"COUNTIF(EVA_Groupes_FRANCAIS!O:O,CONCATENATE(Informations!$D$10,\" \",Informations!$D27))","v":0},{"$f":"COUNTIF(EVA_Groupes_FRANCAIS!P:P,CONCATENATE(Informations!$D$10,\" \",Informations!$D27))","v":0},{"$f":"COUNTIF(EVA_Groupes_FRANCAIS!Q:Q,CONCATENATE(Informations!$D$10,\" \",Informations!$D27))","v":0}]
["Nb \"maîtrise fragile\"",{"$f":"COUNTIF(EVA_Groupes_FRANCAIS!L:L,CONCATENATE(Informations!$D$10,\" \",Informations!$D28))","v":0},{"$f":"COUNTIF(EVA_Groupes_FRANCAIS!M:M,CONCATENATE(Informations!$D$10,\" \",Informations!$D28))","v":0},{"$f":"COUNTIF(EVA_Groupes_FRANCAIS!N:N,CONCATENATE(Informations!$D$10,\" \",Informations!$D28))","v":0},{"$f":"COUNTIF(EVA_Groupes_FRANCAIS!O:O,CONCATENATE(Informations!$D$10,\" \",Informations!$D28))","v":0},{"$f":"COUNTIF(EVA_Groupes_FRANCAIS!P:P,CONCATENATE(Informations!$D$10,\" \",Informations!$D28))","v":0},{"$f":"COUNTIF(EVA_Groupes_FRANCAIS!Q:Q,CONCATENATE(Informations!$D$10,\" \",Informations!$D28))","v":0}]
["Nb \"maîtrise satisfaisante\"",{"$f":"COUNTIF(EVA_Groupes_FRANCAIS!L:L,CONCATENATE(Informations!$D$10,\" \",Informations!$D29))","v":0},{"$f":"COUNTIF(EVA_Groupes_FRANCAIS!M:M,CONCATENATE(Informations!$D$10,\" \",Informations!$D29))","v":0},{"$f":"COUNTIF(EVA_Groupes_FRANCAIS!N:N,CONCATENATE(Informations!$D$10,\" \",Informations!$D29))","v":0},{"$f":"COUNTIF(EVA_Groupes_FRANCAIS!O:O,CONCATENATE(Informations!$D$10,\" \",Informations!$D29))","v":0},{"$f":"COUNTIF(EVA_Groupes_FRANCAIS!P:P,CONCATENATE(Informations!$D$10,\" \",Informations!$D29))","v":0},{"$f":"COUNTIF(EVA_Groupes_FRANCAIS!Q:Q,CONCATENATE(Informations!$D$10,\" \",Informations!$D29))","v":0}]
["Total élèves évalués ",{"$f":"SUM(B26:B28)","v":0},{"$f":"SUM(C26:C28)","v":0},0,0,0,0]
[]
[{"$f":"CONCATENATE(\"Classe : \",Informations!$D$10)","v":"Classe : -"},{"$f":"B5","v":0},{"$f":"C5","v":0},0,0,0,0]
["Taux \"maîtrise à besoins\"",{"$f":"B26/B$29","v":{"$error":"#DIV/0!"}},{"$f":"C26/C$29","v":{"$error":"#DIV/0!"}},{"$error":"#DIV/0!"},{"$error":"#DIV/0!"},{"$error":"#DIV/0!"},{"$error":"#DIV/0!"}]
["Taux \"maîtrise fragile\"",{"$f":"B27/B$29","v":{"$error":"#DIV/0!"}},{"$error":"#DIV/0!"},{"$error":"#DIV/0!"},{"$error":"#DIV/0!"},{"$error":"#DIV/0!"},{"$error":"#DIV/0!"}]
["Taux \"maîtrise satisfaisante\"",{"$error":"#DIV/0!"},{"$error":"#DIV/0!"},{"$error":"#DIV/0!"},{"$error":"#DIV/0!"},{"$error":"#DIV/0!"},{"$error":"#DIV/0!"}]
["Total élèves évalués ",{"$f":"B29/B$29","v":{"$error":"#DIV/0!"}},{"$f":"C29/C$29","v":{"$error":"#DIV/0!"}},{"$error":"#DIV/0!"},{"$error":"#DIV/0!"},{"$error":"#DIV/0!"},{"$error":"#DIV/0!"}]
[]
[]
[{"$f":"CONCATENATE(\"Classe : \",Informations!$D$11)","v":"Classe : -"},{"$f":"B5","v":0},{"$f":"C5","v":0},0,0,0,0]
["Nb \"maîtrise à besoins\"",{"$f":"COUNTIF(EVA_Groupes_FRANCAIS!L:L,CONCATENATE(Informations!$D$11,\" \",Informations!$D27))","v":0},{"$f":"COUNTIF(EVA_Groupes_FRANCAIS!M:M,CONCATENATE(Informations!$D$11,\" \",Informations!$D27))","v":0},{"$f":"COUNTIF(EVA_Groupes_FRANCAIS!N:N,CONCATENATE(Informations!$D$11,\" \",Informations!$D27))","v":0},{"$f":"COUNTIF(EVA_Groupes_FRANCAIS!O:O,CONCATENATE(Informations!$D$11,\" \",Informations!$D27))","v":0},{"$f":"COUNTIF(EVA_Groupes_FRANCAIS!P:P,CONCATENATE(Informations!$D$11,\" \",Informations!$D27))","v":0},{"$f":"COUNTIF(EVA_Groupes_FRANCAIS!Q:Q,CONCATENATE(Informations!$D$11,\" \",Informations!$D27))","v":0}]
["Nb \"maîtrise fragile\"",{"$f":"COUNTIF(EVA_Groupes_FRANCAIS!L:L,CONCATENATE(Informations!$D$11,\" \",Informations!$D28))","v":0},{"$f":"COUNTIF(EVA_Groupes_FRANCAIS!M:M,CONCATENATE(Informations!$D$11,\" \",Informations!$D28))","v":0},{"$f":"COUNTIF(EVA_Groupes_FRANCAIS!N:N,CONCATENATE(Informations!$D$11,\" \",Informations!$D28))","v":0},{"$f":"COUNTIF(EVA_Groupes_FRANCAIS!O:O,CONCATENATE(Informations!$D$11,\" \",Informations!$D28))","v":0},{"$f":"COUNTIF(EVA_Groupes_FRANCAIS!P:P,CONCATENATE(Informations!$D$11,\" \",Informations!$D28))","v":0},{"$f":"COUNTIF(EVA_Groupes_FRANCAIS!Q:Q,CONCATENATE(Informations!$D$11,\" \",Informations!$D28))","v":0}]
["Nb \"maîtrise satisfaisante\"",{"$f":"COUNTIF(EVA_Groupes_FRANCAIS!L:L,CONCATENATE(Informations!$D$11,\" \",Informations!$D29))","v":0},{"$f":"COUNTIF(EVA_Groupes_FRANCAIS!M:M,CONCATENATE(Informations!$D$11,\" \",Informations!$D29))","v":0},{"$f":"COUNTIF(EVA_Groupes_FRANCAIS!N:N,CONCATENATE(Informations!$D$11,\" \",Informations!$D29))","v":0},{"$f":"COUNTIF(EVA_Groupes_FRANCAIS!O:O,CONCATENATE(Informations!$D$11,\" \",Informations!$D29))","v":0},{"$f":"COUNTIF(EVA_Groupes_FRANCAIS!P:P,CONCATENATE(Informations!$D$11,\" \",Informations!$D29))","v":0},{"$f":"COUNTIF(EVA_Groupes_FRANCAIS!Q:Q,CONCATENATE(Informations!$D$11,\" \",Informations!$D29))","v":0}]
["Total élèves évalués ",{"$f":"SUM(B39:B41)","v":0},{"$f":"SUM(C39:C41)","v":0},0,0,0,{"$f":"SUM(G39:G41)","v":0}]
[]
[{"$f":"CONCATENATE(\"Classe : \",Informations!$D$11)","v":"Classe : -"},{"$f":"B5","v":0},{"$f":"C5","v":0},0,0,0,0]
["Taux \"maîtrise à besoins\"",{"$f":"B39/B$42","v":{"$error":"#DIV/0!"}},{"$f":"C39/C$42","v":{"$error":"#DIV/0!"}},{"$error":"#DIV/0!"},{"$error":"#DIV/0!"},{"$error":"#DIV/0!"},{"$error":"#DIV/0!"}]
["Taux \"maîtrise fragile\"",{"$f":"B40/B$42","v":{"$error":"#DIV/0!"}},{"$error":"#DIV/0!"},{"$error":"#DIV/0!"},{"$error":"#DIV/0!"},{"$error":"#DIV/0!"},{"$error":"#DIV/0!"}]
["Taux \"maîtrise satisfaisante\"",{"$error":"#DIV/0!"},{"$error":"#DIV/0!"},{"$error":"#DIV/0!"},{"$error":"#DIV/0!"},{"$error":"#DIV/0!"},{"$error":"#DIV/0!"}]
["Total élèves évalués ",{"$f":"B42/B$42","v":{"$error":"#DIV/0!"}},{"$f":"C42/C$42","v":{"$error":"#DIV/0!"}},{"$error":"#DIV/0!"},{"$error":"#DIV/0!"},{"$error":"#DIV/0!"},{"$error":"#DIV/0!"}]
[]
[]
[{"$f":"CONCATENATE(\"Classe : \",Informations!$D$12)","v":"Classe : -"},{"$f":"B5","v":0},{"$f":"C5","v":0},0,0,0,0]
["Nb \"maîtrise à besoins\"",{"$f":"COUNTIF(EVA_Groupes_FRANCAIS!L:L,CONCATENATE(Informations!$D$12,\" \",Informations!$D27))","v":0},{"$f":"COUNTIF(EVA_Groupes_FRANCAIS!M:M,CONCATENATE(Informations!$D$12,\" \",Informations!$D27))","v":0},{"$f":"COUNTIF(EVA_Groupes_FRANCAIS!N:N,CONCATENATE(Informations!$D$12,\" \",Informations!$D27))","v":0},{"$f":"COUNTIF(EVA_Groupes_FRANCAIS!O:O,CONCATENATE(Informations!$D$12,\" \",Informations!$D27))","v":0},{"$f":"COUNTIF(EVA_Groupes_FRANCAIS!P:P,CONCATENATE(Informations!$D$12,\" \",Informations!$D27))","v":0},{"$f":"COUNTIF(EVA_Groupes_FRANCAIS!Q:Q,CONCATENATE(Informations!$D$12,\" \",Informations!$D27))","v":0}]
["Nb \"maîtrise fragile\"",{"$f":"COUNTIF(EVA_Groupes_FRANCAIS!L:L,CONCATENATE(Informations!$D$12,\" \",Informations!$D28))","v":0},{"$f":"COUNTIF(EVA_Groupes_FRANCAIS!M:M,CONCATENATE(Informations!$D$12,\" \",Informations!$D28))","v":0},{"$f":"COUNTIF(EVA_Groupes_FRANCAIS!N:N,CONCATENATE(Informations!$D$12,\" \",Informations!$D28))","v":0},{"$f":"COUNTIF(EVA_Groupes_FRANCAIS!O:O,CONCATENATE(Informations!$D$12,\" \",Informations!$D28))","v":0},{"$f":"COUNTIF(EVA_Groupes_FRANCAIS!P:P,CONCATENATE(Informations!$D$12,\" \",Informations!$D28))","v":0},{"$f":"COUNTIF(EVA_Groupes_FRANCAIS!Q:Q,CONCATENATE(Informations!$D$12,\" \",Informations!$D28))","v":0}]
["Nb \"maîtrise satisfaisante\"",{"$f":"COUNTIF(EVA_Groupes_FRANCAIS!L:L,CONCATENATE(Informations!$D$12,\" \",Informations!$D29))","v":0},{"$f":"COUNTIF(EVA_Groupes_FRANCAIS!M:M,CONCATENATE(Informations!$D$12,\" \",Informations!$D29))","v":0},{"$f":"COUNTIF(EVA_Groupes_FRANCAIS!N:N,CONCATENATE(Informations!$D$12,\" \",Informations!$D29))","v":0},{"$f":"COUNTIF(EVA_Groupes_FRANCAIS!O:O,CONCATENATE(Informations!$D$12,\" \",Informations!$D29))","v":0},{"$f":"COUNTIF(EVA_Groupes_FRANCAIS!P:P,CONCATENATE(Informations!$D$12,\" \",Informations!$D29))","v":0},{"$f":"COUNTIF(EVA_Groupes_FRANCAIS!Q:Q,CONCATENATE(Informations!$D$12,\" \",Informations!$D29))","v":0}]
["Total élèves évalués ",{"$f":"SUM(B52:B54)","v":0},{"$f":"SUM(C52:C54)","v":0},0,0,0,0]
[]
[{"$f":"CONCATENATE(\"Classe : \",Informations!$D$12)","v":"Classe : -"},{"$f":"B5","v":0},{"$f":"C5","v":0},0,0,0,0]
["Taux \"maîtrise à besoins\"",{"$f":"B52/B$55","v":{"$error":"#DIV/0!"}},{"$f":"C52/C$55","v":{"$error":"#DIV/0!"}},{"$error":"#DIV/0!"},{"$error":"#DIV/0!"},{"$error":"#DIV/0!"},{"$error":"#DIV/0!"}]
["Taux \"maîtrise fragile\"",{"$f":"B53/B$55","v":{"$error":"#DIV/0!"}},{"$error":"#DIV/0!"},{"$error":"#DIV/0!"},{"$error":"#DIV/0!"},{"$error":"#DIV/0!"},{"$error":"#DIV/0!"}]
["Taux \"maîtrise satisfaisante\"",{"$error":"#DIV/0!"},{"$error":"#DIV/0!"},{"$error":"#DIV/0!"},{"$error":"#DIV/0!"},{"$error":"#DIV/0!"},{"$error":"#DIV/0!"}]
["Total élèves évalués ",{"$f":"B55/B$55","v":{"$error":"#DIV/0!"}},{"$f":"C55/C$55","v":{"$error":"#DIV/0!"}},{"$error":"#DIV/0!"},{"$error":"#DIV/0!"},{"$error":"#DIV/0!"},{"$error":"#DIV/0!"}]
[]
[]
[{"$f":"CONCATENATE(\"Classe : \",Informations!$D$13)","v":"Classe : -"},{"$f":"B5","v":0},{"$f":"C5","v":0},0,0,0,0]
["Nb \"maîtrise à besoins\"",{"$f":"COUNTIF(EVA_Groupes_FRANCAIS!L:L,CONCATENATE(Informations!$D$13,\" \",Informations!$D27))","v":0},{"$f":"COUNTIF(EVA_Groupes_FRANCAIS!M:M,CONCATENATE(Informations!$D$13,\" \",Informations!$D27))","v":0},{"$f":"COUNTIF(EVA_Groupes_FRANCAIS!N:N,CONCATENATE(Informations!$D$13,\" \",Informations!$D27))","v":0},{"$f":"COUNTIF(EVA_Groupes_FRANCAIS!O:O,CONCATENATE(Informations!$D$13,\" \",Informations!$D27))","v":0},{"$f":"COUNTIF(EVA_Groupes_FRANCAIS!P:P,CONCATENATE(Informations!$D$13,\" \",Informations!$D27))","v":0},{"$f":"COUNTIF(EVA_Groupes_FRANCAIS!Q:Q,CONCATENATE(Informations!$D$13,\" \",Informations!$D27))","v":0}]
["Nb \"maîtrise fragile\"",{"$f":"COUNTIF(EVA_Groupes_FRANCAIS!L:L,CONCATENATE(Informations!$D$13,\" \",Informations!$D28))","v":0},{"$f":"COUNTIF(EVA_Groupes_FRANCAIS!M:M,CONCATENATE(Informations!$D$13,\" \",Informations!$D28))","v":0},{"$f":"COUNTIF(EVA_Groupes_FRANCAIS!N:N,CONCATENATE(Informations!$D$13,\" \",Informations!$D28))","v":0},{"$f":"COUNTIF(EVA_Groupes_FRANCAIS!O:O,CONCATENATE(Informations!$D$13,\" \",Informations!$D28))","v":0},{"$f":"COUNTIF(EVA_Groupes_FRANCAIS!P:P,CONCATENATE(Informations!$D$13,\" \",Informations!$D28))","v":0},{"$f":"COUNTIF(EVA_Groupes_FRANCAIS!Q:Q,CONCATENATE(Informations!$D$13,\" \",Informations!$D28))","v":0}]
["Nb \"maîtrise satisfaisante\"",{"$f":"COUNTIF(EVA_Groupes_FRANCAIS!L:L,CONCATENATE(Informations!$D$13,\" \",Informations!$D29))","v":0},{"$f":"COUNTIF(EVA_Groupes_FRANCAIS!M:M,CONCATENATE(Informations!$D$13,\" \",Informations!$D29))","v":0},{"$f":"COUNTIF(EVA_Groupes_FRANCAIS!N:N,CONCATENATE(Informations!$D$13,\" \",Informations!$D29))","v":0},{"$f":"COUNTIF(EVA_Groupes_FRANCAIS!O:O,CONCATENATE(Informations!$D$13,\" \",Informations!$D29))","v":0},{"$f":"COUNTIF(EVA_Groupes_FRANCAIS!P:P,CONCATENATE(Informations!$D$13,\" \",Informations!$D29))","v":0},{"$f":"COUNTIF(EVA_Groupes_FRANCAIS!Q:Q,CONCATENATE(Informations!$D$13,\" \",Informations!$D29))","v":0}]
["Total élèves évalués ",{"$f":"SUM(B65:B67)","v":0},{"$f":"SUM(C65:C67)","v":0},0,0,0,0]
[]
[{"$f":"CONCATENATE(\"Classe : \",Informations!$D$13)","v":"Classe : -"},{"$f":"B5","v":0},{"$f":"C5","v":0},0,0,0,0]
["Taux \"maîtrise à besoins\"",{"$f":"B65/B$68","v":{"$error":"#DIV/0!"}},{"$f":"C65/C$68","v":{"$error":"#DIV/0!"}},{"$error":"#DIV/0!"},{"$error":"#DIV/0!"},{"$error":"#DIV/0!"},{"$error":"#DIV/0!"}]
["Taux \"maîtrise fragile\"",{"$f":"B66/B$68","v":{"$error":"#DIV/0!"}},{"$error":"#DIV/0!"},{"$error":"#DIV/0!"},{"$error":"#DIV/0!"},{"$error":"#DIV/0!"},{"$error":"#DIV/0!"}]
["Taux \"maîtrise satisfaisante\"",{"$error":"#DIV/0!"},{"$error":"#DIV/0!"},{"$error":"#DIV/0!"},{"$error":"#DIV/0!"},{"$error":"#DIV/0!"},{"$error":"#DIV/0!"}]
["Total élèves évalués ",{"$f":"B68/B$68","v":{"$error":"#DIV/0!"}},{"$f":"C68/C$68","v":{"$error":"#DIV/0!"}},{"$error":"#DIV/0!"},{"$error":"#DIV/0!"},{"$error":"#DIV/0!"},{"$error":"#DIV/0!"}]
[]
[]
[{"$f":"CONCATENATE(\"Classe : \",Informations!$D$14)","v":"Classe : -"},{"$f":"B5","v":0},{"$f":"C5","v":0},0,0,0,0]
["Nb \"maîtrise à besoins\"",{"$f":"COUNTIF(EVA_Groupes_FRANCAIS!L:L,CONCATENATE(Informations!$D$14,\" \",Informations!$D27))","v":0},{"$f":"COUNTIF(EVA_Groupes_FRANCAIS!M:M,CONCATENATE(Informations!$D$14,\" \",Informations!$D27))","v":0},{"$f":"COUNTIF(EVA_Groupes_FRANCAIS!N:N,CONCATENATE(Informations!$D$14,\" \",Informations!$D27))","v":0},{"$f":"COUNTIF(EVA_Groupes_FRANCAIS!O:O,CONCATENATE(Informations!$D$14,\" \",Informations!$D27))","v":0},{"$f":"COUNTIF(EVA_Groupes_FRANCAIS!P:P,CONCATENATE(Informations!$D$14,\" \",Informations!$D27))","v":0},{"$f":"COUNTIF(EVA_Groupes_FRANCAIS!Q:Q,CONCATENATE(Informations!$D$14,\" \",Informations!$D27))","v":0}]
["Nb \"maîtrise fragile\"",{"$f":"COUNTIF(EVA_Groupes_FRANCAIS!L:L,CONCATENATE(Informations!$D$14,\" \",Informations!$D28))","v":0},{"$f":"COUNTIF(EVA_Groupes_FRANCAIS!M:M,CONCATENATE(Informations!$D$14,\" \",Informations!$D28))","v":0},{"$f":"COUNTIF(EVA_Groupes_FRANCAIS!N:N,CONCATENATE(Informations!$D$14,\" \",Informations!$D28))","v":0},{"$f":"COUNTIF(EVA_Groupes_FRANCAIS!O:O,CONCATENATE(Informations!$D$14,\" \",Informations!$D28))","v":0},{"$f":"COUNTIF(EVA_Groupes_FRANCAIS!P:P,CONCATENATE(Informations!$D$14,\" \",Informations!$D28))","v":0},{"$f":"COUNTIF(EVA_Groupes_FRANCAIS!Q:Q,CONCATENATE(Informations!$D$14,\" \",Informations!$D28))","v":0}]
["Nb \"maîtrise satisfaisante\"",{"$f":"COUNTIF(EVA_Groupes_FRANCAIS!L:L,CONCATENATE(Informations!$D$14,\" \",Informations!$D29))","v":0},{"$f":"COUNTIF(EVA_Groupes_FRANCAIS!M:M,CONCATENATE(Informations!$D$14,\" \",Informations!$D29))","v":0},{"$f":"COUNTIF(EVA_Groupes_FRANCAIS!N:N,CONCATENATE(Informations!$D$14,\" \",Informations!$D29))","v":0},{"$f":"COUNTIF(EVA_Groupes_FRANCAIS!O:O,CONCATENATE(Informations!$D$14,\" \",Informations!$D29))","v":0},{"$f":"COUNTIF(EVA_Groupes_FRANCAIS!P:P,CONCATENATE(Informations!$D$14,\" \",Informations!$D29))","v":0},{"$f":"COUNTIF(EVA_Groupes_FRANCAIS!Q:Q,CONCATENATE(Informations!$D$14,\" \",Informations!$D29))","v":0}]
["Total élèves évalués ",{"$f":"SUM(B78:B80)","v":0},{"$f":"SUM(C78:C80)","v":0},0,0,0,0]
[]
[{"$f":"CONCATENATE(\"Classe : \",Informations!$D$14)","v":"Classe : -"},{"$f":"B5","v":0},{"$f":"C5","v":0},0,0,0,0]
["Taux \"maîtrise à besoins\"",{"$f":"B78/B$81","v":{"$error":"#DIV/0!"}},{"$f":"C78/C$81","v":{"$error":"#DIV/0!"}},{"$error":"#DIV/0!"},{"$error":"#DIV/0!"},{"$error":"#DIV/0!"},{"$error":"#DIV/0!"}]
["Taux \"maîtrise fragile\"",{"$f":"B79/B$81","v":{"$error":"#DIV/0!"}},{"$error":"#DIV/0!"},{"$error":"#DIV/0!"},{"$error":"#DIV/0!"},{"$error":"#DIV/0!"},{"$error":"#DIV/0!"}]
["Taux \"maîtrise satisfaisante\"",{"$error":"#DIV/0!"},{"$error":"#DIV/0!"},{"$error":"#DIV/0!"},{"$error":"#DIV/0!"},{"$error":"#DIV/0!"},{"$error":"#DIV/0!"}]
["Total élèves évalués ",{"$f":"B81/B$81","v":{"$error":"#DIV/0!"}},{"$f":"C81/C$81","v":{"$error":"#DIV/0!"}},{"$error":"#DIV/0!"},{"$error":"#DIV/0!"},{"$error":"#DIV/0!"},{"$error":"#DIV/0!"}]
[]
[]
[{"$f":"CONCATENATE(\"Classe : \",Informations!$D$15)","v":"Classe : -"},{"$f":"B5","v":0},{"$f":"C5","v":0},0,0,0,0]
["Nb \"maîtrise à besoins\"",{"$f":"COUNTIF(EVA_Groupes_FRANCAIS!L:L,CONCATENATE(Informations!$D$15,\" \",Informations!$D27))","v":0},{"$f":"COUNTIF(EVA_Groupes_FRANCAIS!M:M,CONCATENATE(Informations!$D$15,\" \",Informations!$D27))","v":0},{"$f":"COUNTIF(EVA_Groupes_FRANCAIS!N:N,CONCATENATE(Informations!$D$15,\" \",Informations!$D27))","v":0},{"$f":"COUNTIF(EVA_Groupes_FRANCAIS!O:O,CONCATENATE(Informations!$D$15,\" \",Informations!$D27))","v":0},{"$f":"COUNTIF(EVA_Groupes_FRANCAIS!P:P,CONCATENATE(Informations!$D$15,\" \",Informations!$D27))","v":0},{"$f":"COUNTIF(EVA_Groupes_FRANCAIS!Q:Q,CONCATENATE(Informations!$D$15,\" \",Informations!$D27))","v":0}]
["Nb \"maîtrise fragile\"",{"$f":"COUNTIF(EVA_Groupes_FRANCAIS!L:L,CONCATENATE(Informations!$D$15,\" \",Informations!$D28))","v":0},{"$f":"COUNTIF(EVA_Groupes_FRANCAIS!M:M,CONCATENATE(Informations!$D$15,\" \",Informations!$D28))","v":0},{"$f":"COUNTIF(EVA_Groupes_FRANCAIS!N:N,CONCATENATE(Informations!$D$15,\" \",Informations!$D28))","v":0},{"$f":"COUNTIF(EVA_Groupes_FRANCAIS!O:O,CONCATENATE(Informations!$D$15,\" \",Informations!$D28))","v":0},{"$f":"COUNTIF(EVA_Groupes_FRANCAIS!P:P,CONCATENATE(Informations!$D$15,\" \",Informations!$D28))","v":0},{"$f":"COUNTIF(EVA_Groupes_FRANCAIS!Q:Q,CONCATENATE(Informations!$D$15,\" \",Informations!$D28))","v":0}]
["Nb \"maîtrise satisfaisante\"",{"$f":"COUNTIF(EVA_Groupes_FRANCAIS!L:L,CONCATENATE(Informations!$D$15,\" \",Informations!$D29))","v":0},{"$f":"COUNTIF(EVA_Groupes_FRANCAIS!M:M,CONCATENATE(Informations!$D$15,\" \",Informations!$D29))","v":0},{"$f":"COUNTIF(EVA_Groupes_FRANCAIS!N:N,CONCATENATE(Informations!$D$15,\" \",Informations!$D29))","v":0},{"$f":"COUNTIF(EVA_Groupes_FRANCAIS!O:O,CONCATENATE(Informations!$D$15,\" \",Informations!$D29))","v":0},{"$f":"COUNTIF(EVA_Groupes_FRANCAIS!P:P,CONCATENATE(Informations!$D$15,\" \",Informations!$D29))","v":0},{"$f":"COUNTIF(EVA_Groupes_FRANCAIS!Q:Q,CONCATENATE(Informations!$D$15,\" \",Informations!$D29))","v":0}]
["Total élèves évalués ",{"$f":"SUM(B91:B93)","v":0},{"$f":"SUM(C91:C93)","v":0},0,0,0,0]
[]
[{"$f":"CONCATENATE(\"Classe : \",Informations!$D$15)","v":"Classe : -"},{"$f":"B5","v":0},{"$f":"C5","v":0},0,0,0,0]
["Taux \"maîtrise à besoins\"",{"$f":"B91/B$94","v":{"$error":"#DIV/0!"}},{"$f":"C91/C$94","v":{"$error":"#DIV/0!"}},{"$error":"#DIV/0!"},{"$error":"#DIV/0!"},{"$error":"#DIV/0!"},{"$error":"#DIV/0!"}]
["Taux \"maîtrise fragile\"",{"$f":"B92/B$94","v":{"$error":"#DIV/0!"}},{"$error":"#DIV/0!"},{"$error":"#DIV/0!"},{"$error":"#DIV/0!"},{"$error":"#DIV/0!"},{"$error":"#DIV/0!"}]
["Taux \"maîtrise satisfaisante\"",{"$error":"#DIV/0!"},{"$error":"#DIV/0!"},{"$error":"#DIV/0!"},{"$error":"#DIV/0!"},{"$error":"#DIV/0!"},{"$error":"#DIV/0!"}]
["Total élèves évalués ",{"$f":"B94/B$94","v":{"$error":"#DIV/0!"}},{"$f":"C94/C$94","v":{"$error":"#DIV/0!"}},{"$error":"#DIV/0!"},{"$error":"#DIV/0!"},{"$error":"#DIV/0!"},{"$error":"#DIV/0!"}]
[]
[]
[{"$f":"CONCATENATE(\"Classe : \",Informations!$D$16)","v":"Classe : -"},{"$f":"B5","v":0},{"$f":"C5","v":0},0,0,0,0]
["Nb \"maîtrise à besoins\"",{"$f":"COUNTIF(EVA_Groupes_FRANCAIS!L:L,CONCATENATE(Informations!$D$16,\" \",Informations!$D27))","v":0},{"$f":"COUNTIF(EVA_Groupes_FRANCAIS!M:M,CONCATENATE(Informations!$D$16,\" \",Informations!$D27))","v":0},{"$f":"COUNTIF(EVA_Groupes_FRANCAIS!N:N,CONCATENATE(Informations!$D$16,\" \",Informations!$D27))","v":0},{"$f":"COUNTIF(EVA_Groupes_FRANCAIS!O:O,CONCATENATE(Informations!$D$16,\" \",Informations!$D27))","v":0},{"$f":"COUNTIF(EVA_Groupes_FRANCAIS!P:P,CONCATENATE(Informations!$D$16,\" \",Informations!$D27))","v":0},{"$f":"COUNTIF(EVA_Groupes_FRANCAIS!Q:Q,CONCATENATE(Informations!$D$16,\" \",Informations!$D27))","v":0}]
["Nb \"maîtrise fragile\"",{"$f":"COUNTIF(EVA_Groupes_FRANCAIS!L:L,CONCATENATE(Informations!$D$16,\" \",Informations!$D28))","v":0},{"$f":"COUNTIF(EVA_Groupes_FRANCAIS!M:M,CONCATENATE(Informations!$D$16,\" \",Informations!$D28))","v":0},{"$f":"COUNTIF(EVA_Groupes_FRANCAIS!N:N,CONCATENATE(Informations!$D$16,\" \",Informations!$D28))","v":0},{"$f":"COUNTIF(EVA_Groupes_FRANCAIS!O:O,CONCATENATE(Informations!$D$16,\" \",Informations!$D28))","v":0},{"$f":"COUNTIF(EVA_Groupes_FRANCAIS!P:P,CONCATENATE(Informations!$D$16,\" \",Informations!$D28))","v":0},{"$f":"COUNTIF(EVA_Groupes_FRANCAIS!Q:Q,CONCATENATE(Informations!$D$16,\" \",Informations!$D28))","v":0}]
["Nb \"maîtrise satisfaisante\"",{"$f":"COUNTIF(EVA_Groupes_FRANCAIS!L:L,CONCATENATE(Informations!$D$16,\" \",Informations!$D29))","v":0},{"$f":"COUNTIF(EVA_Groupes_FRANCAIS!M:M,CONCATENATE(Informations!$D$16,\" \",Informations!$D29))","v":0},{"$f":"COUNTIF(EVA_Groupes_FRANCAIS!N:N,CONCATENATE(Informations!$D$16,\" \",Informations!$D29))","v":0},{"$f":"COUNTIF(EVA_Groupes_FRANCAIS!O:O,CONCATENATE(Informations!$D$16,\" \",Informations!$D29))","v":0},{"$f":"COUNTIF(EVA_Groupes_FRANCAIS!P:P,CONCATENATE(Informations!$D$16,\" \",Informations!$D29))","v":0},{"$f":"COUNTIF(EVA_Groupes_FRANCAIS!Q:Q,CONCATENATE(Informations!$D$16,\" \",Informations!$D29))","v":0}]
["Total élèves évalués ",{"$f":"SUM(B104:B106)","v":0},{"$f":"SUM(C104:C106)","v":0},0,0,0,0]
[]
[{"$f":"CONCATENATE(\"Classe : \",Informations!$D$16)","v":"Classe : -"},{"$f":"B5","v":0},{"$f":"C5","v":0},0,0,0,0]
["Taux \"maîtrise à besoins\"",{"$f":"B104/B$107","v":{"$error":"#DIV/0!"}},{"$f":"C104/C$107","v":{"$error":"#DIV/0!"}},{"$error":"#DIV/0!"},{"$error":"#DIV/0!"},{"$error":"#DIV/0!"},{"$error":"#DIV/0!"}]
["Taux \"maîtrise fragile\"",{"$f":"B105/B$107","v":{"$error":"#DIV/0!"}},{"$error":"#DIV/0!"},{"$error":"#DIV/0!"},{"$error":"#DIV/0!"},{"$error":"#DIV/0!"},{"$error":"#DIV/0!"}]
["Taux \"maîtrise satisfaisante\"",{"$error":"#DIV/0!"},{"$error":"#DIV/0!"},{"$error":"#DIV/0!"},{"$error":"#DIV/0!"},{"$error":"#DIV/0!"},{"$error":"#DIV/0!"}]
["Total élèves évalués ",{"$f":"B107/B$107","v":{"$error":"#DIV/0!"}},{"$f":"C107/C$107","v":{"$error":"#DIV/0!"}},{"$error":"#DIV/0!"},{"$error":"#DIV/0!"},{"$error":"#DIV/0!"},{"$error":"#DIV/0!"}]
[]
[]
[{"$f":"CONCATENATE(\"Classe : \",Informations!$D$17)","v":"Classe : -"},{"$f":"B5","v":0},{"$f":"C5","v":0},0,0,0,0]
["Nb \"maîtrise à besoins\"",{"$f":"COUNTIF(EVA_Groupes_FRANCAIS!L:L,CONCATENATE(Informations!$D$17,\" \",Informations!$D27))","v":0},{"$f":"COUNTIF(EVA_Groupes_FRANCAIS!M:M,CONCATENATE(Informations!$D$17,\" \",Informations!$D27))","v":0},{"$f":"COUNTIF(EVA_Groupes_FRANCAIS!N:N,CONCATENATE(Informations!$D$17,\" \",Informations!$D27))","v":0},{"$f":"COUNTIF(EVA_Groupes_FRANCAIS!O:O,CONCATENATE(Informations!$D$17,\" \",Informations!$D27))","v":0},{"$f":"COUNTIF(EVA_Groupes_FRANCAIS!P:P,CONCATENATE(Informations!$D$17,\" \",Informations!$D27))","v":0},{"$f":"COUNTIF(EVA_Groupes_FRANCAIS!Q:Q,CONCATENATE(Informations!$D$17,\" \",Informations!$D27))","v":0}]
["Nb \"maîtrise fragile\"",{"$f":"COUNTIF(EVA_Groupes_FRANCAIS!L:L,CONCATENATE(Informations!$D$17,\" \",Informations!$D28))","v":0},{"$f":"COUNTIF(EVA_Groupes_FRANCAIS!M:M,CONCATENATE(Informations!$D$17,\" \",Informations!$D28))","v":0},{"$f":"COUNTIF(EVA_Groupes_FRANCAIS!N:N,CONCATENATE(Informations!$D$17,\" \",Informations!$D28))","v":0},{"$f":"COUNTIF(EVA_Groupes_FRANCAIS!O:O,CONCATENATE(Informations!$D$17,\" \",Informations!$D28))","v":0},{"$f":"COUNTIF(EVA_Groupes_FRANCAIS!P:P,CONCATENATE(Informations!$D$17,\" \",Informations!$D28))","v":0},{"$f":"COUNTIF(EVA_Groupes_FRANCAIS!Q:Q,CONCATENATE(Informations!$D$17,\" \",Informations!$D28))","v":0}]
["Nb \"maîtrise satisfaisante\"",{"$f":"COUNTIF(EVA_Groupes_FRANCAIS!L:L,CONCATENATE(Informations!$D$17,\" \",Informations!$D29))","v":0},{"$f":"COUNTIF(EVA_Groupes_FRANCAIS!M:M,CONCATENATE(Informations!$D$17,\" \",Informations!$D29))","v":0},{"$f":"COUNTIF(EVA_Groupes_FRANCAIS!N:N,CONCATENATE(Informations!$D$17,\" \",Informations!$D29))","v":0},{"$f":"COUNTIF(EVA_Groupes_FRANCAIS!O:O,CONCATENATE(Informations!$D$17,\" \",Informations!$D29))","v":0},{"$f":"COUNTIF(EVA_Groupes_FRANCAIS!P:P,CONCATENATE(Informations!$D$17,\" \",Informations!$D29))","v":0},{"$f":"COUNTIF(EVA_Groupes_FRANCAIS!Q:Q,CONCATENATE(Informations!$D$17,\" \",Informations!$D29))","v":0}]
["Total élèves évalués ",{"$f":"SUM(B117:B119)","v":0},{"$f":"SUM(C117:C119)","v":0},0,0,0,0]
[]
[{"$f":"CONCATENATE(\"Classe : \",Informations!$D$17)","v":"Classe : -"},{"$f":"B5","v":0},{"$f":"C5","v":0},0,0,0,0]
["Taux \"maîtrise à besoins\"",{"$f":"B117/B$120","v":{"$error":"#DIV/0!"}},{"$f":"C117/C$120","v":{"$error":"#DIV/0!"}},{"$error":"#DIV/0!"},{"$error":"#DIV/0!"},{"$error":"#DIV/0!"},{"$error":"#DIV/0!"}]
["Taux \"maîtrise fragile\"",{"$f":"B118/B$120","v":{"$error":"#DIV/0!"}},{"$error":"#DIV/0!"},{"$error":"#DIV/0!"},{"$error":"#DIV/0!"},{"$error":"#DIV/0!"},{"$error":"#DIV/0!"}]
["Taux \"maîtrise satisfaisante\"",{"$error":"#DIV/0!"},{"$error":"#DIV/0!"},{"$error":"#DIV/0!"},{"$error":"#DIV/0!"},{"$error":"#DIV/0!"},{"$error":"#DIV/0!"}]
["Total élèves évalués ",{"$f":"B120/B$120","v":{"$error":"#DIV/0!"}},{"$f":"C120/C$120","v":{"$error":"#DIV/0!"}},{"$error":"#DIV/0!"},{"$error":"#DIV/0!"},{"$error":"#DIV/0!"},{"$error":"#DIV/0!"}]
[]
[]
[{"$f":"CONCATENATE(\"Classe : \",Informations!$D$18)","v":"Classe : -"},{"$f":"B5","v":0},{"$f":"C5","v":0},0,0,0,0]
["Nb \"maîtrise à besoins\"",{"$f":"COUNTIF(EVA_Groupes_FRANCAIS!L:L,CONCATENATE(Informations!$D$18,\" \",Informations!$D27))","v":0},{"$f":"COUNTIF(EVA_Groupes_FRANCAIS!M:M,CONCATENATE(Informations!$D$18,\" \",Informations!$D27))","v":0},{"$f":"COUNTIF(EVA_Groupes_FRANCAIS!N:N,CONCATENATE(Informations!$D$18,\" \",Informations!$D27))","v":0},{"$f":"COUNTIF(EVA_Groupes_FRANCAIS!O:O,CONCATENATE(Informations!$D$18,\" \",Informations!$D27))","v":0},{"$f":"COUNTIF(EVA_Groupes_FRANCAIS!P:P,CONCATENATE(Informations!$D$18,\" \",Informations!$D27))","v":0},{"$f":"COUNTIF(EVA_Groupes_FRANCAIS!Q:Q,CONCATENATE(Informations!$D$18,\" \",Informations!$D27))","v":0}]
["Nb \"maîtrise fragile\"",{"$f":"COUNTIF(EVA_Groupes_FRANCAIS!L:L,CONCATENATE(Informations!$D$18,\" \",Informations!$D28))","v":0},{"$f":"COUNTIF(EVA_Groupes_FRANCAIS!M:M,CONCATENATE(Informations!$D$18,\" \",Informations!$D28))","v":0},{"$f":"COUNTIF(EVA_Groupes_FRANCAIS!N:N,CONCATENATE(Informations!$D$18,\" \",Informations!$D28))","v":0},{"$f":"COUNTIF(EVA_Groupes_FRANCAIS!O:O,CONCATENATE(Informations!$D$18,\" \",Informations!$D28))","v":0},{"$f":"COUNTIF(EVA_Groupes_FRANCAIS!P:P,CONCATENATE(Informations!$D$18,\" \",Informations!$D28))","v":0},{"$f":"COUNTIF(EVA_Groupes_FRANCAIS!Q:Q,CONCATENATE(Informations!$D$18,\" \",Informations!$D28))","v":0}]
["Nb \"maîtrise satisfaisante\"",{"$f":"COUNTIF(EVA_Groupes_FRANCAIS!L:L,CONCATENATE(Informations!$D$18,\" \",Informations!$D29))","v":0},{"$f":"COUNTIF(EVA_Groupes_FRANCAIS!M:M,CONCATENATE(Informations!$D$18,\" \",Informations!$D29))","v":0},{"$f":"COUNTIF(EVA_Groupes_FRANCAIS!N:N,CONCATENATE(Informations!$D$18,\" \",Informations!$D29))","v":0},{"$f":"COUNTIF(EVA_Groupes_FRANCAIS!O:O,CONCATENATE(Informations!$D$18,\" \",Informations!$D29))","v":0},{"$f":"COUNTIF(EVA_Groupes_FRANCAIS!P:P,CONCATENATE(Informations!$D$18,\" \",Informations!$D29))","v":0},{"$f":"COUNTIF(EVA_Groupes_FRANCAIS!Q:Q,CONCATENATE(Informations!$D$18,\" \",Informations!$D29))","v":0}]
["Total élèves évalués ",{"$f":"SUM(B130:B132)","v":0},{"$f":"SUM(C130:C132)","v":0},0,0,0,0]
[]
[{"$f":"CONCATENATE(\"Classe : \",Informations!$D$18)","v":"Classe : -"},{"$f":"B5","v":0},{"$f":"C5","v":0},0,0,0,0]
["Taux \"maîtrise à besoins\"",{"$f":"B130/B$133","v":{"$error":"#DIV/0!"}},{"$f":"C130/C$133","v":{"$error":"#DIV/0!"}},{"$error":"#DIV/0!"},{"$error":"#DIV/0!"},{"$error":"#DIV/0!"},{"$error":"#DIV/0!"}]
["Taux \"maîtrise fragile\"",{"$f":"B131/B$133","v":{"$error":"#DIV/0!"}},{"$error":"#DIV/0!"},{"$error":"#DIV/0!"},{"$error":"#DIV/0!"},{"$error":"#DIV/0!"},{"$error":"#DIV/0!"}]
["Taux \"maîtrise satisfaisante\"",{"$error":"#DIV/0!"},{"$error":"#DIV/0!"},{"$error":"#DIV/0!"},{"$error":"#DIV/0!"},{"$error":"#DIV/0!"},{"$error":"#DIV/0!"}]
["Total élèves évalués ",{"$f":"B133/B$133","v":{"$error":"#DIV/0!"}},{"$f":"C133/C$133","v":{"$error":"#DIV/0!"}},{"$error":"#DIV/0!"},{"$error":"#DIV/0!"},{"$error":"#DIV/0!"},{"$error":"#DIV/0!"}]
[]
[]
[{"$f":"CONCATENATE(\"Classe : \",Informations!$D$19)","v":"Classe : -"},{"$f":"B5","v":0},{"$f":"C5","v":0},0,0,0,0]
["Nb \"maîtrise à besoins\"",{"$f":"COUNTIF(EVA_Groupes_FRANCAIS!L:L,CONCATENATE(Informations!$D$19,\" \",Informations!$D27))","v":0},{"$f":"COUNTIF(EVA_Groupes_FRANCAIS!M:M,CONCATENATE(Informations!$D$19,\" \",Informations!$D27))","v":0},{"$f":"COUNTIF(EVA_Groupes_FRANCAIS!N:N,CONCATENATE(Informations!$D$19,\" \",Informations!$D27))","v":0},{"$f":"COUNTIF(EVA_Groupes_FRANCAIS!O:O,CONCATENATE(Informations!$D$19,\" \",Informations!$D27))","v":0},{"$f":"COUNTIF(EVA_Groupes_FRANCAIS!P:P,CONCATENATE(Informations!$D$19,\" \",Informations!$D27))","v":0},{"$f":"COUNTIF(EVA_Groupes_FRANCAIS!Q:Q,CONCATENATE(Informations!$D$19,\" \",Informations!$D27))","v":0}]
["Nb \"maîtrise fragile\"",{"$f":"COUNTIF(EVA_Groupes_FRANCAIS!L:L,CONCATENATE(Informations!$D$19,\" \",Informations!$D28))","v":0},{"$f":"COUNTIF(EVA_Groupes_FRANCAIS!M:M,CONCATENATE(Informations!$D$19,\" \",Informations!$D28))","v":0},{"$f":"COUNTIF(EVA_Groupes_FRANCAIS!N:N,CONCATENATE(Informations!$D$19,\" \",Informations!$D28))","v":0},{"$f":"COUNTIF(EVA_Groupes_FRANCAIS!O:O,CONCATENATE(Informations!$D$19,\" \",Informations!$D28))","v":0},{"$f":"COUNTIF(EVA_Groupes_FRANCAIS!P:P,CONCATENATE(Informations!$D$19,\" \",Informations!$D28))","v":0},{"$f":"COUNTIF(EVA_Groupes_FRANCAIS!Q:Q,CONCATENATE(Informations!$D$19,\" \",Informations!$D28))","v":0}]
["Nb \"maîtrise satisfaisante\"",{"$f":"COUNTIF(EVA_Groupes_FRANCAIS!L:L,CONCATENATE(Informations!$D$19,\" \",Informations!$D29))","v":0},{"$f":"COUNTIF(EVA_Groupes_FRANCAIS!M:M,CONCATENATE(Informations!$D$19,\" \",Informations!$D29))","v":0},{"$f":"COUNTIF(EVA_Groupes_FRANCAIS!N:N,CONCATENATE(Informations!$D$19,\" \",Informations!$D29))","v":0},{"$f":"COUNTIF(EVA_Groupes_FRANCAIS!O:O,CONCATENATE(Informations!$D$19,\" \",Informations!$D29))","v":0},{"$f":"COUNTIF(EVA_Groupes_FRANCAIS!P:P,CONCATENATE(Informations!$D$19,\" \",Informations!$D29))","v":0},{"$f":"COUNTIF(EVA_Groupes_FRANCAIS!Q:Q,CONCATENATE(Informations!$D$19,\" \",Informations!$D29))","v":0}]
["Total élèves évalués ",{"$f":"SUM(B143:B145)","v":0},{"$f":"SUM(C143:C145)","v":0},0,0,0,0]
[]
[{"$f":"CONCATENATE(\"Classe : \",Informations!$D$19)","v":"Classe : -"},{"$f":"B5","v":0},{"$f":"C5","v":0},0,0,0,0]
["Taux \"maîtrise à besoins\"",{"$f":"B143/B$146","v":{"$error":"#DIV/0!"}},{"$f":"C143/C$146","v":{"$error":"#DIV/0!"}},{"$error":"#DIV/0!"},{"$error":"#DIV/0!"},{"$error":"#DIV/0!"},{"$error":"#DIV/0!"}]
["Taux \"maîtrise fragile\"",{"$f":"B144/B$146","v":{"$error":"#DIV/0!"}},{"$error":"#DIV/0!"},{"$error":"#DIV/0!"},{"$error":"#DIV/0!"},{"$error":"#DIV/0!"},{"$error":"#DIV/0!"}]
["Taux \"maîtrise satisfaisante\"",{"$error":"#DIV/0!"},{"$error":"#DIV/0!"},{"$error":"#DIV/0!"},{"$error":"#DIV/0!"},{"$error":"#DIV/0!"},{"$error":"#DIV/0!"}]
["Total élèves évalués ",{"$f":"B146/B$146","v":{"$error":"#DIV/0!"}},{"$error":"#DIV/0!"},{"$error":"#DIV/0!"},{"$error":"#DIV/0!"},{"$error":"#DIV/0!"},{"$error":"#DIV/0!"}]

{"sheet":"TDB_CLASSES_MATH","index":3,"n_rows":152,"n_cols":7,"rows_kept":152,"cut":false,"hidden":false,"merged":[]}
[null,null,null,null,0]
[]
["Mathématiques","Répartition des proportions d'élèves pour chaque compétence (Rappel TDB_ETAB)"]
[]
["Référence : établissement",{"$f":"EVA_Groupes_MATHS!D1","v":0},{"$f":"EVA_Groupes_MATHS!E1","v":0},{"$f":"EVA_Groupes_MATHS!F1","v":0},{"$f":"EVA_Groupes_MATHS!G1","v":0},{"$f":"EVA_Groupes_MATHS!H1","v":0},{"$f":"EVA_Groupes_MATHS!I1","v":0}]
["Taux \"maîtrise à besoins\"",{"$f":"TDB_ETAB!B31","v":{"$error":"#DIV/0!"}},{"$f":"TDB_ETAB!C31","v":{"$error":"#DIV/0!"}},{"$f":"TDB_ETAB!D31","v":{"$error":"#DIV/0!"}},{"$f":"TDB_ETAB!E31","v":{"$error":"#DIV/0!"}},{"$f":"TDB_ETAB!F31","v":{"$error":"#DIV/0!"}},{"$f":"TDB_ETAB!G31","v":{"$error":"#DIV/0!"}}]
["Taux \"maîtrise fragile\"",{"$f":"TDB_ETAB!B32","v":{"$error":"#DIV/0!"}},{"$f":"TDB_ETAB!C32","v":{"$error":"#DIV/0!"}},{"$f":"TDB_ETAB!D32","v":{"$error":"#DIV/0!"}},{"$f":"TDB_ETAB!E32","v":{"$error":"#DIV/0!"}},{"$f":"TDB_ETAB!F32","v":{"$error":"#DIV/0!"}},{"$f":"TDB_ETAB!G32","v":{"$error":"#DIV/0!"}}]
["Taux \"maîtrise satisfaisante\"",{"$f":"TDB_ETAB!B33","v":{"$error":"#DIV/0!"}},{"$f":"TDB_ETAB!C33","v":{"$error":"#DIV/0!"}},{"$f":"TDB_ETAB!D33","v":{"$error":"#DIV/0!"}},{"$f":"TDB_ETAB!E33","v":{"$error":"#DIV/0!"}},{"$f":"TDB_ETAB!F33","v":{"$error":"#DIV/0!"}},{"$f":"TDB_ETAB!G33","v":{"$error":"#DIV/0!"}}]
["Total élèves évalués ",{"$f":"TDB_ETAB!B34","v":{"$error":"#DIV/0!"}},{"$f":"TDB_ETAB!C34","v":{"$error":"#DIV/0!"}},{"$f":"TDB_ETAB!D34","v":{"$error":"#DIV/0!"}},{"$f":"TDB_ETAB!E34","v":{"$error":"#DIV/0!"}},{"$f":"TDB_ETAB!F34","v":{"$error":"#DIV/0!"}},{"$f":"TDB_ETAB!G34","v":{"$error":"#DIV/0!"}}]
[]
[]
[{"$f":"CONCATENATE(\"Classe : \",Informations!$D$9)","v":"Classe : -"},{"$f":"B5","v":0},{"$f":"C5","v":0},0,0,0,{"$f":"G5","v":0}]
["Nb \"maîtrise à besoins\"",{"$f":"COUNTIF(EVA_Groupes_MATHS!L:L,CONCATENATE(Informations!$D$9,\" \",Informations!$D27))","v":0},{"$f":"COUNTIF(EVA_Groupes_MATHS!M:M,CONCATENATE(Informations!$D$9,\" \",Informations!$D27))","v":0},{"$f":"COUNTIF(EVA_Groupes_MATHS!N:N,CONCATENATE(Informations!$D$9,\" \",Informations!$D27))","v":0},{"$f":"COUNTIF(EVA_Groupes_MATHS!O:O,CONCATENATE(Informations!$D$9,\" \",Informations!$D27))","v":0},{"$f":"COUNTIF(EVA_Groupes_MATHS!P:P,CONCATENATE(Informations!$D$9,\" \",Informations!$D27))","v":0},{"$f":"COUNTIF(EVA_Groupes_MATHS!Q:Q,CONCATENATE(Informations!$D$9,\" \",Informations!$D27))","v":0}]
["Nb \"maîtrise fragile\"",{"$f":"COUNTIF(EVA_Groupes_MATHS!L:L,CONCATENATE(Informations!$D$9,\" \",Informations!$D28))","v":0},{"$f":"COUNTIF(EVA_Groupes_MATHS!M:M,CONCATENATE(Informations!$D$9,\" \",Informations!$D28))","v":0},{"$f":"COUNTIF(EVA_Groupes_MATHS!N:N,CONCATENATE(Informations!$D$9,\" \",Informations!$D28))","v":0},{"$f":"COUNTIF(EVA_Groupes_MATHS!O:O,CONCATENATE(Informations!$D$9,\" \",Informations!$D28))","v":0},{"$f":"COUNTIF(EVA_Groupes_MATHS!P:P,CONCATENATE(Informations!$D$9,\" \",Informations!$D28))","v":0},{"$f":"COUNTIF(EVA_Groupes_MATHS!Q:Q,CONCATENATE(Informations!$D$9,\" \",Informations!$D28))","v":0}]
["Nb \"maîtrise satisfaisante\"",{"$f":"COUNTIF(EVA_Groupes_MATHS!L:L,CONCATENATE(Informations!$D$9,\" \",Informations!$D29))","v":0},{"$f":"COUNTIF(EVA_Groupes_MATHS!M:M,CONCATENATE(Informations!$D$9,\" \",Informations!$D29))","v":0},{"$f":"COUNTIF(EVA_Groupes_MATHS!N:N,CONCATENATE(Informations!$D$9,\" \",Informations!$D29))","v":0},{"$f":"COUNTIF(EVA_Groupes_MATHS!O:O,CONCATENATE(Informations!$D$9,\" \",Informations!$D29))","v":0},{"$f":"COUNTIF(EVA_Groupes_MATHS!P:P,CONCATENATE(Informations!$D$9,\" \",Informations!$D29))","v":0},{"$f":"COUNTIF(EVA_Groupes_MATHS!Q:Q,CONCATENATE(Informations!$D$9,\" \",Informations!$D29))","v":0}]
["Total élèves évalués ",{"$f":"SUM(B13:B15)","v":0},{"$f":"SUM(C13:C15)","v":0},0,0,0,{"$f":"SUM(G13:G15)","v":0}]
[]
[{"$f":"CONCATENATE(\"Classe : \",Informations!$D$9)","v":"Classe : -"},{"$f":"B12","v":0},{"$f":"C12","v":0},0,0,0,{"$f":"G12","v":0}]
["Taux \"maîtrise à besoins\"",{"$f":"B13/B$16","v":{"$error":"#DIV/0!"}},{"$f":"C13/C$16","v":{"$error":"#DIV/0!"}},{"$error":"#DIV/0!"},{"$error":"#DIV/0!"},{"$error":"#DIV/0!"},{"$f":"G13/G$16","v":{"$error":"#DIV/0!"}}]
["Taux \"maîtrise fragile\"",{"$f":"B14/B$16","v":{"$error":"#DIV/0!"}},{"$error":"#DIV/0!"},{"$error":"#DIV/0!"},{"$error":"#DIV/0!"},{"$error":"#DIV/0!"},{"$f":"G14/G$16","v":{"$error":"#DIV/0!"}}]
["Taux \"maîtrise satisfaisante\"",{"$error":"#DIV/0!"},{"$error":"#DIV/0!"},{"$error":"#DIV/0!"},{"$error":"#DIV/0!"},{"$error":"#DIV/0!"},{"$f":"G15/G$16","v":{"$error":"#DIV/0!"}}]
["Total élèves évalués ",{"$f":"B16/B$16","v":{"$error":"#DIV/0!"}},{"$f":"C16/C$16","v":{"$error":"#DIV/0!"}},{"$error":"#DIV/0!"},{"$error":"#DIV/0!"},{"$error":"#DIV/0!"},{"$f":"G16/G$16","v":{"$error":"#DIV/0!"}}]
[]
[]
[{"$f":"CONCATENATE(\"Classe : \",Informations!$D$10)","v":"Classe : -"},{"$f":"B5","v":0},{"$f":"C5","v":0},0,0,0,{"$f":"G5","v":0}]
["Nb \"maîtrise à besoins\"",{"$f":"COUNTIF(EVA_Groupes_MATHS!L:L,CONCATENATE(Informations!$D$10,\" \",Informations!$D27))","v":0},{"$f":"COUNTIF(EVA_Groupes_MATHS!M:M,CONCATENATE(Informations!$D$10,\" \",Informations!$D27))","v":0},{"$f":"COUNTIF(EVA_Groupes_MATHS!N:N,CONCATENATE(Informations!$D$10,\" \",Informations!$D27))","v":0},{"$f":"COUNTIF(EVA_Groupes_MATHS!O:O,CONCATENATE(Informations!$D$10,\" \",Informations!$D27))","v":0},{"$f":"COUNTIF(EVA_Groupes_MATHS!P:P,CONCATENATE(Informations!$D$10,\" \",Informations!$D27))","v":0},{"$f":"COUNTIF(EVA_Groupes_MATHS!Q:Q,CONCATENATE(Informations!$D$10,\" \",Informations!$D27))","v":0}]
["Nb \"maîtrise fragile\"",{"$f":"COUNTIF(EVA_Groupes_MATHS!L:L,CONCATENATE(Informations!$D$10,\" \",Informations!$D28))","v":0},{"$f":"COUNTIF(EVA_Groupes_MATHS!M:M,CONCATENATE(Informations!$D$10,\" \",Informations!$D28))","v":0},{"$f":"COUNTIF(EVA_Groupes_MATHS!N:N,CONCATENATE(Informations!$D$10,\" \",Informations!$D28))","v":0},{"$f":"COUNTIF(EVA_Groupes_MATHS!O:O,CONCATENATE(Informations!$D$10,\" \",Informations!$D28))","v":0},{"$f":"COUNTIF(EVA_Groupes_MATHS!P:P,CONCATENATE(Informations!$D$10,\" \",Informations!$D28))","v":0},{"$f":"COUNTIF(EVA_Groupes_MATHS!Q:Q,CONCATENATE(Informations!$D$10,\" \",Informations!$D28))","v":0}]
["Nb \"maîtrise satisfaisante\"",{"$f":"COUNTIF(EVA_Groupes_MATHS!L:L,CONCATENATE(Informations!$D$10,\" \",Informations!$D29))","v":0},{"$f":"COUNTIF(EVA_Groupes_MATHS!M:M,CONCATENATE(Informations!$D$10,\" \",Informations!$D29))","v":0},{"$f":"COUNTIF(EVA_Groupes_MATHS!N:N,CONCATENATE(Informations!$D$10,\" \",Informations!$D29))","v":0},{"$f":"COUNTIF(EVA_Groupes_MATHS!O:O,CONCATENATE(Informations!$D$10,\" \",Informations!$D29))","v":0},{"$f":"COUNTIF(EVA_Groupes_MATHS!P:P,CONCATENATE(Informations!$D$10,\" \",Informations!$D29))","v":0},{"$f":"COUNTIF(EVA_Groupes_MATHS!Q:Q,CONCATENATE(Informations!$D$10,\" \",Informations!$D29))","v":0}]
["Total élèves évalués ",{"$f":"SUM(B26:B28)","v":0},{"$f":"SUM(C26:C28)","v":0},0,0,0,{"$f":"SUM(G26:G28)","v":0}]
[]
[{"$f":"CONCATENATE(\"Classe : \",Informations!$D$10)","v":"Classe : -"},{"$f":"B5","v":0},{"$f":"C5","v":0},0,0,0,{"$f":"G5","v":0}]
["Taux \"maîtrise à besoins\"",{"$f":"B26/B$29","v":{"$error":"#DIV/0!"}},{"$f":"C26/C$29","v":{"$error":"#DIV/0!"}},{"$error":"#DIV/0!"},{"$error":"#DIV/0!"},{"$error":"#DIV/0!"},{"$f":"G26/G$29","v":{"$error":"#DIV/0!"}}]
["Taux \"maîtrise fragile\"",{"$f":"B27/B$29","v":{"$error":"#DIV/0!"}},{"$error":"#DIV/0!"},{"$error":"#DIV/0!"},{"$error":"#DIV/0!"},{"$error":"#DIV/0!"},{"$f":"G27/G$29","v":{"$error":"#DIV/0!"}}]
["Taux \"maîtrise satisfaisante\"",{"$error":"#DIV/0!"},{"$error":"#DIV/0!"},{"$error":"#DIV/0!"},{"$error":"#DIV/0!"},{"$error":"#DIV/0!"},{"$f":"G28/G$29","v":{"$error":"#DIV/0!"}}]
["Total élèves évalués ",{"$f":"B29/B$29","v":{"$error":"#DIV/0!"}},{"$f":"C29/C$29","v":{"$error":"#DIV/0!"}},{"$error":"#DIV/0!"},{"$error":"#DIV/0!"},{"$error":"#DIV/0!"},{"$f":"G29/G$29","v":{"$error":"#DIV/0!"}}]
[]
[]
[{"$f":"CONCATENATE(\"Classe : \",Informations!$D$11)","v":"Classe : -"},{"$f":"B5","v":0},{"$f":"C5","v":0},0,0,0,{"$f":"G5","v":0}]
["Nb \"maîtrise à besoins\"",{"$f":"COUNTIF(EVA_Groupes_MATHS!L:L,CONCATENATE(Informations!$D$11,\" \",Informations!$D27))","v":0},{"$f":"COUNTIF(EVA_Groupes_MATHS!M:M,CONCATENATE(Informations!$D$11,\" \",Informations!$D27))","v":0},{"$f":"COUNTIF(EVA_Groupes_MATHS!N:N,CONCATENATE(Informations!$D$11,\" \",Informations!$D27))","v":0},{"$f":"COUNTIF(EVA_Groupes_MATHS!O:O,CONCATENATE(Informations!$D$11,\" \",Informations!$D27))","v":0},{"$f":"COUNTIF(EVA_Groupes_MATHS!P:P,CONCATENATE(Informations!$D$11,\" \",Informations!$D27))","v":0},{"$f":"COUNTIF(EVA_Groupes_MATHS!Q:Q,CONCATENATE(Informations!$D$11,\" \",Informations!$D27))","v":0}]
["Nb \"maîtrise fragile\"",{"$f":"COUNTIF(EVA_Groupes_MATHS!L:L,CONCATENATE(Informations!$D$11,\" \",Informations!$D28))","v":0},{"$f":"COUNTIF(EVA_Groupes_MATHS!M:M,CONCATENATE(Informations!$D$11,\" \",Informations!$D28))","v":0},{"$f":"COUNTIF(EVA_Groupes_MATHS!N:N,CONCATENATE(Informations!$D$11,\" \",Informations!$D28))","v":0},{"$f":"COUNTIF(EVA_Groupes_MATHS!O:O,CONCATENATE(Informations!$D$11,\" \",Informations!$D28))","v":0},{"$f":"COUNTIF(EVA_Groupes_MATHS!P:P,CONCATENATE(Informations!$D$11,\" \",Informations!$D28))","v":0},{"$f":"COUNTIF(EVA_Groupes_MATHS!Q:Q,CONCATENATE(Informations!$D$11,\" \",Informations!$D28))","v":0}]
["Nb \"maîtrise satisfaisante\"",{"$f":"COUNTIF(EVA_Groupes_MATHS!L:L,CONCATENATE(Informations!$D$11,\" \",Informations!$D29))","v":0},{"$f":"COUNTIF(EVA_Groupes_MATHS!M:M,CONCATENATE(Informations!$D$11,\" \",Informations!$D29))","v":0},{"$f":"COUNTIF(EVA_Groupes_MATHS!N:N,CONCATENATE(Informations!$D$11,\" \",Informations!$D29))","v":0},{"$f":"COUNTIF(EVA_Groupes_MATHS!O:O,CONCATENATE(Informations!$D$11,\" \",Informations!$D29))","v":0},{"$f":"COUNTIF(EVA_Groupes_MATHS!P:P,CONCATENATE(Informations!$D$11,\" \",Informations!$D29))","v":0},{"$f":"COUNTIF(EVA_Groupes_MATHS!Q:Q,CONCATENATE(Informations!$D$11,\" \",Informations!$D29))","v":0}]
["Total élèves évalués ",{"$f":"SUM(B39:B41)","v":0},{"$f":"SUM(C39:C41)","v":0},0,0,0,{"$f":"SUM(G39:G41)","v":0}]
[]
[{"$f":"CONCATENATE(\"Classe : \",Informations!$D$11)","v":"Classe : -"},{"$f":"B5","v":0},{"$f":"C5","v":0},0,0,0,{"$f":"G5","v":0}]
["Taux \"maîtrise à besoins\"",{"$f":"B39/B$42","v":{"$error":"#DIV/0!"}},{"$f":"C39/C$42","v":{"$error":"#DIV/0!"}},{"$error":"#DIV/0!"},{"$error":"#DIV/0!"},{"$error":"#DIV/0!"},{"$f":"G39/G$42","v":{"$error":"#DIV/0!"}}]
["Taux \"maîtrise fragile\"",{"$f":"B40/B$42","v":{"$error":"#DIV/0!"}},{"$error":"#DIV/0!"},{"$error":"#DIV/0!"},{"$error":"#DIV/0!"},{"$error":"#DIV/0!"},{"$f":"G40/G$42","v":{"$error":"#DIV/0!"}}]
["Taux \"maîtrise satisfaisante\"",{"$f":"B41/B$42","v":{"$error":"#DIV/0!"}},{"$error":"#DIV/0!"},{"$error":"#DIV/0!"},{"$error":"#DIV/0!"},{"$error":"#DIV/0!"},{"$f":"G41/G$42","v":{"$error":"#DIV/0!"}}]
["Total élèves évalués ",{"$f":"B42/B$42","v":{"$error":"#DIV/0!"}},{"$f":"C42/C$42","v":{"$error":"#DIV/0!"}},{"$error":"#DIV/0!"},{"$error":"#DIV/0!"},{"$error":"#DIV/0!"},{"$f":"G42/G$42","v":{"$error":"#DIV/0!"}}]
[]
[]
[{"$f":"CONCATENATE(\"Classe : \",Informations!$D$12)","v":"Classe : -"},{"$f":"B5","v":0},{"$f":"C5","v":0},0,0,0,{"$f":"G5","v":0}]
["Nb \"maîtrise à besoins\"",{"$f":"COUNTIF(EVA_Groupes_MATHS!L:L,CONCATENATE(Informations!$D$12,\" \",Informations!$D27))","v":0},{"$f":"COUNTIF(EVA_Groupes_MATHS!M:M,CONCATENATE(Informations!$D$12,\" \",Informations!$D27))","v":0},{"$f":"COUNTIF(EVA_Groupes_MATHS!N:N,CONCATENATE(Informations!$D$12,\" \",Informations!$D27))","v":0},{"$f":"COUNTIF(EVA_Groupes_MATHS!O:O,CONCATENATE(Informations!$D$12,\" \",Informations!$D27))","v":0},{"$f":"COUNTIF(EVA_Groupes_MATHS!P:P,CONCATENATE(Informations!$D$12,\" \",Informations!$D27))","v":0},{"$f":"COUNTIF(EVA_Groupes_MATHS!Q:Q,CONCATENATE(Informations!$D$12,\" \",Informations!$D27))","v":0}]
["Nb \"maîtrise fragile\"",{"$f":"COUNTIF(EVA_Groupes_MATHS!L:L,CONCATENATE(Informations!$D$12,\" \",Informations!$D28))","v":0},{"$f":"COUNTIF(EVA_Groupes_MATHS!M:M,CONCATENATE(Informations!$D$12,\" \",Informations!$D28))","v":0},{"$f":"COUNTIF(EVA_Groupes_MATHS!N:N,CONCATENATE(Informations!$D$12,\" \",Informations!$D28))","v":0},{"$f":"COUNTIF(EVA_Groupes_MATHS!O:O,CONCATENATE(Informations!$D$12,\" \",Informations!$D28))","v":0},{"$f":"COUNTIF(EVA_Groupes_MATHS!P:P,CONCATENATE(Informations!$D$12,\" \",Informations!$D28))","v":0},{"$f":"COUNTIF(EVA_Groupes_MATHS!Q:Q,CONCATENATE(Informations!$D$12,\" \",Informations!$D28))","v":0}]
["Nb \"maîtrise satisfaisante\"",{"$f":"COUNTIF(EVA_Groupes_MATHS!L:L,CONCATENATE(Informations!$D$12,\" \",Informations!$D29))","v":0},{"$f":"COUNTIF(EVA_Groupes_MATHS!M:M,CONCATENATE(Informations!$D$12,\" \",Informations!$D29))","v":0},{"$f":"COUNTIF(EVA_Groupes_MATHS!N:N,CONCATENATE(Informations!$D$12,\" \",Informations!$D29))","v":0},{"$f":"COUNTIF(EVA_Groupes_MATHS!O:O,CONCATENATE(Informations!$D$12,\" \",Informations!$D29))","v":0},{"$f":"COUNTIF(EVA_Groupes_MATHS!P:P,CONCATENATE(Informations!$D$12,\" \",Informations!$D29))","v":0},{"$f":"COUNTIF(EVA_Groupes_MATHS!Q:Q,CONCATENATE(Informations!$D$12,\" \",Informations!$D29))","v":0}]
["Total élèves évalués ",{"$f":"SUM(B52:B54)","v":0},{"$f":"SUM(C52:C54)","v":0},0,0,0,{"$f":"SUM(G52:G54)","v":0}]
[]
[{"$f":"CONCATENATE(\"Classe : \",Informations!$D$12)","v":"Classe : -"},{"$f":"B5","v":0},{"$f":"C5","v":0},0,0,0,{"$f":"G5","v":0}]
["Taux \"maîtrise à besoins\"",{"$f":"B52/B$55","v":{"$error":"#DIV/0!"}},{"$f":"C52/C$55","v":{"$error":"#DIV/0!"}},{"$error":"#DIV/0!"},{"$error":"#DIV/0!"},{"$error":"#DIV/0!"},{"$f":"G52/G$55","v":{"$error":"#DIV/0!"}}]
["Taux \"maîtrise fragile\"",{"$f":"B53/B$55","v":{"$error":"#DIV/0!"}},{"$error":"#DIV/0!"},{"$error":"#DIV/0!"},{"$error":"#DIV/0!"},{"$error":"#DIV/0!"},{"$f":"G53/G$55","v":{"$error":"#DIV/0!"}}]
["Taux \"maîtrise satisfaisante\"",{"$error":"#DIV/0!"},{"$error":"#DIV/0!"},{"$error":"#DIV/0!"},{"$error":"#DIV/0!"},{"$error":"#DIV/0!"},{"$f":"G54/G$55","v":{"$error":"#DIV/0!"}}]
["Total élèves évalués ",{"$f":"B55/B$55","v":{"$error":"#DIV/0!"}},{"$f":"C55/C$55","v":{"$error":"#DIV/0!"}},{"$error":"#DIV/0!"},{"$error":"#DIV/0!"},{"$error":"#DIV/0!"},{"$f":"G55/G$55","v":{"$error":"#DIV/0!"}}]
[]
[]
[{"$f":"CONCATENATE(\"Classe : \",Informations!$D$13)","v":"Classe : -"},{"$f":"B5","v":0},{"$f":"C5","v":0},0,0,0,{"$f":"G5","v":0}]
["Nb \"maîtrise à besoins\"",{"$f":"COUNTIF(EVA_Groupes_MATHS!L:L,CONCATENATE(Informations!$D$13,\" \",Informations!$D27))","v":0},{"$f":"COUNTIF(EVA_Groupes_MATHS!M:M,CONCATENATE(Informations!$D$13,\" \",Informations!$D27))","v":0},{"$f":"COUNTIF(EVA_Groupes_MATHS!N:N,CONCATENATE(Informations!$D$13,\" \",Informations!$D27))","v":0},{"$f":"COUNTIF(EVA_Groupes_MATHS!O:O,CONCATENATE(Informations!$D$13,\" \",Informations!$D27))","v":0},{"$f":"COUNTIF(EVA_Groupes_MATHS!P:P,CONCATENATE(Informations!$D$13,\" \",Informations!$D27))","v":0},{"$f":"COUNTIF(EVA_Groupes_MATHS!Q:Q,CONCATENATE(Informations!$D$13,\" \",Informations!$D27))","v":0}]
["Nb \"maîtrise fragile\"",{"$f":"COUNTIF(EVA_Groupes_MATHS!L:L,CONCATENATE(Informations!$D$13,\" \",Informations!$D28))","v":0},{"$f":"COUNTIF(EVA_Groupes_MATHS!M:M,CONCATENATE(Informations!$D$13,\" \",Informations!$D28))","v":0},{"$f":"COUNTIF(EVA_Groupes_MATHS!N:N,CONCATENATE(Informations!$D$13,\" \",Informations!$D28))","v":0},{"$f":"COUNTIF(EVA_Groupes_MATHS!O:O,CONCATENATE(Informations!$D$13,\" \",Informations!$D28))","v":0},{"$f":"COUNTIF(EVA_Groupes_MATHS!P:P,CONCATENATE(Informations!$D$13,\" \",Informations!$D28))","v":0},{"$f":"COUNTIF(EVA_Groupes_MATHS!Q:Q,CONCATENATE(Informations!$D$13,\" \",Informations!$D28))","v":0}]
["Nb \"maîtrise satisfaisante\"",{"$f":"COUNTIF(EVA_Groupes_MATHS!L:L,CONCATENATE(Informations!$D$13,\" \",Informations!$D29))","v":0},{"$f":"COUNTIF(EVA_Groupes_MATHS!M:M,CONCATENATE(Informations!$D$13,\" \",Informations!$D29))","v":0},{"$f":"COUNTIF(EVA_Groupes_MATHS!N:N,CONCATENATE(Informations!$D$13,\" \",Informations!$D29))","v":0},{"$f":"COUNTIF(EVA_Groupes_MATHS!O:O,CONCATENATE(Informations!$D$13,\" \",Informations!$D29))","v":0},{"$f":"COUNTIF(EVA_Groupes_MATHS!P:P,CONCATENATE(Informations!$D$13,\" \",Informations!$D29))","v":0},{"$f":"COUNTIF(EVA_Groupes_MATHS!Q:Q,CONCATENATE(Informations!$D$13,\" \",Informations!$D29))","v":0}]
["Total élèves évalués ",{"$f":"SUM(B65:B67)","v":0},{"$f":"SUM(C65:C67)","v":0},0,0,{"$f":"SUM(F65:F67)","v":0},{"$f":"SUM(G65:G67)","v":0}]
[]
[{"$f":"CONCATENATE(\"Classe : \",Informations!$D$13)","v":"Classe : -"},{"$f":"B5","v":0},{"$f":"C5","v":0},0,0,0,{"$f":"G5","v":0}]
["Taux \"maîtrise à besoins\"",{"$f":"B65/B$68","v":{"$error":"#DIV/0!"}},{"$f":"C65/C$68","v":{"$error":"#DIV/0!"}},{"$error":"#DIV/0!"},{"$error":"#DIV/0!"},{"$error":"#DIV/0!"},{"$f":"G65/G$68","v":{"$error":"#DIV/0!"}}]
["Taux \"maîtrise fragile\"",{"$f":"B66/B$68","v":{"$error":"#DIV/0!"}},{"$error":"#DIV/0!"},{"$error":"#DIV/0!"},{"$error":"#DIV/0!"},{"$error":"#DIV/0!"},{"$f":"G66/G$68","v":{"$error":"#DIV/0!"}}]
["Taux \"maîtrise satisfaisante\"",{"$error":"#DIV/0!"},{"$error":"#DIV/0!"},{"$error":"#DIV/0!"},{"$error":"#DIV/0!"},{"$error":"#DIV/0!"},{"$f":"G67/G$68","v":{"$error":"#DIV/0!"}}]
["Total élèves évalués ",{"$f":"B68/B$68","v":{"$error":"#DIV/0!"}},{"$f":"C68/C$68","v":{"$error":"#DIV/0!"}},{"$error":"#DIV/0!"},{"$error":"#DIV/0!"},{"$error":"#DIV/0!"},{"$f":"G68/G$68","v":{"$error":"#DIV/0!"}}]
[]
[]
[{"$f":"CONCATENATE(\"Classe : \",Informations!$D$14)","v":"Classe : -"},{"$f":"B5","v":0},{"$f":"C5","v":0},0,0,0,{"$f":"G5","v":0}]
["Nb \"maîtrise à besoins\"",{"$f":"COUNTIF(EVA_Groupes_MATHS!L:L,CONCATENATE(Informations!$D$14,\" \",Informations!$D27))","v":0},{"$f":"COUNTIF(EVA_Groupes_MATHS!M:M,CONCATENATE(Informations!$D$14,\" \",Informations!$D27))","v":0},{"$f":"COUNTIF(EVA_Groupes_MATHS!N:N,CONCATENATE(Informations!$D$14,\" \",Informations!$D27))","v":0},{"$f":"COUNTIF(EVA_Groupes_MATHS!O:O,CONCATENATE(Informations!$D$14,\" \",Informations!$D27))","v":0},{"$f":"COUNTIF(EVA_Groupes_MATHS!P:P,CONCATENATE(Informations!$D$14,\" \",Informations!$D27))","v":0},{"$f":"COUNTIF(EVA_Groupes_MATHS!Q:Q,CONCATENATE(Informations!$D$14,\" \",Informations!$D27))","v":0}]
["Nb \"maîtrise fragile\"",{"$f":"COUNTIF(EVA_Groupes_MATHS!L:L,CONCATENATE(Informations!$D$14,\" \",Informations!$D28))","v":0},{"$f":"COUNTIF(EVA_Groupes_MATHS!M:M,CONCATENATE(Informations!$D$14,\" \",Informations!$D28))","v":0},{"$f":"COUNTIF(EVA_Groupes_MATHS!N:N,CONCATENATE(Informations!$D$14,\" \",Informations!$D28))","v":0},{"$f":"COUNTIF(EVA_Groupes_MATHS!O:O,CONCATENATE(Informations!$D$14,\" \",Informations!$D28))","v":0},{"$f":"COUNTIF(EVA_Groupes_MATHS!P:P,CONCATENATE(Informations!$D$14,\" \",Informations!$D28))","v":0},{"$f":"COUNTIF(EVA_Groupes_MATHS!Q:Q,CONCATENATE(Informations!$D$14,\" \",Informations!$D28))","v":0}]
["Nb \"maîtrise satisfaisante\"",{"$f":"COUNTIF(EVA_Groupes_MATHS!L:L,CONCATENATE(Informations!$D$14,\" \",Informations!$D29))","v":0},{"$f":"COUNTIF(EVA_Groupes_MATHS!M:M,CONCATENATE(Informations!$D$14,\" \",Informations!$D29))","v":0},{"$f":"COUNTIF(EVA_Groupes_MATHS!N:N,CONCATENATE(Informations!$D$14,\" \",Informations!$D29))","v":0},{"$f":"COUNTIF(EVA_Groupes_MATHS!O:O,CONCATENATE(Informations!$D$14,\" \",Informations!$D29))","v":0},{"$f":"COUNTIF(EVA_Groupes_MATHS!P:P,CONCATENATE(Informations!$D$14,\" \",Informations!$D29))","v":0},{"$f":"COUNTIF(EVA_Groupes_MATHS!Q:Q,CONCATENATE(Informations!$D$14,\" \",Informations!$D29))","v":0}]
["Total élèves évalués ",{"$f":"SUM(B78:B80)","v":0},{"$f":"SUM(C78:C80)","v":0},0,0,0,{"$f":"SUM(G78:G80)","v":0}]
[]
[{"$f":"CONCATENATE(\"Classe : \",Informations!$D$14)","v":"Classe : -"},{"$f":"B5","v":0},{"$f":"C5","v":0},0,0,0,{"$f":"G5","v":0}]
["Taux \"maîtrise à besoins\"",{"$f":"B78/B$81","v":{"$error":"#DIV/0!"}},{"$f":"C78/C$81","v":{"$error":"#DIV/0!"}},{"$error":"#DIV/0!"},{"$error":"#DIV/0!"},{"$error":"#DIV/0!"},{"$f":"G78/G$81","v":{"$error":"#DIV/0!"}}]
["Taux \"maîtrise fragile\"",{"$f":"B79/B$81","v":{"$error":"#DIV/0!"}},{"$error":"#DIV/0!"},{"$error":"#DIV/0!"},{"$error":"#DIV/0!"},{"$error":"#DIV/0!"},{"$f":"G79/G$81","v":{"$error":"#DIV/0!"}}]
["Taux \"maîtrise satisfaisante\"",{"$error":"#DIV/0!"},{"$error":"#DIV/0!"},{"$error":"#DIV/0!"},{"$error":"#DIV/0!"},{"$error":"#DIV/0!"},{"$f":"G80/G$81","v":{"$error":"#DIV/0!"}}]
["Total élèves évalués ",{"$f":"B81/B$81","v":{"$error":"#DIV/0!"}},{"$f":"C81/C$81","v":{"$error":"#DIV/0!"}},{"$error":"#DIV/0!"},{"$error":"#DIV/0!"},{"$error":"#DIV/0!"},{"$f":"G81/G$81","v":{"$error":"#DIV/0!"}}]
[]
[]
[{"$f":"CONCATENATE(\"Classe : \",Informations!$D$15)","v":"Classe : -"},{"$f":"B5","v":0},{"$f":"C5","v":0},0,0,0,{"$f":"G5","v":0}]
["Nb \"maîtrise à besoins\"",{"$f":"COUNTIF(EVA_Groupes_MATHS!L:L,CONCATENATE(Informations!$D$15,\" \",Informations!$D27))","v":0},{"$f":"COUNTIF(EVA_Groupes_MATHS!M:M,CONCATENATE(Informations!$D$15,\" \",Informations!$D27))","v":0},{"$f":"COUNTIF(EVA_Groupes_MATHS!N:N,CONCATENATE(Informations!$D$15,\" \",Informations!$D27))","v":0},{"$f":"COUNTIF(EVA_Groupes_MATHS!O:O,CONCATENATE(Informations!$D$15,\" \",Informations!$D27))","v":0},{"$f":"COUNTIF(EVA_Groupes_MATHS!P:P,CONCATENATE(Informations!$D$15,\" \",Informations!$D27))","v":0},{"$f":"COUNTIF(EVA_Groupes_MATHS!Q:Q,CONCATENATE(Informations!$D$15,\" \",Informations!$D27))","v":0}]
["Nb \"maîtrise fragile\"",{"$f":"COUNTIF(EVA_Groupes_MATHS!L:L,CONCATENATE(Informations!$D$15,\" \",Informations!$D28))","v":0},{"$f":"COUNTIF(EVA_Groupes_MATHS!M:M,CONCATENATE(Informations!$D$15,\" \",Informations!$D28))","v":0},{"$f":"COUNTIF(EVA_Groupes_MATHS!N:N,CONCATENATE(Informations!$D$15,\" \",Informations!$D28))","v":0},{"$f":"COUNTIF(EVA_Groupes_MATHS!O:O,CONCATENATE(Informations!$D$15,\" \",Informations!$D28))","v":0},{"$f":"COUNTIF(EVA_Groupes_MATHS!P:P,CONCATENATE(Informations!$D$15,\" \",Informations!$D28))","v":0},{"$f":"COUNTIF(EVA_Groupes_MATHS!Q:Q,CONCATENATE(Informations!$D$15,\" \",Informations!$D28))","v":0}]
["Nb \"maîtrise satisfaisante\"",{"$f":"COUNTIF(EVA_Groupes_MATHS!L:L,CONCATENATE(Informations!$D$15,\" \",Informations!$D29))","v":0},{"$f":"COUNTIF(EVA_Groupes_MATHS!M:M,CONCATENATE(Informations!$D$15,\" \",Informations!$D29))","v":0},{"$f":"COUNTIF(EVA_Groupes_MATHS!N:N,CONCATENATE(Informations!$D$15,\" \",Informations!$D29))","v":0},{"$f":"COUNTIF(EVA_Groupes_MATHS!O:O,CONCATENATE(Informations!$D$15,\" \",Informations!$D29))","v":0},{"$f":"COUNTIF(EVA_Groupes_MATHS!P:P,CONCATENATE(Informations!$D$15,\" \",Informations!$D29))","v":0},{"$f":"COUNTIF(EVA_Groupes_MATHS!Q:Q,CONCATENATE(Informations!$D$15,\" \",Informations!$D29))","v":0}]
["Total élèves évalués ",{"$f":"SUM(B91:B93)","v":0},{"$f":"SUM(C91:C93)","v":0},0,0,0,{"$f":"SUM(G91:G93)","v":0}]
[]
[{"$f":"CONCATENATE(\"Classe : \",Informations!$D$15)","v":"Classe : -"},{"$f":"B5","v":0},{"$f":"C5","v":0},0,0,0,{"$f":"G5","v":0}]
["Taux \"maîtrise à besoins\"",{"$f":"B91/B$94","v":{"$error":"#DIV/0!"}},{"$f":"C91/C$94","v":{"$error":"#DIV/0!"}},{"$error":"#DIV/0!"},{"$error":"#DIV/0!"},{"$error":"#DIV/0!"},{"$f":"G91/G$94","v":{"$error":"#DIV/0!"}}]
["Taux \"maîtrise fragile\"",{"$f":"B92/B$94","v":{"$error":"#DIV/0!"}},{"$error":"#DIV/0!"},{"$error":"#DIV/0!"},{"$error":"#DIV/0!"},{"$error":"#DIV/0!"},{"$f":"G92/G$94","v":{"$error":"#DIV/0!"}}]
["Taux \"maîtrise satisfaisante\"",{"$error":"#DIV/0!"},{"$error":"#DIV/0!"},{"$error":"#DIV/0!"},{"$error":"#DIV/0!"},{"$error":"#DIV/0!"},{"$f":"G93/G$94","v":{"$error":"#DIV/0!"}}]
["Total élèves évalués ",{"$f":"B94/B$94","v":{"$error":"#DIV/0!"}},{"$f":"C94/C$94","v":{"$error":"#DIV/0!"}},{"$error":"#DIV/0!"},{"$error":"#DIV/0!"},{"$error":"#DIV/0!"},{"$f":"G94/G$94","v":{"$error":"#DIV/0!"}}]
[]
[]
[{"$f":"CONCATENATE(\"Classe : \",Informations!$D$16)","v":"Classe : -"},{"$f":"B5","v":0},{"$f":"C5","v":0},0,0,0,{"$f":"G5","v":0}]
["Nb \"maîtrise à besoins\"",{"$f":"COUNTIF(EVA_Groupes_MATHS!L:L,CONCATENATE(Informations!$D$16,\" \",Informations!$D27))","v":0},{"$f":"COUNTIF(EVA_Groupes_MATHS!M:M,CONCATENATE(Informations!$D$16,\" \",Informations!$D27))","v":0},{"$f":"COUNTIF(EVA_Groupes_MATHS!N:N,CONCATENATE(Informations!$D$16,\" \",Informations!$D27))","v":0},{"$f":"COUNTIF(EVA_Groupes_MATHS!O:O,CONCATENATE(Informations!$D$16,\" \",Informations!$D27))","v":0},{"$f":"COUNTIF(EVA_Groupes_MATHS!P:P,CONCATENATE(Informations!$D$16,\" \",Informations!$D27))","v":0},{"$f":"COUNTIF(EVA_Groupes_MATHS!Q:Q,CONCATENATE(Informations!$D$16,\" \",Informations!$D27))","v":0}]
["Nb \"maîtrise fragile\"",{"$f":"COUNTIF(EVA_Groupes_MATHS!L:L,CONCATENATE(Informations!$D$16,\" \",Informations!$D28))","v":0},{"$f":"COUNTIF(EVA_Groupes_MATHS!M:M,CONCATENATE(Informations!$D$16,\" \",Informations!$D28))","v":0},{"$f":"COUNTIF(EVA_Groupes_MATHS!N:N,CONCATENATE(Informations!$D$16,\" \",Informations!$D28))","v":0},{"$f":"COUNTIF(EVA_Groupes_MATHS!O:O,CONCATENATE(Informations!$D$16,\" \",Informations!$D28))","v":0},{"$f":"COUNTIF(EVA_Groupes_MATHS!P:P,CONCATENATE(Informations!$D$16,\" \",Informations!$D28))","v":0},{"$f":"COUNTIF(EVA_Groupes_MATHS!Q:Q,CONCATENATE(Informations!$D$16,\" \",Informations!$D28))","v":0}]
["Nb \"maîtrise satisfaisante\"",{"$f":"COUNTIF(EVA_Groupes_MATHS!L:L,CONCATENATE(Informations!$D$16,\" \",Informations!$D29))","v":0},{"$f":"COUNTIF(EVA_Groupes_MATHS!M:M,CONCATENATE(Informations!$D$16,\" \",Informations!$D29))","v":0},{"$f":"COUNTIF(EVA_Groupes_MATHS!N:N,CONCATENATE(Informations!$D$16,\" \",Informations!$D29))","v":0},{"$f":"COUNTIF(EVA_Groupes_MATHS!O:O,CONCATENATE(Informations!$D$16,\" \",Informations!$D29))","v":0},{"$f":"COUNTIF(EVA_Groupes_MATHS!P:P,CONCATENATE(Informations!$D$16,\" \",Informations!$D29))","v":0},{"$f":"COUNTIF(EVA_Groupes_MATHS!Q:Q,CONCATENATE(Informations!$D$16,\" \",Informations!$D29))","v":0}]
["Total élèves évalués ",{"$f":"SUM(B104:B106)","v":0},{"$f":"SUM(C104:C106)","v":0},0,0,0,{"$f":"SUM(G104:G106)","v":0}]
[]
[{"$f":"CONCATENATE(\"Classe : \",Informations!$D$16)","v":"Classe : -"},{"$f":"B5","v":0},{"$f":"C5","v":0},0,0,0,{"$f":"G5","v":0}]
["Taux \"maîtrise à besoins\"",{"$f":"B104/B$107","v":{"$error":"#DIV/0!"}},{"$f":"C104/C$107","v":{"$error":"#DIV/0!"}},{"$error":"#DIV/0!"},{"$error":"#DIV/0!"},{"$error":"#DIV/0!"},{"$f":"G104/G$107","v":{"$error":"#DIV/0!"}}]
["Taux \"maîtrise fragile\"",{"$f":"B105/B$107","v":{"$error":"#DIV/0!"}},{"$error":"#DIV/0!"},{"$error":"#DIV/0!"},{"$error":"#DIV/0!"},{"$error":"#DIV/0!"},{"$f":"G105/G$107","v":{"$error":"#DIV/0!"}}]
["Taux \"maîtrise satisfaisante\"",{"$error":"#DIV/0!"},{"$error":"#DIV/0!"},{"$error":"#DIV/0!"},{"$error":"#DIV/0!"},{"$error":"#DIV/0!"},{"$f":"G106/G$107","v":{"$error":"#DIV/0!"}}]
["Total élèves évalués ",{"$f":"B107/B$107","v":{"$error":"#DIV/0!"}},{"$f":"C107/C$107","v":{"$error":"#DIV/0!"}},{"$error":"#DIV/0!"},{"$error":"#DIV/0!"},{"$error":"#DIV/0!"},{"$f":"G107/G$107","v":{"$error":"#DIV/0!"}}]
[]
[]
[{"$f":"CONCATENATE(\"Classe : \",Informations!$D$17)","v":"Classe : -"},{"$f":"B5","v":0},{"$f":"C5","v":0},0,0,0,{"$f":"G5","v":0}]
["Nb \"maîtrise à besoins\"",{"$f":"COUNTIF(EVA_Groupes_MATHS!L:L,CONCATENATE(Informations!$D$17,\" \",Informations!$D27))","v":0},{"$f":"COUNTIF(EVA_Groupes_MATHS!M:M,CONCATENATE(Informations!$D$17,\" \",Informations!$D27))","v":0},{"$f":"COUNTIF(EVA_Groupes_MATHS!N:N,CONCATENATE(Informations!$D$17,\" \",Informations!$D27))","v":0},{"$f":"COUNTIF(EVA_Groupes_MATHS!O:O,CONCATENATE(Informations!$D$17,\" \",Informations!$D27))","v":0},{"$f":"COUNTIF(EVA_Groupes_MATHS!P:P,CONCATENATE(Informations!$D$17,\" \",Informations!$D27))","v":0},{"$f":"COUNTIF(EVA_Groupes_MATHS!Q:Q,CONCATENATE(Informations!$D$17,\" \",Informations!$D27))","v":0}]
["Nb \"maîtrise fragile\"",{"$f":"COUNTIF(EVA_Groupes_MATHS!L:L,CONCATENATE(Informations!$D$17,\" \",Informations!$D28))","v":0},{"$f":"COUNTIF(EVA_Groupes_MATHS!M:M,CONCATENATE(Informations!$D$17,\" \",Informations!$D28))","v":0},{"$f":"COUNTIF(EVA_Groupes_MATHS!N:N,CONCATENATE(Informations!$D$17,\" \",Informations!$D28))","v":0},{"$f":"COUNTIF(EVA_Groupes_MATHS!O:O,CONCATENATE(Informations!$D$17,\" \",Informations!$D28))","v":0},{"$f":"COUNTIF(EVA_Groupes_MATHS!P:P,CONCATENATE(Informations!$D$17,\" \",Informations!$D28))","v":0},{"$f":"COUNTIF(EVA_Groupes_MATHS!Q:Q,CONCATENATE(Informations!$D$17,\" \",Informations!$D28))","v":0}]
["Nb \"maîtrise satisfaisante\"",{"$f":"COUNTIF(EVA_Groupes_MATHS!L:L,CONCATENATE(Informations!$D$17,\" \",Informations!$D29))","v":0},{"$f":"COUNTIF(EVA_Groupes_MATHS!M:M,CONCATENATE(Informations!$D$17,\" \",Informations!$D29))","v":0},{"$f":"COUNTIF(EVA_Groupes_MATHS!N:N,CONCATENATE(Informations!$D$17,\" \",Informations!$D29))","v":0},{"$f":"COUNTIF(EVA_Groupes_MATHS!O:O,CONCATENATE(Informations!$D$17,\" \",Informations!$D29))","v":0},{"$f":"COUNTIF(EVA_Groupes_MATHS!P:P,CONCATENATE(Informations!$D$17,\" \",Informations!$D29))","v":0},{"$f":"COUNTIF(EVA_Groupes_MATHS!Q:Q,CONCATENATE(Informations!$D$17,\" \",Informations!$D29))","v":0}]
["Total élèves évalués ",{"$f":"SUM(B117:B119)","v":0},{"$f":"SUM(C117:C119)","v":0},0,0,0,{"$f":"SUM(G117:G119)","v":0}]
[]
[{"$f":"CONCATENATE(\"Classe : \",Informations!$D$17)","v":"Classe : -"},{"$f":"B5","v":0},{"$f":"C5","v":0},0,0,0,{"$f":"G5","v":0}]
["Taux \"maîtrise à besoins\"",{"$f":"B117/B$120","v":{"$error":"#DIV/0!"}},{"$f":"C117/C$120","v":{"$error":"#DIV/0!"}},{"$error":"#DIV/0!"},{"$error":"#DIV/0!"},{"$error":"#DIV/0!"},{"$f":"G117/G$120","v":{"$error":"#DIV/0!"}}]
["Taux \"maîtrise fragile\"",{"$f":"B118/B$120","v":{"$error":"#DIV/0!"}},{"$error":"#DIV/0!"},{"$error":"#DIV/0!"},{"$error":"#DIV/0!"},{"$error":"#DIV/0!"},{"$f":"G118/G$120","v":{"$error":"#DIV/0!"}}]
["Taux \"maîtrise satisfaisante\"",{"$error":"#DIV/0!"},{"$error":"#DIV/0!"},{"$error":"#DIV/0!"},{"$error":"#DIV/0!"},{"$error":"#DIV/0!"},{"$f":"G119/G$120","v":{"$error":"#DIV/0!"}}]
["Total élèves évalués ",{"$f":"B120/B$120","v":{"$error":"#DIV/0!"}},{"$f":"C120/C$120","v":{"$error":"#DIV/0!"}},{"$error":"#DIV/0!"},{"$error":"#DIV/0!"},{"$error":"#DIV/0!"},{"$f":"G120/G$120","v":{"$error":"#DIV/0!"}}]
[]
[]
[{"$f":"CONCATENATE(\"Classe : \",Informations!$D$18)","v":"Classe : -"},{"$f":"B5","v":0},{"$f":"C5","v":0},0,0,0,{"$f":"G5","v":0}]
["Nb \"maîtrise à besoins\"",{"$f":"COUNTIF(EVA_Groupes_MATHS!L:L,CONCATENATE(Informations!$D$18,\" \",Informations!$D27))","v":0},{"$f":"COUNTIF(EVA_Groupes_MATHS!M:M,CONCATENATE(Informations!$D$18,\" \",Informations!$D27))","v":0},{"$f":"COUNTIF(EVA_Groupes_MATHS!N:N,CONCATENATE(Informations!$D$18,\" \",Informations!$D27))","v":0},{"$f":"COUNTIF(EVA_Groupes_MATHS!O:O,CONCATENATE(Informations!$D$18,\" \",Informations!$D27))","v":0},{"$f":"COUNTIF(EVA_Groupes_MATHS!P:P,CONCATENATE(Informations!$D$18,\" \",Informations!$D27))","v":0},{"$f":"COUNTIF(EVA_Groupes_MATHS!Q:Q,CONCATENATE(Informations!$D$18,\" \",Informations!$D27))","v":0}]
["Nb \"maîtrise fragile\"",{"$f":"COUNTIF(EVA_Groupes_MATHS!L:L,CONCATENATE(Informations!$D$18,\" \",Informations!$D28))","v":0},{"$f":"COUNTIF(EVA_Groupes_MATHS!M:M,CONCATENATE(Informations!$D$18,\" \",Informations!$D28))","v":0},{"$f":"COUNTIF(EVA_Groupes_MATHS!N:N,CONCATENATE(Informations!$D$18,\" \",Informations!$D28))","v":0},{"$f":"COUNTIF(EVA_Groupes_MATHS!O:O,CONCATENATE(Informations!$D$18,\" \",Informations!$D28))","v":0},{"$f":"COUNTIF(EVA_Groupes_MATHS!P:P,CONCATENATE(Informations!$D$18,\" \",Informations!$D28))","v":0},{"$f":"COUNTIF(EVA_Groupes_MATHS!Q:Q,CONCATENATE(Informations!$D$18,\" \",Informations!$D28))","v":0}]
["Nb \"maîtrise satisfaisante\"",{"$f":"COUNTIF(EVA_Groupes_MATHS!L:L,CONCATENATE(Informations!$D$18,\" \",Informations!$D29))","v":0},{"$f":"COUNTIF(EVA_Groupes_MATHS!M:M,CONCATENATE(Informations!$D$18,\" \",Informations!$D29))","v":0},{"$f":"COUNTIF(EVA_Groupes_MATHS!N:N,CONCATENATE(Informations!$D$18,\" \",Informations!$D29))","v":0},{"$f":"COUNTIF(EVA_Groupes_MATHS!O:O,CONCATENATE(Informations!$D$18,\" \",Informations!$D29))","v":0},{"$f":"COUNTIF(EVA_Groupes_MATHS!P:P,CONCATENATE(Informations!$D$18,\" \",Informations!$D29))","v":0},{"$f":"COUNTIF(EVA_Groupes_MATHS!Q:Q,CONCATENATE(Informations!$D$18,\" \",Informations!$D29))","v":0}]
["Total élèves évalués ",{"$f":"SUM(B130:B132)","v":0},{"$f":"SUM(C130:C132)","v":0},0,0,0,{"$f":"SUM(G130:G132)","v":0}]
[]
[{"$f":"CONCATENATE(\"Classe : \",Informations!$D$18)","v":"Classe : -"},{"$f":"B5","v":0},{"$f":"C5","v":0},0,0,0,{"$f":"G5","v":0}]
["Taux \"maîtrise à besoins\"",{"$f":"B130/B$133","v":{"$error":"#DIV/0!"}},{"$f":"C130/C$133","v":{"$error":"#DIV/0!"}},{"$error":"#DIV/0!"},{"$error":"#DIV/0!"},{"$error":"#DIV/0!"},{"$f":"G130/G$133","v":{"$error":"#DIV/0!"}}]
["Taux \"maîtrise fragile\"",{"$f":"B131/B$133","v":{"$error":"#DIV/0!"}},{"$error":"#DIV/0!"},{"$error":"#DIV/0!"},{"$error":"#DIV/0!"},{"$error":"#DIV/0!"},{"$f":"G131/G$133","v":{"$error":"#DIV/0!"}}]
["Taux \"maîtrise satisfaisante\"",{"$error":"#DIV/0!"},{"$error":"#DIV/0!"},{"$error":"#DIV/0!"},{"$error":"#DIV/0!"},{"$error":"#DIV/0!"},{"$f":"G132/G$133","v":{"$error":"#DIV/0!"}}]
["Total élèves évalués ",{"$f":"B133/B$133","v":{"$error":"#DIV/0!"}},{"$f":"C133/C$133","v":{"$error":"#DIV/0!"}},{"$error":"#DIV/0!"},{"$error":"#DIV/0!"},{"$error":"#DIV/0!"},{"$f":"G133/G$133","v":{"$error":"#DIV/0!"}}]
[]
[]
[{"$f":"CONCATENATE(\"Classe : \",Informations!$D$19)","v":"Classe : -"},{"$f":"B5","v":0},{"$f":"C5","v":0},0,0,0,{"$f":"G5","v":0}]
["Nb \"maîtrise à besoins\"",{"$f":"COUNTIF(EVA_Groupes_MATHS!L:L,CONCATENATE(Informations!$D$19,\" \",Informations!$D27))","v":0},{"$f":"COUNTIF(EVA_Groupes_MATHS!M:M,CONCATENATE(Informations!$D$19,\" \",Informations!$D27))","v":0},{"$f":"COUNTIF(EVA_Groupes_MATHS!N:N,CONCATENATE(Informations!$D$19,\" \",Informations!$D27))","v":0},{"$f":"COUNTIF(EVA_Groupes_MATHS!O:O,CONCATENATE(Informations!$D$19,\" \",Informations!$D27))","v":0},{"$f":"COUNTIF(EVA_Groupes_MATHS!P:P,CONCATENATE(Informations!$D$19,\" \",Informations!$D27))","v":0},{"$f":"COUNTIF(EVA_Groupes_MATHS!Q:Q,CONCATENATE(Informations!$D$19,\" \",Informations!$D27))","v":0}]
["Nb \"maîtrise fragile\"",{"$f":"COUNTIF(EVA_Groupes_MATHS!L:L,CONCATENATE(Informations!$D$19,\" \",Informations!$D28))","v":0},{"$f":"COUNTIF(EVA_Groupes_MATHS!M:M,CONCATENATE(Informations!$D$19,\" \",Informations!$D28))","v":0},{"$f":"COUNTIF(EVA_Groupes_MATHS!N:N,CONCATENATE(Informations!$D$19,\" \",Informations!$D28))","v":0},{"$f":"COUNTIF(EVA_Groupes_MATHS!O:O,CONCATENATE(Informations!$D$19,\" \",Informations!$D28))","v":0},{"$f":"COUNTIF(EVA_Groupes_MATHS!P:P,CONCATENATE(Informations!$D$19,\" \",Informations!$D28))","v":0},{"$f":"COUNTIF(EVA_Groupes_MATHS!Q:Q,CONCATENATE(Informations!$D$19,\" \",Informations!$D28))","v":0}]
["Nb \"maîtrise satisfaisante\"",{"$f":"COUNTIF(EVA_Groupes_MATHS!L:L,CONCATENATE(Informations!$D$19,\" \",Informations!$D29))","v":0},{"$f":"COUNTIF(EVA_Groupes_MATHS!M:M,CONCATENATE(Informations!$D$19,\" \",Informations!$D29))","v":0},{"$f":"COUNTIF(EVA_Groupes_MATHS!N:N,CONCATENATE(Informations!$D$19,\" \",Informations!$D29))","v":0},{"$f":"COUNTIF(EVA_Groupes_MATHS!O:O,CONCATENATE(Informations!$D$19,\" \",Informations!$D29))","v":0},{"$f":"COUNTIF(EVA_Groupes_MATHS!P:P,CONCATENATE(Informations!$D$19,\" \",Informations!$D29))","v":0},{"$f":"COUNTIF(EVA_Groupes_MATHS!Q:Q,CONCATENATE(Informations!$D$19,\" \",Informations!$D29))","v":0}]
["Total élèves évalués ",{"$f":"SUM(B143:B145)","v":0},{"$f":"SUM(C143:C145)","v":0},0,0,0,{"$f":"SUM(G143:G145)","v":0}]
[]
[{"$f":"CONCATENATE(\"Classe : \",Informations!$D$19)","v":"Classe : -"},{"$f":"B5","v":0},{"$f":"C5","v":0},0,0,0,{"$f":"G5","v":0}]
["Taux \"maîtrise à besoins\"",{"$f":"B143/B$146","v":{"$error":"#DIV/0!"}},{"$f":"C143/C$146","v":{"$error":"#DIV/0!"}},{"$error":"#DIV/0!"},{"$error":"#DIV/0!"},{"$error":"#DIV/0!"},{"$f":"G143/G$146","v":{"$error":"#DIV/0!"}}]
["Taux \"maîtrise fragile\"",{"$f":"B144/B$146","v":{"$error":"#DIV/0!"}},{"$error":"#DIV/0!"},{"$error":"#DIV/0!"},{"$error":"#DIV/0!"},{"$error":"#DIV/0!"},{"$f":"G144/G$146","v":{"$error":"#DIV/0!"}}]
["Taux \"maîtrise satisfaisante\"",{"$error":"#DIV/0!"},{"$error":"#DIV/0!"},{"$error":"#DIV/0!"},{"$error":"#DIV/0!"},{"$error":"#DIV/0!"},{"$f":"G145/G$146","v":{"$error":"#DIV/0!"}}]
["Total élèves évalués ",{"$f":"B146/B$146","v":{"$error":"#DIV/0!"}},{"$f":"C146/C$146","v":{"$error":"#DIV/0!"}},{"$error":"#DIV/0!"},{"$error":"#DIV/0!"},{"$error":"#DIV/0!"},{"$f":"G146/G$146","v":{"$error":"#DIV/0!"}}]

{"sheet":"TDB_GRAPH_1","index":4,"n_rows":0,"n_cols":0,"rows_kept":0,"cut":false,"hidden":false,"merged":[]}

{"sheet":"TDB_GRAPH_2","index":5,"n_rows":165,"n_cols":23,"rows_kept":165,"cut":false,"hidden":false,"merged":[]}
[]
[]
[]
[null,null,null,null,null,null,null,null,null,null,{"$f":"TDB_CLASSES_FRA!$B$5","v":0},"Etab",{"$f":"IF(Informations!$D$9=\"-\",\"\",Informations!$D$9)","v":""},{"$f":"IF(Informations!$D$10=\"-\",\"\",Informations!$D$10)","v":""},{"$f":"IF(Informations!$D$11=\"-\",\"\",Informations!$D$11)","v":""},{"$f":"IF(Informations!$D$12=\"-\",\"\",Informations!$D$12)","v":""},{"$f":"IF(Informations!$D$13=\"-\",\"\",Informations!$D$13)","v":""},{"$f":"IF(Informations!$D$14=\"-\",\"\",Informations!$D$14)","v":""},{"$f":"IF(Informations!$D$15=\"-\",\"\",Informations!$D$15)","v":""},{"$f":"IF(Informations!$D$16=\"-\",\"\",Informations!$D$16)","v":""},{"$f":"IF(Informations!$D$17=\"-\",\"\",Informations!$D$17)","v":""},{"$f":"IF(Informations!$D$18=\"-\",\"\",Informations!$D$18)","v":""},{"$f":"IF(Informations!$D$19=\"-\",\"\",Informations!$D$19)","v":""}]
[null,null,null,null,null,null,null,null,null,null,"Taux \"maîtrise à besoins\"",{"$f":"TDB_CLASSES_FRA!B6","v":{"$error":"#DIV/0!"}},{"$f":"IF($M$4=\"\",\"\",TDB_CLASSES_FRA!B19)","v":""},{"$f":"IF($N$4=\"\",\"\",TDB_CLASSES_FRA!B32)","v":""},{"$f":"IF($O$4=\"\",\"\",TDB_CLASSES_FRA!B45)","v":""},{"$f":"IF($P$4=\"\",\"\",TDB_CLASSES_FRA!B58)","v":""},{"$f":"IF($Q$4=\"\",\"\",TDB_CLASSES_FRA!B71)","v":""},{"$f":"IF($R$4=\"\",\"\",TDB_CLASSES_FRA!B84)","v":""},{"$f":"IF($S$4=\"\",\"\",TDB_CLASSES_FRA!B97)","v":""},{"$f":"IF($T$4=\"\",\"\",TDB_CLASSES_FRA!B110)","v":""},{"$f":"IF($U$4=\"\",\"\",TDB_CLASSES_FRA!B123)","v":""},{"$f":"IF($V$4=\"\",\"\",TDB_CLASSES_FRA!B136)","v":""},{"$f":"IF($W$4=\"\",\"\",TDB_CLASSES_FRA!B149)","v":""}]
[null,null,null,null,null,null,null,null,null,null,"Taux \"maîtrise fragile\"",{"$f":"TDB_CLASSES_FRA!B7","v":{"$error":"#DIV/0!"}},{"$f":"IF($M$4=\"\",\"\",TDB_CLASSES_FRA!B20)","v":""},{"$f":"IF($N$4=\"\",\"\",TDB_CLASSES_FRA!B33)","v":""},{"$f":"IF($O$4=\"\",\"\",TDB_CLASSES_FRA!B46)","v":""},{"$f":"IF($P$4=\"\",\"\",TDB_CLASSES_FRA!B59)","v":""},{"$f":"IF($Q$4=\"\",\"\",TDB_CLASSES_FRA!B72)","v":""},{"$f":"IF($R$4=\"\",\"\",TDB_CLASSES_FRA!B85)","v":""},{"$f":"IF($S$4=\"\",\"\",TDB_CLASSES_FRA!B98)","v":""},{"$f":"IF($T$4=\"\",\"\",TDB_CLASSES_FRA!B111)","v":""},{"$f":"IF($U$4=\"\",\"\",TDB_CLASSES_FRA!B124)","v":""},{"$f":"IF($V$4=\"\",\"\",TDB_CLASSES_FRA!B137)","v":""},{"$f":"IF($W$4=\"\",\"\",TDB_CLASSES_FRA!B150)","v":""}]
[null,null,null,null,null,null,null,null,null,null,"Taux \"maîtrise satisfaisante\"",{"$f":"TDB_CLASSES_FRA!B8","v":{"$error":"#DIV/0!"}},{"$f":"IF($M$4=\"\",\"\",TDB_CLASSES_FRA!B21)","v":""},{"$f":"IF($N$4=\"\",\"\",TDB_CLASSES_FRA!B34)","v":""},{"$f":"IF($O$4=\"\",\"\",TDB_CLASSES_FRA!B47)","v":""},{"$f":"IF($P$4=\"\",\"\",TDB_CLASSES_FRA!B60)","v":""},{"$f":"IF($Q$4=\"\",\"\",TDB_CLASSES_FRA!B73)","v":""},{"$f":"IF($R$4=\"\",\"\",TDB_CLASSES_FRA!B86)","v":""},{"$f":"IF($S$4=\"\",\"\",TDB_CLASSES_FRA!B99)","v":""},{"$f":"IF($T$4=\"\",\"\",TDB_CLASSES_FRA!B112)","v":""},{"$f":"IF($U$4=\"\",\"\",TDB_CLASSES_FRA!B125)","v":""},{"$f":"IF($V$4=\"\",\"\",TDB_CLASSES_FRA!B138)","v":""},{"$f":"IF($W$4=\"\",\"\",TDB_CLASSES_FRA!B151)","v":""}]
[null,null,null,null,null,null,null,null,null,null,{"$f":"TDB_CLASSES_FRA!$A$9","v":"Total élèves évalués "},{"$f":"SUM(L5:L7)","v":{"$error":"#DIV/0!"}},0,0,0,0,0,0,0,0,0,0,0]
[]
[]
[]
[]
[]
[]
[]
[]
[null,null,null,null,null,null,null,null,null,null,{"$f":"TDB_CLASSES_FRA!$C$5","v":0},"Etab",{"$f":"IF(Informations!$D$9=\"-\",\"\",Informations!$D$9)","v":""},{"$f":"IF(Informations!$D$10=\"-\",\"\",Informations!$D$10)","v":""},{"$f":"IF(Informations!$D$11=\"-\",\"\",Informations!$D$11)","v":""},{"$f":"IF(Informations!$D$12=\"-\",\"\",Informations!$D$12)","v":""},{"$f":"IF(Informations!$D$13=\"-\",\"\",Informations!$D$13)","v":""},{"$f":"IF(Informations!$D$14=\"-\",\"\",Informations!$D$14)","v":""},{"$f":"IF(Informations!$D$15=\"-\",\"\",Informations!$D$15)","v":""},{"$f":"IF(Informations!$D$16=\"-\",\"\",Informations!$D$16)","v":""},{"$f":"IF(Informations!$D$17=\"-\",\"\",Informations!$D$17)","v":""},{"$f":"IF(Informations!$D$18=\"-\",\"\",Informations!$D$18)","v":""},{"$f":"IF(Informations!$D$19=\"-\",\"\",Informations!$D$19)","v":""}]
[null,null,null,null,null,null,null,null,null,null,"Taux \"maîtrise à besoins\"",{"$f":"TDB_CLASSES_FRA!C6","v":{"$error":"#DIV/0!"}},{"$f":"IF($M$4=\"\",\"\",TDB_CLASSES_FRA!C19)","v":""},{"$f":"IF($N$4=\"\",\"\",TDB_CLASSES_FRA!C32)","v":""},{"$f":"IF($O$4=\"\",\"\",TDB_CLASSES_FRA!C45)","v":""},{"$f":"IF($P$4=\"\",\"\",TDB_CLASSES_FRA!C58)","v":""},{"$f":"IF($Q$4=\"\",\"\",TDB_CLASSES_FRA!C71)","v":""},{"$f":"IF($R$4=\"\",\"\",TDB_CLASSES_FRA!C84)","v":""},{"$f":"IF($S$4=\"\",\"\",TDB_CLASSES_FRA!C97)","v":""},{"$f":"IF($T$4=\"\",\"\",TDB_CLASSES_FRA!C110)","v":""},{"$f":"IF($U$4=\"\",\"\",TDB_CLASSES_FRA!C123)","v":""},{"$f":"IF($V$4=\"\",\"\",TDB_CLASSES_FRA!C136)","v":""},{"$f":"IF($W$4=\"\",\"\",TDB_CLASSES_FRA!C149)","v":""}]
[null,null,null,null,null,null,null,null,null,null,"Taux \"maîtrise fragile\"",{"$f":"TDB_CLASSES_FRA!C7","v":{"$error":"#DIV/0!"}},{"$f":"IF($M$4=\"\",\"\",TDB_CLASSES_FRA!C20)","v":""},{"$f":"IF($N$4=\"\",\"\",TDB_CLASSES_FRA!C33)","v":""},{"$f":"IF($O$4=\"\",\"\",TDB_CLASSES_FRA!C46)","v":""},{"$f":"IF($P$4=\"\",\"\",TDB_CLASSES_FRA!C59)","v":""},{"$f":"IF($Q$4=\"\",\"\",TDB_CLASSES_FRA!C72)","v":""},{"$f":"IF($R$4=\"\",\"\",TDB_CLASSES_FRA!C85)","v":""},{"$f":"IF($S$4=\"\",\"\",TDB_CLASSES_FRA!C98)","v":""},{"$f":"IF($T$4=\"\",\"\",TDB_CLASSES_FRA!C111)","v":""},{"$f":"IF($U$4=\"\",\"\",TDB_CLASSES_FRA!C124)","v":""},{"$f":"IF($V$4=\"\",\"\",TDB_CLASSES_FRA!C137)","v":""},{"$f":"IF($W$4=\"\",\"\",TDB_CLASSES_FRA!C150)","v":""}]
[null,null,null,null,null,null,null,null,null,null,"Taux \"maîtrise satisfaisante\"",{"$f":"TDB_CLASSES_FRA!C8","v":{"$error":"#DIV/0!"}},{"$f":"IF($M$4=\"\",\"\",TDB_CLASSES_FRA!C21)","v":""},{"$f":"IF($N$4=\"\",\"\",TDB_CLASSES_FRA!C34)","v":""},{"$f":"IF($O$4=\"\",\"\",TDB_CLASSES_FRA!C47)","v":""},{"$f":"IF($P$4=\"\",\"\",TDB_CLASSES_FRA!C60)","v":""},{"$f":"IF($Q$4=\"\",\"\",TDB_CLASSES_FRA!C73)","v":""},{"$f":"IF($R$4=\"\",\"\",TDB_CLASSES_FRA!C86)","v":""},{"$f":"IF($S$4=\"\",\"\",TDB_CLASSES_FRA!C99)","v":""},{"$f":"IF($T$4=\"\",\"\",TDB_CLASSES_FRA!C112)","v":""},{"$f":"IF($U$4=\"\",\"\",TDB_CLASSES_FRA!C125)","v":""},{"$f":"IF($V$4=\"\",\"\",TDB_CLASSES_FRA!C138)","v":""},{"$f":"IF($W$4=\"\",\"\",TDB_CLASSES_FRA!C151)","v":""}]
[null,null,null,null,null,null,null,null,null,null,{"$f":"TDB_CLASSES_FRA!$A$9","v":"Total élèves évalués "},{"$f":"SUM(L18:L20)","v":{"$error":"#DIV/0!"}},0,0,0,0,0,0,0,0,0,0,0]
[]
[]
[]
[]
[]
[]
[]
[]
[null,null,null,null,null,null,null,null,null,null,{"$f":"TDB_CLASSES_FRA!$D$5","v":0},"Etab",{"$f":"IF(Informations!$D$9=\"-\",\"\",Informations!$D$9)","v":""},{"$f":"IF(Informations!$D$10=\"-\",\"\",Informations!$D$10)","v":""},{"$f":"IF(Informations!$D$11=\"-\",\"\",Informations!$D$11)","v":""},{"$f":"IF(Informations!$D$12=\"-\",\"\",Informations!$D$12)","v":""},{"$f":"IF(Informations!$D$13=\"-\",\"\",Informations!$D$13)","v":""},{"$f":"IF(Informations!$D$14=\"-\",\"\",Informations!$D$14)","v":""},{"$f":"IF(Informations!$D$15=\"-\",\"\",Informations!$D$15)","v":""},{"$f":"IF(Informations!$D$16=\"-\",\"\",Informations!$D$16)","v":""},{"$f":"IF(Informations!$D$17=\"-\",\"\",Informations!$D$17)","v":""},{"$f":"IF(Informations!$D$18=\"-\",\"\",Informations!$D$18)","v":""},{"$f":"IF(Informations!$D$19=\"-\",\"\",Informations!$D$19)","v":""}]
[null,null,null,null,null,null,null,null,null,null,"Taux \"maîtrise à besoins\"",{"$f":"TDB_CLASSES_FRA!D6","v":{"$error":"#DIV/0!"}},{"$f":"IF($M$4=\"\",\"\",TDB_CLASSES_FRA!D19)","v":""},{"$f":"IF($N$4=\"\",\"\",TDB_CLASSES_FRA!D32)","v":""},{"$f":"IF($O$4=\"\",\"\",TDB_CLASSES_FRA!D45)","v":""},{"$f":"IF($P$4=\"\",\"\",TDB_CLASSES_FRA!D58)","v":""},{"$f":"IF($Q$4=\"\",\"\",TDB_CLASSES_FRA!D71)","v":""},{"$f":"IF($R$4=\"\",\"\",TDB_CLASSES_FRA!D84)","v":""},{"$f":"IF($S$4=\"\",\"\",TDB_CLASSES_FRA!D97)","v":""},{"$f":"IF($T$4=\"\",\"\",TDB_CLASSES_FRA!D110)","v":""},{"$f":"IF($U$4=\"\",\"\",TDB_CLASSES_FRA!D123)","v":""},{"$f":"IF($V$4=\"\",\"\",TDB_CLASSES_FRA!D136)","v":""},{"$f":"IF($W$4=\"\",\"\",TDB_CLASSES_FRA!D149)","v":""}]
[null,null,null,null,null,null,null,null,null,null,"Taux \"maîtrise fragile\"",{"$f":"TDB_CLASSES_FRA!D7","v":{"$error":"#DIV/0!"}},{"$f":"IF($M$4=\"\",\"\",TDB_CLASSES_FRA!D20)","v":""},{"$f":"IF($N$4=\"\",\"\",TDB_CLASSES_FRA!D33)","v":""},{"$f":"IF($O$4=\"\",\"\",TDB_CLASSES_FRA!D46)","v":""},{"$f":"IF($P$4=\"\",\"\",TDB_CLASSES_FRA!D59)","v":""},{"$f":"IF($Q$4=\"\",\"\",TDB_CLASSES_FRA!D72)","v":""},{"$f":"IF($R$4=\"\",\"\",TDB_CLASSES_FRA!D85)","v":""},{"$f":"IF($S$4=\"\",\"\",TDB_CLASSES_FRA!D98)","v":""},{"$f":"IF($T$4=\"\",\"\",TDB_CLASSES_FRA!D111)","v":""},{"$f":"IF($U$4=\"\",\"\",TDB_CLASSES_FRA!D124)","v":""},{"$f":"IF($V$4=\"\",\"\",TDB_CLASSES_FRA!D137)","v":""},{"$f":"IF($W$4=\"\",\"\",TDB_CLASSES_FRA!D150)","v":""}]
[null,null,null,null,null,null,null,null,null,null,"Taux \"maîtrise satisfaisante\"",{"$f":"TDB_CLASSES_FRA!D8","v":{"$error":"#DIV/0!"}},{"$f":"IF($M$4=\"\",\"\",TDB_CLASSES_FRA!D21)","v":""},{"$f":"IF($N$4=\"\",\"\",TDB_CLASSES_FRA!D34)","v":""},{"$f":"IF($O$4=\"\",\"\",TDB_CLASSES_FRA!D47)","v":""},{"$f":"IF($P$4=\"\",\"\",TDB_CLASSES_FRA!D60)","v":""},{"$f":"IF($Q$4=\"\",\"\",TDB_CLASSES_FRA!D73)","v":""},{"$f":"IF($R$4=\"\",\"\",TDB_CLASSES_FRA!D86)","v":""},{"$f":"IF($S$4=\"\",\"\",TDB_CLASSES_FRA!D99)","v":""},{"$f":"IF($T$4=\"\",\"\",TDB_CLASSES_FRA!D112)","v":""},{"$f":"IF($U$4=\"\",\"\",TDB_CLASSES_FRA!D125)","v":""},{"$f":"IF($V$4=\"\",\"\",TDB_CLASSES_FRA!D138)","v":""},{"$f":"IF($W$4=\"\",\"\",TDB_CLASSES_FRA!D151)","v":""}]
[null,null,null,null,null,null,null,null,null,null,{"$f":"TDB_CLASSES_FRA!$A$9","v":"Total élèves évalués "},{"$f":"SUM(L31:L33)","v":{"$error":"#DIV/0!"}},0,0,0,0,0,0,0,0,0,0,0]
[]
[]
[]
[]
[]
[]
[]
[]
[null,null,null,null,null,null,null,null,null,null,{"$f":"TDB_CLASSES_FRA!$E$5","v":0},"Etab",{"$f":"IF(Informations!$D$9=\"-\",\"\",Informations!$D$9)","v":""},{"$f":"IF(Informations!$D$10=\"-\",\"\",Informations!$D$10)","v":""},{"$f":"IF(Informations!$D$11=\"-\",\"\",Informations!$D$11)","v":""},{"$f":"IF(Informations!$D$12=\"-\",\"\",Informations!$D$12)","v":""},{"$f":"IF(Informations!$D$13=\"-\",\"\",Informations!$D$13)","v":""},{"$f":"IF(Informations!$D$14=\"-\",\"\",Informations!$D$14)","v":""},{"$f":"IF(Informations!$D$15=\"-\",\"\",Informations!$D$15)","v":""},{"$f":"IF(Informations!$D$16=\"-\",\"\",Informations!$D$16)","v":""},{"$f":"IF(Informations!$D$17=\"-\",\"\",Informations!$D$17)","v":""},{"$f":"IF(Informations!$D$18=\"-\",\"\",Informations!$D$18)","v":""},{"$f":"IF(Informations!$D$19=\"-\",\"\",Informations!$D$19)","v":""}]
[null,null,null,null,null,null,null,null,null,null,"Taux \"maîtrise à besoins\"",{"$f":"TDB_CLASSES_FRA!E6","v":{"$error":"#DIV/0!"}},{"$f":"IF($M$4=\"\",\"\",TDB_CLASSES_FRA!E19)","v":""},{"$f":"IF($N$4=\"\",\"\",TDB_CLASSES_FRA!E32)","v":""},{"$f":"IF($O$4=\"\",\"\",TDB_CLASSES_FRA!E45)","v":""},{"$f":"IF($P$4=\"\",\"\",TDB_CLASSES_FRA!E58)","v":""},{"$f":"IF($Q$4=\"\",\"\",TDB_CLASSES_FRA!E71)","v":""},{"$f":"IF($R$4=\"\",\"\",TDB_CLASSES_FRA!E84)","v":""},{"$f":"IF($S$4=\"\",\"\",TDB_CLASSES_FRA!E97)","v":""},{"$f":"IF($T$4=\"\",\"\",TDB_CLASSES_FRA!E110)","v":""},{"$f":"IF($U$4=\"\",\"\",TDB_CLASSES_FRA!E123)","v":""},{"$f":"IF($V$4=\"\",\"\",TDB_CLASSES_FRA!E136)","v":""},{"$f":"IF($W$4=\"\",\"\",TDB_CLASSES_FRA!E149)","v":""}]
[null,null,null,null,null,null,null,null,null,null,"Taux \"maîtrise fragile\"",{"$f":"TDB_CLASSES_FRA!E7","v":{"$error":"#DIV/0!"}},{"$f":"IF($M$4=\"\",\"\",TDB_CLASSES_FRA!E20)","v":""},{"$f":"IF($N$4=\"\",\"\",TDB_CLASSES_FRA!E33)","v":""},{"$f":"IF($O$4=\"\",\"\",TDB_CLASSES_FRA!E46)","v":""},{"$f":"IF($P$4=\"\",\"\",TDB_CLASSES_FRA!E59)","v":""},{"$f":"IF($Q$4=\"\",\"\",TDB_CLASSES_FRA!E72)","v":""},{"$f":"IF($R$4=\"\",\"\",TDB_CLASSES_FRA!E85)","v":""},{"$f":"IF($S$4=\"\",\"\",TDB_CLASSES_FRA!E98)","v":""},{"$f":"IF($T$4=\"\",\"\",TDB_CLASSES_FRA!E111)","v":""},{"$f":"IF($U$4=\"\",\"\",TDB_CLASSES_FRA!E124)","v":""},{"$f":"IF($V$4=\"\",\"\",TDB_CLASSES_FRA!E137)","v":""},{"$f":"IF($W$4=\"\",\"\",TDB_CLASSES_FRA!E150)","v":""}]
[null,null,null,null,null,null,null,null,null,null,"Taux \"maîtrise satisfaisante\"",{"$f":"TDB_CLASSES_FRA!E8","v":{"$error":"#DIV/0!"}},{"$f":"IF($M$4=\"\",\"\",TDB_CLASSES_FRA!E21)","v":""},{"$f":"IF($N$4=\"\",\"\",TDB_CLASSES_FRA!E34)","v":""},{"$f":"IF($O$4=\"\",\"\",TDB_CLASSES_FRA!E47)","v":""},{"$f":"IF($P$4=\"\",\"\",TDB_CLASSES_FRA!E60)","v":""},{"$f":"IF($Q$4=\"\",\"\",TDB_CLASSES_FRA!E73)","v":""},{"$f":"IF($R$4=\"\",\"\",TDB_CLASSES_FRA!E86)","v":""},{"$f":"IF($S$4=\"\",\"\",TDB_CLASSES_FRA!E99)","v":""},{"$f":"IF($T$4=\"\",\"\",TDB_CLASSES_FRA!E112)","v":""},{"$f":"IF($U$4=\"\",\"\",TDB_CLASSES_FRA!E125)","v":""},{"$f":"IF($V$4=\"\",\"\",TDB_CLASSES_FRA!E138)","v":""},{"$f":"IF($W$4=\"\",\"\",TDB_CLASSES_FRA!E151)","v":""}]
[null,null,null,null,null,null,null,null,null,null,{"$f":"TDB_CLASSES_FRA!$A$9","v":"Total élèves évalués "},{"$f":"SUM(L44:L46)","v":{"$error":"#DIV/0!"}},0,0,0,0,0,0,0,0,0,0,0]
[]
[]
[]
[]
[]
[]
[]
[null,null,null,null,null,null,null,null,null,null,{"$f":"TDB_CLASSES_FRA!$F$5","v":0},"Etab",{"$f":"IF(Informations!$D$9=\"-\",\"\",Informations!$D$9)","v":""},{"$f":"IF(Informations!$D$10=\"-\",\"\",Informations!$D$10)","v":""},{"$f":"IF(Informations!$D$11=\"-\",\"\",Informations!$D$11)","v":""},{"$f":"IF(Informations!$D$12=\"-\",\"\",Informations!$D$12)","v":""},{"$f":"IF(Informations!$D$13=\"-\",\"\",Informations!$D$13)","v":""},{"$f":"IF(Informations!$D$14=\"-\",\"\",Informations!$D$14)","v":""},{"$f":"IF(Informations!$D$15=\"-\",\"\",Informations!$D$15)","v":""},{"$f":"IF(Informations!$D$16=\"-\",\"\",Informations!$D$16)","v":""},{"$f":"IF(Informations!$D$17=\"-\",\"\",Informations!$D$17)","v":""},{"$f":"IF(Informations!$D$18=\"-\",\"\",Informations!$D$18)","v":""},{"$f":"IF(Informations!$D$19=\"-\",\"\",Informations!$D$19)","v":""}]
[null,null,null,null,null,null,null,null,null,null,"Taux \"maîtrise à besoins\"",{"$f":"TDB_CLASSES_FRA!F6","v":{"$error":"#DIV/0!"}},{"$f":"IF($M$4=\"\",\"\",TDB_CLASSES_FRA!F19)","v":""},{"$f":"IF($N$4=\"\",\"\",TDB_CLASSES_FRA!F32)","v":""},{"$f":"IF($O$4=\"\",\"\",TDB_CLASSES_FRA!F45)","v":""},{"$f":"IF($P$4=\"\",\"\",TDB_CLASSES_FRA!F58)","v":""},{"$f":"IF($Q$4=\"\",\"\",TDB_CLASSES_FRA!F71)","v":""},{"$f":"IF($R$4=\"\",\"\",TDB_CLASSES_FRA!F84)","v":""},{"$f":"IF($S$4=\"\",\"\",TDB_CLASSES_FRA!F97)","v":""},{"$f":"IF($T$4=\"\",\"\",TDB_CLASSES_FRA!F110)","v":""},{"$f":"IF($U$4=\"\",\"\",TDB_CLASSES_FRA!F123)","v":""},{"$f":"IF($V$4=\"\",\"\",TDB_CLASSES_FRA!F136)","v":""},{"$f":"IF($W$4=\"\",\"\",TDB_CLASSES_FRA!F149)","v":""}]
[null,null,null,null,null,null,null,null,null,null,"Taux \"maîtrise fragile\"",{"$f":"TDB_CLASSES_FRA!F7","v":{"$error":"#DIV/0!"}},{"$f":"IF($M$4=\"\",\"\",TDB_CLASSES_FRA!F20)","v":""},{"$f":"IF($N$4=\"\",\"\",TDB_CLASSES_FRA!F33)","v":""},{"$f":"IF($O$4=\"\",\"\",TDB_CLASSES_FRA!F46)","v":""},{"$f":"IF($P$4=\"\",\"\",TDB_CLASSES_FRA!F59)","v":""},{"$f":"IF($Q$4=\"\",\"\",TDB_CLASSES_FRA!F72)","v":""},{"$f":"IF($R$4=\"\",\"\",TDB_CLASSES_FRA!F85)","v":""},{"$f":"IF($S$4=\"\",\"\",TDB_CLASSES_FRA!F98)","v":""},{"$f":"IF($T$4=\"\",\"\",TDB_CLASSES_FRA!F111)","v":""},{"$f":"IF($U$4=\"\",\"\",TDB_CLASSES_FRA!F124)","v":""},{"$f":"IF($V$4=\"\",\"\",TDB_CLASSES_FRA!F137)","v":""},{"$f":"IF($W$4=\"\",\"\",TDB_CLASSES_FRA!F150)","v":""}]
[null,null,null,null,null,null,null,null,null,null,"Taux \"maîtrise satisfaisante\"",{"$f":"TDB_CLASSES_FRA!F8","v":{"$error":"#DIV/0!"}},{"$f":"IF($M$4=\"\",\"\",TDB_CLASSES_FRA!F21)","v":""},{"$f":"IF($N$4=\"\",\"\",TDB_CLASSES_FRA!F34)","v":""},{"$f":"IF($O$4=\"\",\"\",TDB_CLASSES_FRA!F47)","v":""},{"$f":"IF($P$4=\"\",\"\",TDB_CLASSES_FRA!F60)","v":""},{"$f":"IF($Q$4=\"\",\"\",TDB_CLASSES_FRA!F73)","v":""},{"$f":"IF($R$4=\"\",\"\",TDB_CLASSES_FRA!F86)","v":""},{"$f":"IF($S$4=\"\",\"\",TDB_CLASSES_FRA!F99)","v":""},{"$f":"IF($T$4=\"\",\"\",TDB_CLASSES_FRA!F112)","v":""},{"$f":"IF($U$4=\"\",\"\",TDB_CLASSES_FRA!F125)","v":""},{"$f":"IF($V$4=\"\",\"\",TDB_CLASSES_FRA!F138)","v":""},{"$f":"IF($W$4=\"\",\"\",TDB_CLASSES_FRA!F151)","v":""}]
[null,null,null,null,null,null,null,null,null,null,{"$f":"TDB_CLASSES_FRA!$A$9","v":"Total élèves évalués "},{"$f":"SUM(L56:L58)","v":{"$error":"#DIV/0!"}},0,0,0,0,0,0,0,0,0,0,0]
[]
[]
[]
[]
[]
[]
[]
[]
[]
[]
[]
[]
[]
[]
[]
[null,null,null,null,null,null,null,null,null,null,{"$f":"TDB_CLASSES_FRA!$G$5","v":0},"Etab",{"$f":"IF(Informations!$D$9=\"-\",\"\",Informations!$D$9)","v":""},{"$f":"IF(Informations!$D$10=\"-\",\"\",Informations!$D$10)","v":""},{"$f":"IF(Informations!$D$11=\"-\",\"\",Informations!$D$11)","v":""},{"$f":"IF(Informations!$D$12=\"-\",\"\",Informations!$D$12)","v":""},{"$f":"IF(Informations!$D$13=\"-\",\"\",Informations!$D$13)","v":""},{"$f":"IF(Informations!$D$14=\"-\",\"\",Informations!$D$14)","v":""},{"$f":"IF(Informations!$D$15=\"-\",\"\",Informations!$D$15)","v":""},{"$f":"IF(Informations!$D$16=\"-\",\"\",Informations!$D$16)","v":""},{"$f":"IF(Informations!$D$17=\"-\",\"\",Informations!$D$17)","v":""},{"$f":"IF(Informations!$D$18=\"-\",\"\",Informations!$D$18)","v":""},{"$f":"IF(Informations!$D$19=\"-\",\"\",Informations!$D$19)","v":""}]
[null,null,null,null,null,null,null,null,null,null,"Taux \"maîtrise à besoins\"",{"$f":"TDB_CLASSES_FRA!G6","v":{"$error":"#DIV/0!"}},{"$f":"IF($M$4=\"\",\"\",TDB_CLASSES_FRA!G19)","v":""},{"$f":"IF($N$4=\"\",\"\",TDB_CLASSES_FRA!G32)","v":""},{"$f":"IF($O$4=\"\",\"\",TDB_CLASSES_FRA!G45)","v":""},{"$f":"IF($P$4=\"\",\"\",TDB_CLASSES_FRA!G58)","v":""},{"$f":"IF($Q$4=\"\",\"\",TDB_CLASSES_FRA!G71)","v":""},{"$f":"IF($R$4=\"\",\"\",TDB_CLASSES_FRA!G84)","v":""},{"$f":"IF($S$4=\"\",\"\",TDB_CLASSES_FRA!G97)","v":""},{"$f":"IF($T$4=\"\",\"\",TDB_CLASSES_FRA!G110)","v":""},{"$f":"IF($U$4=\"\",\"\",TDB_CLASSES_FRA!G123)","v":""},{"$f":"IF($V$4=\"\",\"\",TDB_CLASSES_FRA!G136)","v":""},{"$f":"IF($W$4=\"\",\"\",TDB_CLASSES_FRA!G149)","v":""}]
[null,null,null,null,null,null,null,null,null,null,"Taux \"maîtrise fragile\"",{"$f":"TDB_CLASSES_FRA!G7","v":{"$error":"#DIV/0!"}},{"$f":"IF($M$4=\"\",\"\",TDB_CLASSES_FRA!G20)","v":""},{"$f":"IF($N$4=\"\",\"\",TDB_CLASSES_FRA!G33)","v":""},{"$f":"IF($O$4=\"\",\"\",TDB_CLASSES_FRA!G46)","v":""},{"$f":"IF($P$4=\"\",\"\",TDB_CLASSES_FRA!G59)","v":""},{"$f":"IF($Q$4=\"\",\"\",TDB_CLASSES_FRA!G72)","v":""},{"$f":"IF($R$4=\"\",\"\",TDB_CLASSES_FRA!G85)","v":""},{"$f":"IF($S$4=\"\",\"\",TDB_CLASSES_FRA!G98)","v":""},{"$f":"IF($T$4=\"\",\"\",TDB_CLASSES_FRA!G111)","v":""},{"$f":"IF($U$4=\"\",\"\",TDB_CLASSES_FRA!G124)","v":""},{"$f":"IF($V$4=\"\",\"\",TDB_CLASSES_FRA!G137)","v":""},{"$f":"IF($W$4=\"\",\"\",TDB_CLASSES_FRA!G150)","v":""}]
[null,null,null,null,null,null,null,null,null,null,"Taux \"maîtrise satisfaisante\"",{"$f":"TDB_CLASSES_FRA!G8","v":{"$error":"#DIV/0!"}},{"$f":"IF($M$4=\"\",\"\",TDB_CLASSES_FRA!G21)","v":""},{"$f":"IF($N$4=\"\",\"\",TDB_CLASSES_FRA!G34)","v":""},{"$f":"IF($O$4=\"\",\"\",TDB_CLASSES_FRA!G47)","v":""},{"$f":"IF($P$4=\"\",\"\",TDB_CLASSES_FRA!G60)","v":""},{"$f":"IF($Q$4=\"\",\"\",TDB_CLASSES_FRA!G73)","v":""},{"$f":"IF($R$4=\"\",\"\",TDB_CLASSES_FRA!G86)","v":""},{"$f":"IF($S$4=\"\",\"\",TDB_CLASSES_FRA!G99)","v":""},{"$f":"IF($T$4=\"\",\"\",TDB_CLASSES_FRA!G112)","v":""},{"$f":"IF($U$4=\"\",\"\",TDB_CLASSES_FRA!G125)","v":""},{"$f":"IF($V$4=\"\",\"\",TDB_CLASSES_FRA!G138)","v":""},{"$f":"IF($W$4=\"\",\"\",TDB_CLASSES_FRA!G151)","v":""}]
[null,null,null,null,null,null,null,null,null,null,{"$f":"TDB_CLASSES_FRA!$A$9","v":"Total élèves évalués "},{"$f":"SUM(L76:L78)","v":{"$error":"#DIV/0!"}},0,0,0,0,0,0,0,0,0,0,0]
[]
[]
[]
[]
[]
[]
[]
[]
[null,null,null,null,null,null,null,null,null,null,{"$f":"TDB_CLASSES_MATH!$B$5","v":0},"Etab",{"$f":"IF(Informations!$D$9=\"-\",\"\",Informations!$D$9)","v":""},{"$f":"IF(Informations!$D$10=\"-\",\"\",Informations!$D$10)","v":""},{"$f":"IF(Informations!$D$11=\"-\",\"\",Informations!$D$11)","v":""},{"$f":"IF(Informations!$D$12=\"-\",\"\",Informations!$D$12)","v":""},{"$f":"IF(Informations!$D$13=\"-\",\"\",Informations!$D$13)","v":""},{"$f":"IF(Informations!$D$14=\"-\",\"\",Informations!$D$14)","v":""},{"$f":"IF(Informations!$D$15=\"-\",\"\",Informations!$D$15)","v":""},{"$f":"IF(Informations!$D$16=\"-\",\"\",Informations!$D$16)","v":""},{"$f":"IF(Informations!$D$17=\"-\",\"\",Informations!$D$17)","v":""},{"$f":"IF(Informations!$D$18=\"-\",\"\",Informations!$D$18)","v":""},{"$f":"IF(Informations!$D$19=\"-\",\"\",Informations!$D$19)","v":""}]
[null,null,null,null,null,null,null,null,null,null,"Taux \"maîtrise à besoins\"",{"$f":"TDB_CLASSES_MATH!B6","v":{"$error":"#DIV/0!"}},{"$f":"IF($M$4=\"\",\"\",TDB_CLASSES_MATH!B19)","v":""},{"$f":"IF($N$4=\"\",\"\",TDB_CLASSES_MATH!B32)","v":""},{"$f":"IF($O$4=\"\",\"\",TDB_CLASSES_MATH!B45)","v":""},{"$f":"IF($P$4=\"\",\"\",TDB_CLASSES_MATH!B58)","v":""},{"$f":"IF($Q$4=\"\",\"\",TDB_CLASSES_MATH!B71)","v":""},{"$f":"IF($R$4=\"\",\"\",TDB_CLASSES_MATH!B84)","v":""},{"$f":"IF($S$4=\"\",\"\",TDB_CLASSES_MATH!B97)","v":""},{"$f":"IF($T$4=\"\",\"\",TDB_CLASSES_MATH!B110)","v":""},{"$f":"IF($U$4=\"\",\"\",TDB_CLASSES_MATH!B123)","v":""},{"$f":"IF($V$4=\"\",\"\",TDB_CLASSES_MATH!B136)","v":""},{"$f":"IF($W$4=\"\",\"\",TDB_CLASSES_MATH!B149)","v":""}]
[null,null,null,null,null,null,null,null,null,null,"Taux \"maîtrise fragile\"",{"$f":"TDB_CLASSES_MATH!B7","v":{"$error":"#DIV/0!"}},{"$f":"IF($M$4=\"\",\"\",TDB_CLASSES_MATH!B20)","v":""},{"$f":"IF($N$4=\"\",\"\",TDB_CLASSES_MATH!B33)","v":""},{"$f":"IF($O$4=\"\",\"\",TDB_CLASSES_MATH!B46)","v":""},{"$f":"IF($P$4=\"\",\"\",TDB_CLASSES_MATH!B59)","v":""},{"$f":"IF($Q$4=\"\",\"\",TDB_CLASSES_MATH!B72)","v":""},{"$f":"IF($R$4=\"\",\"\",TDB_CLASSES_MATH!B85)","v":""},{"$f":"IF($S$4=\"\",\"\",TDB_CLASSES_MATH!B98)","v":""},{"$f":"IF($T$4=\"\",\"\",TDB_CLASSES_MATH!B111)","v":""},{"$f":"IF($U$4=\"\",\"\",TDB_CLASSES_MATH!B124)","v":""},{"$f":"IF($V$4=\"\",\"\",TDB_CLASSES_MATH!B137)","v":""},{"$f":"IF($W$4=\"\",\"\",TDB_CLASSES_MATH!B150)","v":""}]
[null,null,null,null,null,null,null,null,null,null,"Taux \"maîtrise satisfaisante\"",{"$f":"TDB_CLASSES_MATH!B8","v":{"$error":"#DIV/0!"}},{"$f":"IF($M$4=\"\",\"\",TDB_CLASSES_MATH!B21)","v":""},{"$f":"IF($N$4=\"\",\"\",TDB_CLASSES_MATH!B34)","v":""},{"$f":"IF($O$4=\"\",\"\",TDB_CLASSES_MATH!B47)","v":""},{"$f":"IF($P$4=\"\",\"\",TDB_CLASSES_MATH!B60)","v":""},{"$f":"IF($Q$4=\"\",\"\",TDB_CLASSES_MATH!B73)","v":""},{"$f":"IF($R$4=\"\",\"\",TDB_CLASSES_MATH!B86)","v":""},{"$f":"IF($S$4=\"\",\"\",TDB_CLASSES_MATH!B99)","v":""},{"$f":"IF($T$4=\"\",\"\",TDB_CLASSES_MATH!B112)","v":""},{"$f":"IF($U$4=\"\",\"\",TDB_CLASSES_MATH!B125)","v":""},{"$f":"IF($V$4=\"\",\"\",TDB_CLASSES_MATH!B138)","v":""},{"$f":"IF($W$4=\"\",\"\",TDB_CLASSES_MATH!B151)","v":""}]
[null,null,null,null,null,null,null,null,null,null,{"$f":"TDB_CLASSES_FRA!$A$9","v":"Total élèves évalués "},{"$f":"SUM(L89:L91)","v":{"$error":"#DIV/0!"}},0,0,0,0,0,0,0,0,0,0,0]
[]
[]
[]
[]
[]
[]
[]
[]
[null,null,null,null,null,null,null,null,null,null,{"$f":"TDB_CLASSES_MATH!$C$5","v":0},"Etab",{"$f":"IF(Informations!$D$9=\"-\",\"\",Informations!$D$9)","v":""},{"$f":"IF(Informations!$D$10=\"-\",\"\",Informations!$D$10)","v":""},{"$f":"IF(Informations!$D$11=\"-\",\"\",Informations!$D$11)","v":""},{"$f":"IF(Informations!$D$12=\"-\",\"\",Informations!$D$12)","v":""},{"$f":"IF(Informations!$D$13=\"-\",\"\",Informations!$D$13)","v":""},{"$f":"IF(Informations!$D$14=\"-\",\"\",Informations!$D$14)","v":""},{"$f":"IF(Informations!$D$15=\"-\",\"\",Informations!$D$15)","v":""},{"$f":"IF(Informations!$D$16=\"-\",\"\",Informations!$D$16)","v":""},{"$f":"IF(Informations!$D$17=\"-\",\"\",Informations!$D$17)","v":""},{"$f":"IF(Informations!$D$18=\"-\",\"\",Informations!$D$18)","v":""},{"$f":"IF(Informations!$D$19=\"-\",\"\",Informations!$D$19)","v":""}]
[null,null,null,null,null,null,null,null,null,null,"Taux \"maîtrise à besoins\"",{"$f":"TDB_CLASSES_MATH!C6","v":{"$error":"#DIV/0!"}},{"$f":"IF($M$4=\"\",\"\",TDB_CLASSES_MATH!C19)","v":""},{"$f":"IF($N$4=\"\",\"\",TDB_CLASSES_MATH!C32)","v":""},{"$f":"IF($O$4=\"\",\"\",TDB_CLASSES_MATH!C45)","v":""},{"$f":"IF($P$4=\"\",\"\",TDB_CLASSES_MATH!C58)","v":""},{"$f":"IF($Q$4=\"\",\"\",TDB_CLASSES_MATH!C71)","v":""},{"$f":"IF($R$4=\"\",\"\",TDB_CLASSES_MATH!C84)","v":""},{"$f":"IF($S$4=\"\",\"\",TDB_CLASSES_MATH!C97)","v":""},{"$f":"IF($T$4=\"\",\"\",TDB_CLASSES_MATH!C110)","v":""},{"$f":"IF($U$4=\"\",\"\",TDB_CLASSES_MATH!C123)","v":""},{"$f":"IF($V$4=\"\",\"\",TDB_CLASSES_MATH!C136)","v":""},{"$f":"IF($W$4=\"\",\"\",TDB_CLASSES_MATH!C149)","v":""}]
[null,null,null,null,null,null,null,null,null,null,"Taux \"maîtrise fragile\"",{"$f":"TDB_CLASSES_MATH!C7","v":{"$error":"#DIV/0!"}},{"$f":"IF($M$4=\"\",\"\",TDB_CLASSES_MATH!C20)","v":""},{"$f":"IF($N$4=\"\",\"\",TDB_CLASSES_MATH!C33)","v":""},{"$f":"IF($O$4=\"\",\"\",TDB_CLASSES_MATH!C46)","v":""},{"$f":"IF($P$4=\"\",\"\",TDB_CLASSES_MATH!C59)","v":""},{"$f":"IF($Q$4=\"\",\"\",TDB_CLASSES_MATH!C72)","v":""},{"$f":"IF($R$4=\"\",\"\",TDB_CLASSES_MATH!C85)","v":""},{"$f":"IF($S$4=\"\",\"\",TDB_CLASSES_MATH!C98)","v":""},{"$f":"IF($T$4=\"\",\"\",TDB_CLASSES_MATH!C111)","v":""},{"$f":"IF($U$4=\"\",\"\",TDB_CLASSES_MATH!C124)","v":""},{"$f":"IF($V$4=\"\",\"\",TDB_CLASSES_MATH!C137)","v":""},{"$f":"IF($W$4=\"\",\"\",TDB_CLASSES_MATH!C150)","v":""}]
[null,null,null,null,null,null,null,null,null,null,"Taux \"maîtrise satisfaisante\"",{"$f":"TDB_CLASSES_MATH!C8","v":{"$error":"#DIV/0!"}},{"$f":"IF($M$4=\"\",\"\",TDB_CLASSES_MATH!C21)","v":""},{"$f":"IF($N$4=\"\",\"\",TDB_CLASSES_MATH!C34)","v":""},{"$f":"IF($O$4=\"\",\"\",TDB_CLASSES_MATH!C47)","v":""},{"$f":"IF($P$4=\"\",\"\",TDB_CLASSES_MATH!C60)","v":""},{"$f":"IF($Q$4=\"\",\"\",TDB_CLASSES_MATH!C73)","v":""},{"$f":"IF($R$4=\"\",\"\",TDB_CLASSES_MATH!C86)","v":""},{"$f":"IF($S$4=\"\",\"\",TDB_CLASSES_MATH!C99)","v":""},{"$f":"IF($T$4=\"\",\"\",TDB_CLASSES_MATH!C112)","v":""},{"$f":"IF($U$4=\"\",\"\",TDB_CLASSES_MATH!C125)","v":""},{"$f":"IF($V$4=\"\",\"\",TDB_CLASSES_MATH!C138)","v":""},{"$f":"IF($W$4=\"\",\"\",TDB_CLASSES_MATH!C151)","v":""}]
[null,null,null,null,null,null,null,null,null,null,{"$f":"TDB_CLASSES_FRA!$A$9","v":"Total élèves évalués "},{"$f":"SUM(L102:L104)","v":{"$error":"#DIV/0!"}},0,0,0,0,0,0,0,0,0,0,0]
[]
[]
[]
[]
[]
[]
[]
[]
[null,null,null,null,null,null,null,null,null,null,{"$f":"TDB_CLASSES_MATH!$D$5","v":0},"Etab",{"$f":"IF(Informations!$D$9=\"-\",\"\",Informations!$D$9)","v":""},{"$f":"IF(Informations!$D$10=\"-\",\"\",Informations!$D$10)","v":""},{"$f":"IF(Informations!$D$11=\"-\",\"\",Informations!$D$11)","v":""},{"$f":"IF(Informations!$D$12=\"-\",\"\",Informations!$D$12)","v":""},{"$f":"IF(Informations!$D$13=\"-\",\"\",Informations!$D$13)","v":""},{"$f":"IF(Informations!$D$14=\"-\",\"\",Informations!$D$14)","v":""},{"$f":"IF(Informations!$D$15=\"-\",\"\",Informations!$D$15)","v":""},{"$f":"IF(Informations!$D$16=\"-\",\"\",Informations!$D$16)","v":""},{"$f":"IF(Informations!$D$17=\"-\",\"\",Informations!$D$17)","v":""},{"$f":"IF(Informations!$D$18=\"-\",\"\",Informations!$D$18)","v":""},{"$f":"IF(Informations!$D$19=\"-\",\"\",Informations!$D$19)","v":""}]
[null,null,null,null,null,null,null,null,null,null,"Taux \"maîtrise à besoins\"",{"$f":"TDB_CLASSES_MATH!D6","v":{"$error":"#DIV/0!"}},{"$f":"IF($M$4=\"\",\"\",TDB_CLASSES_MATH!D19)","v":""},{"$f":"IF($N$4=\"\",\"\",TDB_CLASSES_MATH!D32)","v":""},{"$f":"IF($O$4=\"\",\"\",TDB_CLASSES_MATH!D45)","v":""},{"$f":"IF($P$4=\"\",\"\",TDB_CLASSES_MATH!D58)","v":""},{"$f":"IF($Q$4=\"\",\"\",TDB_CLASSES_MATH!D71)","v":""},{"$f":"IF($R$4=\"\",\"\",TDB_CLASSES_MATH!D84)","v":""},{"$f":"IF($S$4=\"\",\"\",TDB_CLASSES_MATH!D97)","v":""},{"$f":"IF($T$4=\"\",\"\",TDB_CLASSES_MATH!D110)","v":""},{"$f":"IF($U$4=\"\",\"\",TDB_CLASSES_MATH!D123)","v":""},{"$f":"IF($V$4=\"\",\"\",TDB_CLASSES_MATH!D136)","v":""},{"$f":"IF($W$4=\"\",\"\",TDB_CLASSES_MATH!D149)","v":""}]
[null,null,null,null,null,null,null,null,null,null,"Taux \"maîtrise fragile\"",{"$f":"TDB_CLASSES_MATH!D7","v":{"$error":"#DIV/0!"}},{"$f":"IF($M$4=\"\",\"\",TDB_CLASSES_MATH!D20)","v":""},{"$f":"IF($N$4=\"\",\"\",TDB_CLASSES_MATH!D33)","v":""},{"$f":"IF($O$4=\"\",\"\",TDB_CLASSES_MATH!D46)","v":""},{"$f":"IF($P$4=\"\",\"\",TDB_CLASSES_MATH!D59)","v":""},{"$f":"IF($Q$4=\"\",\"\",TDB_CLASSES_MATH!D72)","v":""},{"$f":"IF($R$4=\"\",\"\",TDB_CLASSES_MATH!D85)","v":""},{"$f":"IF($S$4=\"\",\"\",TDB_CLASSES_MATH!D98)","v":""},{"$f":"IF($T$4=\"\",\"\",TDB_CLASSES_MATH!D111)","v":""},{"$f":"IF($U$4=\"\",\"\",TDB_CLASSES_MATH!D124)","v":""},{"$f":"IF($V$4=\"\",\"\",TDB_CLASSES_MATH!D137)","v":""},{"$f":"IF($W$4=\"\",\"\",TDB_CLASSES_MATH!D150)","v":""}]
[null,null,null,null,null,null,null,null,null,null,"Taux \"maîtrise satisfaisante\"",{"$f":"TDB_CLASSES_MATH!D8","v":{"$error":"#DIV/0!"}},{"$f":"IF($M$4=\"\",\"\",TDB_CLASSES_MATH!D21)","v":""},{"$f":"IF($N$4=\"\",\"\",TDB_CLASSES_MATH!D34)","v":""},{"$f":"IF($O$4=\"\",\"\",TDB_CLASSES_MATH!D47)","v":""},{"$f":"IF($P$4=\"\",\"\",TDB_CLASSES_MATH!D60)","v":""},{"$f":"IF($Q$4=\"\",\"\",TDB_CLASSES_MATH!D73)","v":""},{"$f":"IF($R$4=\"\",\"\",TDB_CLASSES_MATH!D86)","v":""},{"$f":"IF($S$4=\"\",\"\",TDB_CLASSES_MATH!D99)","v":""},{"$f":"IF($T$4=\"\",\"\",TDB_CLASSES_MATH!D112)","v":""},{"$f":"IF($U$4=\"\",\"\",TDB_CLASSES_MATH!D125)","v":""},{"$f":"IF($V$4=\"\",\"\",TDB_CLASSES_MATH!D138)","v":""},{"$f":"IF($W$4=\"\",\"\",TDB_CLASSES_MATH!D151)","v":""}]
[null,null,null,null,null,null,null,null,null,null,{"$f":"TDB_CLASSES_FRA!$A$9","v":"Total élèves évalués "},{"$f":"SUM(L115:L117)","v":{"$error":"#DIV/0!"}},0,0,0,0,0,0,0,0,0,0,0]
[]
[]
[]
[]
[]
[]
[]
[]
[null,null,null,null,null,null,null,null,null,null,{"$f":"TDB_CLASSES_MATH!$E$5","v":0},"Etab",{"$f":"IF(Informations!$D$9=\"-\",\"\",Informations!$D$9)","v":""},{"$f":"IF(Informations!$D$10=\"-\",\"\",Informations!$D$10)","v":""},{"$f":"IF(Informations!$D$11=\"-\",\"\",Informations!$D$11)","v":""},{"$f":"IF(Informations!$D$12=\"-\",\"\",Informations!$D$12)","v":""},{"$f":"IF(Informations!$D$13=\"-\",\"\",Informations!$D$13)","v":""},{"$f":"IF(Informations!$D$14=\"-\",\"\",Informations!$D$14)","v":""},{"$f":"IF(Informations!$D$15=\"-\",\"\",Informations!$D$15)","v":""},{"$f":"IF(Informations!$D$16=\"-\",\"\",Informations!$D$16)","v":""},{"$f":"IF(Informations!$D$17=\"-\",\"\",Informations!$D$17)","v":""},{"$f":"IF(Informations!$D$18=\"-\",\"\",Informations!$D$18)","v":""},{"$f":"IF(Informations!$D$19=\"-\",\"\",Informations!$D$19)","v":""}]
[null,null,null,null,null,null,null,null,null,null,"Taux \"maîtrise à besoins\"",{"$f":"TDB_CLASSES_MATH!E6","v":{"$error":"#DIV/0!"}},{"$f":"IF($M$4=\"\",\"\",TDB_CLASSES_MATH!E19)","v":""},{"$f":"IF($N$4=\"\",\"\",TDB_CLASSES_MATH!E32)","v":""},{"$f":"IF($O$4=\"\",\"\",TDB_CLASSES_MATH!E45)","v":""},{"$f":"IF($P$4=\"\",\"\",TDB_CLASSES_MATH!E58)","v":""},{"$f":"IF($Q$4=\"\",\"\",TDB_CLASSES_MATH!E71)","v":""},{"$f":"IF($R$4=\"\",\"\",TDB_CLASSES_MATH!E84)","v":""},{"$f":"IF($S$4=\"\",\"\",TDB_CLASSES_MATH!E97)","v":""},{"$f":"IF($T$4=\"\",\"\",TDB_CLASSES_MATH!E110)","v":""},{"$f":"IF($U$4=\"\",\"\",TDB_CLASSES_MATH!E123)","v":""},{"$f":"IF($V$4=\"\",\"\",TDB_CLASSES_MATH!E136)","v":""},{"$f":"IF($W$4=\"\",\"\",TDB_CLASSES_MATH!E149)","v":""}]
[null,null,null,null,null,null,null,null,null,null,"Taux \"maîtrise fragile\"",{"$f":"TDB_CLASSES_MATH!E7","v":{"$error":"#DIV/0!"}},{"$f":"IF($M$4=\"\",\"\",TDB_CLASSES_MATH!E20)","v":""},{"$f":"IF($N$4=\"\",\"\",TDB_CLASSES_MATH!E33)","v":""},{"$f":"IF($O$4=\"\",\"\",TDB_CLASSES_MATH!E46)","v":""},{"$f":"IF($P$4=\"\",\"\",TDB_CLASSES_MATH!E59)","v":""},{"$f":"IF($Q$4=\"\",\"\",TDB_CLASSES_MATH!E72)","v":""},{"$f":"IF($R$4=\"\",\"\",TDB_CLASSES_MATH!E85)","v":""},{"$f":"IF($S$4=\"\",\"\",TDB_CLASSES_MATH!E98)","v":""},{"$f":"IF($T$4=\"\",\"\",TDB_CLASSES_MATH!E111)","v":""},{"$f":"IF($U$4=\"\",\"\",TDB_CLASSES_MATH!E124)","v":""},{"$f":"IF($V$4=\"\",\"\",TDB_CLASSES_MATH!E137)","v":""},{"$f":"IF($W$4=\"\",\"\",TDB_CLASSES_MATH!E150)","v":""}]
[null,null,null,null,null,null,null,null,null,null,"Taux \"maîtrise satisfaisante\"",{"$f":"TDB_CLASSES_MATH!E8","v":{"$error":"#DIV/0!"}},{"$f":"IF($M$4=\"\",\"\",TDB_CLASSES_MATH!E21)","v":""},{"$f":"IF($N$4=\"\",\"\",TDB_CLASSES_MATH!E34)","v":""},{"$f":"IF($O$4=\"\",\"\",TDB_CLASSES_MATH!E47)","v":""},{"$f":"IF($P$4=\"\",\"\",TDB_CLASSES_MATH!E60)","v":""},{"$f":"IF($Q$4=\"\",\"\",TDB_CLASSES_MATH!E73)","v":""},{"$f":"IF($R$4=\"\",\"\",TDB_CLASSES_MATH!E86)","v":""},{"$f":"IF($S$4=\"\",\"\",TDB_CLASSES_MATH!E99)","v":""},{"$f":"IF($T$4=\"\",\"\",TDB_CLASSES_MATH!E112)","v":""},{"$f":"IF($U$4=\"\",\"\",TDB_CLASSES_MATH!E125)","v":""},{"$f":"IF($V$4=\"\",\"\",TDB_CLASSES_MATH!E138)","v":""},{"$f":"IF($W$4=\"\",\"\",TDB_CLASSES_MATH!E151)","v":""}]
[null,null,null,null,null,null,null,null,null,null,{"$f":"TDB_CLASSES_FRA!$A$9","v":"Total élèves évalués "},{"$f":"SUM(L128:L130)","v":{"$error":"#DIV/0!"}},0,0,0,0,0,0,0,0,0,0,0]
[]
[]
[]
[]
[]
[]
[]
[]
[]
[]
[]
[]
[]
[null,null,null,null,null,null,null,null,null,null,{"$f":"TDB_CLASSES_MATH!$F$5","v":0},"Etab",{"$f":"IF(Informations!$D$9=\"-\",\"\",Informations!$D$9)","v":""},{"$f":"IF(Informations!$D$10=\"-\",\"\",Informations!$D$10)","v":""},{"$f":"IF(Informations!$D$11=\"-\",\"\",Informations!$D$11)","v":""},{"$f":"IF(Informations!$D$12=\"-\",\"\",Informations!$D$12)","v":""},{"$f":"IF(Informations!$D$13=\"-\",\"\",Informations!$D$13)","v":""},{"$f":"IF(Informations!$D$14=\"-\",\"\",Informations!$D$14)","v":""},{"$f":"IF(Informations!$D$15=\"-\",\"\",Informations!$D$15)","v":""},{"$f":"IF(Informations!$D$16=\"-\",\"\",Informations!$D$16)","v":""},{"$f":"IF(Informations!$D$17=\"-\",\"\",Informations!$D$17)","v":""},{"$f":"IF(Informations!$D$18=\"-\",\"\",Informations!$D$18)","v":""},{"$f":"IF(Informations!$D$19=\"-\",\"\",Informations!$D$19)","v":""}]
[null,null,null,null,null,null,null,null,null,null,"Taux \"maîtrise à besoins\"",{"$f":"TDB_CLASSES_MATH!F6","v":{"$error":"#DIV/0!"}},{"$f":"IF($M$4=\"\",\"\",TDB_CLASSES_MATH!F19)","v":""},{"$f":"IF($N$4=\"\",\"\",TDB_CLASSES_MATH!F32)","v":""},{"$f":"IF($O$4=\"\",\"\",TDB_CLASSES_MATH!F45)","v":""},{"$f":"IF($P$4=\"\",\"\",TDB_CLASSES_MATH!F58)","v":""},{"$f":"IF($Q$4=\"\",\"\",TDB_CLASSES_MATH!F71)","v":""},{"$f":"IF($R$4=\"\",\"\",TDB_CLASSES_MATH!F84)","v":""},{"$f":"IF($S$4=\"\",\"\",TDB_CLASSES_MATH!F97)","v":""},{"$f":"IF($T$4=\"\",\"\",TDB_CLASSES_MATH!F110)","v":""},{"$f":"IF($U$4=\"\",\"\",TDB_CLASSES_MATH!F123)","v":""},{"$f":"IF($V$4=\"\",\"\",TDB_CLASSES_MATH!F136)","v":""},{"$f":"IF($W$4=\"\",\"\",TDB_CLASSES_MATH!F149)","v":""}]
[null,null,null,null,null,null,null,null,null,null,"Taux \"maîtrise fragile\"",{"$f":"TDB_CLASSES_MATH!F7","v":{"$error":"#DIV/0!"}},{"$f":"IF($M$4=\"\",\"\",TDB_CLASSES_MATH!F20)","v":""},{"$f":"IF($N$4=\"\",\"\",TDB_CLASSES_MATH!F33)","v":""},{"$f":"IF($O$4=\"\",\"\",TDB_CLASSES_MATH!F46)","v":""},{"$f":"IF($P$4=\"\",\"\",TDB_CLASSES_MATH!F59)","v":""},{"$f":"IF($Q$4=\"\",\"\",TDB_CLASSES_MATH!F72)","v":""},{"$f":"IF($R$4=\"\",\"\",TDB_CLASSES_MATH!F85)","v":""},{"$f":"IF($S$4=\"\",\"\",TDB_CLASSES_MATH!F98)","v":""},{"$f":"IF($T$4=\"\",\"\",TDB_CLASSES_MATH!F111)","v":""},{"$f":"IF($U$4=\"\",\"\",TDB_CLASSES_MATH!F124)","v":""},{"$f":"IF($V$4=\"\",\"\",TDB_CLASSES_MATH!F137)","v":""},{"$f":"IF($W$4=\"\",\"\",TDB_CLASSES_MATH!F150)","v":""}]
[null,null,null,null,null,null,null,null,null,null,"Taux \"maîtrise satisfaisante\"",{"$f":"TDB_CLASSES_MATH!F8","v":{"$error":"#DIV/0!"}},{"$f":"IF($M$4=\"\",\"\",TDB_CLASSES_MATH!F21)","v":""},{"$f":"IF($N$4=\"\",\"\",TDB_CLASSES_MATH!F34)","v":""},{"$f":"IF($O$4=\"\",\"\",TDB_CLASSES_MATH!F47)","v":""},{"$f":"IF($P$4=\"\",\"\",TDB_CLASSES_MATH!F60)","v":""},{"$f":"IF($Q$4=\"\",\"\",TDB_CLASSES_MATH!F73)","v":""},{"$f":"IF($R$4=\"\",\"\",TDB_CLASSES_MATH!F86)","v":""},{"$f":"IF($S$4=\"\",\"\",TDB_CLASSES_MATH!F99)","v":""},{"$f":"IF($T$4=\"\",\"\",TDB_CLASSES_MATH!F112)","v":""},{"$f":"IF($U$4=\"\",\"\",TDB_CLASSES_MATH!F125)","v":""},{"$f":"IF($V$4=\"\",\"\",TDB_CLASSES_MATH!F138)","v":""},{"$f":"IF($W$4=\"\",\"\",TDB_CLASSES_MATH!F151)","v":""}]
[null,null,null,null,null,null,null,null,null,null,{"$f":"TDB_CLASSES_FRA!$A$9","v":"Total élèves évalués "},{"$f":"SUM(L146:L148)","v":{"$error":"#DIV/0!"}},0,0,0,0,0,0,0,0,0,0,0]
[]
[]
[]
[]
[]
[]
[]
[]
[]
[]
[]
[null,null,null,null,null,null,null,null,null,null,{"$f":"TDB_CLASSES_MATH!$G$5","v":0},"Etab",{"$f":"IF(Informations!$D$9=\"-\",\"\",Informations!$D$9)","v":""},{"$f":"IF(Informations!$D$10=\"-\",\"\",Informations!$D$10)","v":""},{"$f":"IF(Informations!$D$11=\"-\",\"\",Informations!$D$11)","v":""},{"$f":"IF(Informations!$D$12=\"-\",\"\",Informations!$D$12)","v":""},{"$f":"IF(Informations!$D$13=\"-\",\"\",Informations!$D$13)","v":""},{"$f":"IF(Informations!$D$14=\"-\",\"\",Informations!$D$14)","v":""},{"$f":"IF(Informations!$D$15=\"-\",\"\",Informations!$D$15)","v":""},{"$f":"IF(Informations!$D$16=\"-\",\"\",Informations!$D$16)","v":""},{"$f":"IF(Informations!$D$17=\"-\",\"\",Informations!$D$17)","v":""},{"$f":"IF(Informations!$D$18=\"-\",\"\",Informations!$D$18)","v":""},{"$f":"IF(Informations!$D$19=\"-\",\"\",Informations!$D$19)","v":""}]
[null,null,null,null,null,null,null,null,null,null,"Taux \"maîtrise à besoins\"",{"$f":"TDB_CLASSES_MATH!G6","v":{"$error":"#DIV/0!"}},{"$f":"IF($M$4=\"\",\"\",TDB_CLASSES_MATH!G19)","v":""},{"$f":"IF($N$4=\"\",\"\",TDB_CLASSES_MATH!G32)","v":""},{"$f":"IF($O$4=\"\",\"\",TDB_CLASSES_MATH!G45)","v":""},{"$f":"IF($P$4=\"\",\"\",TDB_CLASSES_MATH!G58)","v":""},{"$f":"IF($Q$4=\"\",\"\",TDB_CLASSES_MATH!G71)","v":""},{"$f":"IF($R$4=\"\",\"\",TDB_CLASSES_MATH!G84)","v":""},{"$f":"IF($S$4=\"\",\"\",TDB_CLASSES_MATH!G97)","v":""},{"$f":"IF($T$4=\"\",\"\",TDB_CLASSES_MATH!G110)","v":""},{"$f":"IF($U$4=\"\",\"\",TDB_CLASSES_MATH!G123)","v":""},{"$f":"IF($V$4=\"\",\"\",TDB_CLASSES_MATH!G136)","v":""},{"$f":"IF($W$4=\"\",\"\",TDB_CLASSES_MATH!G149)","v":""}]
[null,null,null,null,null,null,null,null,null,null,"Taux \"maîtrise fragile\"",{"$f":"TDB_CLASSES_MATH!G7","v":{"$error":"#DIV/0!"}},{"$f":"IF($M$4=\"\",\"\",TDB_CLASSES_MATH!G20)","v":""},{"$f":"IF($N$4=\"\",\"\",TDB_CLASSES_MATH!G33)","v":""},{"$f":"IF($O$4=\"\",\"\",TDB_CLASSES_MATH!G46)","v":""},{"$f":"IF($P$4=\"\",\"\",TDB_CLASSES_MATH!G59)","v":""},{"$f":"IF($Q$4=\"\",\"\",TDB_CLASSES_MATH!G72)","v":""},{"$f":"IF($R$4=\"\",\"\",TDB_CLASSES_MATH!G85)","v":""},{"$f":"IF($S$4=\"\",\"\",TDB_CLASSES_MATH!G98)","v":""},{"$f":"IF($T$4=\"\",\"\",TDB_CLASSES_MATH!G111)","v":""},{"$f":"IF($U$4=\"\",\"\",TDB_CLASSES_MATH!G124)","v":""},{"$f":"IF($V$4=\"\",\"\",TDB_CLASSES_MATH!G137)","v":""},{"$f":"IF($W$4=\"\",\"\",TDB_CLASSES_MATH!G150)","v":""}]
[null,null,null,null,null,null,null,null,null,null,"Taux \"maîtrise satisfaisante\"",{"$f":"TDB_CLASSES_MATH!G8","v":{"$error":"#DIV/0!"}},{"$f":"IF($M$4=\"\",\"\",TDB_CLASSES_MATH!G21)","v":""},{"$f":"IF($N$4=\"\",\"\",TDB_CLASSES_MATH!G34)","v":""},{"$f":"IF($O$4=\"\",\"\",TDB_CLASSES_MATH!G47)","v":""},{"$f":"IF($P$4=\"\",\"\",TDB_CLASSES_MATH!G60)","v":""},{"$f":"IF($Q$4=\"\",\"\",TDB_CLASSES_MATH!G73)","v":""},{"$f":"IF($R$4=\"\",\"\",TDB_CLASSES_MATH!G86)","v":""},{"$f":"IF($S$4=\"\",\"\",TDB_CLASSES_MATH!G99)","v":""},{"$f":"IF($T$4=\"\",\"\",TDB_CLASSES_MATH!G112)","v":""},{"$f":"IF($U$4=\"\",\"\",TDB_CLASSES_MATH!G125)","v":""},{"$f":"IF($V$4=\"\",\"\",TDB_CLASSES_MATH!G138)","v":""},{"$f":"IF($W$4=\"\",\"\",TDB_CLASSES_MATH!G151)","v":""}]
[null,null,null,null,null,null,null,null,null,null,{"$f":"TDB_CLASSES_FRA!$A$9","v":"Total élèves évalués "},{"$f":"SUM(L162:L164)","v":{"$error":"#DIV/0!"}},{"$f":"SUM(M162:M164)","v":0},{"$f":"SUM(N162:N164)","v":0},0,0,0,0,0,0,0,0,{"$f":"SUM(W162:W164)","v":0}]

{"sheet":"TDB_GRAPH_3","index":6,"n_rows":56,"n_cols":18,"rows_kept":56,"cut":false,"hidden":false,"merged":[[35,7,35,10]]}
[null,null,"Taux de \"maîtrise satisfaisante\" de chaque classe par domaine"]
["*sélectionner le contenu des cases jaunes à l'aide de la petite flèche de liste déroulante (sans croller avec la souris)"]
[]
[null,2,3,4,5,6,7,8,9,10,11,12,13,14]
["Choisir deux domaines à comparer (cf. détail des domaines dans le tableau plus bas)",{"$f":"B41","v":"Domaine"},"Etab","","","","","","","","","","",""]
["Étude de la langue\nSe repérer dans une phrase et identifier sa composition",{"$f":"VLOOKUP($A6,$A$42:$N$56,B$4,FALSE)","v":{"$error":"#N/A"}},{"$f":"VLOOKUP($A6,$A$42:$N$56,C$4,FALSE)*100","v":{"$error":"#N/A"}},{"$error":"#N/A"},{"$error":"#N/A"},{"$error":"#N/A"},{"$error":"#N/A"},{"$error":"#N/A"},{"$error":"#N/A"},{"$error":"#N/A"},{"$error":"#N/A"},{"$error":"#N/A"},{"$error":"#N/A"},{"$error":"#N/A"}]
["Grandeurs et mesures\nConnaître des grandeurs et utiliser des unités de mesure",{"$f":"VLOOKUP($A7,$A$42:$N$56,B$4,FALSE)","v":{"$error":"#N/A"}},{"$error":"#N/A"},{"$error":"#N/A"},{"$error":"#N/A"},{"$error":"#N/A"},{"$error":"#N/A"},{"$error":"#N/A"},{"$error":"#N/A"},{"$error":"#N/A"},{"$error":"#N/A"},{"$error":"#N/A"},{"$error":"#N/A"},{"$error":"#N/A"}]
[]
[]
[]
["Relation entre les taux de \"maîtrise satisfaisante\"  pour 2 domaines choisis (en %) pour chaque classse et pour l'établissement"]
[]
[{"$f":"B7","v":{"$error":"#N/A"}}]
[]
[]
[]
[]
[]
[]
[]
[]
[]
[]
[]
[]
[]
[]
[]
[]
[]
[]
[]
[]
[]
[]
[null,null,null,null,null,null,null,{"$f":"B6","v":{"$error":"#N/A"}}]
[]
["* pas tenir compte du point à l'origine (coordonnées nulles) sans intitulé qui ne se postionne que lorsque des classes supplémentaires sont présentes"]
[]
[]
["Référence","Domaine","Etab",{"$f":"TDB_GRAPH_2!M4","v":""},{"$f":"TDB_GRAPH_2!N4","v":""},{"$f":"TDB_GRAPH_2!O4","v":""},{"$f":"TDB_GRAPH_2!P4","v":""},{"$f":"TDB_GRAPH_2!Q4","v":""},{"$f":"TDB_GRAPH_2!R4","v":""},{"$f":"TDB_GRAPH_2!S4","v":""},{"$f":"TDB_GRAPH_2!T4","v":""},{"$f":"TDB_GRAPH_2!U4","v":""},{"$f":"TDB_GRAPH_2!V4","v":""},{"$f":"TDB_GRAPH_2!W4","v":""}]
[{"$f":"B42","v":0},{"$f":"TDB_GRAPH_2!K4","v":0},{"$f":"TDB_GRAPH_2!L7","v":{"$error":"#DIV/0!"}},{"$f":"TDB_GRAPH_2!M7","v":""},{"$f":"TDB_GRAPH_2!N7","v":""},{"$f":"TDB_GRAPH_2!O7","v":""},{"$f":"TDB_GRAPH_2!P7","v":""},{"$f":"TDB_GRAPH_2!Q7","v":""},{"$f":"TDB_GRAPH_2!R7","v":""},{"$f":"TDB_GRAPH_2!S7","v":""},{"$f":"TDB_GRAPH_2!T7","v":""},{"$f":"TDB_GRAPH_2!U7","v":""},{"$f":"TDB_GRAPH_2!V7","v":""},{"$f":"TDB_GRAPH_2!W7","v":""}]
[{"$f":"B43","v":0},{"$f":"TDB_GRAPH_2!K17","v":0},{"$f":"TDB_GRAPH_2!L20","v":{"$error":"#DIV/0!"}},{"$f":"TDB_GRAPH_2!M20","v":""},{"$f":"TDB_GRAPH_2!N20","v":""},{"$f":"TDB_GRAPH_2!O20","v":""},{"$f":"TDB_GRAPH_2!P20","v":""},{"$f":"TDB_GRAPH_2!Q20","v":""},{"$f":"TDB_GRAPH_2!R20","v":""},{"$f":"TDB_GRAPH_2!S20","v":""},{"$f":"TDB_GRAPH_2!T20","v":""},{"$f":"TDB_GRAPH_2!U20","v":""},{"$f":"TDB_GRAPH_2!V20","v":""},{"$f":"TDB_GRAPH_2!W20","v":""}]
[0,{"$f":"TDB_GRAPH_2!K30","v":0},{"$f":"TDB_GRAPH_2!L33","v":{"$error":"#DIV/0!"}},{"$f":"TDB_GRAPH_2!M33","v":""},{"$f":"TDB_GRAPH_2!N33","v":""},{"$f":"TDB_GRAPH_2!O33","v":""},{"$f":"TDB_GRAPH_2!P33","v":""},{"$f":"TDB_GRAPH_2!Q33","v":""},{"$f":"TDB_GRAPH_2!R33","v":""},{"$f":"TDB_GRAPH_2!S33","v":""},{"$f":"TDB_GRAPH_2!T33","v":""},{"$f":"TDB_GRAPH_2!U33","v":""},{"$f":"TDB_GRAPH_2!V33","v":""},{"$f":"TDB_GRAPH_2!W33","v":""}]
[0,{"$f":"TDB_GRAPH_2!K43","v":0},{"$f":"TDB_GRAPH_2!L46","v":{"$error":"#DIV/0!"}},{"$f":"TDB_GRAPH_2!M46","v":""},{"$f":"TDB_GRAPH_2!N46","v":""},{"$f":"TDB_GRAPH_2!O46","v":""},{"$f":"TDB_GRAPH_2!P46","v":""},{"$f":"TDB_GRAPH_2!Q46","v":""},{"$f":"TDB_GRAPH_2!R46","v":""},{"$f":"TDB_GRAPH_2!S46","v":""},{"$f":"TDB_GRAPH_2!T46","v":""},{"$f":"TDB_GRAPH_2!U46","v":""},{"$f":"TDB_GRAPH_2!V46","v":""},{"$f":"TDB_GRAPH_2!W46","v":""}]
[0,{"$f":"TDB_GRAPH_2!K55","v":0},{"$f":"TDB_GRAPH_2!L58","v":{"$error":"#DIV/0!"}},{"$f":"TDB_GRAPH_2!M58","v":""},{"$f":"TDB_GRAPH_2!N58","v":""},{"$f":"TDB_GRAPH_2!O58","v":""},{"$f":"TDB_GRAPH_2!P58","v":""},{"$f":"TDB_GRAPH_2!Q58","v":""},{"$f":"TDB_GRAPH_2!R58","v":""},{"$f":"TDB_GRAPH_2!S58","v":""},{"$f":"TDB_GRAPH_2!T58","v":""},{"$f":"TDB_GRAPH_2!U58","v":""},{"$f":"TDB_GRAPH_2!V58","v":""},{"$f":"TDB_GRAPH_2!W58","v":""}]
[0,{"$f":"TDB_GRAPH_2!K75","v":0},{"$f":"TDB_GRAPH_2!L78","v":{"$error":"#DIV/0!"}},{"$f":"TDB_GRAPH_2!M78","v":""},{"$f":"TDB_GRAPH_2!N78","v":""},{"$f":"TDB_GRAPH_2!O78","v":""},{"$f":"TDB_GRAPH_2!P78","v":""},{"$f":"TDB_GRAPH_2!Q78","v":""},{"$f":"TDB_GRAPH_2!R78","v":""},{"$f":"TDB_GRAPH_2!S78","v":""},{"$f":"TDB_GRAPH_2!T78","v":""},{"$f":"TDB_GRAPH_2!U78","v":""},{"$f":"TDB_GRAPH_2!V78","v":""},{"$f":"TDB_GRAPH_2!W78","v":""}]
[0,{"$f":"TDB_GRAPH_2!K88","v":0},{"$f":"TDB_GRAPH_2!L91","v":{"$error":"#DIV/0!"}},{"$f":"TDB_GRAPH_2!M91","v":""},{"$f":"TDB_GRAPH_2!N91","v":""},{"$f":"TDB_GRAPH_2!O91","v":""},{"$f":"TDB_GRAPH_2!P91","v":""},{"$f":"TDB_GRAPH_2!Q91","v":""},{"$f":"TDB_GRAPH_2!R91","v":""},{"$f":"TDB_GRAPH_2!S91","v":""},{"$f":"TDB_GRAPH_2!T91","v":""},{"$f":"TDB_GRAPH_2!U91","v":""},{"$f":"TDB_GRAPH_2!V91","v":""},{"$f":"TDB_GRAPH_2!W91","v":""}]
[0,{"$f":"TDB_GRAPH_2!K101","v":0},{"$f":"TDB_GRAPH_2!L104","v":{"$error":"#DIV/0!"}},{"$f":"TDB_GRAPH_2!M104","v":""},{"$f":"TDB_GRAPH_2!N104","v":""},{"$f":"TDB_GRAPH_2!O104","v":""},{"$f":"TDB_GRAPH_2!P104","v":""},{"$f":"TDB_GRAPH_2!Q104","v":""},{"$f":"TDB_GRAPH_2!R104","v":""},{"$f":"TDB_GRAPH_2!S104","v":""},{"$f":"TDB_GRAPH_2!T104","v":""},{"$f":"TDB_GRAPH_2!U104","v":""},{"$f":"TDB_GRAPH_2!V104","v":""},{"$f":"TDB_GRAPH_2!W104","v":""}]
[0,{"$f":"TDB_GRAPH_2!K114","v":0},{"$f":"TDB_GRAPH_2!L117","v":{"$error":"#DIV/0!"}},{"$f":"TDB_GRAPH_2!M117","v":""},{"$f":"TDB_GRAPH_2!N117","v":""},{"$f":"TDB_GRAPH_2!O117","v":""},{"$f":"TDB_GRAPH_2!P117","v":""},{"$f":"TDB_GRAPH_2!Q117","v":""},{"$f":"TDB_GRAPH_2!R117","v":""},{"$f":"TDB_GRAPH_2!S117","v":""},{"$f":"TDB_GRAPH_2!T117","v":""},{"$f":"TDB_GRAPH_2!U117","v":""},{"$f":"TDB_GRAPH_2!V117","v":""},{"$f":"TDB_GRAPH_2!W117","v":""}]
[0,{"$f":"TDB_GRAPH_2!K127","v":0},{"$f":"TDB_GRAPH_2!L130","v":{"$error":"#DIV/0!"}},{"$f":"TDB_GRAPH_2!M130","v":""},{"$f":"TDB_GRAPH_2!N130","v":""},{"$f":"TDB_GRAPH_2!O130","v":""},{"$f":"TDB_GRAPH_2!P130","v":""},{"$f":"TDB_GRAPH_2!Q130","v":""},{"$f":"TDB_GRAPH_2!R130","v":""},{"$f":"TDB_GRAPH_2!S130","v":""},{"$f":"TDB_GRAPH_2!T130","v":""},{"$f":"TDB_GRAPH_2!U130","v":""},{"$f":"TDB_GRAPH_2!V130","v":""},{"$f":"TDB_GRAPH_2!W130","v":""}]
[0,{"$f":"TDB_GRAPH_2!K145","v":0},{"$f":"TDB_GRAPH_2!L148","v":{"$error":"#DIV/0!"}},{"$f":"TDB_GRAPH_2!M148","v":""},{"$f":"TDB_GRAPH_2!N148","v":""},{"$f":"TDB_GRAPH_2!O148","v":""},{"$f":"TDB_GRAPH_2!P148","v":""},{"$f":"TDB_GRAPH_2!Q148","v":""},{"$f":"TDB_GRAPH_2!R148","v":""},{"$f":"TDB_GRAPH_2!S148","v":""},{"$f":"TDB_GRAPH_2!T148","v":""},{"$f":"TDB_GRAPH_2!U148","v":""},{"$f":"TDB_GRAPH_2!V148","v":""},{"$f":"TDB_GRAPH_2!W148","v":""}]
[0,{"$f":"TDB_GRAPH_2!K161","v":0},{"$f":"IF(ISNUMBER(TDB_GRAPH_2!L164),TDB_GRAPH_2!L164,\"\")","v":""},{"$f":"IF(ISNUMBER(TDB_GRAPH_2!M164),TDB_GRAPH_2!M164,\"\")","v":""},{"$f":"IF(ISNUMBER(TDB_GRAPH_2!N164),TDB_GRAPH_2!N164,\"\")","v":""},{"$f":"IF(ISNUMBER(TDB_GRAPH_2!O164),TDB_GRAPH_2!O164,\"\")","v":""},{"$f":"IF(ISNUMBER(TDB_GRAPH_2!P164),TDB_GRAPH_2!P164,\"\")","v":""},{"$f":"IF(ISNUMBER(TDB_GRAPH_2!Q164),TDB_GRAPH_2!Q164,\"\")","v":""},{"$f":"IF(ISNUMBER(TDB_GRAPH_2!R164),TDB_GRAPH_2!R164,\"\")","v":""},{"$f":"IF(ISNUMBER(TDB_GRAPH_2!S164),TDB_GRAPH_2!S164,\"\")","v":""},{"$f":"IF(ISNUMBER(TDB_GRAPH_2!T164),TDB_GRAPH_2!T164,\"\")","v":""},{"$f":"IF(ISNUMBER(TDB_GRAPH_2!U164),TDB_GRAPH_2!U164,\"\")","v":""},{"$f":"IF(ISNUMBER(TDB_GRAPH_2!V164),TDB_GRAPH_2!V164,\"\")","v":""},{"$f":"IF(ISNUMBER(TDB_GRAPH_2!W164),TDB_GRAPH_2!W164,\"\")","v":""},"( M6 uniquement pour le niveau 4ème)"]
["Taux moyen de \"maîtrise satisfaisante\" en français ( sauf pour le domaine :0 ) ",{"$f":"_xlfn.CONCAT(B55,\" ( \",P54,R54,\" ) \")","v":"Taux moyen de \"maîtrise satisfaisante\" en français ( sauf pour le domaine :0 ) "},{"$f":"AVERAGE(C42:C46)","v":{"$error":"#DIV/0!"}},{"$f":"AVERAGE(D42:D46)","v":{"$error":"#DIV/0!"}},{"$error":"#DIV/0!"},{"$error":"#DIV/0!"},{"$error":"#DIV/0!"},{"$error":"#DIV/0!"},{"$error":"#DIV/0!"},{"$error":"#DIV/0!"},{"$error":"#DIV/0!"},{"$error":"#DIV/0!"},{"$error":"#DIV/0!"},{"$error":"#DIV/0!"},null,{"$f":"\"sauf pour le domaine :\"","v":"sauf pour le domaine :"},null,{"$f":"B47","v":0}]
["Taux moyen de \"maîtrise satisfaisante\" en français","Taux moyen de \"maîtrise satisfaisante\" en français",{"$f":"AVERAGE(C42:C47)","v":{"$error":"#DIV/0!"}},{"$f":"AVERAGE(D42:D47)","v":{"$error":"#DIV/0!"}},{"$error":"#DIV/0!"},{"$error":"#DIV/0!"},{"$error":"#DIV/0!"},{"$error":"#DIV/0!"},{"$error":"#DIV/0!"},{"$error":"#DIV/0!"},{"$error":"#DIV/0!"},{"$error":"#DIV/0!"},{"$error":"#DIV/0!"},{"$error":"#DIV/0!"}]
["Taux moyen de \"maîtrise satisfaisante\" en mathématiques","Taux moyen de \"maîtrise satisfaisante\" en mathématiques",{"$f":"AVERAGE(C48:C53)","v":{"$error":"#DIV/0!"}},{"$f":"AVERAGE(D48:D53)","v":{"$error":"#DIV/0!"}},{"$error":"#DIV/0!"},{"$error":"#DIV/0!"},{"$error":"#DIV/0!"},{"$error":"#DIV/0!"},{"$error":"#DIV/0!"},{"$error":"#DIV/0!"},{"$error":"#DIV/0!"},{"$error":"#DIV/0!"},{"$error":"#DIV/0!"},{"$error":"#DIV/0!"}]

{"sheet":"EVA_Groupes_FRANCAIS","index":7,"n_rows":330,"n_cols":17,"rows_kept":330,"cut":false,"hidden":false,"merged":[]}
["coller ici",null,null,null,null,null,null,null,null,null,null,{"$f":"CONCATENATE($A1,\" \",D1)","v":"coller ici "},{"$f":"CONCATENATE($A1,\" \",E1)","v":"coller ici "},"coller ici ","coller ici ","coller ici ","coller ici "]
[null,null,null,null,null,null,null,null,null,null,null,{"$f":"CONCATENATE($A2,\" \",D2)","v":" "}," "," "," "," "," "]
[null,null,null,null,null,null,null,null,null,null,null," "," "," "," "," "," "]
[null,null,null,null,null,null,null,null,null,null,null," "," "," "," "," "," "]
[null,null,null,null,null,null,null,null,null,null,null," "," "," "," "," "," "]
[null,null,null,null,null,null,null,null,null,null,null," "," "," "," "," "," "]
[null,null,null,null,null,null,null,null,null,null,null," "," "," "," "," "," "]
[null,null,null,null,null,null,null,null,null,null,null," "," "," "," "," "," "]
[null,null,null,null,null,null,null,null,null,null,null," "," "," "," "," "," "]
[null,null,null,null,null,null,null,null,null,null,null," "," "," "," "," "," "]
[null,null,null,null,null,null,null,null,null,null,null," "," "," "," "," "," "]
[null,null,null,null,null,null,null,null,null,null,null," "," "," "," "," "," "]
[null,null,null,null,null,null,null,null,null,null,null," "," "," "," "," "," "]
[null,null,null,null,null,null,null,null,null,null,null," "," "," "," "," "," "]
[null,null,null,null,null,null,null,null,null,null,null," "," "," "," "," "," "]
[null,null,null,null,null,null,null,null,null,null,null," "," "," "," "," "," "]
[null,null,null,null,null,null,null,null,null,null,null," ",{"$f":"CONCATENATE($A17,\" \",E17)","v":" "},{"$f":"CONCATENATE($A17,\" \",F17)","v":" "},{"$f":"CONCATENATE($A17,\" \",G17)","v":" "},{"$f":"CONCATENATE($A17,\" \",H17)","v":" "},{"$f":"CONCATENATE($A17,\" \",I17)","v":" "}]
[null,null,null,null,null,null,null,null,null,null,null," "," "," "," "," "," "]
[null,null,null,null,null,null,null,null,null,null,null," "," "," "," "," "," "]
[null,null,null,null,null,null,null,null,null,null,null," "," "," "," "," "," "]
[null,null,null,null,null,null,null,null,null,null,null," "," "," "," "," "," "]
[null,null,null,null,null,null,null,null,null,null,null," "," "," "," "," "," "]
[null,null,null,null,null,null,null,null,null,null,null," "," "," "," "," "," "]
[null,null,null,null,null,null,null,null,null,null,null," "," "," "," "," "," "]
[null,null,null,null,null,null,null,null,null,null,null," "," "," "," "," "," "]
[null,null,null,null,null,null,null,null,null,null,null," "," "," "," "," "," "]
[null,null,null,null,null,null,null,null,null,null,null," "," "," "," "," "," "]
[null,null,null,null,null,null,null,null,null,null,null," "," "," "," "," "," "]
[null,null,null,null,null,null,null,null,null,null,null," "," "," "," "," "," "]
[null,null,null,null,null,null,null,null,null,null,null," "," "," "," "," "," "]
[null,null,null,null,null,null,null,null,null,null,null," "," "," "," "," "," "]
[null,null,null,null,null,null,null,null,null,null,null," "," "," "," "," "," "]
[null,null,null,null,null,null,null,null,null,null,null," "," "," "," "," "," "]
[null,null,null,null,null,null,null,null,null,null,null," "," "," "," "," "," "]
[null,null,null,null,null,null,null,null,null,null,null," "," "," "," "," "," "]
[null,null,null,null,null,null,null,null,null,null,null," "," "," "," "," "," "]
[null,null,null,null,null,null,null,null,null,null,null," "," "," "," "," "," "]
[null,null,null,null,null,null,null,null,null,null,null," "," "," "," "," "," "]
[null,null,null,null,null,null,null,null,null,null,null," "," "," "," "," "," "]
[null,null,null,null,null,null,null,null,null,null,null," "," "," "," "," "," "]
[null,null,null,null,null,null,null,null,null,null,null," "," "," "," "," "," "]
[null,null,null,null,null,null,null,null,null,null,null," "," "," "," "," "," "]
[null,null,null,null,null,null,null,null,null,null,null," "," "," "," "," "," "]
[null,null,null,null,null,null,null,null,null,null,null," "," "," "," "," "," "]
[null,null,null,null,null,null,null,null,null,null,null," "," "," "," "," "," "]
[null,null,null,null,null,null,null,null,null,null,null," "," "," "," "," "," "]
[null,null,null,null,null,null,null,null,null,null,null," "," "," "," "," "," "]
[null,null,null,null,null,null,null,null,null,null,null," "," "," "," "," "," "]
[null,null,null,null,null,null,null,null,null,null,null," "," "," "," "," "," "]
[null,null,null,null,null,null,null,null,null,null,null," "," "," "," "," "," "]
[null,null,null,null,null,null,null,null,null,null,null," "," "," "," "," "," "]
[null,null,null,null,null,null,null,null,null,null,null," "," "," "," "," "," "]
[null,null,null,null,null,null,null,null,null,null,null," "," "," "," "," "," "]
[null,null,null,null,null,null,null,null,null,null,null," "," "," "," "," "," "]
[null,null,null,null,null,null,null,null,null,null,null," "," "," "," "," "," "]
[null,null,null,null,null,null,null,null,null,null,null," "," "," "," "," "," "]
[null,null,null,null,null,null,null,null,null,null,null," "," "," "," "," "," "]
[null,null,null,null,null,null,null,null,null,null,null," "," "," "," "," "," "]
[null,null,null,null,null,null,null,null,null,null,null," "," "," "," "," "," "]
[null,null,null,null,null,null,null,null,null,null,null," "," "," "," "," "," "]
[null,null,null,null,null,null,null,null,null,null,null," "," "," "," "," "," "]
[null,null,null,null,null,null,null,null,null,null,null," "," "," "," "," "," "]
[null,null,null,null,null,null,null,null,null,null,null," "," "," "," "," "," "]
[null,null,null,null,null,null,null,null,null,null,null," "," "," "," "," "," "]
[null,null,null,null,null,null,null,null,null,null,null," "," "," "," "," "," "]
[null,null,null,null,null,null,null,null,null,null,null,{"$f":"CONCATENATE($A66,\" \",D66)","v":" "}," "," "," "," "," "]
[null,null,null,null,null,null,null,null,null,null,null," "," "," "," "," "," "]
[null,null,null,null,null,null,null,null,null,null,null," "," "," "," "," "," "]
[null,null,null,null,null,null,null,null,null,null,null," "," "," "," "," "," "]
[null,null,null,null,null,null,null,null,null,null,null," "," "," "," "," "," "]
[null,null,null,null,null,null,null,null,null,null,null," "," "," "," "," "," "]
[null,null,null,null,null,null,null,null,null,null,null," "," "," "," "," "," "]
[null,null,null,null,null,null,null,null,null,null,null," "," "," "," "," "," "]
[null,null,null,null,null,null,null,null,null,null,null," "," "," "," "," "," "]
[null,null,null,null,null,null,null,null,null,null,null," "," "," "," "," "," "]
[null,null,null,null,null,null,null,null,null,null,null," "," "," "," "," "," "]
[null,null,null,null,null,null,null,null,null,null,null," "," "," "," "," "," "]
[null,null,null,null,null,null,null,null,null,null,null," "," "," "," "," "," "]
[null,null,null,null,null,null,null,null,null,null,null," "," "," "," "," "," "]
[null,null,null,null,null,null,null,null,null,null,null," "," "," "," "," "," "]
[null,null,null,null,null,null,null,null,null,null,null," ",{"$f":"CONCATENATE($A81,\" \",E81)","v":" "},{"$f":"CONCATENATE($A81,\" \",F81)","v":" "},{"$f":"CONCATENATE($A81,\" \",G81)","v":" "},{"$f":"CONCATENATE($A81,\" \",H81)","v":" "},{"$f":"CONCATENATE($A81,\" \",I81)","v":" "}]
[null,null,null,null,null,null,null,null,null,null,null," "," "," "," "," "," "]
[null,null,null,null,null,null,null,null,null,null,null," "," "," "," "," "," "]
[null,null,null,null,null,null,null,null,null,null,null," "," "," "," "," "," "]
[null,null,null,null,null,null,null,null,null,null,null," "," "," "," "," "," "]
[null,null,null,null,null,null,null,null,null,null,null," "," "," "," "," "," "]
[null,null,null,null,null,null,null,null,null,null,null," "," "," "," "," "," "]
[null,null,null,null,null,null,null,null,null,null,null," "," "," "," "," "," "]
[null,null,null,null,null,null,null,null,null,null,null," "," "," "," "," "," "]
[null,null,null,null,null,null,null,null,null,null,null," "," "," "," "," "," "]
[null,null,null,null,null,null,null,null,null,null,null," "," "," "," "," "," "]
[null,null,null,null,null,null,null,null,null,null,null," "," "," "," "," "," "]
[null,null,null,null,null,null,null,null,null,null,null," "," "," "," "," "," "]
[null,null,null,null,null,null,null,null,null,null,null," "," "," "," "," "," "]
[null,null,null,null,null,null,null,null,null,null,null," "," "," "," "," "," "]
[null,null,null,null,null,null,null,null,null,null,null," "," "," "," "," "," "]
[null,null,null,null,null,null,null,null,null,null,null," "," "," "," "," "," "]
[null,null,null,null,null,null,null,null,null,null,null," "," "," "," "," "," "]
[null,null,null,null,null,null,null,null,null,null,null," "," "," "," "," "," "]
[null,null,null,null,null,null,null,null,null,null,null," "," "," "," "," "," "]
[null,null,null,null,null,null,null,null,null,null,null," "," "," "," "," "," "]
[null,null,null,null,null,null,null,null,null,null,null," "," "," "," "," "," "]
[null,null,null,null,null,null,null,null,null,null,null," "," "," "," "," "," "]
[null,null,null,null,null,null,null,null,null,null,null," "," "," "," "," "," "]
[null,null,null,null,null,null,null,null,null,null,null," "," "," "," "," "," "]
[null,null,null,null,null,null,null,null,null,null,null," "," "," "," "," "," "]
[null,null,null,null,null,null,null,null,null,null,null," "," "," "," "," "," "]
[null,null,null,null,null,null,null,null,null,null,null," "," "," "," "," "," "]
[null,null,null,null,null,null,null,null,null,null,null," "," "," "," "," "," "]
[null,null,null,null,null,null,null,null,null,null,null," "," "," "," "," "," "]
[null,null,null,null,null,null,null,null,null,null,null," "," "," "," "," "," "]
[null,null,null,null,null,null,null,null,null,null,null," "," "," "," "," "," "]
[null,null,null,null,null,null,null,null,null,null,null," "," "," "," "," "," "]
[null,null,null,null,null,null,null,null,null,null,null," "," "," "," "," "," "]
[null,null,null,null,null,null,null,null,null,null,null," "," "," "," "," "," "]
[null,null,null,null,null,null,null,null,null,null,null," "," "," "," "," "," "]
[null,null,null,null,null,null,null,null,null,null,null," "," "," "," "," "," "]
[null,null,null,null,null,null,null,null,null,null,null," "," "," "," "," "," "]
[null,null,null,null,null,null,null,null,null,null,null," "," "," "," "," "," "]
[null,null,null,null,null,null,null,null,null,null,null," "," "," "," "," "," "]
[null,null,null,null,null,null,null,null,null,null,null," "," "," "," "," "," "]
[null,null,null,null,null,null,null,null,null,null,null," "," "," "," "," "," "]
[null,null,null,null,null,null,null,null,null,null,null," "," "," "," "," "," "]
[null,null,null,null,null,null,null,null,null,null,null," "," "," "," "," "," "]
[null,null,null,null,null,null,null,null,null,null,null," "," "," "," "," "," "]
[null,null,null,null,null,null,null,null,null,null,null," "," "," "," "," "," "]
[null,null,null,null,null,null,null,null,null,null,null," "," "," "," "," "," "]
[null,null,null,null,null,null,null,null,null,null,null," "," "," "," "," "," "]
[null,null,null,null,null,null,null,null,null,null,null," "," "," "," "," "," "]
[null,null,null,null,null,null,null,null,null,null,null,{"$f":"CONCATENATE($A130,\" \",D130)","v":" "}," "," "," "," "," "]
[null,null,null,null,null,null,null,null,null,null,null," "," "," "," "," "," "]
[null,null,null,null,null,null,null,null,null,null,null," "," "," "," "," "," "]
[null,null,null,null,null,null,null,null,null,null,null," "," "," "," "," "," "]
[null,null,null,null,null,null,null,null,null,null,null," "," "," "," "," "," "]
[null,null,null,null,null,null,null,null,null,null,null," "," "," "," "," "," "]
[null,null,null,null,null,null,null,null,null,null,null," "," "," "," "," "," "]
[null,null,null,null,null,null,null,null,null,null,null," "," "," "," "," "," "]
[null,null,null,null,null,null,null,null,null,null,null," "," "," "," "," "," "]
[null,null,null,null,null,null,null,null,null,null,null," "," "," "," "," "," "]
[null,null,null,null,null,null,null,null,null,null,null," "," "," "," "," "," "]
[null,null,null,null,null,null,null,null,null,null,null," "," "," "," "," "," "]
[null,null,null,null,null,null,null,null,null,null,null," "," "," "," "," "," "]
[null,null,null,null,null,null,null,null,null,null,null," "," "," "," "," "," "]
[null,null,null,null,null,null,null,null,null,null,null," "," "," "," "," "," "]
[null,null,null,null,null,null,null,null,null,null,null," ",{"$f":"CONCATENATE($A145,\" \",E145)","v":" "},{"$f":"CONCATENATE($A145,\" \",F145)","v":" "},{"$f":"CONCATENATE($A145,\" \",G145)","v":" "},{"$f":"CONCATENATE($A145,\" \",H145)","v":" "},{"$f":"CONCATENATE($A145,\" \",I145)","v":" "}]
[null,null,null,null,null,null,null,null,null,null,null," "," "," "," "," "," "]
[null,null,null,null,null,null,null,null,null,null,null," "," "," "," "," "," "]
[null,null,null,null,null,null,null,null,null,null,null," "," "," "," "," "," "]
[null,null,null,null,null,null,null,null,null,null,null," "," "," "," "," "," "]
[null,null,null,null,null,null,null,null,null,null,null," "," "," "," "," "," "]
[null,null,null,null,null,null,null,null,null,null,null," "," "," "," "," "," "]
[null,null,null,null,null,null,null,null,null,null,null," "," "," "," "," "," "]
[null,null,null,null,null,null,null,null,null,null,null," "," "," "," "," "," "]
[null,null,null,null,null,null,null,null,null,null,null," "," "," "," "," "," "]
[null,null,null,null,null,null,null,null,null,null,null," "," "," "," "," "," "]
[null,null,null,null,null,null,null,null,null,null,null," "," "," "," "," "," "]
[null,null,null,null,null,null,null,null,null,null,null," "," "," "," "," "," "]
[null,null,null,null,null,null,null,null,null,null,null," "," "," "," "," "," "]
[null,null,null,null,null,null,null,null,null,null,null," "," "," "," "," "," "]
[null,null,null,null,null,null,null,null,null,null,null," "," "," "," "," "," "]
[null,null,null,null,null,null,null,null,null,null,null," "," "," "," "," "," "]
[null,null,null,null,null,null,null,null,null,null,null," "," "," "," "," "," "]
[null,null,null,null,null,null,null,null,null,null,null," "," "," "," "," "," "]
[null,null,null,null,null,null,null,null,null,null,null," "," "," "," "," "," "]
[null,null,null,null,null,null,null,null,null,null,null," "," "," "," "," "," "]
[null,null,null,null,null,null,null,null,null,null,null," "," "," "," "," "," "]
[null,null,null,null,null,null,null,null,null,null,null," "," "," "," "," "," "]
[null,null,null,null,null,null,null,null,null,null,null," "," "," "," "," "," "]
[null,null,null,null,null,null,null,null,null,null,null," "," "," "," "," "," "]
[null,null,null,null,null,null,null,null,null,null,null," "," "," "," "," "," "]
[null,null,null,null,null,null,null,null,null,null,null," "," "," "," "," "," "]
[null,null,null,null,null,null,null,null,null,null,null," "," "," "," "," "," "]
[null,null,null,null,null,null,null,null,null,null,null," "," "," "," "," "," "]
[null,null,null,null,null,null,null,null,null,null,null," "," "," "," "," "," "]
[null,null,null,null,null,null,null,null,null,null,null," "," "," "," "," "," "]
[null,null,null,null,null,null,null,null,null,null,null," "," "," "," "," "," "]
[null,null,null,null,null,null,null,null,null,null,null," "," "," "," "," "," "]
[null,null,null,null,null,null,null,null,null,null,null," "," "," "," "," "," "]
[null,null,null,null,null,null,null,null,null,null,null," "," "," "," "," "," "]
[null,null,null,null,null,null,null,null,null,null,null," "," "," "," "," "," "]
[null,null,null,null,null,null,null,null,null,null,null," "," "," "," "," "," "]
[null,null,null,null,null,null,null,null,null,null,null," "," "," "," "," "," "]
[null,null,null,null,null,null,null,null,null,null,null," "," "," "," "," "," "]
[null,null,null,null,null,null,null,null,null,null,null," "," "," "," "," "," "]
[null,null,null,null,null,null,null,null,null,null,null," "," "," "," "," "," "]
[null,null,null,null,null,null,null,null,null,null,null," "," "," "," "," "," "]
[null,null,null,null,null,null,null,null,null,null,null," "," "," "," "," "," "]
[null,null,null,null,null,null,null,null,null,null,null," "," "," "," "," "," "]
[null,null,null,null,null,null,null,null,null,null,null," "," "," "," "," "," "]
[null,null,null,null,null,null,null,null,null,null,null," "," "," "," "," "," "]
[null,null,null,null,null,null,null,null,null,null,null," "," "," "," "," "," "]
[null,null,null,null,null,null,null,null,null,null,null," "," "," "," "," "," "]
[null,null,null,null,null,null,null,null,null,null,null," "," "," "," "," "," "]
[null,null,null,null,null,null,null,null,null,null,null,{"$f":"CONCATENATE($A194,\" \",D194)","v":" "}," "," "," "," "," "]
[null,null,null,null,null,null,null,null,null,null,null," "," "," "," "," "," "]
[null,null,null,null,null,null,null,null,null,null,null," "," "," "," "," "," "]
[null,null,null,null,null,null,null,null,null,null,null," "," "," "," "," "," "]
[null,null,null,null,null,null,null,null,null,null,null," "," "," "," "," "," "]
[null,null,null,null,null,null,null,null,null,null,null," "," "," "," "," "," "]
[null,null,null,null,null,null,null,null,null,null,null," "," "," "," "," "," "]
[null,null,null,null,null,null,null,null,null,null,null," "," "," "," "," "," "]
[null,null,null,null,null,null,null,null,null,null,null," "," "," "," "," "," "]
[null,null,null,null,null,null,null,null,null,null,null," "," "," "," "," "," "]
[null,null,null,null,null,null,null,null,null,null,null," "," "," "," "," "," "]
[null,null,null,null,null,null,null,null,null,null,null," "," "," "," "," "," "]
[null,null,null,null,null,null,null,null,null,null,null," "," "," "," "," "," "]
[null,null,null,null,null,null,null,null,null,null,null," "," "," "," "," "," "]
[null,null,null,null,null,null,null,null,null,null,null," "," "," "," "," "," "]
[null,null,null,null,null,null,null,null,null,null,null," ",{"$f":"CONCATENATE($A209,\" \",E209)","v":" "},{"$f":"CONCATENATE($A209,\" \",F209)","v":" "},{"$f":"CONCATENATE($A209,\" \",G209)","v":" "},{"$f":"CONCATENATE($A209,\" \",H209)","v":" "},{"$f":"CONCATENATE($A209,\" \",I209)","v":" "}]
[null,null,null,null,null,null,null,null,null,null,null," "," "," "," "," "," "]
[null,null,null,null,null,null,null,null,null,null,null," "," "," "," "," "," "]
[null,null,null,null,null,null,null,null,null,null,null," "," "," "," "," "," "]
[null,null,null,null,null,null,null,null,null,null,null," "," "," "," "," "," "]
[null,null,null,null,null,null,null,null,null,null,null," "," "," "," "," "," "]
[null,null,null,null,null,null,null,null,null,null,null," "," "," "," "," "," "]
[null,null,null,null,null,null,null,null,null,null,null," "," "," "," "," "," "]
[null,null,null,null,null,null,null,null,null,null,null," "," "," "," "," "," "]
[null,null,null,null,null,null,null,null,null,null,null," "," "," "," "," "," "]
[null,null,null,null,null,null,null,null,null,null,null," "," "," "," "," "," "]
[null,null,null,null,null,null,null,null,null,null,null," "," "," "," "," "," "]
[null,null,null,null,null,null,null,null,null,null,null," "," "," "," "," "," "]
[null,null,null,null,null,null,null,null,null,null,null," "," "," "," "," "," "]
[null,null,null,null,null,null,null,null,null,null,null," "," "," "," "," "," "]
[null,null,null,null,null,null,null,null,null,null,null," "," "," "," "," "," "]
[null,null,null,null,null,null,null,null,null,null,null," "," "," "," "," "," "]
[null,null,null,null,null,null,null,null,null,null,null," "," "," "," "," "," "]
[null,null,null,null,null,null,null,null,null,null,null," "," "," "," "," "," "]
[null,null,null,null,null,null,null,null,null,null,null," "," "," "," "," "," "]
[null,null,null,null,null,null,null,null,null,null,null," "," "," "," "," "," "]
[null,null,null,null,null,null,null,null,null,null,null," "," "," "," "," "," "]
[null,null,null,null,null,null,null,null,null,null,null," "," "," "," "," "," "]
[null,null,null,null,null,null,null,null,null,null,null," "," "," "," "," "," "]
[null,null,null,null,null,null,null,null,null,null,null," "," "," "," "," "," "]
[null,null,null,null,null,null,null,null,null,null,null," "," "," "," "," "," "]
[null,null,null,null,null,null,null,null,null,null,null," "," "," "," "," "," "]
[null,null,null,null,null,null,null,null,null,null,null," "," "," "," "," "," "]
[null,null,null,null,null,null,null,null,null,null,null," "," "," "," "," "," "]
[null,null,null,null,null,null,null,null,null,null,null," "," "," "," "," "," "]
[null,null,null,null,null,null,null,null,null,null,null," "," "," "," "," "," "]
[null,null,null,null,null,null,null,null,null,null,null," "," "," "," "," "," "]
[null,null,null,null,null,null,null,null,null,null,null," "," "," "," "," "," "]
[null,null,null,null,null,null,null,null,null,null,null," "," "," "," "," "," "]
[null,null,null,null,null,null,null,null,null,null,null," "," "," "," "," "," "]
[null,null,null,null,null,null,null,null,null,null,null," "," "," "," "," "," "]
[null,null,null,null,null,null,null,null,null,null,null," "," "," "," "," "," "]
[null,null,null,null,null,null,null,null,null,null,null," "," "," "," "," "," "]
[null,null,null,null,null,null,null,null,null,null,null," "," "," "," "," "," "]
[null,null,null,null,null,null,null,null,null,null,null," "," "," "," "," "," "]
[null,null,null,null,null,null,null,null,null,null,null," "," "," "," "," "," "]
[null,null,null,null,null,null,null,null,null,null,null," "," "," "," "," "," "]
[null,null,null,null,null,null,null,null,null,null,null," "," "," "," "," "," "]
[null,null,null,null,null,null,null,null,null,null,null," "," "," "," "," "," "]
[null,null,null,null,null,null,null,null,null,null,null," "," "," "," "," "," "]
[null,null,null,null,null,null,null,null,null,null,null," "," "," "," "," "," "]
[null,null,null,null,null,null,null,null,null,null,null," "," "," "," "," "," "]
[null,null,null,null,null,null,null,null,null,null,null," "," "," "," "," "," "]
[null,null,null,null,null,null,null,null,null,null,null," "," "," "," "," "," "]
[null,null,null,null,null,null,null,null,null,null,null,{"$f":"CONCATENATE($A258,\" \",D258)","v":" "}," "," "," "," "," "]
[null,null,null,null,null,null,null,null,null,null,null," "," "," "," "," "," "]
[null,null,null,null,null,null,null,null,null,null,null," "," "," "," "," "," "]
[null,null,null,null,null,null,null,null,null,null,null," "," "," "," "," "," "]
[null,null,null,null,null,null,null,null,null,null,null," "," "," "," "," "," "]
[null,null,null,null,null,null,null,null,null,null,null," "," "," "," "," "," "]
[null,null,null,null,null,null,null,null,null,null,null," "," "," "," "," "," "]
[null,null,null,null,null,null,null,null,null,null,null," "," "," "," "," "," "]
[null,null,null,null,null,null,null,null,null,null,null," "," "," "," "," "," "]
[null,null,null,null,null,null,null,null,null,null,null," "," "," "," "," "," "]
[null,null,null,null,null,null,null,null,null,null,null," "," "," "," "," "," "]
[null,null,null,null,null,null,null,null,null,null,null," "," "," "," "," "," "]
[null,null,null,null,null,null,null,null,null,null,null," "," "," "," "," "," "]
[null,null,null,null,null,null,null,null,null,null,null," "," "," "," "," "," "]
[null,null,null,null,null,null,null,null,null,null,null," "," "," "," "," "," "]
[null,null,null,null,null,null,null,null,null,null,null," ",{"$f":"CONCATENATE($A273,\" \",E273)","v":" "},{"$f":"CONCATENATE($A273,\" \",F273)","v":" "},{"$f":"CONCATENATE($A273,\" \",G273)","v":" "},{"$f":"CONCATENATE($A273,\" \",H273)","v":" "},{"$f":"CONCATENATE($A273,\" \",I273)","v":" "}]
[null,null,null,null,null,null,null,null,null,null,null," "," "," "," "," "," "]
[null,null,null,null,null,null,null,null,null,null,null," "," "," "," "," "," "]
[null,null,null,null,null,null,null,null,null,null,null," "," "," "," "," "," "]
[null,null,null,null,null,null,null,null,null,null,null," "," "," "," "," "," "]
[null,null,null,null,null,null,null,null,null,null,null," "," "," "," "," "," "]
[null,null,null,null,null,null,null,null,null,null,null," "," "," "," "," "," "]
[null,null,null,null,null,null,null,null,null,null,null," "," "," "," "," "," "]
[null,null,null,null,null,null,null,null,null,null,null," "," "," "," "," "," "]
[null,null,null,null,null,null,null,null,null,null,null," "," "," "," "," "," "]
[null,null,null,null,null,null,null,null,null,null,null," "," "," "," "," "," "]
[null,null,null,null,null,null,null,null,null,null,null," "," "," "," "," "," "]
[null,null,null,null,null,null,null,null,null,null,null," "," "," "," "," "," "]
[null,null,null,null,null,null,null,null,null,null,null," "," "," "," "," "," "]
[null,null,null,null,null,null,null,null,null,null,null," "," "," "," "," "," "]
[null,null,null,null,null,null,null,null,null,null,null," "," "," "," "," "," "]
[null,null,null,null,null,null,null,null,null,null,null," "," "," "," "," "," "]
[null,null,null,null,null,null,null,null,null,null,null," "," "," "," "," "," "]
[null,null,null,null,null,null,null,null,null,null,null," "," "," "," "," "," "]
[null,null,null,null,null,null,null,null,null,null,null," "," "," "," "," "," "]
[null,null,null,null,null,null,null,null,null,null,null," "," "," "," "," "," "]
[null,null,null,null,null,null,null,null,null,null,null," "," "," "," "," "," "]
[null,null,null,null,null,null,null,null,null,null,null," "," "," "," "," "," "]
[null,null,null,null,null,null,null,null,null,null,null," "," "," "," "," "," "]
[null,null,null,null,null,null,null,null,null,null,null," "," "," "," "," "," "]
[null,null,null,null,null,null,null,null,null,null,null," "," "," "," "," "," "]
[null,null,null,null,null,null,null,null,null,null,null," "," "," "," "," "," "]
[null,null,null,null,null,null,null,null,null,null,null," "," "," "," "," "," "]
[null,null,null,null,null,null,null,null,null,null,null," "," "," "," "," "," "]
[null,null,null,null,null,null,null,null,null,null,null," "," "," "," "," "," "]
[null,null,null,null,null,null,null,null,null,null,null," "," "," "," "," "," "]
[null,null,null,null,null,null,null,null,null,null,null," "," "," "," "," "," "]
[null,null,null,null,null,null,null,null,null,null,null," "," "," "," "," "," "]
[null,null,null,null,null,null,null,null,null,null,null," "," "," "," "," "," "]
[null,null,null,null,null,null,null,null,null,null,null," "," "," "," "," "," "]
[null,null,null,null,null,null,null,null,null,null,null," "," "," "," "," "," "]
[null,null,null,null,null,null,null,null,null,null,null," "," "," "," "," "," "]
[null,null,null,null,null,null,null,null,null,null,null," "," "," "," "," "," "]
[null,null,null,null,null,null,null,null,null,null,null," "," "," "," "," "," "]
[null,null,null,null,null,null,null,null,null,null,null," "," "," "," "," "," "]
[null,null,null,null,null,null,null,null,null,null,null," "," "," "," "," "," "]
[null,null,null,null,null,null,null,null,null,null,null," "," "," "," "," "," "]
[null,null,null,null,null,null,null,null,null,null,null," "," "," "," "," "," "]
[null,null,null,null,null,null,null,null,null,null,null," "," "," "," "," "," "]
[null,null,null,null,null,null,null,null,null,null,null," "," "," "," "," "," "]
[null,null,null,null,null,null,null,null,null,null,null," "," "," "," "," "," "]
[null,null,null,null,null,null,null,null,null,null,null," "," "," "," "," "," "]
[null,null,null,null,null,null,null,null,null,null,null," "," "," "," "," "," "]
[null,null,null,null,null,null,null,null,null,null,null," "," "," "," "," "," "]
[null,null,null,null,null,null,null,null,null,null,null,{"$f":"CONCATENATE($A322,\" \",D322)","v":" "}," "," "," "," "," "]
[null,null,null,null,null,null,null,null,null,null,null," "," "," "," "," "," "]
[null,null,null,null,null,null,null,null,null,null,null," "," "," "," "," "," "]
[null,null,null,null,null,null,null,null,null,null,null," "," "," "," "," "," "]
[null,null,null,null,null,null,null,null,null,null,null," "," "," "," "," "," "]
[null,null,null,null,null,null,null,null,null,null,null," "," "," "," "," "," "]
[null,null,null,null,null,null,null,null,null,null,null," "," "," "," "," "," "]
[null,null,null,null,null,null,null,null,null,null,null," "," "," "," "," "," "]
[null,null,null,null,null,null,null,null,null,null,null," "," "," "," "," "," "]

{"sheet":"EVA_Groupes_MATHS","index":8,"n_rows":330,"n_cols":17,"rows_kept":330,"cut":false,"hidden":false,"merged":[]}
["coller ici",null,null,null,null,null,null,null,null,null,null,{"$f":"CONCATENATE($A1,\" \",D1)","v":"coller ici "},{"$f":"CONCATENATE($A1,\" \",E1)","v":"coller ici "},"coller ici ","coller ici ","coller ici ","coller ici "]
[null,null,null,null,null,null,null,null,null,null,null,{"$f":"CONCATENATE($A2,\" \",D2)","v":" "}," "," "," "," "," "]
[null,null,null,null,null,null,null,null,null,null,null," "," "," "," "," "," "]
[null,null,null,null,null,null,null,null,null,null,null," "," "," "," "," "," "]
[null,null,null,null,null,null,null,null,null,null,null," "," "," "," "," "," "]
[null,null,null,null,null,null,null,null,null,null,null," "," "," "," "," "," "]
[null,null,null,null,null,null,null,null,null,null,null," "," "," "," "," "," "]
[null,null,null,null,null,null,null,null,null,null,null," "," "," "," "," "," "]
[null,null,null,null,null,null,null,null,null,null,null," "," "," "," "," "," "]
[null,null,null,null,null,null,null,null,null,null,null," "," "," "," "," "," "]
[null,null,null,null,null,null,null,null,null,null,null," "," "," "," "," "," "]
[null,null,null,null,null,null,null,null,null,null,null," "," "," "," "," "," "]
[null,null,null,null,null,null,null,null,null,null,null," "," "," "," "," "," "]
[null,null,null,null,null,null,null,null,null,null,null," "," "," "," "," "," "]
[null,null,null,null,null,null,null,null,null,null,null," "," "," "," "," "," "]
[null,null,null,null,null,null,null,null,null,null,null," "," "," "," "," "," "]
[null,null,null,null,null,null,null,null,null,null,null," ",{"$f":"CONCATENATE($A17,\" \",E17)","v":" "},{"$f":"CONCATENATE($A17,\" \",F17)","v":" "},{"$f":"CONCATENATE($A17,\" \",G17)","v":" "},{"$f":"CONCATENATE($A17,\" \",H17)","v":" "},{"$f":"CONCATENATE($A17,\" \",I17)","v":" "}]
[null,null,null,null,null,null,null,null,null,null,null," "," "," "," "," "," "]
[null,null,null,null,null,null,null,null,null,null,null," "," "," "," "," "," "]
[null,null,null,null,null,null,null,null,null,null,null," "," "," "," "," "," "]
[null,null,null,null,null,null,null,null,null,null,null," "," "," "," "," "," "]
[null,null,null,null,null,null,null,null,null,null,null," "," "," "," "," "," "]
[null,null,null,null,null,null,null,null,null,null,null," "," "," "," "," "," "]
[null,null,null,null,null,null,null,null,null,null,null," "," "," "," "," "," "]
[null,null,null,null,null,null,null,null,null,null,null," "," "," "," "," "," "]
[null,null,null,null,null,null,null,null,null,null,null," "," "," "," "," "," "]
[null,null,null,null,null,null,null,null,null,null,null," "," "," "," "," "," "]
[null,null,null,null,null,null,null,null,null,null,null," "," "," "," "," "," "]
[null,null,null,null,null,null,null,null,null,null,null," "," "," "," "," "," "]
[null,null,null,null,null,null,null,null,null,null,null," "," "," "," "," "," "]
[null,null,null,null,null,null,null,null,null,null,null," "," "," "," "," "," "]
[null,null,null,null,null,null,null,null,null,null,null," "," "," "," "," "," "]
[null,null,null,null,null,null,null,null,null,null,null," "," "," "," "," "," "]
[null,null,null,null,null,null,null,null,null,null,null," "," "," "," "," "," "]
[null,null,null,null,null,null,null,null,null,null,null," "," "," "," "," "," "]
[null,null,null,null,null,null,null,null,null,null,null," "," "," "," "," "," "]
[null,null,null,null,null,null,null,null,null,null,null," "," "," "," "," "," "]
[null,null,null,null,null,null,null,null,null,null,null," "," "," "," "," "," "]
[null,null,null,null,null,null,null,null,null,null,null," "," "," "," "," "," "]
[null,null,null,null,null,null,null,null,null,null,null," "," "," "," "," "," "]
[null,null,null,null,null,null,null,null,null,null,null," "," "," "," "," "," "]
[null,null,null,null,null,null,null,null,null,null,null," "," "," "," "," "," "]
[null,null,null,null,null,null,null,null,null,null,null," "," "," "," "," "," "]
[null,null,null,null,null,null,null,null,null,null,null," "," "," "," "," "," "]
[null,null,null,null,null,null,null,null,null,null,null," "," "," "," "," "," "]
[null,null,null,null,null,null,null,null,null,null,null," "," "," "," "," "," "]
[null,null,null,null,null,null,null,null,null,null,null," "," "," "," "," "," "]
[null,null,null,null,null,null,null,null,null,null,null," "," "," "," "," "," "]
[null,null,null,null,null,null,null,null,null,null,null," "," "," "," "," "," "]
[null,null,null,null,null,null,null,null,null,null,null," "," "," "," "," "," "]
[null,null,null,null,null,null,null,null,null,null,null," "," "," "," "," "," "]
[null,null,null,null,null,null,null,null,null,null,null," "," "," "," "," "," "]
[null,null,null,null,null,null,null,null,null,null,null," "," "," "," "," "," "]
[null,null,null,null,null,null,null,null,null,null,null," "," "," "," "," "," "]
[null,null,null,null,null,null,null,null,null,null,null," "," "," "," "," "," "]
[null,null,null,null,null,null,null,null,null,null,null," "," "," "," "," "," "]
[null,null,null,null,null,null,null,null,null,null,null," "," "," "," "," "," "]
[null,null,null,null,null,null,null,null,null,null,null," "," "," "," "," "," "]
[null,null,null,null,null,null,null,null,null,null,null," "," "," "," "," "," "]
[null,null,null,null,null,null,null,null,null,null,null," "," "," "," "," "," "]
[null,null,null,null,null,null,null,null,null,null,null," "," "," "," "," "," "]
[null,null,null,null,null,null,null,null,null,null,null," "," "," "," "," "," "]
[null,null,null,null,null,null,null,null,null,null,null," "," "," "," "," "," "]
[null,null,null,null,null,null,null,null,null,null,null," "," "," "," "," "," "]
[null,null,null,null,null,null,null,null,null,null,null," "," "," "," "," "," "]
[null,null,null,null,null,null,null,null,null,null,null,{"$f":"CONCATENATE($A66,\" \",D66)","v":" "}," "," "," "," "," "]
[null,null,null,null,null,null,null,null,null,null,null," "," "," "," "," "," "]
[null,null,null,null,null,null,null,null,null,null,null," "," "," "," "," "," "]
[null,null,null,null,null,null,null,null,null,null,null," "," "," "," "," "," "]
[null,null,null,null,null,null,null,null,null,null,null," "," "," "," "," "," "]
[null,null,null,null,null,null,null,null,null,null,null," "," "," "," "," "," "]
[null,null,null,null,null,null,null,null,null,null,null," "," "," "," "," "," "]
[null,null,null,null,null,null,null,null,null,null,null," "," "," "," "," "," "]
[null,null,null,null,null,null,null,null,null,null,null," "," "," "," "," "," "]
[null,null,null,null,null,null,null,null,null,null,null," "," "," "," "," "," "]
[null,null,null,null,null,null,null,null,null,null,null," "," "," "," "," "," "]
[null,null,null,null,null,null,null,null,null,null,null," "," "," "," "," "," "]
[null,null,null,null,null,null,null,null,null,null,null," "," "," "," "," "," "]
[null,null,null,null,null,null,null,null,null,null,null," "," "," "," "," "," "]
[null,null,null,null,null,null,null,null,null,null,null," "," "," "," "," "," "]
[null,null,null,null,null,null,null,null,null,null,null," ",{"$f":"CONCATENATE($A81,\" \",E81)","v":" "},{"$f":"CONCATENATE($A81,\" \",F81)","v":" "},{"$f":"CONCATENATE($A81,\" \",G81)","v":" "},{"$f":"CONCATENATE($A81,\" \",H81)","v":" "},{"$f":"CONCATENATE($A81,\" \",I81)","v":" "}]
[null,null,null,null,null,null,null,null,null,null,null," "," "," "," "," "," "]
[null,null,null,null,null,null,null,null,null,null,null," "," "," "," "," "," "]
[null,null,null,null,null,null,null,null,null,null,null," "," "," "," "," "," "]
[null,null,null,null,null,null,null,null,null,null,null," "," "," "," "," "," "]
[null,null,null,null,null,null,null,null,null,null,null," "," "," "," "," "," "]
[null,null,null,null,null,null,null,null,null,null,null," "," "," "," "," "," "]
[null,null,null,null,null,null,null,null,null,null,null," "," "," "," "," "," "]
[null,null,null,null,null,null,null,null,null,null,null," "," "," "," "," "," "]
[null,null,null,null,null,null,null,null,null,null,null," "," "," "," "," "," "]
[null,null,null,null,null,null,null,null,null,null,null," "," "," "," "," "," "]
[null,null,null,null,null,null,null,null,null,null,null," "," "," "," "," "," "]
[null,null,null,null,null,null,null,null,null,null,null," "," "," "," "," "," "]
[null,null,null,null,null,null,null,null,null,null,null," "," "," "," "," "," "]
[null,null,null,null,null,null,null,null,null,null,null," "," "," "," "," "," "]
[null,null,null,null,null,null,null,null,null,null,null," "," "," "," "," "," "]
[null,null,null,null,null,null,null,null,null,null,null," "," "," "," "," "," "]
[null,null,null,null,null,null,null,null,null,null,null," "," "," "," "," "," "]
[null,null,null,null,null,null,null,null,null,null,null," "," "," "," "," "," "]
[null,null,null,null,null,null,null,null,null,null,null," "," "," "," "," "," "]
[null,null,null,null,null,null,null,null,null,null,null," "," "," "," "," "," "]
[null,null,null,null,null,null,null,null,null,null,null," "," "," "," "," "," "]
[null,null,null,null,null,null,null,null,null,null,null," "," "," "," "," "," "]
[null,null,null,null,null,null,null,null,null,null,null," "," "," "," "," "," "]
[null,null,null,null,null,null,null,null,null,null,null," "," "," "," "," "," "]
[null,null,null,null,null,null,null,null,null,null,null," "," "," "," "," "," "]
[null,null,null,null,null,null,null,null,null,null,null," "," "," "," "," "," "]
[null,null,null,null,null,null,null,null,null,null,null," "," "," "," "," "," "]
[null,null,null,null,null,null,null,null,null,null,null," "," "," "," "," "," "]
[null,null,null,null,null,null,null,null,null,null,null," "," "," "," "," "," "]
[null,null,null,null,null,null,null,null,null,null,null," "," "," "," "," "," "]
[null,null,null,null,null,null,null,null,null,null,null," "," "," "," "," "," "]
[null,null,null,null,null,null,null,null,null,null,null," "," "," "," "," "," "]
[null,null,null,null,null,null,null,null,null,null,null," "," "," "," "," "," "]
[null,null,null,null,null,null,null,null,null,null,null," "," "," "," "," "," "]
[null,null,null,null,null,null,null,null,null,null,null," "," "," "," "," "," "]
[null,null,null,null,null,null,null,null,null,null,null," "," "," "," "," "," "]
[null,null,null,null,null,null,null,null,null,null,null," "," "," "," "," "," "]
[null,null,null,null,null,null,null,null,null,null,null," "," "," "," "," "," "]
[null,null,null,null,null,null,null,null,null,null,null," "," "," "," "," "," "]
[null,null,null,null,null,null,null,null,null,null,null," "," "," "," "," "," "]
[null,null,null,null,null,null,null,null,null,null,null," "," "," "," "," "," "]
[null,null,null,null,null,null,null,null,null,null,null," "," "," "," "," "," "]
[null,null,null,null,null,null,null,null,null,null,null," "," "," "," "," "," "]
[null,null,null,null,null,null,null,null,null,null,null," "," "," "," "," "," "]
[null,null,null,null,null,null,null,null,null,null,null," "," "," "," "," "," "]
[null,null,null,null,null,null,null,null,null,null,null," "," "," "," "," "," "]
[null,null,null,null,null,null,null,null,null,null,null," "," "," "," "," "," "]
[null,null,null,null,null,null,null,null,null,null,null," "," "," "," "," "," "]
[null,null,null,null,null,null,null,null,null,null,null,{"$f":"CONCATENATE($A130,\" \",D130)","v":" "}," "," "," "," "," "]
[null,null,null,null,null,null,null,null,null,null,null," "," "," "," "," "," "]
[null,null,null,null,null,null,null,null,null,null,null," "," "," "," "," "," "]
[null,null,null,null,null,null,null,null,null,null,null," "," "," "," "," "," "]
[null,null,null,null,null,null,null,null,null,null,null," "," "," "," "," "," "]
[null,null,null,null,null,null,null,null,null,null,null," "," "," "," "," "," "]
[null,null,null,null,null,null,null,null,null,null,null," "," "," "," "," "," "]
[null,null,null,null,null,null,null,null,null,null,null," "," "," "," "," "," "]
[null,null,null,null,null,null,null,null,null,null,null," "," "," "," "," "," "]
[null,null,null,null,null,null,null,null,null,null,null," "," "," "," "," "," "]
[null,null,null,null,null,null,null,null,null,null,null," "," "," "," "," "," "]
[null,null,null,null,null,null,null,null,null,null,null," "," "," "," "," "," "]
[null,null,null,null,null,null,null,null,null,null,null," "," "," "," "," "," "]
[null,null,null,null,null,null,null,null,null,null,null," "," "," "," "," "," "]
[null,null,null,null,null,null,null,null,null,null,null," "," "," "," "," "," "]
[null,null,null,null,null,null,null,null,null,null,null," ",{"$f":"CONCATENATE($A145,\" \",E145)","v":" "},{"$f":"CONCATENATE($A145,\" \",F145)","v":" "},{"$f":"CONCATENATE($A145,\" \",G145)","v":" "},{"$f":"CONCATENATE($A145,\" \",H145)","v":" "},{"$f":"CONCATENATE($A145,\" \",I145)","v":" "}]
[null,null,null,null,null,null,null,null,null,null,null," "," "," "," "," "," "]
[null,null,null,null,null,null,null,null,null,null,null," "," "," "," "," "," "]
[null,null,null,null,null,null,null,null,null,null,null," "," "," "," "," "," "]
[null,null,null,null,null,null,null,null,null,null,null," "," "," "," "," "," "]
[null,null,null,null,null,null,null,null,null,null,null," "," "," "," "," "," "]
[null,null,null,null,null,null,null,null,null,null,null," "," "," "," "," "," "]
[null,null,null,null,null,null,null,null,null,null,null," "," "," "," "," "," "]
[null,null,null,null,null,null,null,null,null,null,null," "," "," "," "," "," "]
[null,null,null,null,null,null,null,null,null,null,null," "," "," "," "," "," "]
[null,null,null,null,null,null,null,null,null,null,null," "," "," "," "," "," "]
[null,null,null,null,null,null,null,null,null,null,null," "," "," "," "," "," "]
[null,null,null,null,null,null,null,null,null,null,null," "," "," "," "," "," "]
[null,null,null,null,null,null,null,null,null,null,null," "," "," "," "," "," "]
[null,null,null,null,null,null,null,null,null,null,null," "," "," "," "," "," "]
[null,null,null,null,null,null,null,null,null,null,null," "," "," "," "," "," "]
[null,null,null,null,null,null,null,null,null,null,null," "," "," "," "," "," "]
[null,null,null,null,null,null,null,null,null,null,null," "," "," "," "," "," "]
[null,null,null,null,null,null,null,null,null,null,null," "," "," "," "," "," "]
[null,null,null,null,null,null,null,null,null,null,null," "," "," "," "," "," "]
[null,null,null,null,null,null,null,null,null,null,null," "," "," "," "," "," "]
[null,null,null,null,null,null,null,null,null,null,null," "," "," "," "," "," "]
[null,null,null,null,null,null,null,null,null,null,null," "," "," "," "," "," "]
[null,null,null,null,null,null,null,null,null,null,null," "," "," "," "," "," "]
[null,null,null,null,null,null,null,null,null,null,null," "," "," "," "," "," "]
[null,null,null,null,null,null,null,null,null,null,null," "," "," "," "," "," "]
[null,null,null,null,null,null,null,null,null,null,null," "," "," "," "," "," "]
[null,null,null,null,null,null,null,null,null,null,null," "," "," "," "," "," "]
[null,null,null,null,null,null,null,null,null,null,null," "," "," "," "," "," "]
[null,null,null,null,null,null,null,null,null,null,null," "," "," "," "," "," "]
[null,null,null,null,null,null,null,null,null,null,null," "," "," "," "," "," "]
[null,null,null,null,null,null,null,null,null,null,null," "," "," "," "," "," "]
[null,null,null,null,null,null,null,null,null,null,null," "," "," "," "," "," "]
[null,null,null,null,null,null,null,null,null,null,null," "," "," "," "," "," "]
[null,null,null,null,null,null,null,null,null,null,null," "," "," "," "," "," "]
[null,null,null,null,null,null,null,null,null,null,null," "," "," "," "," "," "]
[null,null,null,null,null,null,null,null,null,null,null," "," "," "," "," "," "]
[null,null,null,null,null,null,null,null,null,null,null," "," "," "," "," "," "]
[null,null,null,null,null,null,null,null,null,null,null," "," "," "," "," "," "]
[null,null,null,null,null,null,null,null,null,null,null," "," "," "," "," "," "]
[null,null,null,null,null,null,null,null,null,null,null," "," "," "," "," "," "]
[null,null,null,null,null,null,null,null,null,null,null," "," "," "," "," "," "]
[null,null,null,null,null,null,null,null,null,null,null," "," "," "," "," "," "]
[null,null,null,null,null,null,null,null,null,null,null," "," "," "," "," "," "]
[null,null,null,null,null,null,null,null,null,null,null," "," "," "," "," "," "]
[null,null,null,null,null,null,null,null,null,null,null," "," "," "," "," "," "]
[null,null,null,null,null,null,null,null,null,null,null," "," "," "," "," "," "]
[null,null,null,null,null,null,null,null,null,null,null," "," "," "," "," "," "]
[null,null,null,null,null,null,null,null,null,null,null," "," "," "," "," "," "]
[null,null,null,null,null,null,null,null,null,null,null,{"$f":"CONCATENATE($A194,\" \",D194)","v":" "}," "," "," "," "," "]
[null,null,null,null,null,null,null,null,null,null,null," "," "," "," "," "," "]
[null,null,null,null,null,null,null,null,null,null,null," "," "," "," "," "," "]
[null,null,null,null,null,null,null,null,null,null,null," "," "," "," "," "," "]
[null,null,null,null,null,null,null,null,null,null,null," "," "," "," "," "," "]
[null,null,null,null,null,null,null,null,null,null,null," "," "," "," "," "," "]
[null,null,null,null,null,null,null,null,null,null,null," "," "," "," "," "," "]
[null,null,null,null,null,null,null,null,null,null,null," "," "," "," "," "," "]
[null,null,null,null,null,null,null,null,null,null,null," "," "," "," "," "," "]
[null,null,null,null,null,null,null,null,null,null,null," "," "," "," "," "," "]
[null,null,null,null,null,null,null,null,null,null,null," "," "," "," "," "," "]
[null,null,null,null,null,null,null,null,null,null,null," "," "," "," "," "," "]
[null,null,null,null,null,null,null,null,null,null,null," "," "," "," "," "," "]
[null,null,null,null,null,null,null,null,null,null,null," "," "," "," "," "," "]
[null,null,null,null,null,null,null,null,null,null,null," "," "," "," "," "," "]
[null,null,null,null,null,null,null,null,null,null,null," ",{"$f":"CONCATENATE($A209,\" \",E209)","v":" "},{"$f":"CONCATENATE($A209,\" \",F209)","v":" "},{"$f":"CONCATENATE($A209,\" \",G209)","v":" "},{"$f":"CONCATENATE($A209,\" \",H209)","v":" "},{"$f":"CONCATENATE($A209,\" \",I209)","v":" "}]
[null,null,null,null,null,null,null,null,null,null,null," "," "," "," "," "," "]
[null,null,null,null,null,null,null,null,null,null,null," "," "," "," "," "," "]
[null,null,null,null,null,null,null,null,null,null,null," "," "," "," "," "," "]
[null,null,null,null,null,null,null,null,null,null,null," "," "," "," "," "," "]
[null,null,null,null,null,null,null,null,null,null,null," "," "," "," "," "," "]
[null,null,null,null,null,null,null,null,null,null,null," "," "," "," "," "," "]
[null,null,null,null,null,null,null,null,null,null,null," "," "," "," "," "," "]
[null,null,null,null,null,null,null,null,null,null,null," "," "," "," "," "," "]
[null,null,null,null,null,null,null,null,null,null,null," "," "," "," "," "," "]
[null,null,null,null,null,null,null,null,null,null,null," "," "," "," "," "," "]
[null,null,null,null,null,null,null,null,null,null,null," "," "," "," "," "," "]
[null,null,null,null,null,null,null,null,null,null,null," "," "," "," "," "," "]
[null,null,null,null,null,null,null,null,null,null,null," "," "," "," "," "," "]
[null,null,null,null,null,null,null,null,null,null,null," "," "," "," "," "," "]
[null,null,null,null,null,null,null,null,null,null,null," "," "," "," "," "," "]
[null,null,null,null,null,null,null,null,null,null,null," "," "," "," "," "," "]
[null,null,null,null,null,null,null,null,null,null,null," "," "," "," "," "," "]
[null,null,null,null,null,null,null,null,null,null,null," "," "," "," "," "," "]
[null,null,null,null,null,null,null,null,null,null,null," "," "," "," "," "," "]
[null,null,null,null,null,null,null,null,null,null,null," "," "," "," "," "," "]
[null,null,null,null,null,null,null,null,null,null,null," "," "," "," "," "," "]
[null,null,null,null,null,null,null,null,null,null,null," "," "," "," "," "," "]
[null,null,null,null,null,null,null,null,null,null,null," "," "," "," "," "," "]
[null,null,null,null,null,null,null,null,null,null,null," "," "," "," "," "," "]
[null,null,null,null,null,null,null,null,null,null,null," "," "," "," "," "," "]
[null,null,null,null,null,null,null,null,null,null,null," "," "," "," "," "," "]
[null,null,null,null,null,null,null,null,null,null,null," "," "," "," "," "," "]
[null,null,null,null,null,null,null,null,null,null,null," "," "," "," "," "," "]
[null,null,null,null,null,null,null,null,null,null,null," "," "," "," "," "," "]
[null,null,null,null,null,null,null,null,null,null,null," "," "," "," "," "," "]
[null,null,null,null,null,null,null,null,null,null,null," "," "," "," "," "," "]
[null,null,null,null,null,null,null,null,null,null,null," "," "," "," "," "," "]
[null,null,null,null,null,null,null,null,null,null,null," "," "," "," "," "," "]
[null,null,null,null,null,null,null,null,null,null,null," "," "," "," "," "," "]
[null,null,null,null,null,null,null,null,null,null,null," "," "," "," "," "," "]
[null,null,null,null,null,null,null,null,null,null,null," "," "," "," "," "," "]
[null,null,null,null,null,null,null,null,null,null,null," "," "," "," "," "," "]
[null,null,null,null,null,null,null,null,null,null,null," "," "," "," "," "," "]
[null,null,null,null,null,null,null,null,null,null,null," "," "," "," "," "," "]
[null,null,null,null,null,null,null,null,null,null,null," "," "," "," "," "," "]
[null,null,null,null,null,null,null,null,null,null,null," "," "," "," "," "," "]
[null,null,null,null,null,null,null,null,null,null,null," "," "," "," "," "," "]
[null,null,null,null,null,null,null,null,null,null,null," "," "," "," "," "," "]
[null,null,null,null,null,null,null,null,null,null,null," "," "," "," "," "," "]
[null,null,null,null,null,null,null,null,null,null,null," "," "," "," "," "," "]
[null,null,null,null,null,null,null,null,null,null,null," "," "," "," "," "," "]
[null,null,null,null,null,null,null,null,null,null,null," "," "," "," "," "," "]
[null,null,null,null,null,null,null,null,null,null,null," "," "," "," "," "," "]
[null,null,null,null,null,null,null,null,null,null,null,{"$f":"CONCATENATE($A258,\" \",D258)","v":" "}," "," "," "," "," "]
[null,null,null,null,null,null,null,null,null,null,null," "," "," "," "," "," "]
[null,null,null,null,null,null,null,null,null,null,null," "," "," "," "," "," "]
[null,null,null,null,null,null,null,null,null,null,null," "," "," "," "," "," "]
[null,null,null,null,null,null,null,null,null,null,null," "," "," "," "," "," "]
[null,null,null,null,null,null,null,null,null,null,null," "," "," "," "," "," "]
[null,null,null,null,null,null,null,null,null,null,null," "," "," "," "," "," "]
[null,null,null,null,null,null,null,null,null,null,null," "," "," "," "," "," "]
[null,null,null,null,null,null,null,null,null,null,null," "," "," "," "," "," "]
[null,null,null,null,null,null,null,null,null,null,null," "," "," "," "," "," "]
[null,null,null,null,null,null,null,null,null,null,null," "," "," "," "," "," "]
[null,null,null,null,null,null,null,null,null,null,null," "," "," "," "," "," "]
[null,null,null,null,null,null,null,null,null,null,null," "," "," "," "," "," "]
[null,null,null,null,null,null,null,null,null,null,null," "," "," "," "," "," "]
[null,null,null,null,null,null,null,null,null,null,null," "," "," "," "," "," "]
[null,null,null,null,null,null,null,null,null,null,null," ",{"$f":"CONCATENATE($A273,\" \",E273)","v":" "},{"$f":"CONCATENATE($A273,\" \",F273)","v":" "},{"$f":"CONCATENATE($A273,\" \",G273)","v":" "},{"$f":"CONCATENATE($A273,\" \",H273)","v":" "},{"$f":"CONCATENATE($A273,\" \",I273)","v":" "}]
[null,null,null,null,null,null,null,null,null,null,null," "," "," "," "," "," "]
[null,null,null,null,null,null,null,null,null,null,null," "," "," "," "," "," "]
[null,null,null,null,null,null,null,null,null,null,null," "," "," "," "," "," "]
[null,null,null,null,null,null,null,null,null,null,null," "," "," "," "," "," "]
[null,null,null,null,null,null,null,null,null,null,null," "," "," "," "," "," "]
[null,null,null,null,null,null,null,null,null,null,null," "," "," "," "," "," "]
[null,null,null,null,null,null,null,null,null,null,null," "," "," "," "," "," "]
[null,null,null,null,null,null,null,null,null,null,null," "," "," "," "," "," "]
[null,null,null,null,null,null,null,null,null,null,null," "," "," "," "," "," "]
[null,null,null,null,null,null,null,null,null,null,null," "," "," "," "," "," "]
[null,null,null,null,null,null,null,null,null,null,null," "," "," "," "," "," "]
[null,null,null,null,null,null,null,null,null,null,null," "," "," "," "," "," "]
[null,null,null,null,null,null,null,null,null,null,null," "," "," "," "," "," "]
[null,null,null,null,null,null,null,null,null,null,null," "," "," "," "," "," "]
[null,null,null,null,null,null,null,null,null,null,null," "," "," "," "," "," "]
[null,null,null,null,null,null,null,null,null,null,null," "," "," "," "," "," "]
[null,null,null,null,null,null,null,null,null,null,null," "," "," "," "," "," "]
[null,null,null,null,null,null,null,null,null,null,null," "," "," "," "," "," "]
[null,null,null,null,null,null,null,null,null,null,null," "," "," "," "," "," "]
[null,null,null,null,null,null,null,null,null,null,null," "," "," "," "," "," "]
[null,null,null,null,null,null,null,null,null,null,null," "," "," "," "," "," "]
[null,null,null,null,null,null,null,null,null,null,null," "," "," "," "," "," "]
[null,null,null,null,null,null,null,null,null,null,null," "," "," "," "," "," "]
[null,null,null,null,null,null,null,null,null,null,null," "," "," "," "," "," "]
[null,null,null,null,null,null,null,null,null,null,null," "," "," "," "," "," "]
[null,null,null,null,null,null,null,null,null,null,null," "," "," "," "," "," "]
[null,null,null,null,null,null,null,null,null,null,null," "," "," "," "," "," "]
[null,null,null,null,null,null,null,null,null,null,null," "," "," "," "," "," "]
[null,null,null,null,null,null,null,null,null,null,null," "," "," "," "," "," "]
[null,null,null,null,null,null,null,null,null,null,null," "," "," "," "," "," "]
[null,null,null,null,null,null,null,null,null,null,null," "," "," "," "," "," "]
[null,null,null,null,null,null,null,null,null,null,null," "," "," "," "," "," "]
[null,null,null,null,null,null,null,null,null,null,null," "," "," "," "," "," "]
[null,null,null,null,null,null,null,null,null,null,null," "," "," "," "," "," "]
[null,null,null,null,null,null,null,null,null,null,null," "," "," "," "," "," "]
[null,null,null,null,null,null,null,null,null,null,null," "," "," "," "," "," "]
[null,null,null,null,null,null,null,null,null,null,null," "," "," "," "," "," "]
[null,null,null,null,null,null,null,null,null,null,null," "," "," "," "," "," "]
[null,null,null,null,null,null,null,null,null,null,null," "," "," "," "," "," "]
[null,null,null,null,null,null,null,null,null,null,null," "," "," "," "," "," "]
[null,null,null,null,null,null,null,null,null,null,null," "," "," "," "," "," "]
[null,null,null,null,null,null,null,null,null,null,null," "," "," "," "," "," "]
[null,null,null,null,null,null,null,null,null,null,null," "," "," "," "," "," "]
[null,null,null,null,null,null,null,null,null,null,null," "," "," "," "," "," "]
[null,null,null,null,null,null,null,null,null,null,null," "," "," "," "," "," "]
[null,null,null,null,null,null,null,null,null,null,null," "," "," "," "," "," "]
[null,null,null,null,null,null,null,null,null,null,null," "," "," "," "," "," "]
[null,null,null,null,null,null,null,null,null,null,null," "," "," "," "," "," "]
[null,null,null,null,null,null,null,null,null,null,null,{"$f":"CONCATENATE($A322,\" \",D322)","v":" "}," "," "," "," "," "]
[null,null,null,null,null,null,null,null,null,null,null," "," "," "," "," "," "]
[null,null,null,null,null,null,null,null,null,null,null," "," "," "," "," "," "]
[null,null,null,null,null,null,null,null,null,null,null," "," "," "," "," "," "]
[null,null,null,null,null,null,null,null,null,null,null," "," "," "," "," "," "]
[null,null,null,null,null,null,null,null,null,null,null," "," "," "," "," "," "]
[null,null,null,null,null,null,null,null,null,null,null," "," "," "," "," "," "]
[null,null,null,null,null,null,null,null,null,null,null," "," "," "," "," "," "]
[null,null,null,null,null,null,null,null,null,null,null," "," "," "," "," "," "]

{"sheet":"Divisions","index":9,"n_rows":2001,"n_cols":1,"rows_kept":2001,"cut":false,"hidden":true,"merged":[]}
["classe"]
[{"$f":"EVA_Groupes_FRANCAIS!A2","v":0}]
[{"$f":"EVA_Groupes_FRANCAIS!A3","v":0}]
[{"$f":"EVA_Groupes_FRANCAIS!A4","v":0}]
[{"$f":"EVA_Groupes_FRANCAIS!A5","v":0}]
[{"$f":"EVA_Groupes_FRANCAIS!A6","v":0}]
[{"$f":"EVA_Groupes_FRANCAIS!A7","v":0}]
[{"$f":"EVA_Groupes_FRANCAIS!A8","v":0}]
[{"$f":"EVA_Groupes_FRANCAIS!A9","v":0}]
[{"$f":"EVA_Groupes_FRANCAIS!A10","v":0}]
[{"$f":"EVA_Groupes_FRANCAIS!A11","v":0}]
[{"$f":"EVA_Groupes_FRANCAIS!A12","v":0}]
[{"$f":"EVA_Groupes_FRANCAIS!A13","v":0}]
[{"$f":"EVA_Groupes_FRANCAIS!A14","v":0}]
[{"$f":"EVA_Groupes_FRANCAIS!A15","v":0}]
[{"$f":"EVA_Groupes_FRANCAIS!A16","v":0}]
[{"$f":"EVA_Groupes_FRANCAIS!A17","v":0}]
[{"$f":"EVA_Groupes_FRANCAIS!A18","v":0}]
[{"$f":"EVA_Groupes_FRANCAIS!A19","v":0}]
[{"$f":"EVA_Groupes_FRANCAIS!A20","v":0}]
[{"$f":"EVA_Groupes_FRANCAIS!A21","v":0}]
[{"$f":"EVA_Groupes_FRANCAIS!A22","v":0}]
[{"$f":"EVA_Groupes_FRANCAIS!A23","v":0}]
[{"$f":"EVA_Groupes_FRANCAIS!A24","v":0}]
[{"$f":"EVA_Groupes_FRANCAIS!A25","v":0}]
[{"$f":"EVA_Groupes_FRANCAIS!A26","v":0}]
[{"$f":"EVA_Groupes_FRANCAIS!A27","v":0}]
[{"$f":"EVA_Groupes_FRANCAIS!A28","v":0}]
[{"$f":"EVA_Groupes_FRANCAIS!A29","v":0}]
[{"$f":"EVA_Groupes_FRANCAIS!A30","v":0}]
[{"$f":"EVA_Groupes_FRANCAIS!A31","v":0}]
[{"$f":"EVA_Groupes_FRANCAIS!A32","v":0}]
[{"$f":"EVA_Groupes_FRANCAIS!A33","v":0}]
[{"$f":"EVA_Groupes_FRANCAIS!A34","v":0}]
[{"$f":"EVA_Groupes_FRANCAIS!A35","v":0}]
[{"$f":"EVA_Groupes_FRANCAIS!A36","v":0}]
[{"$f":"EVA_Groupes_FRANCAIS!A37","v":0}]
[{"$f":"EVA_Groupes_FRANCAIS!A38","v":0}]
[{"$f":"EVA_Groupes_FRANCAIS!A39","v":0}]
[{"$f":"EVA_Groupes_FRANCAIS!A40","v":0}]
[{"$f":"EVA_Groupes_FRANCAIS!A41","v":0}]
[{"$f":"EVA_Groupes_FRANCAIS!A42","v":0}]
[{"$f":"EVA_Groupes_FRANCAIS!A43","v":0}]
[{"$f":"EVA_Groupes_FRANCAIS!A44","v":0}]
[{"$f":"EVA_Groupes_FRANCAIS!A45","v":0}]
[{"$f":"EVA_Groupes_FRANCAIS!A46","v":0}]
[{"$f":"EVA_Groupes_FRANCAIS!A47","v":0}]
[{"$f":"EVA_Groupes_FRANCAIS!A48","v":0}]
[{"$f":"EVA_Groupes_FRANCAIS!A49","v":0}]
[{"$f":"EVA_Groupes_FRANCAIS!A50","v":0}]
[{"$f":"EVA_Groupes_FRANCAIS!A51","v":0}]
[{"$f":"EVA_Groupes_FRANCAIS!A52","v":0}]
[{"$f":"EVA_Groupes_FRANCAIS!A53","v":0}]
[{"$f":"EVA_Groupes_FRANCAIS!A54","v":0}]
[{"$f":"EVA_Groupes_FRANCAIS!A55","v":0}]
[{"$f":"EVA_Groupes_FRANCAIS!A56","v":0}]
[{"$f":"EVA_Groupes_FRANCAIS!A57","v":0}]
[{"$f":"EVA_Groupes_FRANCAIS!A58","v":0}]
[{"$f":"EVA_Groupes_FRANCAIS!A59","v":0}]
[{"$f":"EVA_Groupes_FRANCAIS!A60","v":0}]
[{"$f":"EVA_Groupes_FRANCAIS!A61","v":0}]
[{"$f":"EVA_Groupes_FRANCAIS!A62","v":0}]
[{"$f":"EVA_Groupes_FRANCAIS!A63","v":0}]
[{"$f":"EVA_Groupes_FRANCAIS!A64","v":0}]
[{"$f":"EVA_Groupes_FRANCAIS!A65","v":0}]
[{"$f":"EVA_Groupes_FRANCAIS!A66","v":0}]
[{"$f":"EVA_Groupes_FRANCAIS!A67","v":0}]
[{"$f":"EVA_Groupes_FRANCAIS!A68","v":0}]
[{"$f":"EVA_Groupes_FRANCAIS!A69","v":0}]
[{"$f":"EVA_Groupes_FRANCAIS!A70","v":0}]
[{"$f":"EVA_Groupes_FRANCAIS!A71","v":0}]
[{"$f":"EVA_Groupes_FRANCAIS!A72","v":0}]
[{"$f":"EVA_Groupes_FRANCAIS!A73","v":0}]
[{"$f":"EVA_Groupes_FRANCAIS!A74","v":0}]
[{"$f":"EVA_Groupes_FRANCAIS!A75","v":0}]
[{"$f":"EVA_Groupes_FRANCAIS!A76","v":0}]
[{"$f":"EVA_Groupes_FRANCAIS!A77","v":0}]
[{"$f":"EVA_Groupes_FRANCAIS!A78","v":0}]
[{"$f":"EVA_Groupes_FRANCAIS!A79","v":0}]
[{"$f":"EVA_Groupes_FRANCAIS!A80","v":0}]
[{"$f":"EVA_Groupes_FRANCAIS!A81","v":0}]
[{"$f":"EVA_Groupes_FRANCAIS!A82","v":0}]
[{"$f":"EVA_Groupes_FRANCAIS!A83","v":0}]
[{"$f":"EVA_Groupes_FRANCAIS!A84","v":0}]
[{"$f":"EVA_Groupes_FRANCAIS!A85","v":0}]
[{"$f":"EVA_Groupes_FRANCAIS!A86","v":0}]
[{"$f":"EVA_Groupes_FRANCAIS!A87","v":0}]
[{"$f":"EVA_Groupes_FRANCAIS!A88","v":0}]
[{"$f":"EVA_Groupes_FRANCAIS!A89","v":0}]
[{"$f":"EVA_Groupes_FRANCAIS!A90","v":0}]
[{"$f":"EVA_Groupes_FRANCAIS!A91","v":0}]
[{"$f":"EVA_Groupes_FRANCAIS!A92","v":0}]
[{"$f":"EVA_Groupes_FRANCAIS!A93","v":0}]
[{"$f":"EVA_Groupes_FRANCAIS!A94","v":0}]
[{"$f":"EVA_Groupes_FRANCAIS!A95","v":0}]
[{"$f":"EVA_Groupes_FRANCAIS!A96","v":0}]
[{"$f":"EVA_Groupes_FRANCAIS!A97","v":0}]
[{"$f":"EVA_Groupes_FRANCAIS!A98","v":0}]
[{"$f":"EVA_Groupes_FRANCAIS!A99","v":0}]
[{"$f":"EVA_Groupes_FRANCAIS!A100","v":0}]
[{"$f":"EVA_Groupes_FRANCAIS!A101","v":0}]
[{"$f":"EVA_Groupes_FRANCAIS!A102","v":0}]
[{"$f":"EVA_Groupes_FRANCAIS!A103","v":0}]
[{"$f":"EVA_Groupes_FRANCAIS!A104","v":0}]
[{"$f":"EVA_Groupes_FRANCAIS!A105","v":0}]
[{"$f":"EVA_Groupes_FRANCAIS!A106","v":0}]
[{"$f":"EVA_Groupes_FRANCAIS!A107","v":0}]
[{"$f":"EVA_Groupes_FRANCAIS!A108","v":0}]
[{"$f":"EVA_Groupes_FRANCAIS!A109","v":0}]
[{"$f":"EVA_Groupes_FRANCAIS!A110","v":0}]
[{"$f":"EVA_Groupes_FRANCAIS!A111","v":0}]
[{"$f":"EVA_Groupes_FRANCAIS!A112","v":0}]
[{"$f":"EVA_Groupes_FRANCAIS!A113","v":0}]
[{"$f":"EVA_Groupes_FRANCAIS!A114","v":0}]
[{"$f":"EVA_Groupes_FRANCAIS!A115","v":0}]
[{"$f":"EVA_Groupes_FRANCAIS!A116","v":0}]
[{"$f":"EVA_Groupes_FRANCAIS!A117","v":0}]
[{"$f":"EVA_Groupes_FRANCAIS!A118","v":0}]
[{"$f":"EVA_Groupes_FRANCAIS!A119","v":0}]
[{"$f":"EVA_Groupes_FRANCAIS!A120","v":0}]
[{"$f":"EVA_Groupes_FRANCAIS!A121","v":0}]
[{"$f":"EVA_Groupes_FRANCAIS!A122","v":0}]
[{"$f":"EVA_Groupes_FRANCAIS!A123","v":0}]
[{"$f":"EVA_Groupes_FRANCAIS!A124","v":0}]
[{"$f":"EVA_Groupes_FRANCAIS!A125","v":0}]
[{"$f":"EVA_Groupes_FRANCAIS!A126","v":0}]
[{"$f":"EVA_Groupes_FRANCAIS!A127","v":0}]
[{"$f":"EVA_Groupes_FRANCAIS!A128","v":0}]
[{"$f":"EVA_Groupes_FRANCAIS!A129","v":0}]
[{"$f":"EVA_Groupes_FRANCAIS!A130","v":0}]
[{"$f":"EVA_Groupes_FRANCAIS!A131","v":0}]
[{"$f":"EVA_Groupes_FRANCAIS!A132","v":0}]
[{"$f":"EVA_Groupes_FRANCAIS!A133","v":0}]
[{"$f":"EVA_Groupes_FRANCAIS!A134","v":0}]
[{"$f":"EVA_Groupes_FRANCAIS!A135","v":0}]
[{"$f":"EVA_Groupes_FRANCAIS!A136","v":0}]
[{"$f":"EVA_Groupes_FRANCAIS!A137","v":0}]
[{"$f":"EVA_Groupes_FRANCAIS!A138","v":0}]
[{"$f":"EVA_Groupes_FRANCAIS!A139","v":0}]
[{"$f":"EVA_Groupes_FRANCAIS!A140","v":0}]
[{"$f":"EVA_Groupes_FRANCAIS!A141","v":0}]
[{"$f":"EVA_Groupes_FRANCAIS!A142","v":0}]
[{"$f":"EVA_Groupes_FRANCAIS!A143","v":0}]
[{"$f":"EVA_Groupes_FRANCAIS!A144","v":0}]
[{"$f":"EVA_Groupes_FRANCAIS!A145","v":0}]
[{"$f":"EVA_Groupes_FRANCAIS!A146","v":0}]
[{"$f":"EVA_Groupes_FRANCAIS!A147","v":0}]
[{"$f":"EVA_Groupes_FRANCAIS!A148","v":0}]
[{"$f":"EVA_Groupes_FRANCAIS!A149","v":0}]
[{"$f":"EVA_Groupes_FRANCAIS!A150","v":0}]
[{"$f":"EVA_Groupes_FRANCAIS!A151","v":0}]
[{"$f":"EVA_Groupes_FRANCAIS!A152","v":0}]
[{"$f":"EVA_Groupes_FRANCAIS!A153","v":0}]
[{"$f":"EVA_Groupes_FRANCAIS!A154","v":0}]
[{"$f":"EVA_Groupes_FRANCAIS!A155","v":0}]
[{"$f":"EVA_Groupes_FRANCAIS!A156","v":0}]
[{"$f":"EVA_Groupes_FRANCAIS!A157","v":0}]
[{"$f":"EVA_Groupes_FRANCAIS!A158","v":0}]
[{"$f":"EVA_Groupes_FRANCAIS!A159","v":0}]
[{"$f":"EVA_Groupes_FRANCAIS!A160","v":0}]
[{"$f":"EVA_Groupes_FRANCAIS!A161","v":0}]
[{"$f":"EVA_Groupes_FRANCAIS!A162","v":0}]
[{"$f":"EVA_Groupes_FRANCAIS!A163","v":0}]
[{"$f":"EVA_Groupes_FRANCAIS!A164","v":0}]
[{"$f":"EVA_Groupes_FRANCAIS!A165","v":0}]
[{"$f":"EVA_Groupes_FRANCAIS!A166","v":0}]
[{"$f":"EVA_Groupes_FRANCAIS!A167","v":0}]
[{"$f":"EVA_Groupes_FRANCAIS!A168","v":0}]
[{"$f":"EVA_Groupes_FRANCAIS!A169","v":0}]
[{"$f":"EVA_Groupes_FRANCAIS!A170","v":0}]
[{"$f":"EVA_Groupes_FRANCAIS!A171","v":0}]
[{"$f":"EVA_Groupes_FRANCAIS!A172","v":0}]
[{"$f":"EVA_Groupes_FRANCAIS!A173","v":0}]
[{"$f":"EVA_Groupes_FRANCAIS!A174","v":0}]
[{"$f":"EVA_Groupes_FRANCAIS!A175","v":0}]
[{"$f":"EVA_Groupes_FRANCAIS!A176","v":0}]
[{"$f":"EVA_Groupes_FRANCAIS!A177","v":0}]
[{"$f":"EVA_Groupes_FRANCAIS!A178","v":0}]
[{"$f":"EVA_Groupes_FRANCAIS!A179","v":0}]
[{"$f":"EVA_Groupes_FRANCAIS!A180","v":0}]
[{"$f":"EVA_Groupes_FRANCAIS!A181","v":0}]
[{"$f":"EVA_Groupes_FRANCAIS!A182","v":0}]
[{"$f":"EVA_Groupes_FRANCAIS!A183","v":0}]
[{"$f":"EVA_Groupes_FRANCAIS!A184","v":0}]
[{"$f":"EVA_Groupes_FRANCAIS!A185","v":0}]
[{"$f":"EVA_Groupes_FRANCAIS!A186","v":0}]
[{"$f":"EVA_Groupes_FRANCAIS!A187","v":0}]
[{"$f":"EVA_Groupes_FRANCAIS!A188","v":0}]
[{"$f":"EVA_Groupes_FRANCAIS!A189","v":0}]
[{"$f":"EVA_Groupes_FRANCAIS!A190","v":0}]
[{"$f":"EVA_Groupes_FRANCAIS!A191","v":0}]
[{"$f":"EVA_Groupes_FRANCAIS!A192","v":0}]
[{"$f":"EVA_Groupes_FRANCAIS!A193","v":0}]
[{"$f":"EVA_Groupes_FRANCAIS!A194","v":0}]
[{"$f":"EVA_Groupes_FRANCAIS!A195","v":0}]
[{"$f":"EVA_Groupes_FRANCAIS!A196","v":0}]
[{"$f":"EVA_Groupes_FRANCAIS!A197","v":0}]
[{"$f":"EVA_Groupes_FRANCAIS!A198","v":0}]
[{"$f":"EVA_Groupes_FRANCAIS!A199","v":0}]
[{"$f":"EVA_Groupes_FRANCAIS!A200","v":0}]
[{"$f":"EVA_Groupes_FRANCAIS!A201","v":0}]
[{"$f":"EVA_Groupes_FRANCAIS!A202","v":0}]
[{"$f":"EVA_Groupes_FRANCAIS!A203","v":0}]
[{"$f":"EVA_Groupes_FRANCAIS!A204","v":0}]
[{"$f":"EVA_Groupes_FRANCAIS!A205","v":0}]
[{"$f":"EVA_Groupes_FRANCAIS!A206","v":0}]
[{"$f":"EVA_Groupes_FRANCAIS!A207","v":0}]
[{"$f":"EVA_Groupes_FRANCAIS!A208","v":0}]
[{"$f":"EVA_Groupes_FRANCAIS!A209","v":0}]
[{"$f":"EVA_Groupes_FRANCAIS!A210","v":0}]
[{"$f":"EVA_Groupes_FRANCAIS!A211","v":0}]
[{"$f":"EVA_Groupes_FRANCAIS!A212","v":0}]
[{"$f":"EVA_Groupes_FRANCAIS!A213","v":0}]
[{"$f":"EVA_Groupes_FRANCAIS!A214","v":0}]
[{"$f":"EVA_Groupes_FRANCAIS!A215","v":0}]
[{"$f":"EVA_Groupes_FRANCAIS!A216","v":0}]
[{"$f":"EVA_Groupes_FRANCAIS!A217","v":0}]
[{"$f":"EVA_Groupes_FRANCAIS!A218","v":0}]
[{"$f":"EVA_Groupes_FRANCAIS!A219","v":0}]
[{"$f":"EVA_Groupes_FRANCAIS!A220","v":0}]
[{"$f":"EVA_Groupes_FRANCAIS!A221","v":0}]
[{"$f":"EVA_Groupes_FRANCAIS!A222","v":0}]
[{"$f":"EVA_Groupes_FRANCAIS!A223","v":0}]
[{"$f":"EVA_Groupes_FRANCAIS!A224","v":0}]
[{"$f":"EVA_Groupes_FRANCAIS!A225","v":0}]
[{"$f":"EVA_Groupes_FRANCAIS!A226","v":0}]
[{"$f":"EVA_Groupes_FRANCAIS!A227","v":0}]
[{"$f":"EVA_Groupes_FRANCAIS!A228","v":0}]
[{"$f":"EVA_Groupes_FRANCAIS!A229","v":0}]
[{"$f":"EVA_Groupes_FRANCAIS!A230","v":0}]
[{"$f":"EVA_Groupes_FRANCAIS!A231","v":0}]
[{"$f":"EVA_Groupes_FRANCAIS!A232","v":0}]
[{"$f":"EVA_Groupes_FRANCAIS!A233","v":0}]
[{"$f":"EVA_Groupes_FRANCAIS!A234","v":0}]
[{"$f":"EVA_Groupes_FRANCAIS!A235","v":0}]
[{"$f":"EVA_Groupes_FRANCAIS!A236","v":0}]
[{"$f":"EVA_Groupes_FRANCAIS!A237","v":0}]
[{"$f":"EVA_Groupes_FRANCAIS!A238","v":0}]
[{"$f":"EVA_Groupes_FRANCAIS!A239","v":0}]
[{"$f":"EVA_Groupes_FRANCAIS!A240","v":0}]
[{"$f":"EVA_Groupes_FRANCAIS!A241","v":0}]
[{"$f":"EVA_Groupes_FRANCAIS!A242","v":0}]
[{"$f":"EVA_Groupes_FRANCAIS!A243","v":0}]
[{"$f":"EVA_Groupes_FRANCAIS!A244","v":0}]
[{"$f":"EVA_Groupes_FRANCAIS!A245","v":0}]
[{"$f":"EVA_Groupes_FRANCAIS!A246","v":0}]
[{"$f":"EVA_Groupes_FRANCAIS!A247","v":0}]
[{"$f":"EVA_Groupes_FRANCAIS!A248","v":0}]
[{"$f":"EVA_Groupes_FRANCAIS!A249","v":0}]
[{"$f":"EVA_Groupes_FRANCAIS!A250","v":0}]
[{"$f":"EVA_Groupes_FRANCAIS!A251","v":0}]
[{"$f":"EVA_Groupes_FRANCAIS!A252","v":0}]
[{"$f":"EVA_Groupes_FRANCAIS!A253","v":0}]
[{"$f":"EVA_Groupes_FRANCAIS!A254","v":0}]
[{"$f":"EVA_Groupes_FRANCAIS!A255","v":0}]
[{"$f":"EVA_Groupes_FRANCAIS!A256","v":0}]
[{"$f":"EVA_Groupes_FRANCAIS!A257","v":0}]
[{"$f":"EVA_Groupes_FRANCAIS!A258","v":0}]
[{"$f":"EVA_Groupes_FRANCAIS!A259","v":0}]
[{"$f":"EVA_Groupes_FRANCAIS!A260","v":0}]
[{"$f":"EVA_Groupes_FRANCAIS!A261","v":0}]
[{"$f":"EVA_Groupes_FRANCAIS!A262","v":0}]
[{"$f":"EVA_Groupes_FRANCAIS!A263","v":0}]
[{"$f":"EVA_Groupes_FRANCAIS!A264","v":0}]
[{"$f":"EVA_Groupes_FRANCAIS!A265","v":0}]
[{"$f":"EVA_Groupes_FRANCAIS!A266","v":0}]
[{"$f":"EVA_Groupes_FRANCAIS!A267","v":0}]
[{"$f":"EVA_Groupes_FRANCAIS!A268","v":0}]
[{"$f":"EVA_Groupes_FRANCAIS!A269","v":0}]
[{"$f":"EVA_Groupes_FRANCAIS!A270","v":0}]
[{"$f":"EVA_Groupes_FRANCAIS!A271","v":0}]
[{"$f":"EVA_Groupes_FRANCAIS!A272","v":0}]
[{"$f":"EVA_Groupes_FRANCAIS!A273","v":0}]
[{"$f":"EVA_Groupes_FRANCAIS!A274","v":0}]
[{"$f":"EVA_Groupes_FRANCAIS!A275","v":0}]
[{"$f":"EVA_Groupes_FRANCAIS!A276","v":0}]
[{"$f":"EVA_Groupes_FRANCAIS!A277","v":0}]
[{"$f":"EVA_Groupes_FRANCAIS!A278","v":0}]
[{"$f":"EVA_Groupes_FRANCAIS!A279","v":0}]
[{"$f":"EVA_Groupes_FRANCAIS!A280","v":0}]
[{"$f":"EVA_Groupes_FRANCAIS!A281","v":0}]
[{"$f":"EVA_Groupes_FRANCAIS!A282","v":0}]
[{"$f":"EVA_Groupes_FRANCAIS!A283","v":0}]
[{"$f":"EVA_Groupes_FRANCAIS!A284","v":0}]
[{"$f":"EVA_Groupes_FRANCAIS!A285","v":0}]
[{"$f":"EVA_Groupes_FRANCAIS!A286","v":0}]
[{"$f":"EVA_Groupes_FRANCAIS!A287","v":0}]
[{"$f":"EVA_Groupes_FRANCAIS!A288","v":0}]
[{"$f":"EVA_Groupes_FRANCAIS!A289","v":0}]
[{"$f":"EVA_Groupes_FRANCAIS!A290","v":0}]
[{"$f":"EVA_Groupes_FRANCAIS!A291","v":0}]
[{"$f":"EVA_Groupes_FRANCAIS!A292","v":0}]
[{"$f":"EVA_Groupes_FRANCAIS!A293","v":0}]
[{"$f":"EVA_Groupes_FRANCAIS!A294","v":0}]
[{"$f":"EVA_Groupes_FRANCAIS!A295","v":0}]
[{"$f":"EVA_Groupes_FRANCAIS!A296","v":0}]
[{"$f":"EVA_Groupes_FRANCAIS!A297","v":0}]
[{"$f":"EVA_Groupes_FRANCAIS!A298","v":0}]
[{"$f":"EVA_Groupes_FRANCAIS!A299","v":0}]
[{"$f":"EVA_Groupes_FRANCAIS!A300","v":0}]
[{"$f":"EVA_Groupes_FRANCAIS!A301","v":0}]
[{"$f":"EVA_Groupes_FRANCAIS!A302","v":0}]
[{"$f":"EVA_Groupes_FRANCAIS!A303","v":0}]
[{"$f":"EVA_Groupes_FRANCAIS!A304","v":0}]
[{"$f":"EVA_Groupes_FRANCAIS!A305","v":0}]
[{"$f":"EVA_Groupes_FRANCAIS!A306","v":0}]
[{"$f":"EVA_Groupes_FRANCAIS!A307","v":0}]
[{"$f":"EVA_Groupes_FRANCAIS!A308","v":0}]
[{"$f":"EVA_Groupes_FRANCAIS!A309","v":0}]
[{"$f":"EVA_Groupes_FRANCAIS!A310","v":0}]
[{"$f":"EVA_Groupes_FRANCAIS!A311","v":0}]
[{"$f":"EVA_Groupes_FRANCAIS!A312","v":0}]
[{"$f":"EVA_Groupes_FRANCAIS!A313","v":0}]
[{"$f":"EVA_Groupes_FRANCAIS!A314","v":0}]
[{"$f":"EVA_Groupes_FRANCAIS!A315","v":0}]
[{"$f":"EVA_Groupes_FRANCAIS!A316","v":0}]
[{"$f":"EVA_Groupes_FRANCAIS!A317","v":0}]
[{"$f":"EVA_Groupes_FRANCAIS!A318","v":0}]
[{"$f":"EVA_Groupes_FRANCAIS!A319","v":0}]
[{"$f":"EVA_Groupes_FRANCAIS!A320","v":0}]
[{"$f":"EVA_Groupes_FRANCAIS!A321","v":0}]
[{"$f":"EVA_Groupes_FRANCAIS!A322","v":0}]
[{"$f":"EVA_Groupes_FRANCAIS!A323","v":0}]
[{"$f":"EVA_Groupes_FRANCAIS!A324","v":0}]
[{"$f":"EVA_Groupes_FRANCAIS!A325","v":0}]
[{"$f":"EVA_Groupes_FRANCAIS!A326","v":0}]
[{"$f":"EVA_Groupes_FRANCAIS!A327","v":0}]
[{"$f":"EVA_Groupes_FRANCAIS!A328","v":0}]
[{"$f":"EVA_Groupes_FRANCAIS!A329","v":0}]
[{"$f":"EVA_Groupes_FRANCAIS!A330","v":0}]
[{"$f":"EVA_Groupes_FRANCAIS!A331","v":0}]
[{"$f":"EVA_Groupes_FRANCAIS!A332","v":0}]
[{"$f":"EVA_Groupes_FRANCAIS!A333","v":0}]
[{"$f":"EVA_Groupes_FRANCAIS!A334","v":0}]
[{"$f":"EVA_Groupes_FRANCAIS!A335","v":0}]
[{"$f":"EVA_Groupes_FRANCAIS!A336","v":0}]
[{"$f":"EVA_Groupes_FRANCAIS!A337","v":0}]
[{"$f":"EVA_Groupes_FRANCAIS!A338","v":0}]
[{"$f":"EVA_Groupes_FRANCAIS!A339","v":0}]
[{"$f":"EVA_Groupes_FRANCAIS!A340","v":0}]
[{"$f":"EVA_Groupes_FRANCAIS!A341","v":0}]
[{"$f":"EVA_Groupes_FRANCAIS!A342","v":0}]
[{"$f":"EVA_Groupes_FRANCAIS!A343","v":0}]
[{"$f":"EVA_Groupes_FRANCAIS!A344","v":0}]
[{"$f":"EVA_Groupes_FRANCAIS!A345","v":0}]
[{"$f":"EVA_Groupes_FRANCAIS!A346","v":0}]
[{"$f":"EVA_Groupes_FRANCAIS!A347","v":0}]
[{"$f":"EVA_Groupes_FRANCAIS!A348","v":0}]
[{"$f":"EVA_Groupes_FRANCAIS!A349","v":0}]
[{"$f":"EVA_Groupes_FRANCAIS!A350","v":0}]
[{"$f":"EVA_Groupes_FRANCAIS!A351","v":0}]
[{"$f":"EVA_Groupes_FRANCAIS!A352","v":0}]
[{"$f":"EVA_Groupes_FRANCAIS!A353","v":0}]
[{"$f":"EVA_Groupes_FRANCAIS!A354","v":0}]
[{"$f":"EVA_Groupes_FRANCAIS!A355","v":0}]
[{"$f":"EVA_Groupes_FRANCAIS!A356","v":0}]
[{"$f":"EVA_Groupes_FRANCAIS!A357","v":0}]
[{"$f":"EVA_Groupes_FRANCAIS!A358","v":0}]
[{"$f":"EVA_Groupes_FRANCAIS!A359","v":0}]
[{"$f":"EVA_Groupes_FRANCAIS!A360","v":0}]
[{"$f":"EVA_Groupes_FRANCAIS!A361","v":0}]
[{"$f":"EVA_Groupes_FRANCAIS!A362","v":0}]
[{"$f":"EVA_Groupes_FRANCAIS!A363","v":0}]
[{"$f":"EVA_Groupes_FRANCAIS!A364","v":0}]
[{"$f":"EVA_Groupes_FRANCAIS!A365","v":0}]
[{"$f":"EVA_Groupes_FRANCAIS!A366","v":0}]
[{"$f":"EVA_Groupes_FRANCAIS!A367","v":0}]
[{"$f":"EVA_Groupes_FRANCAIS!A368","v":0}]
[{"$f":"EVA_Groupes_FRANCAIS!A369","v":0}]
[{"$f":"EVA_Groupes_FRANCAIS!A370","v":0}]
[{"$f":"EVA_Groupes_FRANCAIS!A371","v":0}]
[{"$f":"EVA_Groupes_FRANCAIS!A372","v":0}]
[{"$f":"EVA_Groupes_FRANCAIS!A373","v":0}]
[{"$f":"EVA_Groupes_FRANCAIS!A374","v":0}]
[{"$f":"EVA_Groupes_FRANCAIS!A375","v":0}]
[{"$f":"EVA_Groupes_FRANCAIS!A376","v":0}]
[{"$f":"EVA_Groupes_FRANCAIS!A377","v":0}]
[{"$f":"EVA_Groupes_FRANCAIS!A378","v":0}]
[{"$f":"EVA_Groupes_FRANCAIS!A379","v":0}]
[{"$f":"EVA_Groupes_FRANCAIS!A380","v":0}]
[{"$f":"EVA_Groupes_FRANCAIS!A381","v":0}]
[{"$f":"EVA_Groupes_FRANCAIS!A382","v":0}]
[{"$f":"EVA_Groupes_FRANCAIS!A383","v":0}]
[{"$f":"EVA_Groupes_FRANCAIS!A384","v":0}]
[{"$f":"EVA_Groupes_FRANCAIS!A385","v":0}]
[{"$f":"EVA_Groupes_FRANCAIS!A386","v":0}]
[{"$f":"EVA_Groupes_FRANCAIS!A387","v":0}]
[{"$f":"EVA_Groupes_FRANCAIS!A388","v":0}]
[{"$f":"EVA_Groupes_FRANCAIS!A389","v":0}]
[{"$f":"EVA_Groupes_FRANCAIS!A390","v":0}]
[{"$f":"EVA_Groupes_FRANCAIS!A391","v":0}]
[{"$f":"EVA_Groupes_FRANCAIS!A392","v":0}]
[{"$f":"EVA_Groupes_FRANCAIS!A393","v":0}]
[{"$f":"EVA_Groupes_FRANCAIS!A394","v":0}]
[{"$f":"EVA_Groupes_FRANCAIS!A395","v":0}]
[{"$f":"EVA_Groupes_FRANCAIS!A396","v":0}]
[{"$f":"EVA_Groupes_FRANCAIS!A397","v":0}]
[{"$f":"EVA_Groupes_FRANCAIS!A398","v":0}]
[{"$f":"EVA_Groupes_FRANCAIS!A399","v":0}]
[{"$f":"EVA_Groupes_FRANCAIS!A400","v":0}]
[{"$f":"EVA_Groupes_FRANCAIS!A401","v":0}]
[{"$f":"EVA_Groupes_FRANCAIS!A402","v":0}]
[{"$f":"EVA_Groupes_FRANCAIS!A403","v":0}]
[{"$f":"EVA_Groupes_FRANCAIS!A404","v":0}]
[{"$f":"EVA_Groupes_FRANCAIS!A405","v":0}]
[{"$f":"EVA_Groupes_FRANCAIS!A406","v":0}]
[{"$f":"EVA_Groupes_FRANCAIS!A407","v":0}]
[{"$f":"EVA_Groupes_FRANCAIS!A408","v":0}]
[{"$f":"EVA_Groupes_FRANCAIS!A409","v":0}]
[{"$f":"EVA_Groupes_FRANCAIS!A410","v":0}]
[{"$f":"EVA_Groupes_FRANCAIS!A411","v":0}]
[{"$f":"EVA_Groupes_FRANCAIS!A412","v":0}]
[{"$f":"EVA_Groupes_FRANCAIS!A413","v":0}]
[{"$f":"EVA_Groupes_FRANCAIS!A414","v":0}]
[{"$f":"EVA_Groupes_FRANCAIS!A415","v":0}]
[{"$f":"EVA_Groupes_FRANCAIS!A416","v":0}]
[{"$f":"EVA_Groupes_FRANCAIS!A417","v":0}]
[{"$f":"EVA_Groupes_FRANCAIS!A418","v":0}]
[{"$f":"EVA_Groupes_FRANCAIS!A419","v":0}]
[{"$f":"EVA_Groupes_FRANCAIS!A420","v":0}]
[{"$f":"EVA_Groupes_FRANCAIS!A421","v":0}]
[{"$f":"EVA_Groupes_FRANCAIS!A422","v":0}]
[{"$f":"EVA_Groupes_FRANCAIS!A423","v":0}]
[{"$f":"EVA_Groupes_FRANCAIS!A424","v":0}]
[{"$f":"EVA_Groupes_FRANCAIS!A425","v":0}]
[{"$f":"EVA_Groupes_FRANCAIS!A426","v":0}]
[{"$f":"EVA_Groupes_FRANCAIS!A427","v":0}]
[{"$f":"EVA_Groupes_FRANCAIS!A428","v":0}]
[{"$f":"EVA_Groupes_FRANCAIS!A429","v":0}]
[{"$f":"EVA_Groupes_FRANCAIS!A430","v":0}]
[{"$f":"EVA_Groupes_FRANCAIS!A431","v":0}]
[{"$f":"EVA_Groupes_FRANCAIS!A432","v":0}]
[{"$f":"EVA_Groupes_FRANCAIS!A433","v":0}]
[{"$f":"EVA_Groupes_FRANCAIS!A434","v":0}]
[{"$f":"EVA_Groupes_FRANCAIS!A435","v":0}]
[{"$f":"EVA_Groupes_FRANCAIS!A436","v":0}]
[{"$f":"EVA_Groupes_FRANCAIS!A437","v":0}]
[{"$f":"EVA_Groupes_FRANCAIS!A438","v":0}]
[{"$f":"EVA_Groupes_FRANCAIS!A439","v":0}]
[{"$f":"EVA_Groupes_FRANCAIS!A440","v":0}]
[{"$f":"EVA_Groupes_FRANCAIS!A441","v":0}]
[{"$f":"EVA_Groupes_FRANCAIS!A442","v":0}]
[{"$f":"EVA_Groupes_FRANCAIS!A443","v":0}]
[{"$f":"EVA_Groupes_FRANCAIS!A444","v":0}]
[{"$f":"EVA_Groupes_FRANCAIS!A445","v":0}]
[{"$f":"EVA_Groupes_FRANCAIS!A446","v":0}]
[{"$f":"EVA_Groupes_FRANCAIS!A447","v":0}]
[{"$f":"EVA_Groupes_FRANCAIS!A448","v":0}]
[{"$f":"EVA_Groupes_FRANCAIS!A449","v":0}]
[{"$f":"EVA_Groupes_FRANCAIS!A450","v":0}]
[{"$f":"EVA_Groupes_FRANCAIS!A451","v":0}]
[{"$f":"EVA_Groupes_FRANCAIS!A452","v":0}]
[{"$f":"EVA_Groupes_FRANCAIS!A453","v":0}]
[{"$f":"EVA_Groupes_FRANCAIS!A454","v":0}]
[{"$f":"EVA_Groupes_FRANCAIS!A455","v":0}]
[{"$f":"EVA_Groupes_FRANCAIS!A456","v":0}]
[{"$f":"EVA_Groupes_FRANCAIS!A457","v":0}]
[{"$f":"EVA_Groupes_FRANCAIS!A458","v":0}]
[{"$f":"EVA_Groupes_FRANCAIS!A459","v":0}]
[{"$f":"EVA_Groupes_FRANCAIS!A460","v":0}]
[{"$f":"EVA_Groupes_FRANCAIS!A461","v":0}]
[{"$f":"EVA_Groupes_FRANCAIS!A462","v":0}]
[{"$f":"EVA_Groupes_FRANCAIS!A463","v":0}]
[{"$f":"EVA_Groupes_FRANCAIS!A464","v":0}]
[{"$f":"EVA_Groupes_FRANCAIS!A465","v":0}]
[{"$f":"EVA_Groupes_FRANCAIS!A466","v":0}]
[{"$f":"EVA_Groupes_FRANCAIS!A467","v":0}]
[{"$f":"EVA_Groupes_FRANCAIS!A468","v":0}]
[{"$f":"EVA_Groupes_FRANCAIS!A469","v":0}]
[{"$f":"EVA_Groupes_FRANCAIS!A470","v":0}]
[{"$f":"EVA_Groupes_FRANCAIS!A471","v":0}]
[{"$f":"EVA_Groupes_FRANCAIS!A472","v":0}]
[{"$f":"EVA_Groupes_FRANCAIS!A473","v":0}]
[{"$f":"EVA_Groupes_FRANCAIS!A474","v":0}]
[{"$f":"EVA_Groupes_FRANCAIS!A475","v":0}]
[{"$f":"EVA_Groupes_FRANCAIS!A476","v":0}]
[{"$f":"EVA_Groupes_FRANCAIS!A477","v":0}]
[{"$f":"EVA_Groupes_FRANCAIS!A478","v":0}]
[{"$f":"EVA_Groupes_FRANCAIS!A479","v":0}]
[{"$f":"EVA_Groupes_FRANCAIS!A480","v":0}]
[{"$f":"EVA_Groupes_FRANCAIS!A481","v":0}]
[{"$f":"EVA_Groupes_FRANCAIS!A482","v":0}]
[{"$f":"EVA_Groupes_FRANCAIS!A483","v":0}]
[{"$f":"EVA_Groupes_FRANCAIS!A484","v":0}]
[{"$f":"EVA_Groupes_FRANCAIS!A485","v":0}]
[{"$f":"EVA_Groupes_FRANCAIS!A486","v":0}]
[{"$f":"EVA_Groupes_FRANCAIS!A487","v":0}]
[{"$f":"EVA_Groupes_FRANCAIS!A488","v":0}]
[{"$f":"EVA_Groupes_FRANCAIS!A489","v":0}]
[{"$f":"EVA_Groupes_FRANCAIS!A490","v":0}]
[{"$f":"EVA_Groupes_FRANCAIS!A491","v":0}]
[{"$f":"EVA_Groupes_FRANCAIS!A492","v":0}]
[{"$f":"EVA_Groupes_FRANCAIS!A493","v":0}]
[{"$f":"EVA_Groupes_FRANCAIS!A494","v":0}]
[{"$f":"EVA_Groupes_FRANCAIS!A495","v":0}]
[{"$f":"EVA_Groupes_FRANCAIS!A496","v":0}]
[{"$f":"EVA_Groupes_FRANCAIS!A497","v":0}]
[{"$f":"EVA_Groupes_FRANCAIS!A498","v":0}]
[{"$f":"EVA_Groupes_FRANCAIS!A499","v":0}]
[{"$f":"EVA_Groupes_FRANCAIS!A500","v":0}]
[{"$f":"EVA_Groupes_FRANCAIS!A501","v":0}]
[{"$f":"EVA_Groupes_FRANCAIS!A502","v":0}]
[{"$f":"EVA_Groupes_FRANCAIS!A503","v":0}]
[{"$f":"EVA_Groupes_FRANCAIS!A504","v":0}]
[{"$f":"EVA_Groupes_FRANCAIS!A505","v":0}]
[{"$f":"EVA_Groupes_FRANCAIS!A506","v":0}]
[{"$f":"EVA_Groupes_FRANCAIS!A507","v":0}]
[{"$f":"EVA_Groupes_FRANCAIS!A508","v":0}]
[{"$f":"EVA_Groupes_FRANCAIS!A509","v":0}]
[{"$f":"EVA_Groupes_FRANCAIS!A510","v":0}]
[{"$f":"EVA_Groupes_FRANCAIS!A511","v":0}]
[{"$f":"EVA_Groupes_FRANCAIS!A512","v":0}]
[{"$f":"EVA_Groupes_FRANCAIS!A513","v":0}]
[{"$f":"EVA_Groupes_FRANCAIS!A514","v":0}]
[{"$f":"EVA_Groupes_FRANCAIS!A515","v":0}]
[{"$f":"EVA_Groupes_FRANCAIS!A516","v":0}]
[{"$f":"EVA_Groupes_FRANCAIS!A517","v":0}]
[{"$f":"EVA_Groupes_FRANCAIS!A518","v":0}]
[{"$f":"EVA_Groupes_FRANCAIS!A519","v":0}]
[{"$f":"EVA_Groupes_FRANCAIS!A520","v":0}]
[{"$f":"EVA_Groupes_FRANCAIS!A521","v":0}]
[{"$f":"EVA_Groupes_FRANCAIS!A522","v":0}]
[{"$f":"EVA_Groupes_FRANCAIS!A523","v":0}]
[{"$f":"EVA_Groupes_FRANCAIS!A524","v":0}]
[{"$f":"EVA_Groupes_FRANCAIS!A525","v":0}]
[{"$f":"EVA_Groupes_FRANCAIS!A526","v":0}]
[{"$f":"EVA_Groupes_FRANCAIS!A527","v":0}]
[{"$f":"EVA_Groupes_FRANCAIS!A528","v":0}]
[{"$f":"EVA_Groupes_FRANCAIS!A529","v":0}]
[{"$f":"EVA_Groupes_FRANCAIS!A530","v":0}]
[{"$f":"EVA_Groupes_FRANCAIS!A531","v":0}]
[{"$f":"EVA_Groupes_FRANCAIS!A532","v":0}]
[{"$f":"EVA_Groupes_FRANCAIS!A533","v":0}]
[{"$f":"EVA_Groupes_FRANCAIS!A534","v":0}]
[{"$f":"EVA_Groupes_FRANCAIS!A535","v":0}]
[{"$f":"EVA_Groupes_FRANCAIS!A536","v":0}]
[{"$f":"EVA_Groupes_FRANCAIS!A537","v":0}]
[{"$f":"EVA_Groupes_FRANCAIS!A538","v":0}]
[{"$f":"EVA_Groupes_FRANCAIS!A539","v":0}]
[{"$f":"EVA_Groupes_FRANCAIS!A540","v":0}]
[{"$f":"EVA_Groupes_FRANCAIS!A541","v":0}]
[{"$f":"EVA_Groupes_FRANCAIS!A542","v":0}]
[{"$f":"EVA_Groupes_FRANCAIS!A543","v":0}]
[{"$f":"EVA_Groupes_FRANCAIS!A544","v":0}]
[{"$f":"EVA_Groupes_FRANCAIS!A545","v":0}]
[{"$f":"EVA_Groupes_FRANCAIS!A546","v":0}]
[{"$f":"EVA_Groupes_FRANCAIS!A547","v":0}]
[{"$f":"EVA_Groupes_FRANCAIS!A548","v":0}]
[{"$f":"EVA_Groupes_FRANCAIS!A549","v":0}]
[{"$f":"EVA_Groupes_FRANCAIS!A550","v":0}]
[{"$f":"EVA_Groupes_FRANCAIS!A551","v":0}]
[{"$f":"EVA_Groupes_FRANCAIS!A552","v":0}]
[{"$f":"EVA_Groupes_FRANCAIS!A553","v":0}]
[{"$f":"EVA_Groupes_FRANCAIS!A554","v":0}]
[{"$f":"EVA_Groupes_FRANCAIS!A555","v":0}]
[{"$f":"EVA_Groupes_FRANCAIS!A556","v":0}]
[{"$f":"EVA_Groupes_FRANCAIS!A557","v":0}]
[{"$f":"EVA_Groupes_FRANCAIS!A558","v":0}]
[{"$f":"EVA_Groupes_FRANCAIS!A559","v":0}]
[{"$f":"EVA_Groupes_FRANCAIS!A560","v":0}]
[{"$f":"EVA_Groupes_FRANCAIS!A561","v":0}]
[{"$f":"EVA_Groupes_FRANCAIS!A562","v":0}]
[{"$f":"EVA_Groupes_FRANCAIS!A563","v":0}]
[{"$f":"EVA_Groupes_FRANCAIS!A564","v":0}]
[{"$f":"EVA_Groupes_FRANCAIS!A565","v":0}]
[{"$f":"EVA_Groupes_FRANCAIS!A566","v":0}]
[{"$f":"EVA_Groupes_FRANCAIS!A567","v":0}]
[{"$f":"EVA_Groupes_FRANCAIS!A568","v":0}]
[{"$f":"EVA_Groupes_FRANCAIS!A569","v":0}]
[{"$f":"EVA_Groupes_FRANCAIS!A570","v":0}]
[{"$f":"EVA_Groupes_FRANCAIS!A571","v":0}]
[{"$f":"EVA_Groupes_FRANCAIS!A572","v":0}]
[{"$f":"EVA_Groupes_FRANCAIS!A573","v":0}]
[{"$f":"EVA_Groupes_FRANCAIS!A574","v":0}]
[{"$f":"EVA_Groupes_FRANCAIS!A575","v":0}]
[{"$f":"EVA_Groupes_FRANCAIS!A576","v":0}]
[{"$f":"EVA_Groupes_FRANCAIS!A577","v":0}]
[{"$f":"EVA_Groupes_FRANCAIS!A578","v":0}]
[{"$f":"EVA_Groupes_FRANCAIS!A579","v":0}]
[{"$f":"EVA_Groupes_FRANCAIS!A580","v":0}]
[{"$f":"EVA_Groupes_FRANCAIS!A581","v":0}]
[{"$f":"EVA_Groupes_FRANCAIS!A582","v":0}]
[{"$f":"EVA_Groupes_FRANCAIS!A583","v":0}]
[{"$f":"EVA_Groupes_FRANCAIS!A584","v":0}]
[{"$f":"EVA_Groupes_FRANCAIS!A585","v":0}]
[{"$f":"EVA_Groupes_FRANCAIS!A586","v":0}]
[{"$f":"EVA_Groupes_FRANCAIS!A587","v":0}]
[{"$f":"EVA_Groupes_FRANCAIS!A588","v":0}]
[{"$f":"EVA_Groupes_FRANCAIS!A589","v":0}]
[{"$f":"EVA_Groupes_FRANCAIS!A590","v":0}]
[{"$f":"EVA_Groupes_FRANCAIS!A591","v":0}]
[{"$f":"EVA_Groupes_FRANCAIS!A592","v":0}]
[{"$f":"EVA_Groupes_FRANCAIS!A593","v":0}]
[{"$f":"EVA_Groupes_FRANCAIS!A594","v":0}]
[{"$f":"EVA_Groupes_FRANCAIS!A595","v":0}]
[{"$f":"EVA_Groupes_FRANCAIS!A596","v":0}]
[{"$f":"EVA_Groupes_FRANCAIS!A597","v":0}]
[{"$f":"EVA_Groupes_FRANCAIS!A598","v":0}]
[{"$f":"EVA_Groupes_FRANCAIS!A599","v":0}]
[{"$f":"EVA_Groupes_FRANCAIS!A600","v":0}]
[{"$f":"EVA_Groupes_FRANCAIS!A601","v":0}]
[{"$f":"EVA_Groupes_FRANCAIS!A602","v":0}]
[{"$f":"EVA_Groupes_FRANCAIS!A603","v":0}]
[{"$f":"EVA_Groupes_FRANCAIS!A604","v":0}]
[{"$f":"EVA_Groupes_FRANCAIS!A605","v":0}]
[{"$f":"EVA_Groupes_FRANCAIS!A606","v":0}]
[{"$f":"EVA_Groupes_FRANCAIS!A607","v":0}]
[{"$f":"EVA_Groupes_FRANCAIS!A608","v":0}]
[{"$f":"EVA_Groupes_FRANCAIS!A609","v":0}]
[{"$f":"EVA_Groupes_FRANCAIS!A610","v":0}]
[{"$f":"EVA_Groupes_FRANCAIS!A611","v":0}]
[{"$f":"EVA_Groupes_FRANCAIS!A612","v":0}]
[{"$f":"EVA_Groupes_FRANCAIS!A613","v":0}]
[{"$f":"EVA_Groupes_FRANCAIS!A614","v":0}]
[{"$f":"EVA_Groupes_FRANCAIS!A615","v":0}]
[{"$f":"EVA_Groupes_FRANCAIS!A616","v":0}]
[{"$f":"EVA_Groupes_FRANCAIS!A617","v":0}]
[{"$f":"EVA_Groupes_FRANCAIS!A618","v":0}]
[{"$f":"EVA_Groupes_FRANCAIS!A619","v":0}]
[{"$f":"EVA_Groupes_FRANCAIS!A620","v":0}]
[{"$f":"EVA_Groupes_FRANCAIS!A621","v":0}]
[{"$f":"EVA_Groupes_FRANCAIS!A622","v":0}]
[{"$f":"EVA_Groupes_FRANCAIS!A623","v":0}]
[{"$f":"EVA_Groupes_FRANCAIS!A624","v":0}]
[{"$f":"EVA_Groupes_FRANCAIS!A625","v":0}]
[{"$f":"EVA_Groupes_FRANCAIS!A626","v":0}]
[{"$f":"EVA_Groupes_FRANCAIS!A627","v":0}]
[{"$f":"EVA_Groupes_FRANCAIS!A628","v":0}]
[{"$f":"EVA_Groupes_FRANCAIS!A629","v":0}]
[{"$f":"EVA_Groupes_FRANCAIS!A630","v":0}]
[{"$f":"EVA_Groupes_FRANCAIS!A631","v":0}]
[{"$f":"EVA_Groupes_FRANCAIS!A632","v":0}]
[{"$f":"EVA_Groupes_FRANCAIS!A633","v":0}]
[{"$f":"EVA_Groupes_FRANCAIS!A634","v":0}]
[{"$f":"EVA_Groupes_FRANCAIS!A635","v":0}]
[{"$f":"EVA_Groupes_FRANCAIS!A636","v":0}]
[{"$f":"EVA_Groupes_FRANCAIS!A637","v":0}]
[{"$f":"EVA_Groupes_FRANCAIS!A638","v":0}]
[{"$f":"EVA_Groupes_FRANCAIS!A639","v":0}]
[{"$f":"EVA_Groupes_FRANCAIS!A640","v":0}]
[{"$f":"EVA_Groupes_FRANCAIS!A641","v":0}]
[{"$f":"EVA_Groupes_FRANCAIS!A642","v":0}]
[{"$f":"EVA_Groupes_FRANCAIS!A643","v":0}]
[{"$f":"EVA_Groupes_FRANCAIS!A644","v":0}]
[{"$f":"EVA_Groupes_FRANCAIS!A645","v":0}]
[{"$f":"EVA_Groupes_FRANCAIS!A646","v":0}]
[{"$f":"EVA_Groupes_FRANCAIS!A647","v":0}]
[{"$f":"EVA_Groupes_FRANCAIS!A648","v":0}]
[{"$f":"EVA_Groupes_FRANCAIS!A649","v":0}]
[{"$f":"EVA_Groupes_FRANCAIS!A650","v":0}]
[{"$f":"EVA_Groupes_FRANCAIS!A651","v":0}]
[{"$f":"EVA_Groupes_FRANCAIS!A652","v":0}]
[{"$f":"EVA_Groupes_FRANCAIS!A653","v":0}]
[{"$f":"EVA_Groupes_FRANCAIS!A654","v":0}]
[{"$f":"EVA_Groupes_FRANCAIS!A655","v":0}]
[{"$f":"EVA_Groupes_FRANCAIS!A656","v":0}]
[{"$f":"EVA_Groupes_FRANCAIS!A657","v":0}]
[{"$f":"EVA_Groupes_FRANCAIS!A658","v":0}]
[{"$f":"EVA_Groupes_FRANCAIS!A659","v":0}]
[{"$f":"EVA_Groupes_FRANCAIS!A660","v":0}]
[{"$f":"EVA_Groupes_FRANCAIS!A661","v":0}]
[{"$f":"EVA_Groupes_FRANCAIS!A662","v":0}]
[{"$f":"EVA_Groupes_FRANCAIS!A663","v":0}]
[{"$f":"EVA_Groupes_FRANCAIS!A664","v":0}]
[{"$f":"EVA_Groupes_FRANCAIS!A665","v":0}]
[{"$f":"EVA_Groupes_FRANCAIS!A666","v":0}]
[{"$f":"EVA_Groupes_FRANCAIS!A667","v":0}]
[{"$f":"EVA_Groupes_FRANCAIS!A668","v":0}]
[{"$f":"EVA_Groupes_FRANCAIS!A669","v":0}]
[{"$f":"EVA_Groupes_FRANCAIS!A670","v":0}]
[{"$f":"EVA_Groupes_FRANCAIS!A671","v":0}]
[{"$f":"EVA_Groupes_FRANCAIS!A672","v":0}]
[{"$f":"EVA_Groupes_FRANCAIS!A673","v":0}]
[{"$f":"EVA_Groupes_FRANCAIS!A674","v":0}]
[{"$f":"EVA_Groupes_FRANCAIS!A675","v":0}]
[{"$f":"EVA_Groupes_FRANCAIS!A676","v":0}]
[{"$f":"EVA_Groupes_FRANCAIS!A677","v":0}]
[{"$f":"EVA_Groupes_FRANCAIS!A678","v":0}]
[{"$f":"EVA_Groupes_FRANCAIS!A679","v":0}]
[{"$f":"EVA_Groupes_FRANCAIS!A680","v":0}]
[{"$f":"EVA_Groupes_FRANCAIS!A681","v":0}]
[{"$f":"EVA_Groupes_FRANCAIS!A682","v":0}]
[{"$f":"EVA_Groupes_FRANCAIS!A683","v":0}]
[{"$f":"EVA_Groupes_FRANCAIS!A684","v":0}]
[{"$f":"EVA_Groupes_FRANCAIS!A685","v":0}]
[{"$f":"EVA_Groupes_FRANCAIS!A686","v":0}]
[{"$f":"EVA_Groupes_FRANCAIS!A687","v":0}]
[{"$f":"EVA_Groupes_FRANCAIS!A688","v":0}]
[{"$f":"EVA_Groupes_FRANCAIS!A689","v":0}]
[{"$f":"EVA_Groupes_FRANCAIS!A690","v":0}]
[{"$f":"EVA_Groupes_FRANCAIS!A691","v":0}]
[{"$f":"EVA_Groupes_FRANCAIS!A692","v":0}]
[{"$f":"EVA_Groupes_FRANCAIS!A693","v":0}]
[{"$f":"EVA_Groupes_FRANCAIS!A694","v":0}]
[{"$f":"EVA_Groupes_FRANCAIS!A695","v":0}]
[{"$f":"EVA_Groupes_FRANCAIS!A696","v":0}]
[{"$f":"EVA_Groupes_FRANCAIS!A697","v":0}]
[{"$f":"EVA_Groupes_FRANCAIS!A698","v":0}]
[{"$f":"EVA_Groupes_FRANCAIS!A699","v":0}]
[{"$f":"EVA_Groupes_FRANCAIS!A700","v":0}]
[{"$f":"EVA_Groupes_FRANCAIS!A701","v":0}]
[{"$f":"EVA_Groupes_FRANCAIS!A702","v":0}]
[{"$f":"EVA_Groupes_FRANCAIS!A703","v":0}]
[{"$f":"EVA_Groupes_FRANCAIS!A704","v":0}]
[{"$f":"EVA_Groupes_FRANCAIS!A705","v":0}]
[{"$f":"EVA_Groupes_FRANCAIS!A706","v":0}]
[{"$f":"EVA_Groupes_FRANCAIS!A707","v":0}]
[{"$f":"EVA_Groupes_FRANCAIS!A708","v":0}]
[{"$f":"EVA_Groupes_FRANCAIS!A709","v":0}]
[{"$f":"EVA_Groupes_FRANCAIS!A710","v":0}]
[{"$f":"EVA_Groupes_FRANCAIS!A711","v":0}]
[{"$f":"EVA_Groupes_FRANCAIS!A712","v":0}]
[{"$f":"EVA_Groupes_FRANCAIS!A713","v":0}]
[{"$f":"EVA_Groupes_FRANCAIS!A714","v":0}]
[{"$f":"EVA_Groupes_FRANCAIS!A715","v":0}]
[{"$f":"EVA_Groupes_FRANCAIS!A716","v":0}]
[{"$f":"EVA_Groupes_FRANCAIS!A717","v":0}]
[{"$f":"EVA_Groupes_FRANCAIS!A718","v":0}]
[{"$f":"EVA_Groupes_FRANCAIS!A719","v":0}]
[{"$f":"EVA_Groupes_FRANCAIS!A720","v":0}]
[{"$f":"EVA_Groupes_FRANCAIS!A721","v":0}]
[{"$f":"EVA_Groupes_FRANCAIS!A722","v":0}]
[{"$f":"EVA_Groupes_FRANCAIS!A723","v":0}]
[{"$f":"EVA_Groupes_FRANCAIS!A724","v":0}]
[{"$f":"EVA_Groupes_FRANCAIS!A725","v":0}]
[{"$f":"EVA_Groupes_FRANCAIS!A726","v":0}]
[{"$f":"EVA_Groupes_FRANCAIS!A727","v":0}]
[{"$f":"EVA_Groupes_FRANCAIS!A728","v":0}]
[{"$f":"EVA_Groupes_FRANCAIS!A729","v":0}]
[{"$f":"EVA_Groupes_FRANCAIS!A730","v":0}]
[{"$f":"EVA_Groupes_FRANCAIS!A731","v":0}]
[{"$f":"EVA_Groupes_FRANCAIS!A732","v":0}]
[{"$f":"EVA_Groupes_FRANCAIS!A733","v":0}]
[{"$f":"EVA_Groupes_FRANCAIS!A734","v":0}]
[{"$f":"EVA_Groupes_FRANCAIS!A735","v":0}]
[{"$f":"EVA_Groupes_FRANCAIS!A736","v":0}]
[{"$f":"EVA_Groupes_FRANCAIS!A737","v":0}]
[{"$f":"EVA_Groupes_FRANCAIS!A738","v":0}]
[{"$f":"EVA_Groupes_FRANCAIS!A739","v":0}]
[{"$f":"EVA_Groupes_FRANCAIS!A740","v":0}]
[{"$f":"EVA_Groupes_FRANCAIS!A741","v":0}]
[{"$f":"EVA_Groupes_FRANCAIS!A742","v":0}]
[{"$f":"EVA_Groupes_FRANCAIS!A743","v":0}]
[{"$f":"EVA_Groupes_FRANCAIS!A744","v":0}]
[{"$f":"EVA_Groupes_FRANCAIS!A745","v":0}]
[{"$f":"EVA_Groupes_FRANCAIS!A746","v":0}]
[{"$f":"EVA_Groupes_FRANCAIS!A747","v":0}]
[{"$f":"EVA_Groupes_FRANCAIS!A748","v":0}]
[{"$f":"EVA_Groupes_FRANCAIS!A749","v":0}]
[{"$f":"EVA_Groupes_FRANCAIS!A750","v":0}]
[{"$f":"EVA_Groupes_FRANCAIS!A751","v":0}]
[{"$f":"EVA_Groupes_FRANCAIS!A752","v":0}]
[{"$f":"EVA_Groupes_FRANCAIS!A753","v":0}]
[{"$f":"EVA_Groupes_FRANCAIS!A754","v":0}]
[{"$f":"EVA_Groupes_FRANCAIS!A755","v":0}]
[{"$f":"EVA_Groupes_FRANCAIS!A756","v":0}]
[{"$f":"EVA_Groupes_FRANCAIS!A757","v":0}]
[{"$f":"EVA_Groupes_FRANCAIS!A758","v":0}]
[{"$f":"EVA_Groupes_FRANCAIS!A759","v":0}]
[{"$f":"EVA_Groupes_FRANCAIS!A760","v":0}]
[{"$f":"EVA_Groupes_FRANCAIS!A761","v":0}]
[{"$f":"EVA_Groupes_FRANCAIS!A762","v":0}]
[{"$f":"EVA_Groupes_FRANCAIS!A763","v":0}]
[{"$f":"EVA_Groupes_FRANCAIS!A764","v":0}]
[{"$f":"EVA_Groupes_FRANCAIS!A765","v":0}]
[{"$f":"EVA_Groupes_FRANCAIS!A766","v":0}]
[{"$f":"EVA_Groupes_FRANCAIS!A767","v":0}]
[{"$f":"EVA_Groupes_FRANCAIS!A768","v":0}]
[{"$f":"EVA_Groupes_FRANCAIS!A769","v":0}]
[{"$f":"EVA_Groupes_FRANCAIS!A770","v":0}]
[{"$f":"EVA_Groupes_FRANCAIS!A771","v":0}]
[{"$f":"EVA_Groupes_FRANCAIS!A772","v":0}]
[{"$f":"EVA_Groupes_FRANCAIS!A773","v":0}]
[{"$f":"EVA_Groupes_FRANCAIS!A774","v":0}]
[{"$f":"EVA_Groupes_FRANCAIS!A775","v":0}]
[{"$f":"EVA_Groupes_FRANCAIS!A776","v":0}]
[{"$f":"EVA_Groupes_FRANCAIS!A777","v":0}]
[{"$f":"EVA_Groupes_FRANCAIS!A778","v":0}]
[{"$f":"EVA_Groupes_FRANCAIS!A779","v":0}]
[{"$f":"EVA_Groupes_FRANCAIS!A780","v":0}]
[{"$f":"EVA_Groupes_FRANCAIS!A781","v":0}]
[{"$f":"EVA_Groupes_FRANCAIS!A782","v":0}]
[{"$f":"EVA_Groupes_FRANCAIS!A783","v":0}]
[{"$f":"EVA_Groupes_FRANCAIS!A784","v":0}]
[{"$f":"EVA_Groupes_FRANCAIS!A785","v":0}]
[{"$f":"EVA_Groupes_FRANCAIS!A786","v":0}]
[{"$f":"EVA_Groupes_FRANCAIS!A787","v":0}]
[{"$f":"EVA_Groupes_FRANCAIS!A788","v":0}]
[{"$f":"EVA_Groupes_FRANCAIS!A789","v":0}]
[{"$f":"EVA_Groupes_FRANCAIS!A790","v":0}]
[{"$f":"EVA_Groupes_FRANCAIS!A791","v":0}]
[{"$f":"EVA_Groupes_FRANCAIS!A792","v":0}]
[{"$f":"EVA_Groupes_FRANCAIS!A793","v":0}]
[{"$f":"EVA_Groupes_FRANCAIS!A794","v":0}]
[{"$f":"EVA_Groupes_FRANCAIS!A795","v":0}]
[{"$f":"EVA_Groupes_FRANCAIS!A796","v":0}]
[{"$f":"EVA_Groupes_FRANCAIS!A797","v":0}]
[{"$f":"EVA_Groupes_FRANCAIS!A798","v":0}]
[{"$f":"EVA_Groupes_FRANCAIS!A799","v":0}]
[{"$f":"EVA_Groupes_FRANCAIS!A800","v":0}]
[{"$f":"EVA_Groupes_FRANCAIS!A801","v":0}]
[{"$f":"EVA_Groupes_FRANCAIS!A802","v":0}]
[{"$f":"EVA_Groupes_FRANCAIS!A803","v":0}]
[{"$f":"EVA_Groupes_FRANCAIS!A804","v":0}]
[{"$f":"EVA_Groupes_FRANCAIS!A805","v":0}]
[{"$f":"EVA_Groupes_FRANCAIS!A806","v":0}]
[{"$f":"EVA_Groupes_FRANCAIS!A807","v":0}]
[{"$f":"EVA_Groupes_FRANCAIS!A808","v":0}]
[{"$f":"EVA_Groupes_FRANCAIS!A809","v":0}]
[{"$f":"EVA_Groupes_FRANCAIS!A810","v":0}]
[{"$f":"EVA_Groupes_FRANCAIS!A811","v":0}]
[{"$f":"EVA_Groupes_FRANCAIS!A812","v":0}]
[{"$f":"EVA_Groupes_FRANCAIS!A813","v":0}]
[{"$f":"EVA_Groupes_FRANCAIS!A814","v":0}]
[{"$f":"EVA_Groupes_FRANCAIS!A815","v":0}]
[{"$f":"EVA_Groupes_FRANCAIS!A816","v":0}]
[{"$f":"EVA_Groupes_FRANCAIS!A817","v":0}]
[{"$f":"EVA_Groupes_FRANCAIS!A818","v":0}]
[{"$f":"EVA_Groupes_FRANCAIS!A819","v":0}]
[{"$f":"EVA_Groupes_FRANCAIS!A820","v":0}]
[{"$f":"EVA_Groupes_FRANCAIS!A821","v":0}]
[{"$f":"EVA_Groupes_FRANCAIS!A822","v":0}]
[{"$f":"EVA_Groupes_FRANCAIS!A823","v":0}]
[{"$f":"EVA_Groupes_FRANCAIS!A824","v":0}]
[{"$f":"EVA_Groupes_FRANCAIS!A825","v":0}]
[{"$f":"EVA_Groupes_FRANCAIS!A826","v":0}]
[{"$f":"EVA_Groupes_FRANCAIS!A827","v":0}]
[{"$f":"EVA_Groupes_FRANCAIS!A828","v":0}]
[{"$f":"EVA_Groupes_FRANCAIS!A829","v":0}]
[{"$f":"EVA_Groupes_FRANCAIS!A830","v":0}]
[{"$f":"EVA_Groupes_FRANCAIS!A831","v":0}]
[{"$f":"EVA_Groupes_FRANCAIS!A832","v":0}]
[{"$f":"EVA_Groupes_FRANCAIS!A833","v":0}]
[{"$f":"EVA_Groupes_FRANCAIS!A834","v":0}]
[{"$f":"EVA_Groupes_FRANCAIS!A835","v":0}]
[{"$f":"EVA_Groupes_FRANCAIS!A836","v":0}]
[{"$f":"EVA_Groupes_FRANCAIS!A837","v":0}]
[{"$f":"EVA_Groupes_FRANCAIS!A838","v":0}]
[{"$f":"EVA_Groupes_FRANCAIS!A839","v":0}]
[{"$f":"EVA_Groupes_FRANCAIS!A840","v":0}]
[{"$f":"EVA_Groupes_FRANCAIS!A841","v":0}]
[{"$f":"EVA_Groupes_FRANCAIS!A842","v":0}]
[{"$f":"EVA_Groupes_FRANCAIS!A843","v":0}]
[{"$f":"EVA_Groupes_FRANCAIS!A844","v":0}]
[{"$f":"EVA_Groupes_FRANCAIS!A845","v":0}]
[{"$f":"EVA_Groupes_FRANCAIS!A846","v":0}]
[{"$f":"EVA_Groupes_FRANCAIS!A847","v":0}]
[{"$f":"EVA_Groupes_FRANCAIS!A848","v":0}]
[{"$f":"EVA_Groupes_FRANCAIS!A849","v":0}]
[{"$f":"EVA_Groupes_FRANCAIS!A850","v":0}]
[{"$f":"EVA_Groupes_FRANCAIS!A851","v":0}]
[{"$f":"EVA_Groupes_FRANCAIS!A852","v":0}]
[{"$f":"EVA_Groupes_FRANCAIS!A853","v":0}]
[{"$f":"EVA_Groupes_FRANCAIS!A854","v":0}]
[{"$f":"EVA_Groupes_FRANCAIS!A855","v":0}]
[{"$f":"EVA_Groupes_FRANCAIS!A856","v":0}]
[{"$f":"EVA_Groupes_FRANCAIS!A857","v":0}]
[{"$f":"EVA_Groupes_FRANCAIS!A858","v":0}]
[{"$f":"EVA_Groupes_FRANCAIS!A859","v":0}]
[{"$f":"EVA_Groupes_FRANCAIS!A860","v":0}]
[{"$f":"EVA_Groupes_FRANCAIS!A861","v":0}]
[{"$f":"EVA_Groupes_FRANCAIS!A862","v":0}]
[{"$f":"EVA_Groupes_FRANCAIS!A863","v":0}]
[{"$f":"EVA_Groupes_FRANCAIS!A864","v":0}]
[{"$f":"EVA_Groupes_FRANCAIS!A865","v":0}]
[{"$f":"EVA_Groupes_FRANCAIS!A866","v":0}]
[{"$f":"EVA_Groupes_FRANCAIS!A867","v":0}]
[{"$f":"EVA_Groupes_FRANCAIS!A868","v":0}]
[{"$f":"EVA_Groupes_FRANCAIS!A869","v":0}]
[{"$f":"EVA_Groupes_FRANCAIS!A870","v":0}]
[{"$f":"EVA_Groupes_FRANCAIS!A871","v":0}]
[{"$f":"EVA_Groupes_FRANCAIS!A872","v":0}]
[{"$f":"EVA_Groupes_FRANCAIS!A873","v":0}]
[{"$f":"EVA_Groupes_FRANCAIS!A874","v":0}]
[{"$f":"EVA_Groupes_FRANCAIS!A875","v":0}]
[{"$f":"EVA_Groupes_FRANCAIS!A876","v":0}]
[{"$f":"EVA_Groupes_FRANCAIS!A877","v":0}]
[{"$f":"EVA_Groupes_FRANCAIS!A878","v":0}]
[{"$f":"EVA_Groupes_FRANCAIS!A879","v":0}]
[{"$f":"EVA_Groupes_FRANCAIS!A880","v":0}]
[{"$f":"EVA_Groupes_FRANCAIS!A881","v":0}]
[{"$f":"EVA_Groupes_FRANCAIS!A882","v":0}]
[{"$f":"EVA_Groupes_FRANCAIS!A883","v":0}]
[{"$f":"EVA_Groupes_FRANCAIS!A884","v":0}]
[{"$f":"EVA_Groupes_FRANCAIS!A885","v":0}]
[{"$f":"EVA_Groupes_FRANCAIS!A886","v":0}]
[{"$f":"EVA_Groupes_FRANCAIS!A887","v":0}]
[{"$f":"EVA_Groupes_FRANCAIS!A888","v":0}]
[{"$f":"EVA_Groupes_FRANCAIS!A889","v":0}]
[{"$f":"EVA_Groupes_FRANCAIS!A890","v":0}]
[{"$f":"EVA_Groupes_FRANCAIS!A891","v":0}]
[{"$f":"EVA_Groupes_FRANCAIS!A892","v":0}]
[{"$f":"EVA_Groupes_FRANCAIS!A893","v":0}]
[{"$f":"EVA_Groupes_FRANCAIS!A894","v":0}]
[{"$f":"EVA_Groupes_FRANCAIS!A895","v":0}]
[{"$f":"EVA_Groupes_FRANCAIS!A896","v":0}]
[{"$f":"EVA_Groupes_FRANCAIS!A897","v":0}]
[{"$f":"EVA_Groupes_FRANCAIS!A898","v":0}]
[{"$f":"EVA_Groupes_FRANCAIS!A899","v":0}]
[{"$f":"EVA_Groupes_FRANCAIS!A900","v":0}]
[{"$f":"EVA_Groupes_FRANCAIS!A901","v":0}]
[{"$f":"EVA_Groupes_FRANCAIS!A902","v":0}]
[{"$f":"EVA_Groupes_FRANCAIS!A903","v":0}]
[{"$f":"EVA_Groupes_FRANCAIS!A904","v":0}]
[{"$f":"EVA_Groupes_FRANCAIS!A905","v":0}]
[{"$f":"EVA_Groupes_FRANCAIS!A906","v":0}]
[{"$f":"EVA_Groupes_FRANCAIS!A907","v":0}]
[{"$f":"EVA_Groupes_FRANCAIS!A908","v":0}]
[{"$f":"EVA_Groupes_FRANCAIS!A909","v":0}]
[{"$f":"EVA_Groupes_FRANCAIS!A910","v":0}]
[{"$f":"EVA_Groupes_FRANCAIS!A911","v":0}]
[{"$f":"EVA_Groupes_FRANCAIS!A912","v":0}]
[{"$f":"EVA_Groupes_FRANCAIS!A913","v":0}]
[{"$f":"EVA_Groupes_FRANCAIS!A914","v":0}]
[{"$f":"EVA_Groupes_FRANCAIS!A915","v":0}]
[{"$f":"EVA_Groupes_FRANCAIS!A916","v":0}]
[{"$f":"EVA_Groupes_FRANCAIS!A917","v":0}]
[{"$f":"EVA_Groupes_FRANCAIS!A918","v":0}]
[{"$f":"EVA_Groupes_FRANCAIS!A919","v":0}]
[{"$f":"EVA_Groupes_FRANCAIS!A920","v":0}]
[{"$f":"EVA_Groupes_FRANCAIS!A921","v":0}]
[{"$f":"EVA_Groupes_FRANCAIS!A922","v":0}]
[{"$f":"EVA_Groupes_FRANCAIS!A923","v":0}]
[{"$f":"EVA_Groupes_FRANCAIS!A924","v":0}]
[{"$f":"EVA_Groupes_FRANCAIS!A925","v":0}]
[{"$f":"EVA_Groupes_FRANCAIS!A926","v":0}]
[{"$f":"EVA_Groupes_FRANCAIS!A927","v":0}]
[{"$f":"EVA_Groupes_FRANCAIS!A928","v":0}]
[{"$f":"EVA_Groupes_FRANCAIS!A929","v":0}]
[{"$f":"EVA_Groupes_FRANCAIS!A930","v":0}]
[{"$f":"EVA_Groupes_FRANCAIS!A931","v":0}]
[{"$f":"EVA_Groupes_FRANCAIS!A932","v":0}]
[{"$f":"EVA_Groupes_FRANCAIS!A933","v":0}]
[{"$f":"EVA_Groupes_FRANCAIS!A934","v":0}]
[{"$f":"EVA_Groupes_FRANCAIS!A935","v":0}]
[{"$f":"EVA_Groupes_FRANCAIS!A936","v":0}]
[{"$f":"EVA_Groupes_FRANCAIS!A937","v":0}]
[{"$f":"EVA_Groupes_FRANCAIS!A938","v":0}]
[{"$f":"EVA_Groupes_FRANCAIS!A939","v":0}]
[{"$f":"EVA_Groupes_FRANCAIS!A940","v":0}]
[{"$f":"EVA_Groupes_FRANCAIS!A941","v":0}]
[{"$f":"EVA_Groupes_FRANCAIS!A942","v":0}]
[{"$f":"EVA_Groupes_FRANCAIS!A943","v":0}]
[{"$f":"EVA_Groupes_FRANCAIS!A944","v":0}]
[{"$f":"EVA_Groupes_FRANCAIS!A945","v":0}]
[{"$f":"EVA_Groupes_FRANCAIS!A946","v":0}]
[{"$f":"EVA_Groupes_FRANCAIS!A947","v":0}]
[{"$f":"EVA_Groupes_FRANCAIS!A948","v":0}]
[{"$f":"EVA_Groupes_FRANCAIS!A949","v":0}]
[{"$f":"EVA_Groupes_FRANCAIS!A950","v":0}]
[{"$f":"EVA_Groupes_FRANCAIS!A951","v":0}]
[{"$f":"EVA_Groupes_FRANCAIS!A952","v":0}]
[{"$f":"EVA_Groupes_FRANCAIS!A953","v":0}]
[{"$f":"EVA_Groupes_FRANCAIS!A954","v":0}]
[{"$f":"EVA_Groupes_FRANCAIS!A955","v":0}]
[{"$f":"EVA_Groupes_FRANCAIS!A956","v":0}]
[{"$f":"EVA_Groupes_FRANCAIS!A957","v":0}]
[{"$f":"EVA_Groupes_FRANCAIS!A958","v":0}]
[{"$f":"EVA_Groupes_FRANCAIS!A959","v":0}]
[{"$f":"EVA_Groupes_FRANCAIS!A960","v":0}]
[{"$f":"EVA_Groupes_FRANCAIS!A961","v":0}]
[{"$f":"EVA_Groupes_FRANCAIS!A962","v":0}]
[{"$f":"EVA_Groupes_FRANCAIS!A963","v":0}]
[{"$f":"EVA_Groupes_FRANCAIS!A964","v":0}]
[{"$f":"EVA_Groupes_FRANCAIS!A965","v":0}]
[{"$f":"EVA_Groupes_FRANCAIS!A966","v":0}]
[{"$f":"EVA_Groupes_FRANCAIS!A967","v":0}]
[{"$f":"EVA_Groupes_FRANCAIS!A968","v":0}]
[{"$f":"EVA_Groupes_FRANCAIS!A969","v":0}]
[{"$f":"EVA_Groupes_FRANCAIS!A970","v":0}]
[{"$f":"EVA_Groupes_FRANCAIS!A971","v":0}]
[{"$f":"EVA_Groupes_FRANCAIS!A972","v":0}]
[{"$f":"EVA_Groupes_FRANCAIS!A973","v":0}]
[{"$f":"EVA_Groupes_FRANCAIS!A974","v":0}]
[{"$f":"EVA_Groupes_FRANCAIS!A975","v":0}]
[{"$f":"EVA_Groupes_FRANCAIS!A976","v":0}]
[{"$f":"EVA_Groupes_FRANCAIS!A977","v":0}]
[{"$f":"EVA_Groupes_FRANCAIS!A978","v":0}]
[{"$f":"EVA_Groupes_FRANCAIS!A979","v":0}]
[{"$f":"EVA_Groupes_FRANCAIS!A980","v":0}]
[{"$f":"EVA_Groupes_FRANCAIS!A981","v":0}]
[{"$f":"EVA_Groupes_FRANCAIS!A982","v":0}]
[{"$f":"EVA_Groupes_FRANCAIS!A983","v":0}]
[{"$f":"EVA_Groupes_FRANCAIS!A984","v":0}]
[{"$f":"EVA_Groupes_FRANCAIS!A985","v":0}]
[{"$f":"EVA_Groupes_FRANCAIS!A986","v":0}]
[{"$f":"EVA_Groupes_FRANCAIS!A987","v":0}]
[{"$f":"EVA_Groupes_FRANCAIS!A988","v":0}]
[{"$f":"EVA_Groupes_FRANCAIS!A989","v":0}]
[{"$f":"EVA_Groupes_FRANCAIS!A990","v":0}]
[{"$f":"EVA_Groupes_FRANCAIS!A991","v":0}]
[{"$f":"EVA_Groupes_FRANCAIS!A992","v":0}]
[{"$f":"EVA_Groupes_FRANCAIS!A993","v":0}]
[{"$f":"EVA_Groupes_FRANCAIS!A994","v":0}]
[{"$f":"EVA_Groupes_FRANCAIS!A995","v":0}]
[{"$f":"EVA_Groupes_FRANCAIS!A996","v":0}]
[{"$f":"EVA_Groupes_FRANCAIS!A997","v":0}]
[{"$f":"EVA_Groupes_FRANCAIS!A998","v":0}]
[{"$f":"EVA_Groupes_FRANCAIS!A999","v":0}]
[{"$f":"EVA_Groupes_FRANCAIS!A1000","v":0}]
[{"$f":"EVA_Groupes_FRANCAIS!A1001","v":0}]
[{"$f":"EVA_Groupes_MATHS!A2","v":0}]
[{"$f":"EVA_Groupes_MATHS!A3","v":0}]
[{"$f":"EVA_Groupes_MATHS!A4","v":0}]
[{"$f":"EVA_Groupes_MATHS!A5","v":0}]
[{"$f":"EVA_Groupes_MATHS!A6","v":0}]
[{"$f":"EVA_Groupes_MATHS!A7","v":0}]
[{"$f":"EVA_Groupes_MATHS!A8","v":0}]
[{"$f":"EVA_Groupes_MATHS!A9","v":0}]
[{"$f":"EVA_Groupes_MATHS!A10","v":0}]
[{"$f":"EVA_Groupes_MATHS!A11","v":0}]
[{"$f":"EVA_Groupes_MATHS!A12","v":0}]
[{"$f":"EVA_Groupes_MATHS!A13","v":0}]
[{"$f":"EVA_Groupes_MATHS!A14","v":0}]
[{"$f":"EVA_Groupes_MATHS!A15","v":0}]
[{"$f":"EVA_Groupes_MATHS!A16","v":0}]
[{"$f":"EVA_Groupes_MATHS!A17","v":0}]
[{"$f":"EVA_Groupes_MATHS!A18","v":0}]
[{"$f":"EVA_Groupes_MATHS!A19","v":0}]
[{"$f":"EVA_Groupes_MATHS!A20","v":0}]
[{"$f":"EVA_Groupes_MATHS!A21","v":0}]
[{"$f":"EVA_Groupes_MATHS!A22","v":0}]
[{"$f":"EVA_Groupes_MATHS!A23","v":0}]
[{"$f":"EVA_Groupes_MATHS!A24","v":0}]
[{"$f":"EVA_Groupes_MATHS!A25","v":0}]
[{"$f":"EVA_Groupes_MATHS!A26","v":0}]
[{"$f":"EVA_Groupes_MATHS!A27","v":0}]
[{"$f":"EVA_Groupes_MATHS!A28","v":0}]
[{"$f":"EVA_Groupes_MATHS!A29","v":0}]
[{"$f":"EVA_Groupes_MATHS!A30","v":0}]
[{"$f":"EVA_Groupes_MATHS!A31","v":0}]
[{"$f":"EVA_Groupes_MATHS!A32","v":0}]
[{"$f":"EVA_Groupes_MATHS!A33","v":0}]
[{"$f":"EVA_Groupes_MATHS!A34","v":0}]
[{"$f":"EVA_Groupes_MATHS!A35","v":0}]
[{"$f":"EVA_Groupes_MATHS!A36","v":0}]
[{"$f":"EVA_Groupes_MATHS!A37","v":0}]
[{"$f":"EVA_Groupes_MATHS!A38","v":0}]
[{"$f":"EVA_Groupes_MATHS!A39","v":0}]
[{"$f":"EVA_Groupes_MATHS!A40","v":0}]
[{"$f":"EVA_Groupes_MATHS!A41","v":0}]
[{"$f":"EVA_Groupes_MATHS!A42","v":0}]
[{"$f":"EVA_Groupes_MATHS!A43","v":0}]
[{"$f":"EVA_Groupes_MATHS!A44","v":0}]
[{"$f":"EVA_Groupes_MATHS!A45","v":0}]
[{"$f":"EVA_Groupes_MATHS!A46","v":0}]
[{"$f":"EVA_Groupes_MATHS!A47","v":0}]
[{"$f":"EVA_Groupes_MATHS!A48","v":0}]
[{"$f":"EVA_Groupes_MATHS!A49","v":0}]
[{"$f":"EVA_Groupes_MATHS!A50","v":0}]
[{"$f":"EVA_Groupes_MATHS!A51","v":0}]
[{"$f":"EVA_Groupes_MATHS!A52","v":0}]
[{"$f":"EVA_Groupes_MATHS!A53","v":0}]
[{"$f":"EVA_Groupes_MATHS!A54","v":0}]
[{"$f":"EVA_Groupes_MATHS!A55","v":0}]
[{"$f":"EVA_Groupes_MATHS!A56","v":0}]
[{"$f":"EVA_Groupes_MATHS!A57","v":0}]
[{"$f":"EVA_Groupes_MATHS!A58","v":0}]
[{"$f":"EVA_Groupes_MATHS!A59","v":0}]
[{"$f":"EVA_Groupes_MATHS!A60","v":0}]
[{"$f":"EVA_Groupes_MATHS!A61","v":0}]
[{"$f":"EVA_Groupes_MATHS!A62","v":0}]
[{"$f":"EVA_Groupes_MATHS!A63","v":0}]
[{"$f":"EVA_Groupes_MATHS!A64","v":0}]
[{"$f":"EVA_Groupes_MATHS!A65","v":0}]
[{"$f":"EVA_Groupes_MATHS!A66","v":0}]
[{"$f":"EVA_Groupes_MATHS!A67","v":0}]
[{"$f":"EVA_Groupes_MATHS!A68","v":0}]
[{"$f":"EVA_Groupes_MATHS!A69","v":0}]
[{"$f":"EVA_Groupes_MATHS!A70","v":0}]
[{"$f":"EVA_Groupes_MATHS!A71","v":0}]
[{"$f":"EVA_Groupes_MATHS!A72","v":0}]
[{"$f":"EVA_Groupes_MATHS!A73","v":0}]
[{"$f":"EVA_Groupes_MATHS!A74","v":0}]
[{"$f":"EVA_Groupes_MATHS!A75","v":0}]
[{"$f":"EVA_Groupes_MATHS!A76","v":0}]
[{"$f":"EVA_Groupes_MATHS!A77","v":0}]
[{"$f":"EVA_Groupes_MATHS!A78","v":0}]
[{"$f":"EVA_Groupes_MATHS!A79","v":0}]
[{"$f":"EVA_Groupes_MATHS!A80","v":0}]
[{"$f":"EVA_Groupes_MATHS!A81","v":0}]
[{"$f":"EVA_Groupes_MATHS!A82","v":0}]
[{"$f":"EVA_Groupes_MATHS!A83","v":0}]
[{"$f":"EVA_Groupes_MATHS!A84","v":0}]
[{"$f":"EVA_Groupes_MATHS!A85","v":0}]
[{"$f":"EVA_Groupes_MATHS!A86","v":0}]
[{"$f":"EVA_Groupes_MATHS!A87","v":0}]
[{"$f":"EVA_Groupes_MATHS!A88","v":0}]
[{"$f":"EVA_Groupes_MATHS!A89","v":0}]
[{"$f":"EVA_Groupes_MATHS!A90","v":0}]
[{"$f":"EVA_Groupes_MATHS!A91","v":0}]
[{"$f":"EVA_Groupes_MATHS!A92","v":0}]
[{"$f":"EVA_Groupes_MATHS!A93","v":0}]
[{"$f":"EVA_Groupes_MATHS!A94","v":0}]
[{"$f":"EVA_Groupes_MATHS!A95","v":0}]
[{"$f":"EVA_Groupes_MATHS!A96","v":0}]
[{"$f":"EVA_Groupes_MATHS!A97","v":0}]
[{"$f":"EVA_Groupes_MATHS!A98","v":0}]
[{"$f":"EVA_Groupes_MATHS!A99","v":0}]
[{"$f":"EVA_Groupes_MATHS!A100","v":0}]
[{"$f":"EVA_Groupes_MATHS!A101","v":0}]
[{"$f":"EVA_Groupes_MATHS!A102","v":0}]
[{"$f":"EVA_Groupes_MATHS!A103","v":0}]
[{"$f":"EVA_Groupes_MATHS!A104","v":0}]
[{"$f":"EVA_Groupes_MATHS!A105","v":0}]
[{"$f":"EVA_Groupes_MATHS!A106","v":0}]
[{"$f":"EVA_Groupes_MATHS!A107","v":0}]
[{"$f":"EVA_Groupes_MATHS!A108","v":0}]
[{"$f":"EVA_Groupes_MATHS!A109","v":0}]
[{"$f":"EVA_Groupes_MATHS!A110","v":0}]
[{"$f":"EVA_Groupes_MATHS!A111","v":0}]
[{"$f":"EVA_Groupes_MATHS!A112","v":0}]
[{"$f":"EVA_Groupes_MATHS!A113","v":0}]
[{"$f":"EVA_Groupes_MATHS!A114","v":0}]
[{"$f":"EVA_Groupes_MATHS!A115","v":0}]
[{"$f":"EVA_Groupes_MATHS!A116","v":0}]
[{"$f":"EVA_Groupes_MATHS!A117","v":0}]
[{"$f":"EVA_Groupes_MATHS!A118","v":0}]
[{"$f":"EVA_Groupes_MATHS!A119","v":0}]
[{"$f":"EVA_Groupes_MATHS!A120","v":0}]
[{"$f":"EVA_Groupes_MATHS!A121","v":0}]
[{"$f":"EVA_Groupes_MATHS!A122","v":0}]
[{"$f":"EVA_Groupes_MATHS!A123","v":0}]
[{"$f":"EVA_Groupes_MATHS!A124","v":0}]
[{"$f":"EVA_Groupes_MATHS!A125","v":0}]
[{"$f":"EVA_Groupes_MATHS!A126","v":0}]
[{"$f":"EVA_Groupes_MATHS!A127","v":0}]
[{"$f":"EVA_Groupes_MATHS!A128","v":0}]
[{"$f":"EVA_Groupes_MATHS!A129","v":0}]
[{"$f":"EVA_Groupes_MATHS!A130","v":0}]
[{"$f":"EVA_Groupes_MATHS!A131","v":0}]
[{"$f":"EVA_Groupes_MATHS!A132","v":0}]
[{"$f":"EVA_Groupes_MATHS!A133","v":0}]
[{"$f":"EVA_Groupes_MATHS!A134","v":0}]
[{"$f":"EVA_Groupes_MATHS!A135","v":0}]
[{"$f":"EVA_Groupes_MATHS!A136","v":0}]
[{"$f":"EVA_Groupes_MATHS!A137","v":0}]
[{"$f":"EVA_Groupes_MATHS!A138","v":0}]
[{"$f":"EVA_Groupes_MATHS!A139","v":0}]
[{"$f":"EVA_Groupes_MATHS!A140","v":0}]
[{"$f":"EVA_Groupes_MATHS!A141","v":0}]
[{"$f":"EVA_Groupes_MATHS!A142","v":0}]
[{"$f":"EVA_Groupes_MATHS!A143","v":0}]
[{"$f":"EVA_Groupes_MATHS!A144","v":0}]
[{"$f":"EVA_Groupes_MATHS!A145","v":0}]
[{"$f":"EVA_Groupes_MATHS!A146","v":0}]
[{"$f":"EVA_Groupes_MATHS!A147","v":0}]
[{"$f":"EVA_Groupes_MATHS!A148","v":0}]
[{"$f":"EVA_Groupes_MATHS!A149","v":0}]
[{"$f":"EVA_Groupes_MATHS!A150","v":0}]
[{"$f":"EVA_Groupes_MATHS!A151","v":0}]
[{"$f":"EVA_Groupes_MATHS!A152","v":0}]
[{"$f":"EVA_Groupes_MATHS!A153","v":0}]
[{"$f":"EVA_Groupes_MATHS!A154","v":0}]
[{"$f":"EVA_Groupes_MATHS!A155","v":0}]
[{"$f":"EVA_Groupes_MATHS!A156","v":0}]
[{"$f":"EVA_Groupes_MATHS!A157","v":0}]
[{"$f":"EVA_Groupes_MATHS!A158","v":0}]
[{"$f":"EVA_Groupes_MATHS!A159","v":0}]
[{"$f":"EVA_Groupes_MATHS!A160","v":0}]
[{"$f":"EVA_Groupes_MATHS!A161","v":0}]
[{"$f":"EVA_Groupes_MATHS!A162","v":0}]
[{"$f":"EVA_Groupes_MATHS!A163","v":0}]
[{"$f":"EVA_Groupes_MATHS!A164","v":0}]
[{"$f":"EVA_Groupes_MATHS!A165","v":0}]
[{"$f":"EVA_Groupes_MATHS!A166","v":0}]
[{"$f":"EVA_Groupes_MATHS!A167","v":0}]
[{"$f":"EVA_Groupes_MATHS!A168","v":0}]
[{"$f":"EVA_Groupes_MATHS!A169","v":0}]
[{"$f":"EVA_Groupes_MATHS!A170","v":0}]
[{"$f":"EVA_Groupes_MATHS!A171","v":0}]
[{"$f":"EVA_Groupes_MATHS!A172","v":0}]
[{"$f":"EVA_Groupes_MATHS!A173","v":0}]
[{"$f":"EVA_Groupes_MATHS!A174","v":0}]
[{"$f":"EVA_Groupes_MATHS!A175","v":0}]
[{"$f":"EVA_Groupes_MATHS!A176","v":0}]
[{"$f":"EVA_Groupes_MATHS!A177","v":0}]
[{"$f":"EVA_Groupes_MATHS!A178","v":0}]
[{"$f":"EVA_Groupes_MATHS!A179","v":0}]
[{"$f":"EVA_Groupes_MATHS!A180","v":0}]
[{"$f":"EVA_Groupes_MATHS!A181","v":0}]
[{"$f":"EVA_Groupes_MATHS!A182","v":0}]
[{"$f":"EVA_Groupes_MATHS!A183","v":0}]
[{"$f":"EVA_Groupes_MATHS!A184","v":0}]
[{"$f":"EVA_Groupes_MATHS!A185","v":0}]
[{"$f":"EVA_Groupes_MATHS!A186","v":0}]
[{"$f":"EVA_Groupes_MATHS!A187","v":0}]
[{"$f":"EVA_Groupes_MATHS!A188","v":0}]
[{"$f":"EVA_Groupes_MATHS!A189","v":0}]
[{"$f":"EVA_Groupes_MATHS!A190","v":0}]
[{"$f":"EVA_Groupes_MATHS!A191","v":0}]
[{"$f":"EVA_Groupes_MATHS!A192","v":0}]
[{"$f":"EVA_Groupes_MATHS!A193","v":0}]
[{"$f":"EVA_Groupes_MATHS!A194","v":0}]
[{"$f":"EVA_Groupes_MATHS!A195","v":0}]
[{"$f":"EVA_Groupes_MATHS!A196","v":0}]
[{"$f":"EVA_Groupes_MATHS!A197","v":0}]
[{"$f":"EVA_Groupes_MATHS!A198","v":0}]
[{"$f":"EVA_Groupes_MATHS!A199","v":0}]
[{"$f":"EVA_Groupes_MATHS!A200","v":0}]
[{"$f":"EVA_Groupes_MATHS!A201","v":0}]
[{"$f":"EVA_Groupes_MATHS!A202","v":0}]
[{"$f":"EVA_Groupes_MATHS!A203","v":0}]
[{"$f":"EVA_Groupes_MATHS!A204","v":0}]
[{"$f":"EVA_Groupes_MATHS!A205","v":0}]
[{"$f":"EVA_Groupes_MATHS!A206","v":0}]
[{"$f":"EVA_Groupes_MATHS!A207","v":0}]
[{"$f":"EVA_Groupes_MATHS!A208","v":0}]
[{"$f":"EVA_Groupes_MATHS!A209","v":0}]
[{"$f":"EVA_Groupes_MATHS!A210","v":0}]
[{"$f":"EVA_Groupes_MATHS!A211","v":0}]
[{"$f":"EVA_Groupes_MATHS!A212","v":0}]
[{"$f":"EVA_Groupes_MATHS!A213","v":0}]
[{"$f":"EVA_Groupes_MATHS!A214","v":0}]
[{"$f":"EVA_Groupes_MATHS!A215","v":0}]
[{"$f":"EVA_Groupes_MATHS!A216","v":0}]
[{"$f":"EVA_Groupes_MATHS!A217","v":0}]
[{"$f":"EVA_Groupes_MATHS!A218","v":0}]
[{"$f":"EVA_Groupes_MATHS!A219","v":0}]
[{"$f":"EVA_Groupes_MATHS!A220","v":0}]
[{"$f":"EVA_Groupes_MATHS!A221","v":0}]
[{"$f":"EVA_Groupes_MATHS!A222","v":0}]
[{"$f":"EVA_Groupes_MATHS!A223","v":0}]
[{"$f":"EVA_Groupes_MATHS!A224","v":0}]
[{"$f":"EVA_Groupes_MATHS!A225","v":0}]
[{"$f":"EVA_Groupes_MATHS!A226","v":0}]
[{"$f":"EVA_Groupes_MATHS!A227","v":0}]
[{"$f":"EVA_Groupes_MATHS!A228","v":0}]
[{"$f":"EVA_Groupes_MATHS!A229","v":0}]
[{"$f":"EVA_Groupes_MATHS!A230","v":0}]
[{"$f":"EVA_Groupes_MATHS!A231","v":0}]
[{"$f":"EVA_Groupes_MATHS!A232","v":0}]
[{"$f":"EVA_Groupes_MATHS!A233","v":0}]
[{"$f":"EVA_Groupes_MATHS!A234","v":0}]
[{"$f":"EVA_Groupes_MATHS!A235","v":0}]
[{"$f":"EVA_Groupes_MATHS!A236","v":0}]
[{"$f":"EVA_Groupes_MATHS!A237","v":0}]
[{"$f":"EVA_Groupes_MATHS!A238","v":0}]
[{"$f":"EVA_Groupes_MATHS!A239","v":0}]
[{"$f":"EVA_Groupes_MATHS!A240","v":0}]
[{"$f":"EVA_Groupes_MATHS!A241","v":0}]
[{"$f":"EVA_Groupes_MATHS!A242","v":0}]
[{"$f":"EVA_Groupes_MATHS!A243","v":0}]
[{"$f":"EVA_Groupes_MATHS!A244","v":0}]
[{"$f":"EVA_Groupes_MATHS!A245","v":0}]
[{"$f":"EVA_Groupes_MATHS!A246","v":0}]
[{"$f":"EVA_Groupes_MATHS!A247","v":0}]
[{"$f":"EVA_Groupes_MATHS!A248","v":0}]
[{"$f":"EVA_Groupes_MATHS!A249","v":0}]
[{"$f":"EVA_Groupes_MATHS!A250","v":0}]
[{"$f":"EVA_Groupes_MATHS!A251","v":0}]
[{"$f":"EVA_Groupes_MATHS!A252","v":0}]
[{"$f":"EVA_Groupes_MATHS!A253","v":0}]
[{"$f":"EVA_Groupes_MATHS!A254","v":0}]
[{"$f":"EVA_Groupes_MATHS!A255","v":0}]
[{"$f":"EVA_Groupes_MATHS!A256","v":0}]
[{"$f":"EVA_Groupes_MATHS!A257","v":0}]
[{"$f":"EVA_Groupes_MATHS!A258","v":0}]
[{"$f":"EVA_Groupes_MATHS!A259","v":0}]
[{"$f":"EVA_Groupes_MATHS!A260","v":0}]
[{"$f":"EVA_Groupes_MATHS!A261","v":0}]
[{"$f":"EVA_Groupes_MATHS!A262","v":0}]
[{"$f":"EVA_Groupes_MATHS!A263","v":0}]
[{"$f":"EVA_Groupes_MATHS!A264","v":0}]
[{"$f":"EVA_Groupes_MATHS!A265","v":0}]
[{"$f":"EVA_Groupes_MATHS!A266","v":0}]
[{"$f":"EVA_Groupes_MATHS!A267","v":0}]
[{"$f":"EVA_Groupes_MATHS!A268","v":0}]
[{"$f":"EVA_Groupes_MATHS!A269","v":0}]
[{"$f":"EVA_Groupes_MATHS!A270","v":0}]
[{"$f":"EVA_Groupes_MATHS!A271","v":0}]
[{"$f":"EVA_Groupes_MATHS!A272","v":0}]
[{"$f":"EVA_Groupes_MATHS!A273","v":0}]
[{"$f":"EVA_Groupes_MATHS!A274","v":0}]
[{"$f":"EVA_Groupes_MATHS!A275","v":0}]
[{"$f":"EVA_Groupes_MATHS!A276","v":0}]
[{"$f":"EVA_Groupes_MATHS!A277","v":0}]
[{"$f":"EVA_Groupes_MATHS!A278","v":0}]
[{"$f":"EVA_Groupes_MATHS!A279","v":0}]
[{"$f":"EVA_Groupes_MATHS!A280","v":0}]
[{"$f":"EVA_Groupes_MATHS!A281","v":0}]
[{"$f":"EVA_Groupes_MATHS!A282","v":0}]
[{"$f":"EVA_Groupes_MATHS!A283","v":0}]
[{"$f":"EVA_Groupes_MATHS!A284","v":0}]
[{"$f":"EVA_Groupes_MATHS!A285","v":0}]
[{"$f":"EVA_Groupes_MATHS!A286","v":0}]
[{"$f":"EVA_Groupes_MATHS!A287","v":0}]
[{"$f":"EVA_Groupes_MATHS!A288","v":0}]
[{"$f":"EVA_Groupes_MATHS!A289","v":0}]
[{"$f":"EVA_Groupes_MATHS!A290","v":0}]
[{"$f":"EVA_Groupes_MATHS!A291","v":0}]
[{"$f":"EVA_Groupes_MATHS!A292","v":0}]
[{"$f":"EVA_Groupes_MATHS!A293","v":0}]
[{"$f":"EVA_Groupes_MATHS!A294","v":0}]
[{"$f":"EVA_Groupes_MATHS!A295","v":0}]
[{"$f":"EVA_Groupes_MATHS!A296","v":0}]
[{"$f":"EVA_Groupes_MATHS!A297","v":0}]
[{"$f":"EVA_Groupes_MATHS!A298","v":0}]
[{"$f":"EVA_Groupes_MATHS!A299","v":0}]
[{"$f":"EVA_Groupes_MATHS!A300","v":0}]
[{"$f":"EVA_Groupes_MATHS!A301","v":0}]
[{"$f":"EVA_Groupes_MATHS!A302","v":0}]
[{"$f":"EVA_Groupes_MATHS!A303","v":0}]
[{"$f":"EVA_Groupes_MATHS!A304","v":0}]
[{"$f":"EVA_Groupes_MATHS!A305","v":0}]
[{"$f":"EVA_Groupes_MATHS!A306","v":0}]
[{"$f":"EVA_Groupes_MATHS!A307","v":0}]
[{"$f":"EVA_Groupes_MATHS!A308","v":0}]
[{"$f":"EVA_Groupes_MATHS!A309","v":0}]
[{"$f":"EVA_Groupes_MATHS!A310","v":0}]
[{"$f":"EVA_Groupes_MATHS!A311","v":0}]
[{"$f":"EVA_Groupes_MATHS!A312","v":0}]
[{"$f":"EVA_Groupes_MATHS!A313","v":0}]
[{"$f":"EVA_Groupes_MATHS!A314","v":0}]
[{"$f":"EVA_Groupes_MATHS!A315","v":0}]
[{"$f":"EVA_Groupes_MATHS!A316","v":0}]
[{"$f":"EVA_Groupes_MATHS!A317","v":0}]
[{"$f":"EVA_Groupes_MATHS!A318","v":0}]
[{"$f":"EVA_Groupes_MATHS!A319","v":0}]
[{"$f":"EVA_Groupes_MATHS!A320","v":0}]
[{"$f":"EVA_Groupes_MATHS!A321","v":0}]
[{"$f":"EVA_Groupes_MATHS!A322","v":0}]
[{"$f":"EVA_Groupes_MATHS!A323","v":0}]
[{"$f":"EVA_Groupes_MATHS!A324","v":0}]
[{"$f":"EVA_Groupes_MATHS!A325","v":0}]
[{"$f":"EVA_Groupes_MATHS!A326","v":0}]
[{"$f":"EVA_Groupes_MATHS!A327","v":0}]
[{"$f":"EVA_Groupes_MATHS!A328","v":0}]
[{"$f":"EVA_Groupes_MATHS!A329","v":0}]
[{"$f":"EVA_Groupes_MATHS!A330","v":0}]
[{"$f":"EVA_Groupes_MATHS!A331","v":0}]
[{"$f":"EVA_Groupes_MATHS!A332","v":0}]
[{"$f":"EVA_Groupes_MATHS!A333","v":0}]
[{"$f":"EVA_Groupes_MATHS!A334","v":0}]
[{"$f":"EVA_Groupes_MATHS!A335","v":0}]
[{"$f":"EVA_Groupes_MATHS!A336","v":0}]
[{"$f":"EVA_Groupes_MATHS!A337","v":0}]
[{"$f":"EVA_Groupes_MATHS!A338","v":0}]
[{"$f":"EVA_Groupes_MATHS!A339","v":0}]
[{"$f":"EVA_Groupes_MATHS!A340","v":0}]
[{"$f":"EVA_Groupes_MATHS!A341","v":0}]
[{"$f":"EVA_Groupes_MATHS!A342","v":0}]
[{"$f":"EVA_Groupes_MATHS!A343","v":0}]
[{"$f":"EVA_Groupes_MATHS!A344","v":0}]
[{"$f":"EVA_Groupes_MATHS!A345","v":0}]
[{"$f":"EVA_Groupes_MATHS!A346","v":0}]
[{"$f":"EVA_Groupes_MATHS!A347","v":0}]
[{"$f":"EVA_Groupes_MATHS!A348","v":0}]
[{"$f":"EVA_Groupes_MATHS!A349","v":0}]
[{"$f":"EVA_Groupes_MATHS!A350","v":0}]
[{"$f":"EVA_Groupes_MATHS!A351","v":0}]
[{"$f":"EVA_Groupes_MATHS!A352","v":0}]
[{"$f":"EVA_Groupes_MATHS!A353","v":0}]
[{"$f":"EVA_Groupes_MATHS!A354","v":0}]
[{"$f":"EVA_Groupes_MATHS!A355","v":0}]
[{"$f":"EVA_Groupes_MATHS!A356","v":0}]
[{"$f":"EVA_Groupes_MATHS!A357","v":0}]
[{"$f":"EVA_Groupes_MATHS!A358","v":0}]
[{"$f":"EVA_Groupes_MATHS!A359","v":0}]
[{"$f":"EVA_Groupes_MATHS!A360","v":0}]
[{"$f":"EVA_Groupes_MATHS!A361","v":0}]
[{"$f":"EVA_Groupes_MATHS!A362","v":0}]
[{"$f":"EVA_Groupes_MATHS!A363","v":0}]
[{"$f":"EVA_Groupes_MATHS!A364","v":0}]
[{"$f":"EVA_Groupes_MATHS!A365","v":0}]
[{"$f":"EVA_Groupes_MATHS!A366","v":0}]
[{"$f":"EVA_Groupes_MATHS!A367","v":0}]
[{"$f":"EVA_Groupes_MATHS!A368","v":0}]
[{"$f":"EVA_Groupes_MATHS!A369","v":0}]
[{"$f":"EVA_Groupes_MATHS!A370","v":0}]
[{"$f":"EVA_Groupes_MATHS!A371","v":0}]
[{"$f":"EVA_Groupes_MATHS!A372","v":0}]
[{"$f":"EVA_Groupes_MATHS!A373","v":0}]
[{"$f":"EVA_Groupes_MATHS!A374","v":0}]
[{"$f":"EVA_Groupes_MATHS!A375","v":0}]
[{"$f":"EVA_Groupes_MATHS!A376","v":0}]
[{"$f":"EVA_Groupes_MATHS!A377","v":0}]
[{"$f":"EVA_Groupes_MATHS!A378","v":0}]
[{"$f":"EVA_Groupes_MATHS!A379","v":0}]
[{"$f":"EVA_Groupes_MATHS!A380","v":0}]
[{"$f":"EVA_Groupes_MATHS!A381","v":0}]
[{"$f":"EVA_Groupes_MATHS!A382","v":0}]
[{"$f":"EVA_Groupes_MATHS!A383","v":0}]
[{"$f":"EVA_Groupes_MATHS!A384","v":0}]
[{"$f":"EVA_Groupes_MATHS!A385","v":0}]
[{"$f":"EVA_Groupes_MATHS!A386","v":0}]
[{"$f":"EVA_Groupes_MATHS!A387","v":0}]
[{"$f":"EVA_Groupes_MATHS!A388","v":0}]
[{"$f":"EVA_Groupes_MATHS!A389","v":0}]
[{"$f":"EVA_Groupes_MATHS!A390","v":0}]
[{"$f":"EVA_Groupes_MATHS!A391","v":0}]
[{"$f":"EVA_Groupes_MATHS!A392","v":0}]
[{"$f":"EVA_Groupes_MATHS!A393","v":0}]
[{"$f":"EVA_Groupes_MATHS!A394","v":0}]
[{"$f":"EVA_Groupes_MATHS!A395","v":0}]
[{"$f":"EVA_Groupes_MATHS!A396","v":0}]
[{"$f":"EVA_Groupes_MATHS!A397","v":0}]
[{"$f":"EVA_Groupes_MATHS!A398","v":0}]
[{"$f":"EVA_Groupes_MATHS!A399","v":0}]
[{"$f":"EVA_Groupes_MATHS!A400","v":0}]
[{"$f":"EVA_Groupes_MATHS!A401","v":0}]
[{"$f":"EVA_Groupes_MATHS!A402","v":0}]
[{"$f":"EVA_Groupes_MATHS!A403","v":0}]
[{"$f":"EVA_Groupes_MATHS!A404","v":0}]
[{"$f":"EVA_Groupes_MATHS!A405","v":0}]
[{"$f":"EVA_Groupes_MATHS!A406","v":0}]
[{"$f":"EVA_Groupes_MATHS!A407","v":0}]
[{"$f":"EVA_Groupes_MATHS!A408","v":0}]
[{"$f":"EVA_Groupes_MATHS!A409","v":0}]
[{"$f":"EVA_Groupes_MATHS!A410","v":0}]
[{"$f":"EVA_Groupes_MATHS!A411","v":0}]
[{"$f":"EVA_Groupes_MATHS!A412","v":0}]
[{"$f":"EVA_Groupes_MATHS!A413","v":0}]
[{"$f":"EVA_Groupes_MATHS!A414","v":0}]
[{"$f":"EVA_Groupes_MATHS!A415","v":0}]
[{"$f":"EVA_Groupes_MATHS!A416","v":0}]
[{"$f":"EVA_Groupes_MATHS!A417","v":0}]
[{"$f":"EVA_Groupes_MATHS!A418","v":0}]
[{"$f":"EVA_Groupes_MATHS!A419","v":0}]
[{"$f":"EVA_Groupes_MATHS!A420","v":0}]
[{"$f":"EVA_Groupes_MATHS!A421","v":0}]
[{"$f":"EVA_Groupes_MATHS!A422","v":0}]
[{"$f":"EVA_Groupes_MATHS!A423","v":0}]
[{"$f":"EVA_Groupes_MATHS!A424","v":0}]
[{"$f":"EVA_Groupes_MATHS!A425","v":0}]
[{"$f":"EVA_Groupes_MATHS!A426","v":0}]
[{"$f":"EVA_Groupes_MATHS!A427","v":0}]
[{"$f":"EVA_Groupes_MATHS!A428","v":0}]
[{"$f":"EVA_Groupes_MATHS!A429","v":0}]
[{"$f":"EVA_Groupes_MATHS!A430","v":0}]
[{"$f":"EVA_Groupes_MATHS!A431","v":0}]
[{"$f":"EVA_Groupes_MATHS!A432","v":0}]
[{"$f":"EVA_Groupes_MATHS!A433","v":0}]
[{"$f":"EVA_Groupes_MATHS!A434","v":0}]
[{"$f":"EVA_Groupes_MATHS!A435","v":0}]
[{"$f":"EVA_Groupes_MATHS!A436","v":0}]
[{"$f":"EVA_Groupes_MATHS!A437","v":0}]
[{"$f":"EVA_Groupes_MATHS!A438","v":0}]
[{"$f":"EVA_Groupes_MATHS!A439","v":0}]
[{"$f":"EVA_Groupes_MATHS!A440","v":0}]
[{"$f":"EVA_Groupes_MATHS!A441","v":0}]
[{"$f":"EVA_Groupes_MATHS!A442","v":0}]
[{"$f":"EVA_Groupes_MATHS!A443","v":0}]
[{"$f":"EVA_Groupes_MATHS!A444","v":0}]
[{"$f":"EVA_Groupes_MATHS!A445","v":0}]
[{"$f":"EVA_Groupes_MATHS!A446","v":0}]
[{"$f":"EVA_Groupes_MATHS!A447","v":0}]
[{"$f":"EVA_Groupes_MATHS!A448","v":0}]
[{"$f":"EVA_Groupes_MATHS!A449","v":0}]
[{"$f":"EVA_Groupes_MATHS!A450","v":0}]
[{"$f":"EVA_Groupes_MATHS!A451","v":0}]
[{"$f":"EVA_Groupes_MATHS!A452","v":0}]
[{"$f":"EVA_Groupes_MATHS!A453","v":0}]
[{"$f":"EVA_Groupes_MATHS!A454","v":0}]
[{"$f":"EVA_Groupes_MATHS!A455","v":0}]
[{"$f":"EVA_Groupes_MATHS!A456","v":0}]
[{"$f":"EVA_Groupes_MATHS!A457","v":0}]
[{"$f":"EVA_Groupes_MATHS!A458","v":0}]
[{"$f":"EVA_Groupes_MATHS!A459","v":0}]
[{"$f":"EVA_Groupes_MATHS!A460","v":0}]
[{"$f":"EVA_Groupes_MATHS!A461","v":0}]
[{"$f":"EVA_Groupes_MATHS!A462","v":0}]
[{"$f":"EVA_Groupes_MATHS!A463","v":0}]
[{"$f":"EVA_Groupes_MATHS!A464","v":0}]
[{"$f":"EVA_Groupes_MATHS!A465","v":0}]
[{"$f":"EVA_Groupes_MATHS!A466","v":0}]
[{"$f":"EVA_Groupes_MATHS!A467","v":0}]
[{"$f":"EVA_Groupes_MATHS!A468","v":0}]
[{"$f":"EVA_Groupes_MATHS!A469","v":0}]
[{"$f":"EVA_Groupes_MATHS!A470","v":0}]
[{"$f":"EVA_Groupes_MATHS!A471","v":0}]
[{"$f":"EVA_Groupes_MATHS!A472","v":0}]
[{"$f":"EVA_Groupes_MATHS!A473","v":0}]
[{"$f":"EVA_Groupes_MATHS!A474","v":0}]
[{"$f":"EVA_Groupes_MATHS!A475","v":0}]
[{"$f":"EVA_Groupes_MATHS!A476","v":0}]
[{"$f":"EVA_Groupes_MATHS!A477","v":0}]
[{"$f":"EVA_Groupes_MATHS!A478","v":0}]
[{"$f":"EVA_Groupes_MATHS!A479","v":0}]
[{"$f":"EVA_Groupes_MATHS!A480","v":0}]
[{"$f":"EVA_Groupes_MATHS!A481","v":0}]
[{"$f":"EVA_Groupes_MATHS!A482","v":0}]
[{"$f":"EVA_Groupes_MATHS!A483","v":0}]
[{"$f":"EVA_Groupes_MATHS!A484","v":0}]
[{"$f":"EVA_Groupes_MATHS!A485","v":0}]
[{"$f":"EVA_Groupes_MATHS!A486","v":0}]
[{"$f":"EVA_Groupes_MATHS!A487","v":0}]
[{"$f":"EVA_Groupes_MATHS!A488","v":0}]
[{"$f":"EVA_Groupes_MATHS!A489","v":0}]
[{"$f":"EVA_Groupes_MATHS!A490","v":0}]
[{"$f":"EVA_Groupes_MATHS!A491","v":0}]
[{"$f":"EVA_Groupes_MATHS!A492","v":0}]
[{"$f":"EVA_Groupes_MATHS!A493","v":0}]
[{"$f":"EVA_Groupes_MATHS!A494","v":0}]
[{"$f":"EVA_Groupes_MATHS!A495","v":0}]
[{"$f":"EVA_Groupes_MATHS!A496","v":0}]
[{"$f":"EVA_Groupes_MATHS!A497","v":0}]
[{"$f":"EVA_Groupes_MATHS!A498","v":0}]
[{"$f":"EVA_Groupes_MATHS!A499","v":0}]
[{"$f":"EVA_Groupes_MATHS!A500","v":0}]
[{"$f":"EVA_Groupes_MATHS!A501","v":0}]
[{"$f":"EVA_Groupes_MATHS!A502","v":0}]
[{"$f":"EVA_Groupes_MATHS!A503","v":0}]
[{"$f":"EVA_Groupes_MATHS!A504","v":0}]
[{"$f":"EVA_Groupes_MATHS!A505","v":0}]
[{"$f":"EVA_Groupes_MATHS!A506","v":0}]
[{"$f":"EVA_Groupes_MATHS!A507","v":0}]
[{"$f":"EVA_Groupes_MATHS!A508","v":0}]
[{"$f":"EVA_Groupes_MATHS!A509","v":0}]
[{"$f":"EVA_Groupes_MATHS!A510","v":0}]
[{"$f":"EVA_Groupes_MATHS!A511","v":0}]
[{"$f":"EVA_Groupes_MATHS!A512","v":0}]
[{"$f":"EVA_Groupes_MATHS!A513","v":0}]
[{"$f":"EVA_Groupes_MATHS!A514","v":0}]
[{"$f":"EVA_Groupes_MATHS!A515","v":0}]
[{"$f":"EVA_Groupes_MATHS!A516","v":0}]
[{"$f":"EVA_Groupes_MATHS!A517","v":0}]
[{"$f":"EVA_Groupes_MATHS!A518","v":0}]
[{"$f":"EVA_Groupes_MATHS!A519","v":0}]
[{"$f":"EVA_Groupes_MATHS!A520","v":0}]
[{"$f":"EVA_Groupes_MATHS!A521","v":0}]
[{"$f":"EVA_Groupes_MATHS!A522","v":0}]
[{"$f":"EVA_Groupes_MATHS!A523","v":0}]
[{"$f":"EVA_Groupes_MATHS!A524","v":0}]
[{"$f":"EVA_Groupes_MATHS!A525","v":0}]
[{"$f":"EVA_Groupes_MATHS!A526","v":0}]
[{"$f":"EVA_Groupes_MATHS!A527","v":0}]
[{"$f":"EVA_Groupes_MATHS!A528","v":0}]
[{"$f":"EVA_Groupes_MATHS!A529","v":0}]
[{"$f":"EVA_Groupes_MATHS!A530","v":0}]
[{"$f":"EVA_Groupes_MATHS!A531","v":0}]
[{"$f":"EVA_Groupes_MATHS!A532","v":0}]
[{"$f":"EVA_Groupes_MATHS!A533","v":0}]
[{"$f":"EVA_Groupes_MATHS!A534","v":0}]
[{"$f":"EVA_Groupes_MATHS!A535","v":0}]
[{"$f":"EVA_Groupes_MATHS!A536","v":0}]
[{"$f":"EVA_Groupes_MATHS!A537","v":0}]
[{"$f":"EVA_Groupes_MATHS!A538","v":0}]
[{"$f":"EVA_Groupes_MATHS!A539","v":0}]
[{"$f":"EVA_Groupes_MATHS!A540","v":0}]
[{"$f":"EVA_Groupes_MATHS!A541","v":0}]
[{"$f":"EVA_Groupes_MATHS!A542","v":0}]
[{"$f":"EVA_Groupes_MATHS!A543","v":0}]
[{"$f":"EVA_Groupes_MATHS!A544","v":0}]
[{"$f":"EVA_Groupes_MATHS!A545","v":0}]
[{"$f":"EVA_Groupes_MATHS!A546","v":0}]
[{"$f":"EVA_Groupes_MATHS!A547","v":0}]
[{"$f":"EVA_Groupes_MATHS!A548","v":0}]
[{"$f":"EVA_Groupes_MATHS!A549","v":0}]
[{"$f":"EVA_Groupes_MATHS!A550","v":0}]
[{"$f":"EVA_Groupes_MATHS!A551","v":0}]
[{"$f":"EVA_Groupes_MATHS!A552","v":0}]
[{"$f":"EVA_Groupes_MATHS!A553","v":0}]
[{"$f":"EVA_Groupes_MATHS!A554","v":0}]
[{"$f":"EVA_Groupes_MATHS!A555","v":0}]
[{"$f":"EVA_Groupes_MATHS!A556","v":0}]
[{"$f":"EVA_Groupes_MATHS!A557","v":0}]
[{"$f":"EVA_Groupes_MATHS!A558","v":0}]
[{"$f":"EVA_Groupes_MATHS!A559","v":0}]
[{"$f":"EVA_Groupes_MATHS!A560","v":0}]
[{"$f":"EVA_Groupes_MATHS!A561","v":0}]
[{"$f":"EVA_Groupes_MATHS!A562","v":0}]
[{"$f":"EVA_Groupes_MATHS!A563","v":0}]
[{"$f":"EVA_Groupes_MATHS!A564","v":0}]
[{"$f":"EVA_Groupes_MATHS!A565","v":0}]
[{"$f":"EVA_Groupes_MATHS!A566","v":0}]
[{"$f":"EVA_Groupes_MATHS!A567","v":0}]
[{"$f":"EVA_Groupes_MATHS!A568","v":0}]
[{"$f":"EVA_Groupes_MATHS!A569","v":0}]
[{"$f":"EVA_Groupes_MATHS!A570","v":0}]
[{"$f":"EVA_Groupes_MATHS!A571","v":0}]
[{"$f":"EVA_Groupes_MATHS!A572","v":0}]
[{"$f":"EVA_Groupes_MATHS!A573","v":0}]
[{"$f":"EVA_Groupes_MATHS!A574","v":0}]
[{"$f":"EVA_Groupes_MATHS!A575","v":0}]
[{"$f":"EVA_Groupes_MATHS!A576","v":0}]
[{"$f":"EVA_Groupes_MATHS!A577","v":0}]
[{"$f":"EVA_Groupes_MATHS!A578","v":0}]
[{"$f":"EVA_Groupes_MATHS!A579","v":0}]
[{"$f":"EVA_Groupes_MATHS!A580","v":0}]
[{"$f":"EVA_Groupes_MATHS!A581","v":0}]
[{"$f":"EVA_Groupes_MATHS!A582","v":0}]
[{"$f":"EVA_Groupes_MATHS!A583","v":0}]
[{"$f":"EVA_Groupes_MATHS!A584","v":0}]
[{"$f":"EVA_Groupes_MATHS!A585","v":0}]
[{"$f":"EVA_Groupes_MATHS!A586","v":0}]
[{"$f":"EVA_Groupes_MATHS!A587","v":0}]
[{"$f":"EVA_Groupes_MATHS!A588","v":0}]
[{"$f":"EVA_Groupes_MATHS!A589","v":0}]
[{"$f":"EVA_Groupes_MATHS!A590","v":0}]
[{"$f":"EVA_Groupes_MATHS!A591","v":0}]
[{"$f":"EVA_Groupes_MATHS!A592","v":0}]
[{"$f":"EVA_Groupes_MATHS!A593","v":0}]
[{"$f":"EVA_Groupes_MATHS!A594","v":0}]
[{"$f":"EVA_Groupes_MATHS!A595","v":0}]
[{"$f":"EVA_Groupes_MATHS!A596","v":0}]
[{"$f":"EVA_Groupes_MATHS!A597","v":0}]
[{"$f":"EVA_Groupes_MATHS!A598","v":0}]
[{"$f":"EVA_Groupes_MATHS!A599","v":0}]
[{"$f":"EVA_Groupes_MATHS!A600","v":0}]
[{"$f":"EVA_Groupes_MATHS!A601","v":0}]
[{"$f":"EVA_Groupes_MATHS!A602","v":0}]
[{"$f":"EVA_Groupes_MATHS!A603","v":0}]
[{"$f":"EVA_Groupes_MATHS!A604","v":0}]
[{"$f":"EVA_Groupes_MATHS!A605","v":0}]
[{"$f":"EVA_Groupes_MATHS!A606","v":0}]
[{"$f":"EVA_Groupes_MATHS!A607","v":0}]
[{"$f":"EVA_Groupes_MATHS!A608","v":0}]
[{"$f":"EVA_Groupes_MATHS!A609","v":0}]
[{"$f":"EVA_Groupes_MATHS!A610","v":0}]
[{"$f":"EVA_Groupes_MATHS!A611","v":0}]
[{"$f":"EVA_Groupes_MATHS!A612","v":0}]
[{"$f":"EVA_Groupes_MATHS!A613","v":0}]
[{"$f":"EVA_Groupes_MATHS!A614","v":0}]
[{"$f":"EVA_Groupes_MATHS!A615","v":0}]
[{"$f":"EVA_Groupes_MATHS!A616","v":0}]
[{"$f":"EVA_Groupes_MATHS!A617","v":0}]
[{"$f":"EVA_Groupes_MATHS!A618","v":0}]
[{"$f":"EVA_Groupes_MATHS!A619","v":0}]
[{"$f":"EVA_Groupes_MATHS!A620","v":0}]
[{"$f":"EVA_Groupes_MATHS!A621","v":0}]
[{"$f":"EVA_Groupes_MATHS!A622","v":0}]
[{"$f":"EVA_Groupes_MATHS!A623","v":0}]
[{"$f":"EVA_Groupes_MATHS!A624","v":0}]
[{"$f":"EVA_Groupes_MATHS!A625","v":0}]
[{"$f":"EVA_Groupes_MATHS!A626","v":0}]
[{"$f":"EVA_Groupes_MATHS!A627","v":0}]
[{"$f":"EVA_Groupes_MATHS!A628","v":0}]
[{"$f":"EVA_Groupes_MATHS!A629","v":0}]
[{"$f":"EVA_Groupes_MATHS!A630","v":0}]
[{"$f":"EVA_Groupes_MATHS!A631","v":0}]
[{"$f":"EVA_Groupes_MATHS!A632","v":0}]
[{"$f":"EVA_Groupes_MATHS!A633","v":0}]
[{"$f":"EVA_Groupes_MATHS!A634","v":0}]
[{"$f":"EVA_Groupes_MATHS!A635","v":0}]
[{"$f":"EVA_Groupes_MATHS!A636","v":0}]
[{"$f":"EVA_Groupes_MATHS!A637","v":0}]
[{"$f":"EVA_Groupes_MATHS!A638","v":0}]
[{"$f":"EVA_Groupes_MATHS!A639","v":0}]
[{"$f":"EVA_Groupes_MATHS!A640","v":0}]
[{"$f":"EVA_Groupes_MATHS!A641","v":0}]
[{"$f":"EVA_Groupes_MATHS!A642","v":0}]
[{"$f":"EVA_Groupes_MATHS!A643","v":0}]
[{"$f":"EVA_Groupes_MATHS!A644","v":0}]
[{"$f":"EVA_Groupes_MATHS!A645","v":0}]
[{"$f":"EVA_Groupes_MATHS!A646","v":0}]
[{"$f":"EVA_Groupes_MATHS!A647","v":0}]
[{"$f":"EVA_Groupes_MATHS!A648","v":0}]
[{"$f":"EVA_Groupes_MATHS!A649","v":0}]
[{"$f":"EVA_Groupes_MATHS!A650","v":0}]
[{"$f":"EVA_Groupes_MATHS!A651","v":0}]
[{"$f":"EVA_Groupes_MATHS!A652","v":0}]
[{"$f":"EVA_Groupes_MATHS!A653","v":0}]
[{"$f":"EVA_Groupes_MATHS!A654","v":0}]
[{"$f":"EVA_Groupes_MATHS!A655","v":0}]
[{"$f":"EVA_Groupes_MATHS!A656","v":0}]
[{"$f":"EVA_Groupes_MATHS!A657","v":0}]
[{"$f":"EVA_Groupes_MATHS!A658","v":0}]
[{"$f":"EVA_Groupes_MATHS!A659","v":0}]
[{"$f":"EVA_Groupes_MATHS!A660","v":0}]
[{"$f":"EVA_Groupes_MATHS!A661","v":0}]
[{"$f":"EVA_Groupes_MATHS!A662","v":0}]
[{"$f":"EVA_Groupes_MATHS!A663","v":0}]
[{"$f":"EVA_Groupes_MATHS!A664","v":0}]
[{"$f":"EVA_Groupes_MATHS!A665","v":0}]
[{"$f":"EVA_Groupes_MATHS!A666","v":0}]
[{"$f":"EVA_Groupes_MATHS!A667","v":0}]
[{"$f":"EVA_Groupes_MATHS!A668","v":0}]
[{"$f":"EVA_Groupes_MATHS!A669","v":0}]
[{"$f":"EVA_Groupes_MATHS!A670","v":0}]
[{"$f":"EVA_Groupes_MATHS!A671","v":0}]
[{"$f":"EVA_Groupes_MATHS!A672","v":0}]
[{"$f":"EVA_Groupes_MATHS!A673","v":0}]
[{"$f":"EVA_Groupes_MATHS!A674","v":0}]
[{"$f":"EVA_Groupes_MATHS!A675","v":0}]
[{"$f":"EVA_Groupes_MATHS!A676","v":0}]
[{"$f":"EVA_Groupes_MATHS!A677","v":0}]
[{"$f":"EVA_Groupes_MATHS!A678","v":0}]
[{"$f":"EVA_Groupes_MATHS!A679","v":0}]
[{"$f":"EVA_Groupes_MATHS!A680","v":0}]
[{"$f":"EVA_Groupes_MATHS!A681","v":0}]
[{"$f":"EVA_Groupes_MATHS!A682","v":0}]
[{"$f":"EVA_Groupes_MATHS!A683","v":0}]
[{"$f":"EVA_Groupes_MATHS!A684","v":0}]
[{"$f":"EVA_Groupes_MATHS!A685","v":0}]
[{"$f":"EVA_Groupes_MATHS!A686","v":0}]
[{"$f":"EVA_Groupes_MATHS!A687","v":0}]
[{"$f":"EVA_Groupes_MATHS!A688","v":0}]
[{"$f":"EVA_Groupes_MATHS!A689","v":0}]
[{"$f":"EVA_Groupes_MATHS!A690","v":0}]
[{"$f":"EVA_Groupes_MATHS!A691","v":0}]
[{"$f":"EVA_Groupes_MATHS!A692","v":0}]
[{"$f":"EVA_Groupes_MATHS!A693","v":0}]
[{"$f":"EVA_Groupes_MATHS!A694","v":0}]
[{"$f":"EVA_Groupes_MATHS!A695","v":0}]
[{"$f":"EVA_Groupes_MATHS!A696","v":0}]
[{"$f":"EVA_Groupes_MATHS!A697","v":0}]
[{"$f":"EVA_Groupes_MATHS!A698","v":0}]
[{"$f":"EVA_Groupes_MATHS!A699","v":0}]
[{"$f":"EVA_Groupes_MATHS!A700","v":0}]
[{"$f":"EVA_Groupes_MATHS!A701","v":0}]
[{"$f":"EVA_Groupes_MATHS!A702","v":0}]
[{"$f":"EVA_Groupes_MATHS!A703","v":0}]
[{"$f":"EVA_Groupes_MATHS!A704","v":0}]
[{"$f":"EVA_Groupes_MATHS!A705","v":0}]
[{"$f":"EVA_Groupes_MATHS!A706","v":0}]
[{"$f":"EVA_Groupes_MATHS!A707","v":0}]
[{"$f":"EVA_Groupes_MATHS!A708","v":0}]
[{"$f":"EVA_Groupes_MATHS!A709","v":0}]
[{"$f":"EVA_Groupes_MATHS!A710","v":0}]
[{"$f":"EVA_Groupes_MATHS!A711","v":0}]
[{"$f":"EVA_Groupes_MATHS!A712","v":0}]
[{"$f":"EVA_Groupes_MATHS!A713","v":0}]
[{"$f":"EVA_Groupes_MATHS!A714","v":0}]
[{"$f":"EVA_Groupes_MATHS!A715","v":0}]
[{"$f":"EVA_Groupes_MATHS!A716","v":0}]
[{"$f":"EVA_Groupes_MATHS!A717","v":0}]
[{"$f":"EVA_Groupes_MATHS!A718","v":0}]
[{"$f":"EVA_Groupes_MATHS!A719","v":0}]
[{"$f":"EVA_Groupes_MATHS!A720","v":0}]
[{"$f":"EVA_Groupes_MATHS!A721","v":0}]
[{"$f":"EVA_Groupes_MATHS!A722","v":0}]
[{"$f":"EVA_Groupes_MATHS!A723","v":0}]
[{"$f":"EVA_Groupes_MATHS!A724","v":0}]
[{"$f":"EVA_Groupes_MATHS!A725","v":0}]
[{"$f":"EVA_Groupes_MATHS!A726","v":0}]
[{"$f":"EVA_Groupes_MATHS!A727","v":0}]
[{"$f":"EVA_Groupes_MATHS!A728","v":0}]
[{"$f":"EVA_Groupes_MATHS!A729","v":0}]
[{"$f":"EVA_Groupes_MATHS!A730","v":0}]
[{"$f":"EVA_Groupes_MATHS!A731","v":0}]
[{"$f":"EVA_Groupes_MATHS!A732","v":0}]
[{"$f":"EVA_Groupes_MATHS!A733","v":0}]
[{"$f":"EVA_Groupes_MATHS!A734","v":0}]
[{"$f":"EVA_Groupes_MATHS!A735","v":0}]
[{"$f":"EVA_Groupes_MATHS!A736","v":0}]
[{"$f":"EVA_Groupes_MATHS!A737","v":0}]
[{"$f":"EVA_Groupes_MATHS!A738","v":0}]
[{"$f":"EVA_Groupes_MATHS!A739","v":0}]
[{"$f":"EVA_Groupes_MATHS!A740","v":0}]
[{"$f":"EVA_Groupes_MATHS!A741","v":0}]
[{"$f":"EVA_Groupes_MATHS!A742","v":0}]
[{"$f":"EVA_Groupes_MATHS!A743","v":0}]
[{"$f":"EVA_Groupes_MATHS!A744","v":0}]
[{"$f":"EVA_Groupes_MATHS!A745","v":0}]
[{"$f":"EVA_Groupes_MATHS!A746","v":0}]
[{"$f":"EVA_Groupes_MATHS!A747","v":0}]
[{"$f":"EVA_Groupes_MATHS!A748","v":0}]
[{"$f":"EVA_Groupes_MATHS!A749","v":0}]
[{"$f":"EVA_Groupes_MATHS!A750","v":0}]
[{"$f":"EVA_Groupes_MATHS!A751","v":0}]
[{"$f":"EVA_Groupes_MATHS!A752","v":0}]
[{"$f":"EVA_Groupes_MATHS!A753","v":0}]
[{"$f":"EVA_Groupes_MATHS!A754","v":0}]
[{"$f":"EVA_Groupes_MATHS!A755","v":0}]
[{"$f":"EVA_Groupes_MATHS!A756","v":0}]
[{"$f":"EVA_Groupes_MATHS!A757","v":0}]
[{"$f":"EVA_Groupes_MATHS!A758","v":0}]
[{"$f":"EVA_Groupes_MATHS!A759","v":0}]
[{"$f":"EVA_Groupes_MATHS!A760","v":0}]
[{"$f":"EVA_Groupes_MATHS!A761","v":0}]
[{"$f":"EVA_Groupes_MATHS!A762","v":0}]
[{"$f":"EVA_Groupes_MATHS!A763","v":0}]
[{"$f":"EVA_Groupes_MATHS!A764","v":0}]
[{"$f":"EVA_Groupes_MATHS!A765","v":0}]
[{"$f":"EVA_Groupes_MATHS!A766","v":0}]
[{"$f":"EVA_Groupes_MATHS!A767","v":0}]
[{"$f":"EVA_Groupes_MATHS!A768","v":0}]
[{"$f":"EVA_Groupes_MATHS!A769","v":0}]
[{"$f":"EVA_Groupes_MATHS!A770","v":0}]
[{"$f":"EVA_Groupes_MATHS!A771","v":0}]
[{"$f":"EVA_Groupes_MATHS!A772","v":0}]
[{"$f":"EVA_Groupes_MATHS!A773","v":0}]
[{"$f":"EVA_Groupes_MATHS!A774","v":0}]
[{"$f":"EVA_Groupes_MATHS!A775","v":0}]
[{"$f":"EVA_Groupes_MATHS!A776","v":0}]
[{"$f":"EVA_Groupes_MATHS!A777","v":0}]
[{"$f":"EVA_Groupes_MATHS!A778","v":0}]
[{"$f":"EVA_Groupes_MATHS!A779","v":0}]
[{"$f":"EVA_Groupes_MATHS!A780","v":0}]
[{"$f":"EVA_Groupes_MATHS!A781","v":0}]
[{"$f":"EVA_Groupes_MATHS!A782","v":0}]
[{"$f":"EVA_Groupes_MATHS!A783","v":0}]
[{"$f":"EVA_Groupes_MATHS!A784","v":0}]
[{"$f":"EVA_Groupes_MATHS!A785","v":0}]
[{"$f":"EVA_Groupes_MATHS!A786","v":0}]
[{"$f":"EVA_Groupes_MATHS!A787","v":0}]
[{"$f":"EVA_Groupes_MATHS!A788","v":0}]
[{"$f":"EVA_Groupes_MATHS!A789","v":0}]
[{"$f":"EVA_Groupes_MATHS!A790","v":0}]
[{"$f":"EVA_Groupes_MATHS!A791","v":0}]
[{"$f":"EVA_Groupes_MATHS!A792","v":0}]
[{"$f":"EVA_Groupes_MATHS!A793","v":0}]
[{"$f":"EVA_Groupes_MATHS!A794","v":0}]
[{"$f":"EVA_Groupes_MATHS!A795","v":0}]
[{"$f":"EVA_Groupes_MATHS!A796","v":0}]
[{"$f":"EVA_Groupes_MATHS!A797","v":0}]
[{"$f":"EVA_Groupes_MATHS!A798","v":0}]
[{"$f":"EVA_Groupes_MATHS!A799","v":0}]
[{"$f":"EVA_Groupes_MATHS!A800","v":0}]
[{"$f":"EVA_Groupes_MATHS!A801","v":0}]
[{"$f":"EVA_Groupes_MATHS!A802","v":0}]
[{"$f":"EVA_Groupes_MATHS!A803","v":0}]
[{"$f":"EVA_Groupes_MATHS!A804","v":0}]
[{"$f":"EVA_Groupes_MATHS!A805","v":0}]
[{"$f":"EVA_Groupes_MATHS!A806","v":0}]
[{"$f":"EVA_Groupes_MATHS!A807","v":0}]
[{"$f":"EVA_Groupes_MATHS!A808","v":0}]
[{"$f":"EVA_Groupes_MATHS!A809","v":0}]
[{"$f":"EVA_Groupes_MATHS!A810","v":0}]
[{"$f":"EVA_Groupes_MATHS!A811","v":0}]
[{"$f":"EVA_Groupes_MATHS!A812","v":0}]
[{"$f":"EVA_Groupes_MATHS!A813","v":0}]
[{"$f":"EVA_Groupes_MATHS!A814","v":0}]
[{"$f":"EVA_Groupes_MATHS!A815","v":0}]
[{"$f":"EVA_Groupes_MATHS!A816","v":0}]
[{"$f":"EVA_Groupes_MATHS!A817","v":0}]
[{"$f":"EVA_Groupes_MATHS!A818","v":0}]
[{"$f":"EVA_Groupes_MATHS!A819","v":0}]
[{"$f":"EVA_Groupes_MATHS!A820","v":0}]
[{"$f":"EVA_Groupes_MATHS!A821","v":0}]
[{"$f":"EVA_Groupes_MATHS!A822","v":0}]
[{"$f":"EVA_Groupes_MATHS!A823","v":0}]
[{"$f":"EVA_Groupes_MATHS!A824","v":0}]
[{"$f":"EVA_Groupes_MATHS!A825","v":0}]
[{"$f":"EVA_Groupes_MATHS!A826","v":0}]
[{"$f":"EVA_Groupes_MATHS!A827","v":0}]
[{"$f":"EVA_Groupes_MATHS!A828","v":0}]
[{"$f":"EVA_Groupes_MATHS!A829","v":0}]
[{"$f":"EVA_Groupes_MATHS!A830","v":0}]
[{"$f":"EVA_Groupes_MATHS!A831","v":0}]
[{"$f":"EVA_Groupes_MATHS!A832","v":0}]
[{"$f":"EVA_Groupes_MATHS!A833","v":0}]
[{"$f":"EVA_Groupes_MATHS!A834","v":0}]
[{"$f":"EVA_Groupes_MATHS!A835","v":0}]
[{"$f":"EVA_Groupes_MATHS!A836","v":0}]
[{"$f":"EVA_Groupes_MATHS!A837","v":0}]
[{"$f":"EVA_Groupes_MATHS!A838","v":0}]
[{"$f":"EVA_Groupes_MATHS!A839","v":0}]
[{"$f":"EVA_Groupes_MATHS!A840","v":0}]
[{"$f":"EVA_Groupes_MATHS!A841","v":0}]
[{"$f":"EVA_Groupes_MATHS!A842","v":0}]
[{"$f":"EVA_Groupes_MATHS!A843","v":0}]
[{"$f":"EVA_Groupes_MATHS!A844","v":0}]
[{"$f":"EVA_Groupes_MATHS!A845","v":0}]
[{"$f":"EVA_Groupes_MATHS!A846","v":0}]
[{"$f":"EVA_Groupes_MATHS!A847","v":0}]
[{"$f":"EVA_Groupes_MATHS!A848","v":0}]
[{"$f":"EVA_Groupes_MATHS!A849","v":0}]
[{"$f":"EVA_Groupes_MATHS!A850","v":0}]
[{"$f":"EVA_Groupes_MATHS!A851","v":0}]
[{"$f":"EVA_Groupes_MATHS!A852","v":0}]
[{"$f":"EVA_Groupes_MATHS!A853","v":0}]
[{"$f":"EVA_Groupes_MATHS!A854","v":0}]
[{"$f":"EVA_Groupes_MATHS!A855","v":0}]
[{"$f":"EVA_Groupes_MATHS!A856","v":0}]
[{"$f":"EVA_Groupes_MATHS!A857","v":0}]
[{"$f":"EVA_Groupes_MATHS!A858","v":0}]
[{"$f":"EVA_Groupes_MATHS!A859","v":0}]
[{"$f":"EVA_Groupes_MATHS!A860","v":0}]
[{"$f":"EVA_Groupes_MATHS!A861","v":0}]
[{"$f":"EVA_Groupes_MATHS!A862","v":0}]
[{"$f":"EVA_Groupes_MATHS!A863","v":0}]
[{"$f":"EVA_Groupes_MATHS!A864","v":0}]
[{"$f":"EVA_Groupes_MATHS!A865","v":0}]
[{"$f":"EVA_Groupes_MATHS!A866","v":0}]
[{"$f":"EVA_Groupes_MATHS!A867","v":0}]
[{"$f":"EVA_Groupes_MATHS!A868","v":0}]
[{"$f":"EVA_Groupes_MATHS!A869","v":0}]
[{"$f":"EVA_Groupes_MATHS!A870","v":0}]
[{"$f":"EVA_Groupes_MATHS!A871","v":0}]
[{"$f":"EVA_Groupes_MATHS!A872","v":0}]
[{"$f":"EVA_Groupes_MATHS!A873","v":0}]
[{"$f":"EVA_Groupes_MATHS!A874","v":0}]
[{"$f":"EVA_Groupes_MATHS!A875","v":0}]
[{"$f":"EVA_Groupes_MATHS!A876","v":0}]
[{"$f":"EVA_Groupes_MATHS!A877","v":0}]
[{"$f":"EVA_Groupes_MATHS!A878","v":0}]
[{"$f":"EVA_Groupes_MATHS!A879","v":0}]
[{"$f":"EVA_Groupes_MATHS!A880","v":0}]
[{"$f":"EVA_Groupes_MATHS!A881","v":0}]
[{"$f":"EVA_Groupes_MATHS!A882","v":0}]
[{"$f":"EVA_Groupes_MATHS!A883","v":0}]
[{"$f":"EVA_Groupes_MATHS!A884","v":0}]
[{"$f":"EVA_Groupes_MATHS!A885","v":0}]
[{"$f":"EVA_Groupes_MATHS!A886","v":0}]
[{"$f":"EVA_Groupes_MATHS!A887","v":0}]
[{"$f":"EVA_Groupes_MATHS!A888","v":0}]
[{"$f":"EVA_Groupes_MATHS!A889","v":0}]
[{"$f":"EVA_Groupes_MATHS!A890","v":0}]
[{"$f":"EVA_Groupes_MATHS!A891","v":0}]
[{"$f":"EVA_Groupes_MATHS!A892","v":0}]
[{"$f":"EVA_Groupes_MATHS!A893","v":0}]
[{"$f":"EVA_Groupes_MATHS!A894","v":0}]
[{"$f":"EVA_Groupes_MATHS!A895","v":0}]
[{"$f":"EVA_Groupes_MATHS!A896","v":0}]
[{"$f":"EVA_Groupes_MATHS!A897","v":0}]
[{"$f":"EVA_Groupes_MATHS!A898","v":0}]
[{"$f":"EVA_Groupes_MATHS!A899","v":0}]
[{"$f":"EVA_Groupes_MATHS!A900","v":0}]
[{"$f":"EVA_Groupes_MATHS!A901","v":0}]
[{"$f":"EVA_Groupes_MATHS!A902","v":0}]
[{"$f":"EVA_Groupes_MATHS!A903","v":0}]
[{"$f":"EVA_Groupes_MATHS!A904","v":0}]
[{"$f":"EVA_Groupes_MATHS!A905","v":0}]
[{"$f":"EVA_Groupes_MATHS!A906","v":0}]
[{"$f":"EVA_Groupes_MATHS!A907","v":0}]
[{"$f":"EVA_Groupes_MATHS!A908","v":0}]
[{"$f":"EVA_Groupes_MATHS!A909","v":0}]
[{"$f":"EVA_Groupes_MATHS!A910","v":0}]
[{"$f":"EVA_Groupes_MATHS!A911","v":0}]
[{"$f":"EVA_Groupes_MATHS!A912","v":0}]
[{"$f":"EVA_Groupes_MATHS!A913","v":0}]
[{"$f":"EVA_Groupes_MATHS!A914","v":0}]
[{"$f":"EVA_Groupes_MATHS!A915","v":0}]
[{"$f":"EVA_Groupes_MATHS!A916","v":0}]
[{"$f":"EVA_Groupes_MATHS!A917","v":0}]
[{"$f":"EVA_Groupes_MATHS!A918","v":0}]
[{"$f":"EVA_Groupes_MATHS!A919","v":0}]
[{"$f":"EVA_Groupes_MATHS!A920","v":0}]
[{"$f":"EVA_Groupes_MATHS!A921","v":0}]
[{"$f":"EVA_Groupes_MATHS!A922","v":0}]
[{"$f":"EVA_Groupes_MATHS!A923","v":0}]
[{"$f":"EVA_Groupes_MATHS!A924","v":0}]
[{"$f":"EVA_Groupes_MATHS!A925","v":0}]
[{"$f":"EVA_Groupes_MATHS!A926","v":0}]
[{"$f":"EVA_Groupes_MATHS!A927","v":0}]
[{"$f":"EVA_Groupes_MATHS!A928","v":0}]
[{"$f":"EVA_Groupes_MATHS!A929","v":0}]
[{"$f":"EVA_Groupes_MATHS!A930","v":0}]
[{"$f":"EVA_Groupes_MATHS!A931","v":0}]
[{"$f":"EVA_Groupes_MATHS!A932","v":0}]
[{"$f":"EVA_Groupes_MATHS!A933","v":0}]
[{"$f":"EVA_Groupes_MATHS!A934","v":0}]
[{"$f":"EVA_Groupes_MATHS!A935","v":0}]
[{"$f":"EVA_Groupes_MATHS!A936","v":0}]
[{"$f":"EVA_Groupes_MATHS!A937","v":0}]
[{"$f":"EVA_Groupes_MATHS!A938","v":0}]
[{"$f":"EVA_Groupes_MATHS!A939","v":0}]
[{"$f":"EVA_Groupes_MATHS!A940","v":0}]
[{"$f":"EVA_Groupes_MATHS!A941","v":0}]
[{"$f":"EVA_Groupes_MATHS!A942","v":0}]
[{"$f":"EVA_Groupes_MATHS!A943","v":0}]
[{"$f":"EVA_Groupes_MATHS!A944","v":0}]
[{"$f":"EVA_Groupes_MATHS!A945","v":0}]
[{"$f":"EVA_Groupes_MATHS!A946","v":0}]
[{"$f":"EVA_Groupes_MATHS!A947","v":0}]
[{"$f":"EVA_Groupes_MATHS!A948","v":0}]
[{"$f":"EVA_Groupes_MATHS!A949","v":0}]
[{"$f":"EVA_Groupes_MATHS!A950","v":0}]
[{"$f":"EVA_Groupes_MATHS!A951","v":0}]
[{"$f":"EVA_Groupes_MATHS!A952","v":0}]
[{"$f":"EVA_Groupes_MATHS!A953","v":0}]
[{"$f":"EVA_Groupes_MATHS!A954","v":0}]
[{"$f":"EVA_Groupes_MATHS!A955","v":0}]
[{"$f":"EVA_Groupes_MATHS!A956","v":0}]
[{"$f":"EVA_Groupes_MATHS!A957","v":0}]
[{"$f":"EVA_Groupes_MATHS!A958","v":0}]
[{"$f":"EVA_Groupes_MATHS!A959","v":0}]
[{"$f":"EVA_Groupes_MATHS!A960","v":0}]
[{"$f":"EVA_Groupes_MATHS!A961","v":0}]
[{"$f":"EVA_Groupes_MATHS!A962","v":0}]
[{"$f":"EVA_Groupes_MATHS!A963","v":0}]
[{"$f":"EVA_Groupes_MATHS!A964","v":0}]
[{"$f":"EVA_Groupes_MATHS!A965","v":0}]
[{"$f":"EVA_Groupes_MATHS!A966","v":0}]
[{"$f":"EVA_Groupes_MATHS!A967","v":0}]
[{"$f":"EVA_Groupes_MATHS!A968","v":0}]
[{"$f":"EVA_Groupes_MATHS!A969","v":0}]
[{"$f":"EVA_Groupes_MATHS!A970","v":0}]
[{"$f":"EVA_Groupes_MATHS!A971","v":0}]
[{"$f":"EVA_Groupes_MATHS!A972","v":0}]
[{"$f":"EVA_Groupes_MATHS!A973","v":0}]
[{"$f":"EVA_Groupes_MATHS!A974","v":0}]
[{"$f":"EVA_Groupes_MATHS!A975","v":0}]
[{"$f":"EVA_Groupes_MATHS!A976","v":0}]
[{"$f":"EVA_Groupes_MATHS!A977","v":0}]
[{"$f":"EVA_Groupes_MATHS!A978","v":0}]
[{"$f":"EVA_Groupes_MATHS!A979","v":0}]
[{"$f":"EVA_Groupes_MATHS!A980","v":0}]
[{"$f":"EVA_Groupes_MATHS!A981","v":0}]
[{"$f":"EVA_Groupes_MATHS!A982","v":0}]
[{"$f":"EVA_Groupes_MATHS!A983","v":0}]
[{"$f":"EVA_Groupes_MATHS!A984","v":0}]
[{"$f":"EVA_Groupes_MATHS!A985","v":0}]
[{"$f":"EVA_Groupes_MATHS!A986","v":0}]
[{"$f":"EVA_Groupes_MATHS!A987","v":0}]
[{"$f":"EVA_Groupes_MATHS!A988","v":0}]
[{"$f":"EVA_Groupes_MATHS!A989","v":0}]
[{"$f":"EVA_Groupes_MATHS!A990","v":0}]
[{"$f":"EVA_Groupes_MATHS!A991","v":0}]
[{"$f":"EVA_Groupes_MATHS!A992","v":0}]
[{"$f":"EVA_Groupes_MATHS!A993","v":0}]
[{"$f":"EVA_Groupes_MATHS!A994","v":0}]
[{"$f":"EVA_Groupes_MATHS!A995","v":0}]
[{"$f":"EVA_Groupes_MATHS!A996","v":0}]
[{"$f":"EVA_Groupes_MATHS!A997","v":0}]
[{"$f":"EVA_Groupes_MATHS!A998","v":0}]
[{"$f":"EVA_Groupes_MATHS!A999","v":0}]
[{"$f":"EVA_Groupes_MATHS!A1000","v":0}]
[{"$f":"EVA_Groupes_MATHS!A1001","v":0}]

{"sheet":"Feuil1","index":10,"n_rows":19,"n_cols":7,"rows_kept":19,"cut":false,"hidden":true,"merged":[]}
[]
[]
["Étiquettes de lignes"]
[0,{"$f":"A4=0","v":true},{"$f":"A4=\"Total général\"","v":false},{"$f":"OR(B4,C4)","v":true},{"$f":"IF(D4=TRUE,\"\",A4)","v":""}]
["Total général",{"$f":"A5=0","v":false},{"$f":"A5=\"Total général\"","v":true},{"$f":"OR(B5,C5)","v":true},{"$f":"IF(D5=TRUE,\"-\",A5)","v":"-"},{"$f":"IF(ISNUMBER(E5),IF((E5>11)*(MOD(E5,10)=0),1,0),0)","v":0},{"$f":"IF((F5=1)*(ISNUMBER(E5)),TEXT(E5,\"0E+00\"),\"\")","v":""}]
[null,true,false,true,{"$f":"IF(D6=TRUE,\"-\",A6)","v":"-"},0,{"$f":"IF((F6=1)*(ISNUMBER(E6)),TEXT(E6,\"0E+00\"),\"\")","v":""}]
[null,true,false,true,"-",0,""]
[null,true,false,true,"-",0,""]
[null,true,false,true,"-",0,""]
[null,true,false,true,"-",0,""]
[null,true,false,true,"-",0,""]
[null,true,false,true,"-",{"$f":"IF(ISNUMBER(E12),IF((E12>11)*(MOD(E12,10)=0),1,0),0)","v":0},""]
[null,true,false,true,"-",{"$f":"IF(ISNUMBER(E13),IF((E13>11)*(MOD(E13,10)=0),1,0),0)","v":0},""]
[null,true,false,true,"-",0,""]
[null,true,false,true,"-",0,""]
[null,true,false,true,"-",0,""]
[null,true,false,true,"-",0,""]
[null,true,false,true,"-",0,""]
[null,true,false,true,{"$f":"IF(D19=TRUE,\"\",A19)","v":""},null,""]